Workbook

Sheet Περιγραφή Έργου
B8: Στο πρόγραμμα αυτό υπολογίζεται η Ετήσια Εξοικονόμηση Ηλεκτρικής Ενέργειας και το Περιβαλλοντικό Όφελος από την εγκατάσταση Φ/Β συστήματος με το πρόγραμμα NET METERING καθώς και οι δείκτες οικονομικότητας. ΚΑΠΕ 2017
B13: ΓΕΝΙΚΑ ΣΤΟΙΧΕΙΑ ΕΡΓΟΥ
B14: Ημερομηνία Συμπλήρωσης: | E14: 2018-06-18
B15: Δικαιούχος: | D15: Δήμος ???????
B16: Τίτλος Έργου: | D16: Εικονικός Ενεργειακός Συμψηφισμός Καταναλώσεων ………………………….
B17: Περιγραφή Έργου: | D17: Το σενάριο αυτό αφορά τον εικονικό ενεργειακό συμψηφισμό κατανάλωσης χαμηλής τάσης, σε εγκαταστάσεις…………………
B18: Ημ/νία Υποβολής Αιτήματος Χρηματοδότησης στο ΤΠΔ: | H18: 2018-07-24
B19: Κωδικός Έργου:
H38: Ημερομηνία Εκτύπωσης: | I38: =TODAY() -> 2024-03-26

Sheet Δεδομένα1
B2: ΦΠΑ
B3: Φόρος Προστιθέμενης Αξίας τιμολόγησης καταναλισκόμενης ηλεκτρικής ενέργειας, ΦΠΑ (%): | K3: 0.13 | L3: Σύμφωνα με το καθεστώς ΦΠΑ στο οποίο υπόκειται ο Δικαιούχος.
B4: Φόρος Προστιθέμενης Αξίας προμήθειας και εγκατάστασης Φ/Β σταθμού, ΦΠΑ (%): | K4: 0.24
B6: ΟΙΚΟΝΟΜΙΚΑ ΔΕΔΟΜΕΝΑ
B7: Διάρκεια του Δανείου σε Χρόνια (0-15): | K7: 14
B8: Διάρκεια Ζωής Επένδυσης σε χρόνια: | K8: 25
B9: Κόστος Διασύνδεσης, χωρίς ΦΠΑ (€): | K9: 403.23
B10: Έκπτωση συνέπειας (%): | K10: 0
B12: ΕΚΠΟΜΠΕΣ ΡΥΠΩΝ ΠΑΡΑΓΩΓΗΣ ΗΛΕΚΤΡΙΚΗΣ ΕΝΕΡΓΕΙΑΣ
B13: Εκλυόμενοι ρύποι ανά μονάδα ενέργειας (gr CO2/kWh) | K13: 405.62 | L13: Σύμφωνα με το ΦΕΚ 407/Β/2010.
B15: ΡΥΘΜΙΖΟΜΕΝΕΣ ΧΡΕΩΣΕΙΣ
B16: Είδος | C16: Κατηγορία Πελάτη | J16: Κλίμακες | L16: Μοναδιαία Χρέωση (€/1.000kWh)
B17: Υπηρεσίες Κοινής Ωφελείας | C17: Οικιακής Χρήσης ΧΤ (Καταναλώσεις Ημέρας) | J17: 0-1.600 kWh/τετραμηνία | L17: 6.99 | N17: http://www.rae.gr/site/categories_new/about_rae/factsheets/major_news/27032012.csp
J18: 1.601-2.000 kWh/τετρ. | L18: 15.7
J19: 2.001-3.000 kWh/τετρ. | L19: 39.87
J20: 3.001-άνω kWh/τετρ. | L20: 44.88
C21: Βιομηχανικής Χρήσης ΧΤ | J21: - | L21: 18.24
C22: Γενικής Χρήσης ΧΤ | J22: - | L22: 18.24
C23: Φωτισμός Οδών και Πλατειών ΧΤ | J23: - | L23: 13.71
C24: Αγροτικής Χρήσης ΧΤ | J24: - | L24: 7.07
C25: Καταναλώσεις Νύχτας ΧΤ | J25: - | L25: 8.89
C26: Γενικής Χρήσης ΜΤ | J26: - | L26: 17.9
C27: Αγροτικής Χρήσης ΜΤ | J27: - | L27: 5.46
C28: Βιομηχανικής Χρήσης ΜΤ | J28: - | L28: 6.91
C29: Υψηλής Τάσης (ΥΤ) | J29: - | L29: 4.14
B31: ΡΥΘΜΙΖΟΜΕΝΕΣ ΧΡΕΩΣΕΙΣ
B32: Είδος | C32: Κατηγορία Πελάτη | J32: Μοναδιαία Χρέωση (€/1000kWh) | N32: Οι ισχύουσες χρεώσεις από την 1η Ιανουαρίου 2018 για το ΕΤΜΕΑΡ σύμφωνα με την υπ’ αριθμ. 1.101/2017 Απόφαση της ΡΑΕ και μέχρι την έκδοση νεότερης απόφασης.
B33: ΕΤΜΕΑΡ | C33: Λοιπές Χρήσεις ΧΤ | J33: 26.08
C34: Οικιακής Χρήσης ΧΤ | J34: 22.67
C35: Αγροτικής Χρήσης ΧΤ | J35: 9.39
C36: ΜΤ με κατανάλωση <13GWh | J36: 8.78
C37: Αγροτικής Χρήσης ΜΤ | J37: 8.6
C38: ΜΤ με κατανάλωση >13GWh | J38: 2.47
C39: Υψηλής Τάσης (ΥΤ) | J39: 2.47
B40: Είδος | C40: Κατηγορία Πελάτη | J40: Χρέωση Ισχύος | L40: Χρέωση Ενέργειας (λεπτά €/kWh)
B41: Χρεώσεις χρήσης Συστήματος Μεταφοράς | C41: Λοιποί Πελάτες ΧΤ (συμπεριλαμβανομένων των ΦΟΠ) | J41: 0.53 | K41: €/kVA/ΣΙ/ έτος | L41: 0.477 | N41: Οι ισχύουσες χρεώσεις χρήσης συστήματος μεταφοράς ηλεκτρικής ενέργειας με εφαρμογή από την 1η Ιανουαρίου 2017 σύμφωνα με την υπ’ αριθμ. 456/2016 Απόφαση της ΡΑΕ (ΦΕΚ Β’ 3857/30.11.2016).
C42: Πελάτες ΧΤ - Οικιακοί ΥΚΩ (Πολύτεκνοι και Δικαιούχοι Κοινωνικού Οικιακού Τιμολογίου) | J42: 0 | L42: 0.586
C43: Πελάτες ΧΤ - Οικιακοί | J43: 0.13 | K43: €/kVA/ΣΙ/ έτος | L43: 0.527
C44: Πελάτες ΜΤ | J44: 1329 | K44: €/MW - X | L44: 0
C45: Πελάτες ΥΤ | J45: 24103 | K45: €/MW - X | L45: 0
B46: Είδος | C46: Κατηγορία Πελάτη | J46: Χρέωση Ισχύος (€/kVA/ΣΙ/ έτος) | L46: Χρέωση Ενέργειας (λεπτά €/kWh)
B47: Χρεώσεις χρήσης Δικτύου Διανομής | C47: Οικιακοί Πελάτες ΧΤ | J47: 0.54 | L47: 2.13 | N47: Οι ισχύουσες χρεώσεις χρήσης δικτύου διανομής ηλεκτρικής ενέργειας με εφαρμογή από την 1η Ιανουαρίου 2017 σύμφωνα με την υπ’ αριθμ. 455/2016 Απόφαση της ΡΑΕ (ΦΕΚ Β’ 3857/30.11.2016).
C48: Πελάτες ΧΤ Κοινωνικού Οικιακού Τιμολογίου και Τιμολογίου Πολυτέκνων | J48: 0 | L48: 2.37
C49: Πελάτες ΧΤ με μέτρηση μέγιστης ζήτησης ισχύος (παροχή άνω των 25kVA) και μέτρηση άεργου ισχύος | J49: 3.78 | L49: 1.67
C50: Πελάτες ΧΤ με μέτρηση μέγιστης ζήτησης ισχύος (παροχή άνω των 25kVA), χωρίς μέτρηση άεργου ισχύος | J50: 3.17 | L50: 1.9
C51: Λοιποί Πελάτες ΧΤ (παροχή έως και 25kVA) | J51: 1.47 | L51: 1.9
C52: Πελάτες ΜΤ | J52: 1179 | K52: €/MW - X | L52: 0.29
B56: ΡΥΘΜΙΖΟΜΕΝΕΣ ΧΡΕΩΣΕΙΣ
B57: Λοιπές Χρεώσεις για την εύρυθμη λειτουργία της αγοράς (λεπτά €/kWh) | K57: 0.007
B58: Ειδικός Φόρος Κατανάλωσης - ΕΦΚ Ν. 3336/05 (€/kWh) | K58: 0.005
B59: Ειδικό Τέλος Ν. 2093/92 5‰ | K59: 0.005

Sheet Δεδομένα2
S1: 1 | T1: =+S1+1 -> 2 | U1: =+T1+1 -> 3 | V1: 4 | W1: 5 | X1: 6 | Y1: 7 | Z1: 8 | AA1: 9 | AB1: 10 | AD1: 1 | AE1: =+AD1+1 -> 2 | AF1: =+AE1+1 -> 3 | AG1: 4 | AH1: 5 | AI1: 6 | AJ1: 7 | AK1: 8 | AL1: 9 | AM1: 10 | AO1: 1 | AP1: =+AO1+1 -> 2 | AQ1: =+AP1+1 -> 3 | AR1: 4 | AS1: 5 | AT1: 6 | AU1: 7 | AV1: 8 | AW1: 9 | AX1: 10 | AZ1: 1 | BA1: =+AZ1+1 -> 2 | BB1: 3 | BC1: 4 | BD1: 5 | BE1: 6 | BF1: 7 | BG1: 8 | BH1: 9 | BI1: 10 | BK1: 1 | BL1: =+BK1+1 -> 2 | BM1: =+BL1+1 -> 3 | BN1: 4 | BO1: 5 | BP1: 6 | BQ1: 7 | BR1: 8 | BS1: 9 | BT1: 10 | BV1: 1 | BW1: =+BV1+1 -> 2 | BX1: =+BW1+1 -> 3 | BY1: 4 | BZ1: 5 | CA1: 6 | CB1: 7 | CC1: 8 | CD1: 9 | CE1: 10 | CG1: 1 | CH1: =+CG1+1 -> 2 | CI1: =+CH1+1 -> 3 | CJ1: 4 | CK1: 5 | CL1: 6 | CM1: 7 | CN1: 8 | CO1: 9 | CP1: 10 | CR1: 1 | CS1: =+CR1+1 -> 2 | CT1: 3 | CU1: 4 | CV1: 5 | CW1: 6 | CX1: 7 | CY1: 8 | CZ1: 9 | DA1: 10 | DC1: 1 | DD1: =+DC1+1 -> 2 | DE1: 3 | DF1: 4 | DG1: 5 | DH1: 6 | DI1: 7 | DJ1: 8 | DK1: 9 | DL1: 10 | DN1: 1 | DO1: =+DN1+1 -> 2 | DP1: 3 | DQ1: 4 | DR1: 5 | DS1: 6 | DT1: 7 | DU1: 8 | DV1: 9 | DW1: 10 | DY1: 1 | DZ1: =+DY1+1 -> 2 | EA1: 3 | EB1: 4 | EC1: 5 | ED1: 6 | EE1: 7 | EF1: 8 | EG1: 9 | EH1: 10
B2: ΤΥΠΙΚΑ ΕΜΠΟΡΙΚΑ ΤΙΜΟΛΟΓΙΑ ΗΛΕΚΤΡΙΚΗΣ ΕΝΕΡΓΕΙΑΣ ΧΑΜΗΛΗΣ ΤΑΣΗΣ
B3: Τιμολόγιο | C3: Γ21 | D3: Γ22_1 | E3: Γ22_2 | F3: ΑΓ-ΧΤ | G3: ΦΟΠ1 | H3: ΦΟΠ2 | I3: ΦΟΠ3 | J3: ΜΤ-ΓΧ | K3: ΜΤ-1 | L3: ΜΤ-2 | M3: ΜΤ-3 | R3: Γ21 | S3: =S1 & "-" &$R$3 -> 1-Γ21 | T3: =T1 & "-" &$R$3 -> 2-Γ21 | U3: 3-Γ21 | V3: 4-Γ21 | W3: 5-Γ21 | X3: 6-Γ21 | Y3: 7-Γ21 | Z3: 8-Γ21 | AA3: 9-Γ21 | AB3: 10-Γ21 | AC3: Γ22_1 | AD3: =AD1 & "-" &$AC$3 -> 1-Γ22_1 | AE3: =AE1 & "-" &$AC$3 -> 2-Γ22_1 | AF3: 3-Γ22_1 | AG3: 4-Γ22_1 | AH3: 5-Γ22_1 | AI3: 6-Γ22_1 | AJ3: 7-Γ22_1 | AK3: 8-Γ22_1 | AL3: 9-Γ22_1 | AM3: 10-Γ22_1 | AN3: Γ22_2 | AO3: =AO1 & "-" &$AN$3 -> 1-Γ22_2 | AP3: =AP1 & "-" &$AN$3 -> 2-Γ22_2 | AQ3: 3-Γ22_2 | AR3: 4-Γ22_2 | AS3: 5-Γ22_2 | AT3: 6-Γ22_2 | AU3: 7-Γ22_2 | AV3: 8-Γ22_2 | AW3: 9-Γ22_2 | AX3: 10-Γ22_2 | AY3: ΑΓ-ΧΤ | AZ3: =AZ1 & "-" &$AY$3 -> 1-ΑΓ-ΧΤ | BA3: 2-ΑΓ-ΧΤ | BB3: 3-ΑΓ-ΧΤ | BC3: 4-ΑΓ-ΧΤ | BD3: 5-ΑΓ-ΧΤ | BE3: 6-ΑΓ-ΧΤ | BF3: 7-ΑΓ-ΧΤ | BG3: 8-ΑΓ-ΧΤ | BH3: 9-ΑΓ-ΧΤ | BI3: 10-ΑΓ-ΧΤ | BJ3: ΦΟΠ1 | BK3: =BK1 & "-" &$BJ$3 -> 1-ΦΟΠ1 | BL3: =BL1 & "-" &$BJ$3 -> 2-ΦΟΠ1 | BM3: 3-ΦΟΠ1 | BN3: 4-ΦΟΠ1 | BO3: 5-ΦΟΠ1 | BP3: 6-ΦΟΠ1 | BQ3: 7-ΦΟΠ1 | BR3: 8-ΦΟΠ1 | BS3: 9-ΦΟΠ1 | BT3: 10-ΦΟΠ1 | BU3: ΦΟΠ2 | BV3: =BV1 & "-" &$BU$3 -> 1-ΦΟΠ2 | BW3: =BW1 & "-" &$BU$3 -> 2-ΦΟΠ2 | BX3: 3-ΦΟΠ2 | BY3: 4-ΦΟΠ2 | BZ3: 5-ΦΟΠ2 | CA3: 6-ΦΟΠ2 | CB3: 7-ΦΟΠ2 | CC3: 8-ΦΟΠ2 | CD3: 9-ΦΟΠ2 | CE3: 10-ΦΟΠ2 | CF3: ΦΟΠ3 | CG3: =CG1 & "-" &$CF$3 -> 1-ΦΟΠ3 | CH3: =CH1 & "-" &$CF$3 -> 2-ΦΟΠ3 | CI3: 3-ΦΟΠ3 | CJ3: 4-ΦΟΠ3 | CK3: 5-ΦΟΠ3 | CL3: 6-ΦΟΠ3 | CM3: 7-ΦΟΠ3 | CN3: 8-ΦΟΠ3 | CO3: 9-ΦΟΠ3 | CP3: 10-ΦΟΠ3 | CQ3: ΜΤ-ΓΧ | CR3: =CR1 & "-" & $CQ$3 -> 1-ΜΤ-ΓΧ | CS3: =CS1 & "-" & $CQ$3 -> 2-ΜΤ-ΓΧ | CT3: 3-ΜΤ-ΓΧ | CU3: 4-ΜΤ-ΓΧ | CV3: 5-ΜΤ-ΓΧ | CW3: 6-ΜΤ-ΓΧ | CX3: 7-ΜΤ-ΓΧ | CY3: 8-ΜΤ-ΓΧ | CZ3: 9-ΜΤ-ΓΧ | DA3: 10-ΜΤ-ΓΧ | DB3: =+K3 -> ΜΤ-1 | DC3: =DC1 & "-" & $DB$3 -> 1-ΜΤ-1 | DD3: 2-ΜΤ-1 | DE3: 3-ΜΤ-1 | DF3: 4-ΜΤ-1 | DG3: 5-ΜΤ-1 | DH3: 6-ΜΤ-1 | DI3: 7-ΜΤ-1 | DJ3: 8-ΜΤ-1 | DK3: 9-ΜΤ-1 | DL3: 10-ΜΤ-1 | DM3: =+L3 -> ΜΤ-2 | DN3: =DN1 & "-" & $DM$3 -> 1-ΜΤ-2 | DO3: 2-ΜΤ-2 | DP3: 3-ΜΤ-2 | DQ3: 4-ΜΤ-2 | DR3: 5-ΜΤ-2 | DS3: 6-ΜΤ-2 | DT3: 7-ΜΤ-2 | DU3: 8-ΜΤ-2 | DV3: 9-ΜΤ-2 | DW3: 10-ΜΤ-2 | DX3: =+M3 -> ΜΤ-3 | DY3: =DY1 & "-" & $DX$3 -> 1-ΜΤ-3 | DZ3: 2-ΜΤ-3 | EA3: 3-ΜΤ-3 | EB3: 4-ΜΤ-3 | EC3: 5-ΜΤ-3 | ED3: 6-ΜΤ-3 | EE3: 7-ΜΤ-3 | EF3: 8-ΜΤ-3 | EG3: 9-ΜΤ-3 | EH3: 10-ΜΤ-3
B4: Χρεώσεις Προμήθειας | Q4: ΣΙ | S4: =SUMIF(Παροχές!$T$5:$T$76,Δεδομένα2!S$3,Παροχές!$V$5:$V$76) -> 0 | T4: =SUMIF(Παροχές!$T$5:$T$76,Δεδομένα2!T$3,Παροχές!$V$5:$V$76) -> 0 | U4: =SUMIF(Παροχές!$T$5:$T$76,Δεδομένα2!U$3,Παροχές!$V$5:$V$76) -> 0 | V4: =SUMIF(Παροχές!$T$5:$T$76,Δεδομένα2!V$3,Παροχές!$V$5:$V$76) -> 0 | W4: =SUMIF(Παροχές!$T$5:$T$76,Δεδομένα2!W$3,Παροχές!$V$5:$V$76) -> 0 | X4: =SUMIF(Παροχές!$T$5:$T$76,Δεδομένα2!X$3,Παροχές!$V$5:$V$76) -> 0 | Y4: =SUMIF(Παροχές!$T$5:$T$76,Δεδομένα2!Y$3,Παροχές!$V$5:$V$76) -> 0 | Z4: =SUMIF(Παροχές!$T$5:$T$76,Δεδομένα2!Z$3,Παροχές!$V$5:$V$76) -> 0 | AA4: =SUMIF(Παροχές!$T$5:$T$76,Δεδομένα2!AA$3,Παροχές!$V$5:$V$76) -> 0 | AB4: =SUMIF(Παροχές!$T$5:$T$76,Δεδομένα2!AB$3,Παροχές!$V$5:$V$76) -> 0 | AD4: =SUMIF(Παροχές!$T$5:$T$76,Δεδομένα2!AD$3,Παροχές!$V$5:$V$76) -> 0 | AE4: =SUMIF(Παροχές!$T$5:$T$76,Δεδομένα2!AE$3,Παροχές!$V$5:$V$76) -> 0 | AF4: =SUMIF(Παροχές!$T$5:$T$76,Δεδομένα2!AF$3,Παροχές!$V$5:$V$76) -> 0 | AG4: =SUMIF(Παροχές!$T$5:$T$76,Δεδομένα2!AG$3,Παροχές!$V$5:$V$76) -> 0 | AH4: =SUMIF(Παροχές!$T$5:$T$76,Δεδομένα2!AH$3,Παροχές!$V$5:$V$76) -> 0 | AI4: =SUMIF(Παροχές!$T$5:$T$76,Δεδομένα2!AI$3,Παροχές!$V$5:$V$76) -> 0 | AJ4: =SUMIF(Παροχές!$T$5:$T$76,Δεδομένα2!AJ$3,Παροχές!$V$5:$V$76) -> 0 | AK4: =SUMIF(Παροχές!$T$5:$T$76,Δεδομένα2!AK$3,Παροχές!$V$5:$V$76) -> 0 | AL4: =SUMIF(Παροχές!$T$5:$T$76,Δεδομένα2!AL$3,Παροχές!$V$5:$V$76) -> 0 | AM4: =SUMIF(Παροχές!$T$5:$T$76,Δεδομένα2!AM$3,Παροχές!$V$5:$V$76) -> 0 | AO4: =SUMIF(Παροχές!$T$5:$T$76,Δεδομένα2!AO$3,Παροχές!$V$5:$V$76) -> 0 | AP4: =SUMIF(Παροχές!$T$5:$T$76,Δεδομένα2!AP$3,Παροχές!$V$5:$V$76) -> 0 | AQ4: =SUMIF(Παροχές!$T$5:$T$76,Δεδομένα2!AQ$3,Παροχές!$V$5:$V$76) -> 0 | AR4: =SUMIF(Παροχές!$T$5:$T$76,Δεδομένα2!AR$3,Παροχές!$V$5:$V$76) -> 0 | AS4: =SUMIF(Παροχές!$T$5:$T$76,Δεδομένα2!AS$3,Παροχές!$V$5:$V$76) -> 0 | AT4: =SUMIF(Παροχές!$T$5:$T$76,Δεδομένα2!AT$3,Παροχές!$V$5:$V$76) -> 0 | AU4: =SUMIF(Παροχές!$T$5:$T$76,Δεδομένα2!AU$3,Παροχές!$V$5:$V$76) -> 0 | AV4: =SUMIF(Παροχές!$T$5:$T$76,Δεδομένα2!AV$3,Παροχές!$V$5:$V$76) -> 0 | AW4: =SUMIF(Παροχές!$T$5:$T$76,Δεδομένα2!AW$3,Παροχές!$V$5:$V$76) -> 0 | AX4: =SUMIF(Παροχές!$T$5:$T$76,Δεδομένα2!AX$3,Παροχές!$V$5:$V$76) -> 0 | AZ4: =SUMIF(Παροχές!$T$5:$T$76,Δεδομένα2!AZ$3,Παροχές!$V$5:$V$76) -> 270 | BA4: =SUMIF(Παροχές!$T$5:$T$76,Δεδομένα2!BA$3,Παροχές!$V$5:$V$76) -> 135 | BB4: =SUMIF(Παροχές!$T$5:$T$76,Δεδομένα2!BB$3,Παροχές!$V$5:$V$76) -> 135 | BC4: =SUMIF(Παροχές!$T$5:$T$76,Δεδομένα2!BC$3,Παροχές!$V$5:$V$76) -> 135 | BD4: =SUMIF(Παροχές!$T$5:$T$76,Δεδομένα2!BD$3,Παροχές!$V$5:$V$76) -> 135 | BE4: =SUMIF(Παροχές!$T$5:$T$76,Δεδομένα2!BE$3,Παροχές!$V$5:$V$76) -> 135 | BF4: =SUMIF(Παροχές!$T$5:$T$76,Δεδομένα2!BF$3,Παροχές!$V$5:$V$76) -> 135 | BG4: =SUMIF(Παροχές!$T$5:$T$76,Δεδομένα2!BG$3,Παροχές!$V$5:$V$76) -> 135 | BH4: =SUMIF(Παροχές!$T$5:$T$76,Δεδομένα2!BH$3,Παροχές!$V$5:$V$76) -> 135 | BI4: =SUMIF(Παροχές!$T$5:$T$76,Δεδομένα2!BI$3,Παροχές!$V$5:$V$76) -> 136 | BK4: =SUMIF(Παροχές!$T$5:$T$76,Δεδομένα2!BK$3,Παροχές!$V$5:$V$76) -> 0 | BL4: =SUMIF(Παροχές!$T$5:$T$76,Δεδομένα2!BL$3,Παροχές!$V$5:$V$76) -> 0 | BM4: =SUMIF(Παροχές!$T$5:$T$76,Δεδομένα2!BM$3,Παροχές!$V$5:$V$76) -> 0 | BN4: =SUMIF(Παροχές!$T$5:$T$76,Δεδομένα2!BN$3,Παροχές!$V$5:$V$76) -> 0 | BO4: =SUMIF(Παροχές!$T$5:$T$76,Δεδομένα2!BO$3,Παροχές!$V$5:$V$76) -> 0 | BP4: =SUMIF(Παροχές!$T$5:$T$76,Δεδομένα2!BP$3,Παροχές!$V$5:$V$76) -> 0 | BQ4: =SUMIF(Παροχές!$T$5:$T$76,Δεδομένα2!BQ$3,Παροχές!$V$5:$V$76) -> 0 | BR4: =SUMIF(Παροχές!$T$5:$T$76,Δεδομένα2!BR$3,Παροχές!$V$5:$V$76) -> 0 | BS4: =SUMIF(Παροχές!$T$5:$T$76,Δεδομένα2!BS$3,Παροχές!$V$5:$V$76) -> 0 | BT4: =SUMIF(Παροχές!$T$5:$T$76,Δεδομένα2!BT$3,Παροχές!$V$5:$V$76) -> 0 | BV4: =SUMIF(Παροχές!$T$5:$T$76,Δεδομένα2!BV$3,Παροχές!$V$5:$V$76) -> 0 | BW4: =SUMIF(Παροχές!$T$5:$T$76,Δεδομένα2!BW$3,Παροχές!$V$5:$V$76) -> 0 | BX4: =SUMIF(Παροχές!$T$5:$T$76,Δεδομένα2!BX$3,Παροχές!$V$5:$V$76) -> 0 | BY4: =SUMIF(Παροχές!$T$5:$T$76,Δεδομένα2!BY$3,Παροχές!$V$5:$V$76) -> 0 | BZ4: =SUMIF(Παροχές!$T$5:$T$76,Δεδομένα2!BZ$3,Παροχές!$V$5:$V$76) -> 0 | CA4: =SUMIF(Παροχές!$T$5:$T$76,Δεδομένα2!CA$3,Παροχές!$V$5:$V$76) -> 0 | CB4: =SUMIF(Παροχές!$T$5:$T$76,Δεδομένα2!CB$3,Παροχές!$V$5:$V$76) -> 0 | CC4: =SUMIF(Παροχές!$T$5:$T$76,Δεδομένα2!CC$3,Παροχές!$V$5:$V$76) -> 0 | CD4: =SUMIF(Παροχές!$T$5:$T$76,Δεδομένα2!CD$3,Παροχές!$V$5:$V$76) -> 0 | CE4: =SUMIF(Παροχές!$T$5:$T$76,Δεδομένα2!CE$3,Παροχές!$V$5:$V$76) -> 0 | CG4: =SUMIF(Παροχές!$T$5:$T$76,Δεδομένα2!CG$3,Παροχές!$V$5:$V$76) -> 0 | CH4: =SUMIF(Παροχές!$T$5:$T$76,Δεδομένα2!CH$3,Παροχές!$V$5:$V$76) -> 0 | CI4: =SUMIF(Παροχές!$T$5:$T$76,Δεδομένα2!CI$3,Παροχές!$V$5:$V$76) -> 0 | CJ4: =SUMIF(Παροχές!$T$5:$T$76,Δεδομένα2!CJ$3,Παροχές!$V$5:$V$76) -> 0 | CK4: =SUMIF(Παροχές!$T$5:$T$76,Δεδομένα2!CK$3,Παροχές!$V$5:$V$76) -> 0 | CL4: =SUMIF(Παροχές!$T$5:$T$76,Δεδομένα2!CL$3,Παροχές!$V$5:$V$76) -> 0 | CM4: =SUMIF(Παροχές!$T$5:$T$76,Δεδομένα2!CM$3,Παροχές!$V$5:$V$76) -> 0 | CN4: =SUMIF(Παροχές!$T$5:$T$76,Δεδομένα2!CN$3,Παροχές!$V$5:$V$76) -> 0 | CO4: =SUMIF(Παροχές!$T$5:$T$76,Δεδομένα2!CO$3,Παροχές!$V$5:$V$76) -> 0 | CP4: =SUMIF(Παροχές!$T$5:$T$76,Δεδομένα2!CP$3,Παροχές!$V$5:$V$76) -> 0 | CR4: =SUMIF(Παροχές!$T$5:$T$76,Δεδομένα2!CR$3,Παροχές!$V$5:$V$76) -> 0 | CS4: =SUMIF(Παροχές!$T$5:$T$76,Δεδομένα2!CS$3,Παροχές!$V$5:$V$76) -> 0 | CT4: =SUMIF(Παροχές!$T$5:$T$76,Δεδομένα2!CT$3,Παροχές!$V$5:$V$76) -> 0 | CU4: =SUMIF(Παροχές!$T$5:$T$76,Δεδομένα2!CU$3,Παροχές!$V$5:$V$76) -> 0 | CV4: =SUMIF(Παροχές!$T$5:$T$76,Δεδομένα2!CV$3,Παροχές!$V$5:$V$76) -> 0 | CW4: =SUMIF(Παροχές!$T$5:$T$76,Δεδομένα2!CW$3,Παροχές!$V$5:$V$76) -> 0 | CX4: =SUMIF(Παροχές!$T$5:$T$76,Δεδομένα2!CX$3,Παροχές!$V$5:$V$76) -> 0 | CY4: =SUMIF(Παροχές!$T$5:$T$76,Δεδομένα2!CY$3,Παροχές!$V$5:$V$76) -> 0 | CZ4: =SUMIF(Παροχές!$T$5:$T$76,Δεδομένα2!CZ$3,Παροχές!$V$5:$V$76) -> 0 | DA4: =SUMIF(Παροχές!$T$5:$T$76,Δεδομένα2!DA$3,Παροχές!$V$5:$V$76) -> 0 | DC4: =SUMIF(Παροχές!$T$5:$T$76,Δεδομένα2!DC$3,Παροχές!$V$5:$V$76) -> 0 | DD4: =SUMIF(Παροχές!$T$5:$T$76,Δεδομένα2!DD$3,Παροχές!$V$5:$V$76) -> 0 | DE4: =SUMIF(Παροχές!$T$5:$T$76,Δεδομένα2!DE$3,Παροχές!$V$5:$V$76) -> 0 | DF4: =SUMIF(Παροχές!$T$5:$T$76,Δεδομένα2!DF$3,Παροχές!$V$5:$V$76) -> 0 | DG4: =SUMIF(Παροχές!$T$5:$T$76,Δεδομένα2!DG$3,Παροχές!$V$5:$V$76) -> 0 | DH4: =SUMIF(Παροχές!$T$5:$T$76,Δεδομένα2!DH$3,Παροχές!$V$5:$V$76) -> 0 | DI4: =SUMIF(Παροχές!$T$5:$T$76,Δεδομένα2!DI$3,Παροχές!$V$5:$V$76) -> 0 | DJ4: =SUMIF(Παροχές!$T$5:$T$76,Δεδομένα2!DJ$3,Παροχές!$V$5:$V$76) -> 0 | DK4: =SUMIF(Παροχές!$T$5:$T$76,Δεδομένα2!DK$3,Παροχές!$V$5:$V$76) -> 0 | DL4: =SUMIF(Παροχές!$T$5:$T$76,Δεδομένα2!DL$3,Παροχές!$V$5:$V$76) -> 0 | DN4: =SUMIF(Παροχές!$T$5:$T$76,Δεδομένα2!DN$3,Παροχές!$V$5:$V$76) -> 0 | DO4: =SUMIF(Παροχές!$T$5:$T$76,Δεδομένα2!DO$3,Παροχές!$V$5:$V$76) -> 0 | DP4: =SUMIF(Παροχές!$T$5:$T$76,Δεδομένα2!DP$3,Παροχές!$V$5:$V$76) -> 0 | DQ4: =SUMIF(Παροχές!$T$5:$T$76,Δεδομένα2!DQ$3,Παροχές!$V$5:$V$76) -> 0 | DR4: =SUMIF(Παροχές!$T$5:$T$76,Δεδομένα2!DR$3,Παροχές!$V$5:$V$76) -> 0 | DS4: =SUMIF(Παροχές!$T$5:$T$76,Δεδομένα2!DS$3,Παροχές!$V$5:$V$76) -> 0 | DT4: =SUMIF(Παροχές!$T$5:$T$76,Δεδομένα2!DT$3,Παροχές!$V$5:$V$76) -> 0 | DU4: =SUMIF(Παροχές!$T$5:$T$76,Δεδομένα2!DU$3,Παροχές!$V$5:$V$76) -> 0 | DV4: =SUMIF(Παροχές!$T$5:$T$76,Δεδομένα2!DV$3,Παροχές!$V$5:$V$76) -> 0 | DW4: =SUMIF(Παροχές!$T$5:$T$76,Δεδομένα2!DW$3,Παροχές!$V$5:$V$76) -> 0 | DY4: =SUMIF(Παροχές!$T$5:$T$76,Δεδομένα2!DY$3,Παροχές!$V$5:$V$76) -> 0 | DZ4: =SUMIF(Παροχές!$T$5:$T$76,Δεδομένα2!DZ$3,Παροχές!$V$5:$V$76) -> 0 | EA4: =SUMIF(Παροχές!$T$5:$T$76,Δεδομένα2!EA$3,Παροχές!$V$5:$V$76) -> 0 | EB4: =SUMIF(Παροχές!$T$5:$T$76,Δεδομένα2!EB$3,Παροχές!$V$5:$V$76) -> 0 | EC4: =SUMIF(Παροχές!$T$5:$T$76,Δεδομένα2!EC$3,Παροχές!$V$5:$V$76) -> 0 | ED4: =SUMIF(Παροχές!$T$5:$T$76,Δεδομένα2!ED$3,Παροχές!$V$5:$V$76) -> 0 | EE4: =SUMIF(Παροχές!$T$5:$T$76,Δεδομένα2!EE$3,Παροχές!$V$5:$V$76) -> 0 | EF4: =SUMIF(Παροχές!$T$5:$T$76,Δεδομένα2!EF$3,Παροχές!$V$5:$V$76) -> 0 | EG4: =SUMIF(Παροχές!$T$5:$T$76,Δεδομένα2!EG$3,Παροχές!$V$5:$V$76) -> 0 | EH4: =SUMIF(Παροχές!$T$5:$T$76,Δεδομένα2!EH$3,Παροχές!$V$5:$V$76) -> 0
B5: Ζώνη | Q5: ΧΖ | S5: =SUMIF(Παροχές!$T$5:$T$76,Δεδομένα2!S$3,Παροχές!$W$5:$W$76) -> 0 | T5: =SUMIF(Παροχές!$T$5:$T$76,Δεδομένα2!T$3,Παροχές!$W$5:$W$76) -> 0 | U5: =SUMIF(Παροχές!$T$5:$T$76,Δεδομένα2!U$3,Παροχές!$W$5:$W$76) -> 0 | V5: =SUMIF(Παροχές!$T$5:$T$76,Δεδομένα2!V$3,Παροχές!$W$5:$W$76) -> 0 | W5: =SUMIF(Παροχές!$T$5:$T$76,Δεδομένα2!W$3,Παροχές!$W$5:$W$76) -> 0 | X5: =SUMIF(Παροχές!$T$5:$T$76,Δεδομένα2!X$3,Παροχές!$W$5:$W$76) -> 0 | Y5: =SUMIF(Παροχές!$T$5:$T$76,Δεδομένα2!Y$3,Παροχές!$W$5:$W$76) -> 0 | Z5: =SUMIF(Παροχές!$T$5:$T$76,Δεδομένα2!Z$3,Παροχές!$W$5:$W$76) -> 0 | AA5: =SUMIF(Παροχές!$T$5:$T$76,Δεδομένα2!AA$3,Παροχές!$W$5:$W$76) -> 0 | AB5: =SUMIF(Παροχές!$T$5:$T$76,Δεδομένα2!AB$3,Παροχές!$W$5:$W$76) -> 0 | AD5: =SUMIF(Παροχές!$T$5:$T$76,Δεδομένα2!AD$3,Παροχές!$W$5:$W$76) -> 0 | AE5: =SUMIF(Παροχές!$T$5:$T$76,Δεδομένα2!AE$3,Παροχές!$W$5:$W$76) -> 0 | AF5: =SUMIF(Παροχές!$T$5:$T$76,Δεδομένα2!AF$3,Παροχές!$W$5:$W$76) -> 0 | AG5: =SUMIF(Παροχές!$T$5:$T$76,Δεδομένα2!AG$3,Παροχές!$W$5:$W$76) -> 0 | AH5: =SUMIF(Παροχές!$T$5:$T$76,Δεδομένα2!AH$3,Παροχές!$W$5:$W$76) -> 0 | AI5: =SUMIF(Παροχές!$T$5:$T$76,Δεδομένα2!AI$3,Παροχές!$W$5:$W$76) -> 0 | AJ5: =SUMIF(Παροχές!$T$5:$T$76,Δεδομένα2!AJ$3,Παροχές!$W$5:$W$76) -> 0 | AK5: =SUMIF(Παροχές!$T$5:$T$76,Δεδομένα2!AK$3,Παροχές!$W$5:$W$76) -> 0 | AL5: =SUMIF(Παροχές!$T$5:$T$76,Δεδομένα2!AL$3,Παροχές!$W$5:$W$76) -> 0 | AM5: =SUMIF(Παροχές!$T$5:$T$76,Δεδομένα2!AM$3,Παροχές!$W$5:$W$76) -> 0 | AO5: =SUMIF(Παροχές!$T$5:$T$76,Δεδομένα2!AO$3,Παροχές!$W$5:$W$76) -> 0 | AP5: =SUMIF(Παροχές!$T$5:$T$76,Δεδομένα2!AP$3,Παροχές!$W$5:$W$76) -> 0 | AQ5: =SUMIF(Παροχές!$T$5:$T$76,Δεδομένα2!AQ$3,Παροχές!$W$5:$W$76) -> 0 | AR5: =SUMIF(Παροχές!$T$5:$T$76,Δεδομένα2!AR$3,Παροχές!$W$5:$W$76) -> 0 | AS5: =SUMIF(Παροχές!$T$5:$T$76,Δεδομένα2!AS$3,Παροχές!$W$5:$W$76) -> 0 | AT5: =SUMIF(Παροχές!$T$5:$T$76,Δεδομένα2!AT$3,Παροχές!$W$5:$W$76) -> 0 | AU5: =SUMIF(Παροχές!$T$5:$T$76,Δεδομένα2!AU$3,Παροχές!$W$5:$W$76) -> 0 | AV5: =SUMIF(Παροχές!$T$5:$T$76,Δεδομένα2!AV$3,Παροχές!$W$5:$W$76) -> 0 | AW5: =SUMIF(Παροχές!$T$5:$T$76,Δεδομένα2!AW$3,Παροχές!$W$5:$W$76) -> 0 | AX5: =SUMIF(Παροχές!$T$5:$T$76,Δεδομένα2!AX$3,Παροχές!$W$5:$W$76) -> 0 | AZ5: =SUMIF(Παροχές!$T$5:$T$76,Δεδομένα2!AZ$3,Παροχές!$W$5:$W$76) -> 0 | BA5: =SUMIF(Παροχές!$T$5:$T$76,Δεδομένα2!BA$3,Παροχές!$W$5:$W$76) -> 0 | BB5: =SUMIF(Παροχές!$T$5:$T$76,Δεδομένα2!BB$3,Παροχές!$W$5:$W$76) -> 0 | BC5: =SUMIF(Παροχές!$T$5:$T$76,Δεδομένα2!BC$3,Παροχές!$W$5:$W$76) -> 0 | BD5: =SUMIF(Παροχές!$T$5:$T$76,Δεδομένα2!BD$3,Παροχές!$W$5:$W$76) -> 0 | BE5: =SUMIF(Παροχές!$T$5:$T$76,Δεδομένα2!BE$3,Παροχές!$W$5:$W$76) -> 0 | BF5: =SUMIF(Παροχές!$T$5:$T$76,Δεδομένα2!BF$3,Παροχές!$W$5:$W$76) -> 0 | BG5: =SUMIF(Παροχές!$T$5:$T$76,Δεδομένα2!BG$3,Παροχές!$W$5:$W$76) -> 0 | BH5: =SUMIF(Παροχές!$T$5:$T$76,Δεδομένα2!BH$3,Παροχές!$W$5:$W$76) -> 0 | BI5: =SUMIF(Παροχές!$T$5:$T$76,Δεδομένα2!BI$3,Παροχές!$W$5:$W$76) -> 0 | BK5: =SUMIF(Παροχές!$T$5:$T$76,Δεδομένα2!BK$3,Παροχές!$W$5:$W$76) -> 0 | BL5: =SUMIF(Παροχές!$T$5:$T$76,Δεδομένα2!BL$3,Παροχές!$W$5:$W$76) -> 0 | BM5: =SUMIF(Παροχές!$T$5:$T$76,Δεδομένα2!BM$3,Παροχές!$W$5:$W$76) -> 0 | BN5: =SUMIF(Παροχές!$T$5:$T$76,Δεδομένα2!BN$3,Παροχές!$W$5:$W$76) -> 0 | BO5: =SUMIF(Παροχές!$T$5:$T$76,Δεδομένα2!BO$3,Παροχές!$W$5:$W$76) -> 0 | BP5: =SUMIF(Παροχές!$T$5:$T$76,Δεδομένα2!BP$3,Παροχές!$W$5:$W$76) -> 0 | BQ5: =SUMIF(Παροχές!$T$5:$T$76,Δεδομένα2!BQ$3,Παροχές!$W$5:$W$76) -> 0 | BR5: =SUMIF(Παροχές!$T$5:$T$76,Δεδομένα2!BR$3,Παροχές!$W$5:$W$76) -> 0 | BS5: =SUMIF(Παροχές!$T$5:$T$76,Δεδομένα2!BS$3,Παροχές!$W$5:$W$76) -> 0 | BT5: =SUMIF(Παροχές!$T$5:$T$76,Δεδομένα2!BT$3,Παροχές!$W$5:$W$76) -> 0 | BV5: =SUMIF(Παροχές!$T$5:$T$76,Δεδομένα2!BV$3,Παροχές!$W$5:$W$76) -> 0 | BW5: =SUMIF(Παροχές!$T$5:$T$76,Δεδομένα2!BW$3,Παροχές!$W$5:$W$76) -> 0 | BX5: =SUMIF(Παροχές!$T$5:$T$76,Δεδομένα2!BX$3,Παροχές!$W$5:$W$76) -> 0 | BY5: =SUMIF(Παροχές!$T$5:$T$76,Δεδομένα2!BY$3,Παροχές!$W$5:$W$76) -> 0 | BZ5: =SUMIF(Παροχές!$T$5:$T$76,Δεδομένα2!BZ$3,Παροχές!$W$5:$W$76) -> 0 | CA5: =SUMIF(Παροχές!$T$5:$T$76,Δεδομένα2!CA$3,Παροχές!$W$5:$W$76) -> 0 | CB5: =SUMIF(Παροχές!$T$5:$T$76,Δεδομένα2!CB$3,Παροχές!$W$5:$W$76) -> 0 | CC5: =SUMIF(Παροχές!$T$5:$T$76,Δεδομένα2!CC$3,Παροχές!$W$5:$W$76) -> 0 | CD5: =SUMIF(Παροχές!$T$5:$T$76,Δεδομένα2!CD$3,Παροχές!$W$5:$W$76) -> 0 | CE5: =SUMIF(Παροχές!$T$5:$T$76,Δεδομένα2!CE$3,Παροχές!$W$5:$W$76) -> 0 | CG5: =SUMIF(Παροχές!$T$5:$T$76,Δεδομένα2!CG$3,Παροχές!$W$5:$W$76) -> 0 | CH5: =SUMIF(Παροχές!$T$5:$T$76,Δεδομένα2!CH$3,Παροχές!$W$5:$W$76) -> 0 | CI5: =SUMIF(Παροχές!$T$5:$T$76,Δεδομένα2!CI$3,Παροχές!$W$5:$W$76) -> 0 | CJ5: =SUMIF(Παροχές!$T$5:$T$76,Δεδομένα2!CJ$3,Παροχές!$W$5:$W$76) -> 0 | CK5: =SUMIF(Παροχές!$T$5:$T$76,Δεδομένα2!CK$3,Παροχές!$W$5:$W$76) -> 0 | CL5: =SUMIF(Παροχές!$T$5:$T$76,Δεδομένα2!CL$3,Παροχές!$W$5:$W$76) -> 0 | CM5: =SUMIF(Παροχές!$T$5:$T$76,Δεδομένα2!CM$3,Παροχές!$W$5:$W$76) -> 0 | CN5: =SUMIF(Παροχές!$T$5:$T$76,Δεδομένα2!CN$3,Παροχές!$W$5:$W$76) -> 0 | CO5: =SUMIF(Παροχές!$T$5:$T$76,Δεδομένα2!CO$3,Παροχές!$W$5:$W$76) -> 0 | CP5: =SUMIF(Παροχές!$T$5:$T$76,Δεδομένα2!CP$3,Παροχές!$W$5:$W$76) -> 0 | CR5: =SUMIF(Παροχές!$T$5:$T$76,Δεδομένα2!CR$3,Παροχές!$W$5:$W$76) -> 0 | CS5: =SUMIF(Παροχές!$T$5:$T$76,Δεδομένα2!CS$3,Παροχές!$W$5:$W$76) -> 0 | CT5: =SUMIF(Παροχές!$T$5:$T$76,Δεδομένα2!CT$3,Παροχές!$W$5:$W$76) -> 0 | CU5: =SUMIF(Παροχές!$T$5:$T$76,Δεδομένα2!CU$3,Παροχές!$W$5:$W$76) -> 0 | CV5: =SUMIF(Παροχές!$T$5:$T$76,Δεδομένα2!CV$3,Παροχές!$W$5:$W$76) -> 0 | CW5: =SUMIF(Παροχές!$T$5:$T$76,Δεδομένα2!CW$3,Παροχές!$W$5:$W$76) -> 0 | CX5: =SUMIF(Παροχές!$T$5:$T$76,Δεδομένα2!CX$3,Παροχές!$W$5:$W$76) -> 0 | CY5: =SUMIF(Παροχές!$T$5:$T$76,Δεδομένα2!CY$3,Παροχές!$W$5:$W$76) -> 0 | CZ5: =SUMIF(Παροχές!$T$5:$T$76,Δεδομένα2!CZ$3,Παροχές!$W$5:$W$76) -> 0 | DA5: =SUMIF(Παροχές!$T$5:$T$76,Δεδομένα2!DA$3,Παροχές!$W$5:$W$76) -> 0 | DC5: =SUMIF(Παροχές!$T$5:$T$76,Δεδομένα2!DC$3,Παροχές!$W$5:$W$76) -> 0 | DD5: =SUMIF(Παροχές!$T$5:$T$76,Δεδομένα2!DD$3,Παροχές!$W$5:$W$76) -> 0 | DE5: =SUMIF(Παροχές!$T$5:$T$76,Δεδομένα2!DE$3,Παροχές!$W$5:$W$76) -> 0 | DF5: =SUMIF(Παροχές!$T$5:$T$76,Δεδομένα2!DF$3,Παροχές!$W$5:$W$76) -> 0 | DG5: =SUMIF(Παροχές!$T$5:$T$76,Δεδομένα2!DG$3,Παροχές!$W$5:$W$76) -> 0 | DH5: =SUMIF(Παροχές!$T$5:$T$76,Δεδομένα2!DH$3,Παροχές!$W$5:$W$76) -> 0 | DI5: =SUMIF(Παροχές!$T$5:$T$76,Δεδομένα2!DI$3,Παροχές!$W$5:$W$76) -> 0 | DJ5: =SUMIF(Παροχές!$T$5:$T$76,Δεδομένα2!DJ$3,Παροχές!$W$5:$W$76) -> 0 | DK5: =SUMIF(Παροχές!$T$5:$T$76,Δεδομένα2!DK$3,Παροχές!$W$5:$W$76) -> 0 | DL5: =SUMIF(Παροχές!$T$5:$T$76,Δεδομένα2!DL$3,Παροχές!$W$5:$W$76) -> 0 | DN5: =SUMIF(Παροχές!$T$5:$T$76,Δεδομένα2!DN$3,Παροχές!$W$5:$W$76) -> 0 | DO5: =SUMIF(Παροχές!$T$5:$T$76,Δεδομένα2!DO$3,Παροχές!$W$5:$W$76) -> 0 | DP5: =SUMIF(Παροχές!$T$5:$T$76,Δεδομένα2!DP$3,Παροχές!$W$5:$W$76) -> 0 | DQ5: =SUMIF(Παροχές!$T$5:$T$76,Δεδομένα2!DQ$3,Παροχές!$W$5:$W$76) -> 0 | DR5: =SUMIF(Παροχές!$T$5:$T$76,Δεδομένα2!DR$3,Παροχές!$W$5:$W$76) -> 0 | DS5: =SUMIF(Παροχές!$T$5:$T$76,Δεδομένα2!DS$3,Παροχές!$W$5:$W$76) -> 0 | DT5: =SUMIF(Παροχές!$T$5:$T$76,Δεδομένα2!DT$3,Παροχές!$W$5:$W$76) -> 0 | DU5: =SUMIF(Παροχές!$T$5:$T$76,Δεδομένα2!DU$3,Παροχές!$W$5:$W$76) -> 0 | DV5: =SUMIF(Παροχές!$T$5:$T$76,Δεδομένα2!DV$3,Παροχές!$W$5:$W$76) -> 0 | DW5: =SUMIF(Παροχές!$T$5:$T$76,Δεδομένα2!DW$3,Παροχές!$W$5:$W$76) -> 0 | DY5: =SUMIF(Παροχές!$T$5:$T$76,Δεδομένα2!DY$3,Παροχές!$W$5:$W$76) -> 0 | DZ5: =SUMIF(Παροχές!$T$5:$T$76,Δεδομένα2!DZ$3,Παροχές!$W$5:$W$76) -> 0 | EA5: =SUMIF(Παροχές!$T$5:$T$76,Δεδομένα2!EA$3,Παροχές!$W$5:$W$76) -> 0 | EB5: =SUMIF(Παροχές!$T$5:$T$76,Δεδομένα2!EB$3,Παροχές!$W$5:$W$76) -> 0 | EC5: =SUMIF(Παροχές!$T$5:$T$76,Δεδομένα2!EC$3,Παροχές!$W$5:$W$76) -> 0 | ED5: =SUMIF(Παροχές!$T$5:$T$76,Δεδομένα2!ED$3,Παροχές!$W$5:$W$76) -> 0 | EE5: =SUMIF(Παροχές!$T$5:$T$76,Δεδομένα2!EE$3,Παροχές!$W$5:$W$76) -> 0 | EF5: =SUMIF(Παροχές!$T$5:$T$76,Δεδομένα2!EF$3,Παροχές!$W$5:$W$76) -> 0 | EG5: =SUMIF(Παροχές!$T$5:$T$76,Δεδομένα2!EG$3,Παροχές!$W$5:$W$76) -> 0 | EH5: =SUMIF(Παροχές!$T$5:$T$76,Δεδομένα2!EH$3,Παροχές!$W$5:$W$76) -> 0
B6: Ισχύς (€/kW/μήνα) | C6: 0 | D6: 1.1 | F6: 0 | G6: 0 | J6: 6 | K6: =+J6 -> 6 | L6: 6 | M6: 6 | Q6: συν(φ) | S6: =SUMIF(Παροχές!$T$5:$T$76,Δεδομένα2!S$3,Παροχές!$Y$5:$Y$76) -> 0 | T6: =SUMIF(Παροχές!$T$5:$T$76,Δεδομένα2!T$3,Παροχές!$Y$5:$Y$76) -> 0 | U6: =SUMIF(Παροχές!$T$5:$T$76,Δεδομένα2!U$3,Παροχές!$Y$5:$Y$76) -> 0 | V6: =SUMIF(Παροχές!$T$5:$T$76,Δεδομένα2!V$3,Παροχές!$Y$5:$Y$76) -> 0 | W6: =SUMIF(Παροχές!$T$5:$T$76,Δεδομένα2!W$3,Παροχές!$Y$5:$Y$76) -> 0 | X6: =SUMIF(Παροχές!$T$5:$T$76,Δεδομένα2!X$3,Παροχές!$Y$5:$Y$76) -> 0 | Y6: =SUMIF(Παροχές!$T$5:$T$76,Δεδομένα2!Y$3,Παροχές!$Y$5:$Y$76) -> 0 | Z6: =SUMIF(Παροχές!$T$5:$T$76,Δεδομένα2!Z$3,Παροχές!$Y$5:$Y$76) -> 0 | AA6: =SUMIF(Παροχές!$T$5:$T$76,Δεδομένα2!AA$3,Παροχές!$Y$5:$Y$76) -> 0 | AB6: =SUMIF(Παροχές!$T$5:$T$76,Δεδομένα2!AB$3,Παροχές!$Y$5:$Y$76) -> 0 | AD6: =SUMIF(Παροχές!$T$5:$T$76,Δεδομένα2!AD$3,Παροχές!$Y$5:$Y$76) -> 0 | AE6: =SUMIF(Παροχές!$T$5:$T$76,Δεδομένα2!AE$3,Παροχές!$Y$5:$Y$76) -> 0 | AF6: =SUMIF(Παροχές!$T$5:$T$76,Δεδομένα2!AF$3,Παροχές!$Y$5:$Y$76) -> 0 | AG6: =SUMIF(Παροχές!$T$5:$T$76,Δεδομένα2!AG$3,Παροχές!$Y$5:$Y$76) -> 0 | AH6: =SUMIF(Παροχές!$T$5:$T$76,Δεδομένα2!AH$3,Παροχές!$Y$5:$Y$76) -> 0 | AI6: =SUMIF(Παροχές!$T$5:$T$76,Δεδομένα2!AI$3,Παροχές!$Y$5:$Y$76) -> 0 | AJ6: =SUMIF(Παροχές!$T$5:$T$76,Δεδομένα2!AJ$3,Παροχές!$Y$5:$Y$76) -> 0 | AK6: =SUMIF(Παροχές!$T$5:$T$76,Δεδομένα2!AK$3,Παροχές!$Y$5:$Y$76) -> 0 | AL6: =SUMIF(Παροχές!$T$5:$T$76,Δεδομένα2!AL$3,Παροχές!$Y$5:$Y$76) -> 0 | AM6: =SUMIF(Παροχές!$T$5:$T$76,Δεδομένα2!AM$3,Παροχές!$Y$5:$Y$76) -> 0 | AO6: =SUMIF(Παροχές!$T$5:$T$76,Δεδομένα2!AO$3,Παροχές!$Y$5:$Y$76) -> 0 | AP6: =SUMIF(Παροχές!$T$5:$T$76,Δεδομένα2!AP$3,Παροχές!$Y$5:$Y$76) -> 0 | AQ6: =SUMIF(Παροχές!$T$5:$T$76,Δεδομένα2!AQ$3,Παροχές!$Y$5:$Y$76) -> 0 | AR6: =SUMIF(Παροχές!$T$5:$T$76,Δεδομένα2!AR$3,Παροχές!$Y$5:$Y$76) -> 0 | AS6: =SUMIF(Παροχές!$T$5:$T$76,Δεδομένα2!AS$3,Παροχές!$Y$5:$Y$76) -> 0 | AT6: =SUMIF(Παροχές!$T$5:$T$76,Δεδομένα2!AT$3,Παροχές!$Y$5:$Y$76) -> 0 | AU6: =SUMIF(Παροχές!$T$5:$T$76,Δεδομένα2!AU$3,Παροχές!$Y$5:$Y$76) -> 0 | AV6: =SUMIF(Παροχές!$T$5:$T$76,Δεδομένα2!AV$3,Παροχές!$Y$5:$Y$76) -> 0 | AW6: =SUMIF(Παροχές!$T$5:$T$76,Δεδομένα2!AW$3,Παροχές!$Y$5:$Y$76) -> 0 | AX6: =SUMIF(Παροχές!$T$5:$T$76,Δεδομένα2!AX$3,Παροχές!$Y$5:$Y$76) -> 0 | AZ6: =SUMIF(Παροχές!$T$5:$T$76,Δεδομένα2!AZ$3,Παροχές!$Y$5:$Y$76) -> 0 | BA6: =SUMIF(Παροχές!$T$5:$T$76,Δεδομένα2!BA$3,Παροχές!$Y$5:$Y$76) -> 0 | BB6: =SUMIF(Παροχές!$T$5:$T$76,Δεδομένα2!BB$3,Παροχές!$Y$5:$Y$76) -> 0 | BC6: =SUMIF(Παροχές!$T$5:$T$76,Δεδομένα2!BC$3,Παροχές!$Y$5:$Y$76) -> 0 | BD6: =SUMIF(Παροχές!$T$5:$T$76,Δεδομένα2!BD$3,Παροχές!$Y$5:$Y$76) -> 0 | BE6: =SUMIF(Παροχές!$T$5:$T$76,Δεδομένα2!BE$3,Παροχές!$Y$5:$Y$76) -> 0 | BF6: =SUMIF(Παροχές!$T$5:$T$76,Δεδομένα2!BF$3,Παροχές!$Y$5:$Y$76) -> 0 | BG6: =SUMIF(Παροχές!$T$5:$T$76,Δεδομένα2!BG$3,Παροχές!$Y$5:$Y$76) -> 0 | BH6: =SUMIF(Παροχές!$T$5:$T$76,Δεδομένα2!BH$3,Παροχές!$Y$5:$Y$76) -> 0 | BI6: =SUMIF(Παροχές!$T$5:$T$76,Δεδομένα2!BI$3,Παροχές!$Y$5:$Y$76) -> 0 | BK6: =SUMIF(Παροχές!$T$5:$T$76,Δεδομένα2!BK$3,Παροχές!$Y$5:$Y$76) -> 0 | BL6: =SUMIF(Παροχές!$T$5:$T$76,Δεδομένα2!BL$3,Παροχές!$Y$5:$Y$76) -> 0 | BM6: =SUMIF(Παροχές!$T$5:$T$76,Δεδομένα2!BM$3,Παροχές!$Y$5:$Y$76) -> 0 | BN6: =SUMIF(Παροχές!$T$5:$T$76,Δεδομένα2!BN$3,Παροχές!$Y$5:$Y$76) -> 0 | BO6: =SUMIF(Παροχές!$T$5:$T$76,Δεδομένα2!BO$3,Παροχές!$Y$5:$Y$76) -> 0 | BP6: =SUMIF(Παροχές!$T$5:$T$76,Δεδομένα2!BP$3,Παροχές!$Y$5:$Y$76) -> 0 | BQ6: =SUMIF(Παροχές!$T$5:$T$76,Δεδομένα2!BQ$3,Παροχές!$Y$5:$Y$76) -> 0 | BR6: =SUMIF(Παροχές!$T$5:$T$76,Δεδομένα2!BR$3,Παροχές!$Y$5:$Y$76) -> 0 | BS6: =SUMIF(Παροχές!$T$5:$T$76,Δεδομένα2!BS$3,Παροχές!$Y$5:$Y$76) -> 0 | BT6: =SUMIF(Παροχές!$T$5:$T$76,Δεδομένα2!BT$3,Παροχές!$Y$5:$Y$76) -> 0 | BV6: =SUMIF(Παροχές!$T$5:$T$76,Δεδομένα2!BV$3,Παροχές!$Y$5:$Y$76) -> 0 | BW6: =SUMIF(Παροχές!$T$5:$T$76,Δεδομένα2!BW$3,Παροχές!$Y$5:$Y$76) -> 0 | BX6: =SUMIF(Παροχές!$T$5:$T$76,Δεδομένα2!BX$3,Παροχές!$Y$5:$Y$76) -> 0 | BY6: =SUMIF(Παροχές!$T$5:$T$76,Δεδομένα2!BY$3,Παροχές!$Y$5:$Y$76) -> 0 | BZ6: =SUMIF(Παροχές!$T$5:$T$76,Δεδομένα2!BZ$3,Παροχές!$Y$5:$Y$76) -> 0 | CA6: =SUMIF(Παροχές!$T$5:$T$76,Δεδομένα2!CA$3,Παροχές!$Y$5:$Y$76) -> 0 | CB6: =SUMIF(Παροχές!$T$5:$T$76,Δεδομένα2!CB$3,Παροχές!$Y$5:$Y$76) -> 0 | CC6: =SUMIF(Παροχές!$T$5:$T$76,Δεδομένα2!CC$3,Παροχές!$Y$5:$Y$76) -> 0 | CD6: =SUMIF(Παροχές!$T$5:$T$76,Δεδομένα2!CD$3,Παροχές!$Y$5:$Y$76) -> 0 | CE6: =SUMIF(Παροχές!$T$5:$T$76,Δεδομένα2!CE$3,Παροχές!$Y$5:$Y$76) -> 0 | CG6: =SUMIF(Παροχές!$T$5:$T$76,Δεδομένα2!CG$3,Παροχές!$Y$5:$Y$76) -> 0 | CH6: =SUMIF(Παροχές!$T$5:$T$76,Δεδομένα2!CH$3,Παροχές!$Y$5:$Y$76) -> 0 | CI6: =SUMIF(Παροχές!$T$5:$T$76,Δεδομένα2!CI$3,Παροχές!$Y$5:$Y$76) -> 0 | CJ6: =SUMIF(Παροχές!$T$5:$T$76,Δεδομένα2!CJ$3,Παροχές!$Y$5:$Y$76) -> 0 | CK6: =SUMIF(Παροχές!$T$5:$T$76,Δεδομένα2!CK$3,Παροχές!$Y$5:$Y$76) -> 0 | CL6: =SUMIF(Παροχές!$T$5:$T$76,Δεδομένα2!CL$3,Παροχές!$Y$5:$Y$76) -> 0 | CM6: =SUMIF(Παροχές!$T$5:$T$76,Δεδομένα2!CM$3,Παροχές!$Y$5:$Y$76) -> 0 | CN6: =SUMIF(Παροχές!$T$5:$T$76,Δεδομένα2!CN$3,Παροχές!$Y$5:$Y$76) -> 0 | CO6: =SUMIF(Παροχές!$T$5:$T$76,Δεδομένα2!CO$3,Παροχές!$Y$5:$Y$76) -> 0 | CP6: =SUMIF(Παροχές!$T$5:$T$76,Δεδομένα2!CP$3,Παροχές!$Y$5:$Y$76) -> 0 | CR6: =SUMIF(Παροχές!$T$5:$T$76,Δεδομένα2!CR$3,Παροχές!$Y$5:$Y$76) -> 0 | CS6: =SUMIF(Παροχές!$T$5:$T$76,Δεδομένα2!CS$3,Παροχές!$Y$5:$Y$76) -> 0 | CT6: =SUMIF(Παροχές!$T$5:$T$76,Δεδομένα2!CT$3,Παροχές!$Y$5:$Y$76) -> 0 | CU6: =SUMIF(Παροχές!$T$5:$T$76,Δεδομένα2!CU$3,Παροχές!$Y$5:$Y$76) -> 0 | CV6: =SUMIF(Παροχές!$T$5:$T$76,Δεδομένα2!CV$3,Παροχές!$Y$5:$Y$76) -> 0 | CW6: =SUMIF(Παροχές!$T$5:$T$76,Δεδομένα2!CW$3,Παροχές!$Y$5:$Y$76) -> 0 | CX6: =SUMIF(Παροχές!$T$5:$T$76,Δεδομένα2!CX$3,Παροχές!$Y$5:$Y$76) -> 0 | CY6: =SUMIF(Παροχές!$T$5:$T$76,Δεδομένα2!CY$3,Παροχές!$Y$5:$Y$76) -> 0 | CZ6: =SUMIF(Παροχές!$T$5:$T$76,Δεδομένα2!CZ$3,Παροχές!$Y$5:$Y$76) -> 0 | DA6: =SUMIF(Παροχές!$T$5:$T$76,Δεδομένα2!DA$3,Παροχές!$Y$5:$Y$76) -> 0 | DC6: =SUMIF(Παροχές!$T$5:$T$76,Δεδομένα2!DC$3,Παροχές!$Y$5:$Y$76) -> 0 | DD6: =SUMIF(Παροχές!$T$5:$T$76,Δεδομένα2!DD$3,Παροχές!$Y$5:$Y$76) -> 0 | DE6: =SUMIF(Παροχές!$T$5:$T$76,Δεδομένα2!DE$3,Παροχές!$Y$5:$Y$76) -> 0 | DF6: =SUMIF(Παροχές!$T$5:$T$76,Δεδομένα2!DF$3,Παροχές!$Y$5:$Y$76) -> 0 | DG6: =SUMIF(Παροχές!$T$5:$T$76,Δεδομένα2!DG$3,Παροχές!$Y$5:$Y$76) -> 0 | DH6: =SUMIF(Παροχές!$T$5:$T$76,Δεδομένα2!DH$3,Παροχές!$Y$5:$Y$76) -> 0 | DI6: =SUMIF(Παροχές!$T$5:$T$76,Δεδομένα2!DI$3,Παροχές!$Y$5:$Y$76) -> 0 | DJ6: =SUMIF(Παροχές!$T$5:$T$76,Δεδομένα2!DJ$3,Παροχές!$Y$5:$Y$76) -> 0 | DK6: =SUMIF(Παροχές!$T$5:$T$76,Δεδομένα2!DK$3,Παροχές!$Y$5:$Y$76) -> 0 | DL6: =SUMIF(Παροχές!$T$5:$T$76,Δεδομένα2!DL$3,Παροχές!$Y$5:$Y$76) -> 0 | DN6: =SUMIF(Παροχές!$T$5:$T$76,Δεδομένα2!DN$3,Παροχές!$Y$5:$Y$76) -> 0 | DO6: =SUMIF(Παροχές!$T$5:$T$76,Δεδομένα2!DO$3,Παροχές!$Y$5:$Y$76) -> 0 | DP6: =SUMIF(Παροχές!$T$5:$T$76,Δεδομένα2!DP$3,Παροχές!$Y$5:$Y$76) -> 0 | DQ6: =SUMIF(Παροχές!$T$5:$T$76,Δεδομένα2!DQ$3,Παροχές!$Y$5:$Y$76) -> 0 | DR6: =SUMIF(Παροχές!$T$5:$T$76,Δεδομένα2!DR$3,Παροχές!$Y$5:$Y$76) -> 0 | DS6: =SUMIF(Παροχές!$T$5:$T$76,Δεδομένα2!DS$3,Παροχές!$Y$5:$Y$76) -> 0 | DT6: =SUMIF(Παροχές!$T$5:$T$76,Δεδομένα2!DT$3,Παροχές!$Y$5:$Y$76) -> 0 | DU6: =SUMIF(Παροχές!$T$5:$T$76,Δεδομένα2!DU$3,Παροχές!$Y$5:$Y$76) -> 0 | DV6: =SUMIF(Παροχές!$T$5:$T$76,Δεδομένα2!DV$3,Παροχές!$Y$5:$Y$76) -> 0 | DW6: =SUMIF(Παροχές!$T$5:$T$76,Δεδομένα2!DW$3,Παροχές!$Y$5:$Y$76) -> 0 | DY6: =SUMIF(Παροχές!$T$5:$T$76,Δεδομένα2!DY$3,Παροχές!$Y$5:$Y$76) -> 0 | DZ6: =SUMIF(Παροχές!$T$5:$T$76,Δεδομένα2!DZ$3,Παροχές!$Y$5:$Y$76) -> 0 | EA6: =SUMIF(Παροχές!$T$5:$T$76,Δεδομένα2!EA$3,Παροχές!$Y$5:$Y$76) -> 0 | EB6: =SUMIF(Παροχές!$T$5:$T$76,Δεδομένα2!EB$3,Παροχές!$Y$5:$Y$76) -> 0 | EC6: =SUMIF(Παροχές!$T$5:$T$76,Δεδομένα2!EC$3,Παροχές!$Y$5:$Y$76) -> 0 | ED6: =SUMIF(Παροχές!$T$5:$T$76,Δεδομένα2!ED$3,Παροχές!$Y$5:$Y$76) -> 0 | EE6: =SUMIF(Παροχές!$T$5:$T$76,Δεδομένα2!EE$3,Παροχές!$Y$5:$Y$76) -> 0 | EF6: =SUMIF(Παροχές!$T$5:$T$76,Δεδομένα2!EF$3,Παροχές!$Y$5:$Y$76) -> 0 | EG6: =SUMIF(Παροχές!$T$5:$T$76,Δεδομένα2!EG$3,Παροχές!$Y$5:$Y$76) -> 0 | EH6: =SUMIF(Παροχές!$T$5:$T$76,Δεδομένα2!EH$3,Παροχές!$Y$5:$Y$76) -> 0
B7: Ενέργεια Μέρας (€/kWh) | C7: 0.10153 | D7: 0.08259 | F7: 0.06412 | G7: =0.08103 -> 0.08103 | J7: 0.06428 | K7: 0.06428 | L7: 0.06428 | M7: 0.06428 | Q7: Συν. Εκπ. | S7: =SUMIF(Παροχές!$T$5:$T$76,Δεδομένα2!S$3,Παροχές!$X$5:$X$76) -> 0 | T7: =SUMIF(Παροχές!$T$5:$T$76,Δεδομένα2!T$3,Παροχές!$X$5:$X$76) -> 0 | U7: =SUMIF(Παροχές!$T$5:$T$76,Δεδομένα2!U$3,Παροχές!$X$5:$X$76) -> 0 | V7: =SUMIF(Παροχές!$T$5:$T$76,Δεδομένα2!V$3,Παροχές!$X$5:$X$76) -> 0 | W7: =SUMIF(Παροχές!$T$5:$T$76,Δεδομένα2!W$3,Παροχές!$X$5:$X$76) -> 0 | X7: =SUMIF(Παροχές!$T$5:$T$76,Δεδομένα2!X$3,Παροχές!$X$5:$X$76) -> 0 | Y7: =SUMIF(Παροχές!$T$5:$T$76,Δεδομένα2!Y$3,Παροχές!$X$5:$X$76) -> 0 | Z7: =SUMIF(Παροχές!$T$5:$T$76,Δεδομένα2!Z$3,Παροχές!$X$5:$X$76) -> 0 | AA7: =SUMIF(Παροχές!$T$5:$T$76,Δεδομένα2!AA$3,Παροχές!$X$5:$X$76) -> 0 | AB7: =SUMIF(Παροχές!$T$5:$T$76,Δεδομένα2!AB$3,Παροχές!$X$5:$X$76) -> 0 | AD7: =SUMIF(Παροχές!$T$5:$T$76,Δεδομένα2!AD$3,Παροχές!$X$5:$X$76) -> 0 | AE7: =SUMIF(Παροχές!$T$5:$T$76,Δεδομένα2!AE$3,Παροχές!$X$5:$X$76) -> 0 | AF7: =SUMIF(Παροχές!$T$5:$T$76,Δεδομένα2!AF$3,Παροχές!$X$5:$X$76) -> 0 | AG7: =SUMIF(Παροχές!$T$5:$T$76,Δεδομένα2!AG$3,Παροχές!$X$5:$X$76) -> 0 | AH7: =SUMIF(Παροχές!$T$5:$T$76,Δεδομένα2!AH$3,Παροχές!$X$5:$X$76) -> 0 | AI7: =SUMIF(Παροχές!$T$5:$T$76,Δεδομένα2!AI$3,Παροχές!$X$5:$X$76) -> 0 | AJ7: =SUMIF(Παροχές!$T$5:$T$76,Δεδομένα2!AJ$3,Παροχές!$X$5:$X$76) -> 0 | AK7: =SUMIF(Παροχές!$T$5:$T$76,Δεδομένα2!AK$3,Παροχές!$X$5:$X$76) -> 0 | AL7: =SUMIF(Παροχές!$T$5:$T$76,Δεδομένα2!AL$3,Παροχές!$X$5:$X$76) -> 0 | AM7: =SUMIF(Παροχές!$T$5:$T$76,Δεδομένα2!AM$3,Παροχές!$X$5:$X$76) -> 0 | AO7: =SUMIF(Παροχές!$T$5:$T$76,Δεδομένα2!AO$3,Παροχές!$X$5:$X$76) -> 0 | AP7: =SUMIF(Παροχές!$T$5:$T$76,Δεδομένα2!AP$3,Παροχές!$X$5:$X$76) -> 0 | AQ7: =SUMIF(Παροχές!$T$5:$T$76,Δεδομένα2!AQ$3,Παροχές!$X$5:$X$76) -> 0 | AR7: =SUMIF(Παροχές!$T$5:$T$76,Δεδομένα2!AR$3,Παροχές!$X$5:$X$76) -> 0 | AS7: =SUMIF(Παροχές!$T$5:$T$76,Δεδομένα2!AS$3,Παροχές!$X$5:$X$76) -> 0 | AT7: =SUMIF(Παροχές!$T$5:$T$76,Δεδομένα2!AT$3,Παροχές!$X$5:$X$76) -> 0 | AU7: =SUMIF(Παροχές!$T$5:$T$76,Δεδομένα2!AU$3,Παροχές!$X$5:$X$76) -> 0 | AV7: =SUMIF(Παροχές!$T$5:$T$76,Δεδομένα2!AV$3,Παροχές!$X$5:$X$76) -> 0 | AW7: =SUMIF(Παροχές!$T$5:$T$76,Δεδομένα2!AW$3,Παροχές!$X$5:$X$76) -> 0 | AX7: =SUMIF(Παροχές!$T$5:$T$76,Δεδομένα2!AX$3,Παροχές!$X$5:$X$76) -> 0 | AZ7: =SUMIF(Παροχές!$T$5:$T$76,Δεδομένα2!AZ$3,Παροχές!$X$5:$X$76) -> 0 | BA7: =SUMIF(Παροχές!$T$5:$T$76,Δεδομένα2!BA$3,Παροχές!$X$5:$X$76) -> 0 | BB7: =SUMIF(Παροχές!$T$5:$T$76,Δεδομένα2!BB$3,Παροχές!$X$5:$X$76) -> 0 | BC7: =SUMIF(Παροχές!$T$5:$T$76,Δεδομένα2!BC$3,Παροχές!$X$5:$X$76) -> 0 | BD7: =SUMIF(Παροχές!$T$5:$T$76,Δεδομένα2!BD$3,Παροχές!$X$5:$X$76) -> 0 | BE7: =SUMIF(Παροχές!$T$5:$T$76,Δεδομένα2!BE$3,Παροχές!$X$5:$X$76) -> 0 | BF7: =SUMIF(Παροχές!$T$5:$T$76,Δεδομένα2!BF$3,Παροχές!$X$5:$X$76) -> 0 | BG7: =SUMIF(Παροχές!$T$5:$T$76,Δεδομένα2!BG$3,Παροχές!$X$5:$X$76) -> 0 | BH7: =SUMIF(Παροχές!$T$5:$T$76,Δεδομένα2!BH$3,Παροχές!$X$5:$X$76) -> 0 | BI7: =SUMIF(Παροχές!$T$5:$T$76,Δεδομένα2!BI$3,Παροχές!$X$5:$X$76) -> 0 | BK7: =SUMIF(Παροχές!$T$5:$T$76,Δεδομένα2!BK$3,Παροχές!$X$5:$X$76) -> 0 | BL7: =SUMIF(Παροχές!$T$5:$T$76,Δεδομένα2!BL$3,Παροχές!$X$5:$X$76) -> 0 | BM7: =SUMIF(Παροχές!$T$5:$T$76,Δεδομένα2!BM$3,Παροχές!$X$5:$X$76) -> 0 | BN7: =SUMIF(Παροχές!$T$5:$T$76,Δεδομένα2!BN$3,Παροχές!$X$5:$X$76) -> 0 | BO7: =SUMIF(Παροχές!$T$5:$T$76,Δεδομένα2!BO$3,Παροχές!$X$5:$X$76) -> 0 | BP7: =SUMIF(Παροχές!$T$5:$T$76,Δεδομένα2!BP$3,Παροχές!$X$5:$X$76) -> 0 | BQ7: =SUMIF(Παροχές!$T$5:$T$76,Δεδομένα2!BQ$3,Παροχές!$X$5:$X$76) -> 0 | BR7: =SUMIF(Παροχές!$T$5:$T$76,Δεδομένα2!BR$3,Παροχές!$X$5:$X$76) -> 0 | BS7: =SUMIF(Παροχές!$T$5:$T$76,Δεδομένα2!BS$3,Παροχές!$X$5:$X$76) -> 0 | BT7: =SUMIF(Παροχές!$T$5:$T$76,Δεδομένα2!BT$3,Παροχές!$X$5:$X$76) -> 0 | BV7: =SUMIF(Παροχές!$T$5:$T$76,Δεδομένα2!BV$3,Παροχές!$X$5:$X$76) -> 0 | BW7: =SUMIF(Παροχές!$T$5:$T$76,Δεδομένα2!BW$3,Παροχές!$X$5:$X$76) -> 0 | BX7: =SUMIF(Παροχές!$T$5:$T$76,Δεδομένα2!BX$3,Παροχές!$X$5:$X$76) -> 0 | BY7: =SUMIF(Παροχές!$T$5:$T$76,Δεδομένα2!BY$3,Παροχές!$X$5:$X$76) -> 0 | BZ7: =SUMIF(Παροχές!$T$5:$T$76,Δεδομένα2!BZ$3,Παροχές!$X$5:$X$76) -> 0 | CA7: =SUMIF(Παροχές!$T$5:$T$76,Δεδομένα2!CA$3,Παροχές!$X$5:$X$76) -> 0 | CB7: =SUMIF(Παροχές!$T$5:$T$76,Δεδομένα2!CB$3,Παροχές!$X$5:$X$76) -> 0 | CC7: =SUMIF(Παροχές!$T$5:$T$76,Δεδομένα2!CC$3,Παροχές!$X$5:$X$76) -> 0 | CD7: =SUMIF(Παροχές!$T$5:$T$76,Δεδομένα2!CD$3,Παροχές!$X$5:$X$76) -> 0 | CE7: =SUMIF(Παροχές!$T$5:$T$76,Δεδομένα2!CE$3,Παροχές!$X$5:$X$76) -> 0 | CG7: =SUMIF(Παροχές!$T$5:$T$76,Δεδομένα2!CG$3,Παροχές!$X$5:$X$76) -> 0 | CH7: =SUMIF(Παροχές!$T$5:$T$76,Δεδομένα2!CH$3,Παροχές!$X$5:$X$76) -> 0 | CI7: =SUMIF(Παροχές!$T$5:$T$76,Δεδομένα2!CI$3,Παροχές!$X$5:$X$76) -> 0 | CJ7: =SUMIF(Παροχές!$T$5:$T$76,Δεδομένα2!CJ$3,Παροχές!$X$5:$X$76) -> 0 | CK7: =SUMIF(Παροχές!$T$5:$T$76,Δεδομένα2!CK$3,Παροχές!$X$5:$X$76) -> 0 | CL7: =SUMIF(Παροχές!$T$5:$T$76,Δεδομένα2!CL$3,Παροχές!$X$5:$X$76) -> 0 | CM7: =SUMIF(Παροχές!$T$5:$T$76,Δεδομένα2!CM$3,Παροχές!$X$5:$X$76) -> 0 | CN7: =SUMIF(Παροχές!$T$5:$T$76,Δεδομένα2!CN$3,Παροχές!$X$5:$X$76) -> 0 | CO7: =SUMIF(Παροχές!$T$5:$T$76,Δεδομένα2!CO$3,Παροχές!$X$5:$X$76) -> 0 | CP7: =SUMIF(Παροχές!$T$5:$T$76,Δεδομένα2!CP$3,Παροχές!$X$5:$X$76) -> 0 | CR7: =SUMIF(Παροχές!$T$5:$T$76,Δεδομένα2!CR$3,Παροχές!$X$5:$X$76) -> 0 | CS7: =SUMIF(Παροχές!$T$5:$T$76,Δεδομένα2!CS$3,Παροχές!$X$5:$X$76) -> 0 | CT7: =SUMIF(Παροχές!$T$5:$T$76,Δεδομένα2!CT$3,Παροχές!$X$5:$X$76) -> 0 | CU7: =SUMIF(Παροχές!$T$5:$T$76,Δεδομένα2!CU$3,Παροχές!$X$5:$X$76) -> 0 | CV7: =SUMIF(Παροχές!$T$5:$T$76,Δεδομένα2!CV$3,Παροχές!$X$5:$X$76) -> 0 | CW7: =SUMIF(Παροχές!$T$5:$T$76,Δεδομένα2!CW$3,Παροχές!$X$5:$X$76) -> 0 | CX7: =SUMIF(Παροχές!$T$5:$T$76,Δεδομένα2!CX$3,Παροχές!$X$5:$X$76) -> 0 | CY7: =SUMIF(Παροχές!$T$5:$T$76,Δεδομένα2!CY$3,Παροχές!$X$5:$X$76) -> 0 | CZ7: =SUMIF(Παροχές!$T$5:$T$76,Δεδομένα2!CZ$3,Παροχές!$X$5:$X$76) -> 0 | DA7: =SUMIF(Παροχές!$T$5:$T$76,Δεδομένα2!DA$3,Παροχές!$X$5:$X$76) -> 0 | DC7: =SUMIF(Παροχές!$T$5:$T$76,Δεδομένα2!DC$3,Παροχές!$X$5:$X$76) -> 0 | DD7: =SUMIF(Παροχές!$T$5:$T$76,Δεδομένα2!DD$3,Παροχές!$X$5:$X$76) -> 0 | DE7: =SUMIF(Παροχές!$T$5:$T$76,Δεδομένα2!DE$3,Παροχές!$X$5:$X$76) -> 0 | DF7: =SUMIF(Παροχές!$T$5:$T$76,Δεδομένα2!DF$3,Παροχές!$X$5:$X$76) -> 0 | DG7: =SUMIF(Παροχές!$T$5:$T$76,Δεδομένα2!DG$3,Παροχές!$X$5:$X$76) -> 0 | DH7: =SUMIF(Παροχές!$T$5:$T$76,Δεδομένα2!DH$3,Παροχές!$X$5:$X$76) -> 0 | DI7: =SUMIF(Παροχές!$T$5:$T$76,Δεδομένα2!DI$3,Παροχές!$X$5:$X$76) -> 0 | DJ7: =SUMIF(Παροχές!$T$5:$T$76,Δεδομένα2!DJ$3,Παροχές!$X$5:$X$76) -> 0 | DK7: =SUMIF(Παροχές!$T$5:$T$76,Δεδομένα2!DK$3,Παροχές!$X$5:$X$76) -> 0 | DL7: =SUMIF(Παροχές!$T$5:$T$76,Δεδομένα2!DL$3,Παροχές!$X$5:$X$76) -> 0 | DN7: =SUMIF(Παροχές!$T$5:$T$76,Δεδομένα2!DN$3,Παροχές!$X$5:$X$76) -> 0 | DO7: =SUMIF(Παροχές!$T$5:$T$76,Δεδομένα2!DO$3,Παροχές!$X$5:$X$76) -> 0 | DP7: =SUMIF(Παροχές!$T$5:$T$76,Δεδομένα2!DP$3,Παροχές!$X$5:$X$76) -> 0 | DQ7: =SUMIF(Παροχές!$T$5:$T$76,Δεδομένα2!DQ$3,Παροχές!$X$5:$X$76) -> 0 | DR7: =SUMIF(Παροχές!$T$5:$T$76,Δεδομένα2!DR$3,Παροχές!$X$5:$X$76) -> 0 | DS7: =SUMIF(Παροχές!$T$5:$T$76,Δεδομένα2!DS$3,Παροχές!$X$5:$X$76) -> 0 | DT7: =SUMIF(Παροχές!$T$5:$T$76,Δεδομένα2!DT$3,Παροχές!$X$5:$X$76) -> 0 | DU7: =SUMIF(Παροχές!$T$5:$T$76,Δεδομένα2!DU$3,Παροχές!$X$5:$X$76) -> 0 | DV7: =SUMIF(Παροχές!$T$5:$T$76,Δεδομένα2!DV$3,Παροχές!$X$5:$X$76) -> 0 | DW7: =SUMIF(Παροχές!$T$5:$T$76,Δεδομένα2!DW$3,Παροχές!$X$5:$X$76) -> 0 | DY7: =SUMIF(Παροχές!$T$5:$T$76,Δεδομένα2!DY$3,Παροχές!$X$5:$X$76) -> 0 | DZ7: =SUMIF(Παροχές!$T$5:$T$76,Δεδομένα2!DZ$3,Παροχές!$X$5:$X$76) -> 0 | EA7: =SUMIF(Παροχές!$T$5:$T$76,Δεδομένα2!EA$3,Παροχές!$X$5:$X$76) -> 0 | EB7: =SUMIF(Παροχές!$T$5:$T$76,Δεδομένα2!EB$3,Παροχές!$X$5:$X$76) -> 0 | EC7: =SUMIF(Παροχές!$T$5:$T$76,Δεδομένα2!EC$3,Παροχές!$X$5:$X$76) -> 0 | ED7: =SUMIF(Παροχές!$T$5:$T$76,Δεδομένα2!ED$3,Παροχές!$X$5:$X$76) -> 0 | EE7: =SUMIF(Παροχές!$T$5:$T$76,Δεδομένα2!EE$3,Παροχές!$X$5:$X$76) -> 0 | EF7: =SUMIF(Παροχές!$T$5:$T$76,Δεδομένα2!EF$3,Παροχές!$X$5:$X$76) -> 0 | EG7: =SUMIF(Παροχές!$T$5:$T$76,Δεδομένα2!EG$3,Παροχές!$X$5:$X$76) -> 0 | EH7: =SUMIF(Παροχές!$T$5:$T$76,Δεδομένα2!EH$3,Παροχές!$X$5:$X$76) -> 0
B8: Ενέργεια Νύχτας (€/kWh) | J8: 0.05062 | K8: 0.05062 | L8: 0.05062 | M8: 0.05062 | Q8: Συμβατική Κατανάλωση Μέρας | S8: =SUMIF(Παροχές!$T$5:$T$76,Δεδομένα2!S$3,Παροχές!$AD$5:$AD$76) -> 0 | T8: =SUMIF(Παροχές!$T$5:$T$76,Δεδομένα2!T$3,Παροχές!$AD$5:$AD$76) -> 0 | U8: =SUMIF(Παροχές!$T$5:$T$76,Δεδομένα2!U$3,Παροχές!$AD$5:$AD$76) -> 0 | V8: =SUMIF(Παροχές!$T$5:$T$76,Δεδομένα2!V$3,Παροχές!$AD$5:$AD$76) -> 0 | W8: =SUMIF(Παροχές!$T$5:$T$76,Δεδομένα2!W$3,Παροχές!$AD$5:$AD$76) -> 0 | X8: =SUMIF(Παροχές!$T$5:$T$76,Δεδομένα2!X$3,Παροχές!$AD$5:$AD$76) -> 0 | Y8: =SUMIF(Παροχές!$T$5:$T$76,Δεδομένα2!Y$3,Παροχές!$AD$5:$AD$76) -> 0 | Z8: =SUMIF(Παροχές!$T$5:$T$76,Δεδομένα2!Z$3,Παροχές!$AD$5:$AD$76) -> 0 | AA8: =SUMIF(Παροχές!$T$5:$T$76,Δεδομένα2!AA$3,Παροχές!$AD$5:$AD$76) -> 0 | AB8: =SUMIF(Παροχές!$T$5:$T$76,Δεδομένα2!AB$3,Παροχές!$AD$5:$AD$76) -> 0 | AD8: =SUMIF(Παροχές!$T$5:$T$76,Δεδομένα2!AD$3,Παροχές!$AD$5:$AD$76) -> 0 | AE8: =SUMIF(Παροχές!$T$5:$T$76,Δεδομένα2!AE$3,Παροχές!$AD$5:$AD$76) -> 0 | AF8: =SUMIF(Παροχές!$T$5:$T$76,Δεδομένα2!AF$3,Παροχές!$AD$5:$AD$76) -> 0 | AG8: =SUMIF(Παροχές!$T$5:$T$76,Δεδομένα2!AG$3,Παροχές!$AD$5:$AD$76) -> 0 | AH8: =SUMIF(Παροχές!$T$5:$T$76,Δεδομένα2!AH$3,Παροχές!$AD$5:$AD$76) -> 0 | AI8: =SUMIF(Παροχές!$T$5:$T$76,Δεδομένα2!AI$3,Παροχές!$AD$5:$AD$76) -> 0 | AJ8: =SUMIF(Παροχές!$T$5:$T$76,Δεδομένα2!AJ$3,Παροχές!$AD$5:$AD$76) -> 0 | AK8: =SUMIF(Παροχές!$T$5:$T$76,Δεδομένα2!AK$3,Παροχές!$AD$5:$AD$76) -> 0 | AL8: =SUMIF(Παροχές!$T$5:$T$76,Δεδομένα2!AL$3,Παροχές!$AD$5:$AD$76) -> 0 | AM8: =SUMIF(Παροχές!$T$5:$T$76,Δεδομένα2!AM$3,Παροχές!$AD$5:$AD$76) -> 0 | AO8: =SUMIF(Παροχές!$T$5:$T$76,Δεδομένα2!AO$3,Παροχές!$AD$5:$AD$76) -> 0 | AP8: =SUMIF(Παροχές!$T$5:$T$76,Δεδομένα2!AP$3,Παροχές!$AD$5:$AD$76) -> 0 | AQ8: =SUMIF(Παροχές!$T$5:$T$76,Δεδομένα2!AQ$3,Παροχές!$AD$5:$AD$76) -> 0 | AR8: =SUMIF(Παροχές!$T$5:$T$76,Δεδομένα2!AR$3,Παροχές!$AD$5:$AD$76) -> 0 | AS8: =SUMIF(Παροχές!$T$5:$T$76,Δεδομένα2!AS$3,Παροχές!$AD$5:$AD$76) -> 0 | AT8: =SUMIF(Παροχές!$T$5:$T$76,Δεδομένα2!AT$3,Παροχές!$AD$5:$AD$76) -> 0 | AU8: =SUMIF(Παροχές!$T$5:$T$76,Δεδομένα2!AU$3,Παροχές!$AD$5:$AD$76) -> 0 | AV8: =SUMIF(Παροχές!$T$5:$T$76,Δεδομένα2!AV$3,Παροχές!$AD$5:$AD$76) -> 0 | AW8: =SUMIF(Παροχές!$T$5:$T$76,Δεδομένα2!AW$3,Παροχές!$AD$5:$AD$76) -> 0 | AX8: =SUMIF(Παροχές!$T$5:$T$76,Δεδομένα2!AX$3,Παροχές!$AD$5:$AD$76) -> 0 | AZ8: =SUMIF(Παροχές!$T$5:$T$76,Δεδομένα2!AZ$3,Παροχές!$AD$5:$AD$76) -> 399000 | BA8: =SUMIF(Παροχές!$T$5:$T$76,Δεδομένα2!BA$3,Παροχές!$AD$5:$AD$76) -> 170000 | BB8: =SUMIF(Παροχές!$T$5:$T$76,Δεδομένα2!BB$3,Παροχές!$AD$5:$AD$76) -> 145000 | BC8: =SUMIF(Παροχές!$T$5:$T$76,Δεδομένα2!BC$3,Παροχές!$AD$5:$AD$76) -> 185000 | BD8: =SUMIF(Παροχές!$T$5:$T$76,Δεδομένα2!BD$3,Παροχές!$AD$5:$AD$76) -> 105000 | BE8: =SUMIF(Παροχές!$T$5:$T$76,Δεδομένα2!BE$3,Παροχές!$AD$5:$AD$76) -> 195000 | BF8: =SUMIF(Παροχές!$T$5:$T$76,Δεδομένα2!BF$3,Παροχές!$AD$5:$AD$76) -> 235000 | BG8: =SUMIF(Παροχές!$T$5:$T$76,Δεδομένα2!BG$3,Παροχές!$AD$5:$AD$76) -> 245000 | BH8: =SUMIF(Παροχές!$T$5:$T$76,Δεδομένα2!BH$3,Παροχές!$AD$5:$AD$76) -> 121000 | BI8: =SUMIF(Παροχές!$T$5:$T$76,Δεδομένα2!BI$3,Παροχές!$AD$5:$AD$76) -> 121001 | BK8: =SUMIF(Παροχές!$T$5:$T$76,Δεδομένα2!BK$3,Παροχές!$AD$5:$AD$76) -> 0 | BL8: =SUMIF(Παροχές!$T$5:$T$76,Δεδομένα2!BL$3,Παροχές!$AD$5:$AD$76) -> 0 | BM8: =SUMIF(Παροχές!$T$5:$T$76,Δεδομένα2!BM$3,Παροχές!$AD$5:$AD$76) -> 0 | BN8: =SUMIF(Παροχές!$T$5:$T$76,Δεδομένα2!BN$3,Παροχές!$AD$5:$AD$76) -> 0 | BO8: =SUMIF(Παροχές!$T$5:$T$76,Δεδομένα2!BO$3,Παροχές!$AD$5:$AD$76) -> 0 | BP8: =SUMIF(Παροχές!$T$5:$T$76,Δεδομένα2!BP$3,Παροχές!$AD$5:$AD$76) -> 0 | BQ8: =SUMIF(Παροχές!$T$5:$T$76,Δεδομένα2!BQ$3,Παροχές!$AD$5:$AD$76) -> 0 | BR8: =SUMIF(Παροχές!$T$5:$T$76,Δεδομένα2!BR$3,Παροχές!$AD$5:$AD$76) -> 0 | BS8: =SUMIF(Παροχές!$T$5:$T$76,Δεδομένα2!BS$3,Παροχές!$AD$5:$AD$76) -> 0 | BT8: =SUMIF(Παροχές!$T$5:$T$76,Δεδομένα2!BT$3,Παροχές!$AD$5:$AD$76) -> 0 | BV8: =SUMIF(Παροχές!$T$5:$T$76,Δεδομένα2!BV$3,Παροχές!$AD$5:$AD$76) -> 0 | BW8: =SUMIF(Παροχές!$T$5:$T$76,Δεδομένα2!BW$3,Παροχές!$AD$5:$AD$76) -> 0 | BX8: =SUMIF(Παροχές!$T$5:$T$76,Δεδομένα2!BX$3,Παροχές!$AD$5:$AD$76) -> 0 | BY8: =SUMIF(Παροχές!$T$5:$T$76,Δεδομένα2!BY$3,Παροχές!$AD$5:$AD$76) -> 0 | BZ8: =SUMIF(Παροχές!$T$5:$T$76,Δεδομένα2!BZ$3,Παροχές!$AD$5:$AD$76) -> 0 | CA8: =SUMIF(Παροχές!$T$5:$T$76,Δεδομένα2!CA$3,Παροχές!$AD$5:$AD$76) -> 0 | CB8: =SUMIF(Παροχές!$T$5:$T$76,Δεδομένα2!CB$3,Παροχές!$AD$5:$AD$76) -> 0 | CC8: =SUMIF(Παροχές!$T$5:$T$76,Δεδομένα2!CC$3,Παροχές!$AD$5:$AD$76) -> 0 | CD8: =SUMIF(Παροχές!$T$5:$T$76,Δεδομένα2!CD$3,Παροχές!$AD$5:$AD$76) -> 0 | CE8: =SUMIF(Παροχές!$T$5:$T$76,Δεδομένα2!CE$3,Παροχές!$AD$5:$AD$76) -> 0 | CG8: =SUMIF(Παροχές!$T$5:$T$76,Δεδομένα2!CG$3,Παροχές!$AD$5:$AD$76) -> 0 | CH8: =SUMIF(Παροχές!$T$5:$T$76,Δεδομένα2!CH$3,Παροχές!$AD$5:$AD$76) -> 0 | CI8: =SUMIF(Παροχές!$T$5:$T$76,Δεδομένα2!CI$3,Παροχές!$AD$5:$AD$76) -> 0 | CJ8: =SUMIF(Παροχές!$T$5:$T$76,Δεδομένα2!CJ$3,Παροχές!$AD$5:$AD$76) -> 0 | CK8: =SUMIF(Παροχές!$T$5:$T$76,Δεδομένα2!CK$3,Παροχές!$AD$5:$AD$76) -> 0 | CL8: =SUMIF(Παροχές!$T$5:$T$76,Δεδομένα2!CL$3,Παροχές!$AD$5:$AD$76) -> 0 | CM8: =SUMIF(Παροχές!$T$5:$T$76,Δεδομένα2!CM$3,Παροχές!$AD$5:$AD$76) -> 0 | CN8: =SUMIF(Παροχές!$T$5:$T$76,Δεδομένα2!CN$3,Παροχές!$AD$5:$AD$76) -> 0 | CO8: =SUMIF(Παροχές!$T$5:$T$76,Δεδομένα2!CO$3,Παροχές!$AD$5:$AD$76) -> 0 | CP8: =SUMIF(Παροχές!$T$5:$T$76,Δεδομένα2!CP$3,Παροχές!$AD$5:$AD$76) -> 0 | CR8: =SUMIF(Παροχές!$T$5:$T$76,Δεδομένα2!CR$3,Παροχές!$AD$5:$AD$76) -> 0 | CS8: =SUMIF(Παροχές!$T$5:$T$76,Δεδομένα2!CS$3,Παροχές!$AD$5:$AD$76) -> 0 | CT8: =SUMIF(Παροχές!$T$5:$T$76,Δεδομένα2!CT$3,Παροχές!$AD$5:$AD$76) -> 0 | CU8: =SUMIF(Παροχές!$T$5:$T$76,Δεδομένα2!CU$3,Παροχές!$AD$5:$AD$76) -> 0 | CV8: =SUMIF(Παροχές!$T$5:$T$76,Δεδομένα2!CV$3,Παροχές!$AD$5:$AD$76) -> 0 | CW8: =SUMIF(Παροχές!$T$5:$T$76,Δεδομένα2!CW$3,Παροχές!$AD$5:$AD$76) -> 0 | CX8: =SUMIF(Παροχές!$T$5:$T$76,Δεδομένα2!CX$3,Παροχές!$AD$5:$AD$76) -> 0 | CY8: =SUMIF(Παροχές!$T$5:$T$76,Δεδομένα2!CY$3,Παροχές!$AD$5:$AD$76) -> 0 | CZ8: =SUMIF(Παροχές!$T$5:$T$76,Δεδομένα2!CZ$3,Παροχές!$AD$5:$AD$76) -> 0 | DA8: =SUMIF(Παροχές!$T$5:$T$76,Δεδομένα2!DA$3,Παροχές!$AD$5:$AD$76) -> 0 | DC8: =SUMIF(Παροχές!$T$5:$T$76,Δεδομένα2!DC$3,Παροχές!$AD$5:$AD$76) -> 0 | DD8: =SUMIF(Παροχές!$T$5:$T$76,Δεδομένα2!DD$3,Παροχές!$AD$5:$AD$76) -> 0 | DE8: =SUMIF(Παροχές!$T$5:$T$76,Δεδομένα2!DE$3,Παροχές!$AD$5:$AD$76) -> 0 | DF8: =SUMIF(Παροχές!$T$5:$T$76,Δεδομένα2!DF$3,Παροχές!$AD$5:$AD$76) -> 0 | DG8: =SUMIF(Παροχές!$T$5:$T$76,Δεδομένα2!DG$3,Παροχές!$AD$5:$AD$76) -> 0 | DH8: =SUMIF(Παροχές!$T$5:$T$76,Δεδομένα2!DH$3,Παροχές!$AD$5:$AD$76) -> 0 | DI8: =SUMIF(Παροχές!$T$5:$T$76,Δεδομένα2!DI$3,Παροχές!$AD$5:$AD$76) -> 0 | DJ8: =SUMIF(Παροχές!$T$5:$T$76,Δεδομένα2!DJ$3,Παροχές!$AD$5:$AD$76) -> 0 | DK8: =SUMIF(Παροχές!$T$5:$T$76,Δεδομένα2!DK$3,Παροχές!$AD$5:$AD$76) -> 0 | DL8: =SUMIF(Παροχές!$T$5:$T$76,Δεδομένα2!DL$3,Παροχές!$AD$5:$AD$76) -> 0 | DN8: =SUMIF(Παροχές!$T$5:$T$76,Δεδομένα2!DN$3,Παροχές!$AD$5:$AD$76) -> 0 | DO8: =SUMIF(Παροχές!$T$5:$T$76,Δεδομένα2!DO$3,Παροχές!$AD$5:$AD$76) -> 0 | DP8: =SUMIF(Παροχές!$T$5:$T$76,Δεδομένα2!DP$3,Παροχές!$AD$5:$AD$76) -> 0 | DQ8: =SUMIF(Παροχές!$T$5:$T$76,Δεδομένα2!DQ$3,Παροχές!$AD$5:$AD$76) -> 0 | DR8: =SUMIF(Παροχές!$T$5:$T$76,Δεδομένα2!DR$3,Παροχές!$AD$5:$AD$76) -> 0 | DS8: =SUMIF(Παροχές!$T$5:$T$76,Δεδομένα2!DS$3,Παροχές!$AD$5:$AD$76) -> 0 | DT8: =SUMIF(Παροχές!$T$5:$T$76,Δεδομένα2!DT$3,Παροχές!$AD$5:$AD$76) -> 0 | DU8: =SUMIF(Παροχές!$T$5:$T$76,Δεδομένα2!DU$3,Παροχές!$AD$5:$AD$76) -> 0 | DV8: =SUMIF(Παροχές!$T$5:$T$76,Δεδομένα2!DV$3,Παροχές!$AD$5:$AD$76) -> 0 | DW8: =SUMIF(Παροχές!$T$5:$T$76,Δεδομένα2!DW$3,Παροχές!$AD$5:$AD$76) -> 0 | DY8: =SUMIF(Παροχές!$T$5:$T$76,Δεδομένα2!DY$3,Παροχές!$AD$5:$AD$76) -> 0 | DZ8: =SUMIF(Παροχές!$T$5:$T$76,Δεδομένα2!DZ$3,Παροχές!$AD$5:$AD$76) -> 0 | EA8: =SUMIF(Παροχές!$T$5:$T$76,Δεδομένα2!EA$3,Παροχές!$AD$5:$AD$76) -> 0 | EB8: =SUMIF(Παροχές!$T$5:$T$76,Δεδομένα2!EB$3,Παροχές!$AD$5:$AD$76) -> 0 | EC8: =SUMIF(Παροχές!$T$5:$T$76,Δεδομένα2!EC$3,Παροχές!$AD$5:$AD$76) -> 0 | ED8: =SUMIF(Παροχές!$T$5:$T$76,Δεδομένα2!ED$3,Παροχές!$AD$5:$AD$76) -> 0 | EE8: =SUMIF(Παροχές!$T$5:$T$76,Δεδομένα2!EE$3,Παροχές!$AD$5:$AD$76) -> 0 | EF8: =SUMIF(Παροχές!$T$5:$T$76,Δεδομένα2!EF$3,Παροχές!$AD$5:$AD$76) -> 0 | EG8: =SUMIF(Παροχές!$T$5:$T$76,Δεδομένα2!EG$3,Παροχές!$AD$5:$AD$76) -> 0 | EH8: =SUMIF(Παροχές!$T$5:$T$76,Δεδομένα2!EH$3,Παροχές!$AD$5:$AD$76) -> 0
B9: Πάγιο (€/μήνα) | C9: 0.53 | D9: 0.53 | F9: 0.53 | G9: 0.53 | Q9: Συμβατική Κατανάλωση Νύχτας | S9: =SUMIF(Παροχές!$T$5:$T$76,Δεδομένα2!S$3,Παροχές!$AE$5:$AF$76) -> 0 | T9: =SUMIF(Παροχές!$T$5:$T$76,Δεδομένα2!T$3,Παροχές!$AE$5:$AF$76) -> 0 | U9: =SUMIF(Παροχές!$T$5:$T$76,Δεδομένα2!U$3,Παροχές!$AE$5:$AF$76) -> 0 | V9: =SUMIF(Παροχές!$T$5:$T$76,Δεδομένα2!V$3,Παροχές!$AE$5:$AF$76) -> 0 | W9: =SUMIF(Παροχές!$T$5:$T$76,Δεδομένα2!W$3,Παροχές!$AE$5:$AF$76) -> 0 | X9: =SUMIF(Παροχές!$T$5:$T$76,Δεδομένα2!X$3,Παροχές!$AE$5:$AF$76) -> 0 | Y9: =SUMIF(Παροχές!$T$5:$T$76,Δεδομένα2!Y$3,Παροχές!$AE$5:$AF$76) -> 0 | Z9: =SUMIF(Παροχές!$T$5:$T$76,Δεδομένα2!Z$3,Παροχές!$AE$5:$AF$76) -> 0 | AA9: =SUMIF(Παροχές!$T$5:$T$76,Δεδομένα2!AA$3,Παροχές!$AE$5:$AF$76) -> 0 | AB9: =SUMIF(Παροχές!$T$5:$T$76,Δεδομένα2!AB$3,Παροχές!$AE$5:$AF$76) -> 0 | AD9: =SUMIF(Παροχές!$T$5:$T$76,Δεδομένα2!AD$3,Παροχές!$AE$5:$AF$76) -> 0 | AE9: =SUMIF(Παροχές!$T$5:$T$76,Δεδομένα2!AE$3,Παροχές!$AE$5:$AF$76) -> 0 | AF9: =SUMIF(Παροχές!$T$5:$T$76,Δεδομένα2!AF$3,Παροχές!$AE$5:$AF$76) -> 0 | AG9: =SUMIF(Παροχές!$T$5:$T$76,Δεδομένα2!AG$3,Παροχές!$AE$5:$AF$76) -> 0 | AH9: =SUMIF(Παροχές!$T$5:$T$76,Δεδομένα2!AH$3,Παροχές!$AE$5:$AF$76) -> 0 | AI9: =SUMIF(Παροχές!$T$5:$T$76,Δεδομένα2!AI$3,Παροχές!$AE$5:$AF$76) -> 0 | AJ9: =SUMIF(Παροχές!$T$5:$T$76,Δεδομένα2!AJ$3,Παροχές!$AE$5:$AF$76) -> 0 | AK9: =SUMIF(Παροχές!$T$5:$T$76,Δεδομένα2!AK$3,Παροχές!$AE$5:$AF$76) -> 0 | AL9: =SUMIF(Παροχές!$T$5:$T$76,Δεδομένα2!AL$3,Παροχές!$AE$5:$AF$76) -> 0 | AM9: =SUMIF(Παροχές!$T$5:$T$76,Δεδομένα2!AM$3,Παροχές!$AE$5:$AF$76) -> 0 | AO9: =SUMIF(Παροχές!$T$5:$T$76,Δεδομένα2!AO$3,Παροχές!$AE$5:$AF$76) -> 0 | AP9: =SUMIF(Παροχές!$T$5:$T$76,Δεδομένα2!AP$3,Παροχές!$AE$5:$AF$76) -> 0 | AQ9: =SUMIF(Παροχές!$T$5:$T$76,Δεδομένα2!AQ$3,Παροχές!$AE$5:$AF$76) -> 0 | AR9: =SUMIF(Παροχές!$T$5:$T$76,Δεδομένα2!AR$3,Παροχές!$AE$5:$AF$76) -> 0 | AS9: =SUMIF(Παροχές!$T$5:$T$76,Δεδομένα2!AS$3,Παροχές!$AE$5:$AF$76) -> 0 | AT9: =SUMIF(Παροχές!$T$5:$T$76,Δεδομένα2!AT$3,Παροχές!$AE$5:$AF$76) -> 0 | AU9: =SUMIF(Παροχές!$T$5:$T$76,Δεδομένα2!AU$3,Παροχές!$AE$5:$AF$76) -> 0 | AV9: =SUMIF(Παροχές!$T$5:$T$76,Δεδομένα2!AV$3,Παροχές!$AE$5:$AF$76) -> 0 | AW9: =SUMIF(Παροχές!$T$5:$T$76,Δεδομένα2!AW$3,Παροχές!$AE$5:$AF$76) -> 0 | AX9: =SUMIF(Παροχές!$T$5:$T$76,Δεδομένα2!AX$3,Παροχές!$AE$5:$AF$76) -> 0 | AZ9: =SUMIF(Παροχές!$T$5:$T$76,Δεδομένα2!AZ$3,Παροχές!$AE$5:$AF$76) -> 0 | BA9: =SUMIF(Παροχές!$T$5:$T$76,Δεδομένα2!BA$3,Παροχές!$AE$5:$AF$76) -> 0 | BB9: =SUMIF(Παροχές!$T$5:$T$76,Δεδομένα2!BB$3,Παροχές!$AE$5:$AF$76) -> 0 | BC9: =SUMIF(Παροχές!$T$5:$T$76,Δεδομένα2!BC$3,Παροχές!$AE$5:$AF$76) -> 0 | BD9: =SUMIF(Παροχές!$T$5:$T$76,Δεδομένα2!BD$3,Παροχές!$AE$5:$AF$76) -> 0 | BE9: =SUMIF(Παροχές!$T$5:$T$76,Δεδομένα2!BE$3,Παροχές!$AE$5:$AF$76) -> 0 | BF9: =SUMIF(Παροχές!$T$5:$T$76,Δεδομένα2!BF$3,Παροχές!$AE$5:$AF$76) -> 0 | BG9: =SUMIF(Παροχές!$T$5:$T$76,Δεδομένα2!BG$3,Παροχές!$AE$5:$AF$76) -> 0 | BH9: =SUMIF(Παροχές!$T$5:$T$76,Δεδομένα2!BH$3,Παροχές!$AE$5:$AF$76) -> 0 | BI9: =SUMIF(Παροχές!$T$5:$T$76,Δεδομένα2!BI$3,Παροχές!$AE$5:$AF$76) -> 0 | BK9: =SUMIF(Παροχές!$T$5:$T$76,Δεδομένα2!BK$3,Παροχές!$AE$5:$AF$76) -> 0 | BL9: =SUMIF(Παροχές!$T$5:$T$76,Δεδομένα2!BL$3,Παροχές!$AE$5:$AF$76) -> 0 | BM9: =SUMIF(Παροχές!$T$5:$T$76,Δεδομένα2!BM$3,Παροχές!$AE$5:$AF$76) -> 0 | BN9: =SUMIF(Παροχές!$T$5:$T$76,Δεδομένα2!BN$3,Παροχές!$AE$5:$AF$76) -> 0 | BO9: =SUMIF(Παροχές!$T$5:$T$76,Δεδομένα2!BO$3,Παροχές!$AE$5:$AF$76) -> 0 | BP9: =SUMIF(Παροχές!$T$5:$T$76,Δεδομένα2!BP$3,Παροχές!$AE$5:$AF$76) -> 0 | BQ9: =SUMIF(Παροχές!$T$5:$T$76,Δεδομένα2!BQ$3,Παροχές!$AE$5:$AF$76) -> 0 | BR9: =SUMIF(Παροχές!$T$5:$T$76,Δεδομένα2!BR$3,Παροχές!$AE$5:$AF$76) -> 0 | BS9: =SUMIF(Παροχές!$T$5:$T$76,Δεδομένα2!BS$3,Παροχές!$AE$5:$AF$76) -> 0 | BT9: =SUMIF(Παροχές!$T$5:$T$76,Δεδομένα2!BT$3,Παροχές!$AE$5:$AF$76) -> 0 | BV9: =SUMIF(Παροχές!$T$5:$T$76,Δεδομένα2!BV$3,Παροχές!$AE$5:$AF$76) -> 0 | BW9: =SUMIF(Παροχές!$T$5:$T$76,Δεδομένα2!BW$3,Παροχές!$AE$5:$AF$76) -> 0 | BX9: =SUMIF(Παροχές!$T$5:$T$76,Δεδομένα2!BX$3,Παροχές!$AE$5:$AF$76) -> 0 | BY9: =SUMIF(Παροχές!$T$5:$T$76,Δεδομένα2!BY$3,Παροχές!$AE$5:$AF$76) -> 0 | BZ9: =SUMIF(Παροχές!$T$5:$T$76,Δεδομένα2!BZ$3,Παροχές!$AE$5:$AF$76) -> 0 | CA9: =SUMIF(Παροχές!$T$5:$T$76,Δεδομένα2!CA$3,Παροχές!$AE$5:$AF$76) -> 0 | CB9: =SUMIF(Παροχές!$T$5:$T$76,Δεδομένα2!CB$3,Παροχές!$AE$5:$AF$76) -> 0 | CC9: =SUMIF(Παροχές!$T$5:$T$76,Δεδομένα2!CC$3,Παροχές!$AE$5:$AF$76) -> 0 | CD9: =SUMIF(Παροχές!$T$5:$T$76,Δεδομένα2!CD$3,Παροχές!$AE$5:$AF$76) -> 0 | CE9: =SUMIF(Παροχές!$T$5:$T$76,Δεδομένα2!CE$3,Παροχές!$AE$5:$AF$76) -> 0 | CG9: =SUMIF(Παροχές!$T$5:$T$76,Δεδομένα2!CG$3,Παροχές!$AE$5:$AF$76) -> 0 | CH9: =SUMIF(Παροχές!$T$5:$T$76,Δεδομένα2!CH$3,Παροχές!$AE$5:$AF$76) -> 0 | CI9: =SUMIF(Παροχές!$T$5:$T$76,Δεδομένα2!CI$3,Παροχές!$AE$5:$AF$76) -> 0 | CJ9: =SUMIF(Παροχές!$T$5:$T$76,Δεδομένα2!CJ$3,Παροχές!$AE$5:$AF$76) -> 0 | CK9: =SUMIF(Παροχές!$T$5:$T$76,Δεδομένα2!CK$3,Παροχές!$AE$5:$AF$76) -> 0 | CL9: =SUMIF(Παροχές!$T$5:$T$76,Δεδομένα2!CL$3,Παροχές!$AE$5:$AF$76) -> 0 | CM9: =SUMIF(Παροχές!$T$5:$T$76,Δεδομένα2!CM$3,Παροχές!$AE$5:$AF$76) -> 0 | CN9: =SUMIF(Παροχές!$T$5:$T$76,Δεδομένα2!CN$3,Παροχές!$AE$5:$AF$76) -> 0 | CO9: =SUMIF(Παροχές!$T$5:$T$76,Δεδομένα2!CO$3,Παροχές!$AE$5:$AF$76) -> 0 | CP9: =SUMIF(Παροχές!$T$5:$T$76,Δεδομένα2!CP$3,Παροχές!$AE$5:$AF$76) -> 0 | CR9: =SUMIF(Παροχές!$T$5:$T$76,Δεδομένα2!CR$3,Παροχές!$AE$5:$AF$76) -> 0 | CS9: =SUMIF(Παροχές!$T$5:$T$76,Δεδομένα2!CS$3,Παροχές!$AE$5:$AF$76) -> 0 | CT9: =SUMIF(Παροχές!$T$5:$T$76,Δεδομένα2!CT$3,Παροχές!$AE$5:$AF$76) -> 0 | CU9: =SUMIF(Παροχές!$T$5:$T$76,Δεδομένα2!CU$3,Παροχές!$AE$5:$AF$76) -> 0 | CV9: =SUMIF(Παροχές!$T$5:$T$76,Δεδομένα2!CV$3,Παροχές!$AE$5:$AF$76) -> 0 | CW9: =SUMIF(Παροχές!$T$5:$T$76,Δεδομένα2!CW$3,Παροχές!$AE$5:$AF$76) -> 0 | CX9: =SUMIF(Παροχές!$T$5:$T$76,Δεδομένα2!CX$3,Παροχές!$AE$5:$AF$76) -> 0 | CY9: =SUMIF(Παροχές!$T$5:$T$76,Δεδομένα2!CY$3,Παροχές!$AE$5:$AF$76) -> 0 | CZ9: =SUMIF(Παροχές!$T$5:$T$76,Δεδομένα2!CZ$3,Παροχές!$AE$5:$AF$76) -> 0 | DA9: =SUMIF(Παροχές!$T$5:$T$76,Δεδομένα2!DA$3,Παροχές!$AE$5:$AF$76) -> 0 | DC9: =SUMIF(Παροχές!$T$5:$T$76,Δεδομένα2!DC$3,Παροχές!$AE$5:$AF$76) -> 0 | DD9: =SUMIF(Παροχές!$T$5:$T$76,Δεδομένα2!DD$3,Παροχές!$AE$5:$AF$76) -> 0 | DE9: =SUMIF(Παροχές!$T$5:$T$76,Δεδομένα2!DE$3,Παροχές!$AE$5:$AF$76) -> 0 | DF9: =SUMIF(Παροχές!$T$5:$T$76,Δεδομένα2!DF$3,Παροχές!$AE$5:$AF$76) -> 0 | DG9: =SUMIF(Παροχές!$T$5:$T$76,Δεδομένα2!DG$3,Παροχές!$AE$5:$AF$76) -> 0 | DH9: =SUMIF(Παροχές!$T$5:$T$76,Δεδομένα2!DH$3,Παροχές!$AE$5:$AF$76) -> 0 | DI9: =SUMIF(Παροχές!$T$5:$T$76,Δεδομένα2!DI$3,Παροχές!$AE$5:$AF$76) -> 0 | DJ9: =SUMIF(Παροχές!$T$5:$T$76,Δεδομένα2!DJ$3,Παροχές!$AE$5:$AF$76) -> 0 | DK9: =SUMIF(Παροχές!$T$5:$T$76,Δεδομένα2!DK$3,Παροχές!$AE$5:$AF$76) -> 0 | DL9: =SUMIF(Παροχές!$T$5:$T$76,Δεδομένα2!DL$3,Παροχές!$AE$5:$AF$76) -> 0 | DN9: =SUMIF(Παροχές!$T$5:$T$76,Δεδομένα2!DN$3,Παροχές!$AE$5:$AF$76) -> 0 | DO9: =SUMIF(Παροχές!$T$5:$T$76,Δεδομένα2!DO$3,Παροχές!$AE$5:$AF$76) -> 0 | DP9: =SUMIF(Παροχές!$T$5:$T$76,Δεδομένα2!DP$3,Παροχές!$AE$5:$AF$76) -> 0 | DQ9: =SUMIF(Παροχές!$T$5:$T$76,Δεδομένα2!DQ$3,Παροχές!$AE$5:$AF$76) -> 0 | DR9: =SUMIF(Παροχές!$T$5:$T$76,Δεδομένα2!DR$3,Παροχές!$AE$5:$AF$76) -> 0 | DS9: =SUMIF(Παροχές!$T$5:$T$76,Δεδομένα2!DS$3,Παροχές!$AE$5:$AF$76) -> 0 | DT9: =SUMIF(Παροχές!$T$5:$T$76,Δεδομένα2!DT$3,Παροχές!$AE$5:$AF$76) -> 0 | DU9: =SUMIF(Παροχές!$T$5:$T$76,Δεδομένα2!DU$3,Παροχές!$AE$5:$AF$76) -> 0 | DV9: =SUMIF(Παροχές!$T$5:$T$76,Δεδομένα2!DV$3,Παροχές!$AE$5:$AF$76) -> 0 | DW9: =SUMIF(Παροχές!$T$5:$T$76,Δεδομένα2!DW$3,Παροχές!$AE$5:$AF$76) -> 0 | DY9: =SUMIF(Παροχές!$T$5:$T$76,Δεδομένα2!DY$3,Παροχές!$AE$5:$AF$76) -> 0 | DZ9: =SUMIF(Παροχές!$T$5:$T$76,Δεδομένα2!DZ$3,Παροχές!$AE$5:$AF$76) -> 0 | EA9: =SUMIF(Παροχές!$T$5:$T$76,Δεδομένα2!EA$3,Παροχές!$AE$5:$AF$76) -> 0 | EB9: =SUMIF(Παροχές!$T$5:$T$76,Δεδομένα2!EB$3,Παροχές!$AE$5:$AF$76) -> 0 | EC9: =SUMIF(Παροχές!$T$5:$T$76,Δεδομένα2!EC$3,Παροχές!$AE$5:$AF$76) -> 0 | ED9: =SUMIF(Παροχές!$T$5:$T$76,Δεδομένα2!ED$3,Παροχές!$AE$5:$AF$76) -> 0 | EE9: =SUMIF(Παροχές!$T$5:$T$76,Δεδομένα2!EE$3,Παροχές!$AE$5:$AF$76) -> 0 | EF9: =SUMIF(Παροχές!$T$5:$T$76,Δεδομένα2!EF$3,Παροχές!$AE$5:$AF$76) -> 0 | EG9: =SUMIF(Παροχές!$T$5:$T$76,Δεδομένα2!EG$3,Παροχές!$AE$5:$AF$76) -> 0 | EH9: =SUMIF(Παροχές!$T$5:$T$76,Δεδομένα2!EH$3,Παροχές!$AE$5:$AF$76) -> 0
Q10: Για Λοιπές Χρεώσεις | S10: =SUMIF(Παροχές!$T$5:$T$76,Δεδομένα2!S$3,Παροχές!$AJ$5:$AJ$76) -> 0 | T10: =SUMIF(Παροχές!$T$5:$T$76,Δεδομένα2!T$3,Παροχές!$AJ$5:$AJ$76) -> 0 | U10: =SUMIF(Παροχές!$T$5:$T$76,Δεδομένα2!U$3,Παροχές!$AJ$5:$AJ$76) -> 0 | V10: =SUMIF(Παροχές!$T$5:$T$76,Δεδομένα2!V$3,Παροχές!$AJ$5:$AJ$76) -> 0 | W10: =SUMIF(Παροχές!$T$5:$T$76,Δεδομένα2!W$3,Παροχές!$AJ$5:$AJ$76) -> 0 | X10: =SUMIF(Παροχές!$T$5:$T$76,Δεδομένα2!X$3,Παροχές!$AJ$5:$AJ$76) -> 0 | Y10: =SUMIF(Παροχές!$T$5:$T$76,Δεδομένα2!Y$3,Παροχές!$AJ$5:$AJ$76) -> 0 | Z10: =SUMIF(Παροχές!$T$5:$T$76,Δεδομένα2!Z$3,Παροχές!$AJ$5:$AJ$76) -> 0 | AA10: =SUMIF(Παροχές!$T$5:$T$76,Δεδομένα2!AA$3,Παροχές!$AJ$5:$AJ$76) -> 0 | AB10: =SUMIF(Παροχές!$T$5:$T$76,Δεδομένα2!AB$3,Παροχές!$AJ$5:$AJ$76) -> 0 | AD10: =SUMIF(Παροχές!$T$5:$T$76,Δεδομένα2!AD$3,Παροχές!$AJ$5:$AJ$76) -> 0 | AE10: =SUMIF(Παροχές!$T$5:$T$76,Δεδομένα2!AE$3,Παροχές!$AJ$5:$AJ$76) -> 0 | AF10: =SUMIF(Παροχές!$T$5:$T$76,Δεδομένα2!AF$3,Παροχές!$AJ$5:$AJ$76) -> 0 | AG10: =SUMIF(Παροχές!$T$5:$T$76,Δεδομένα2!AG$3,Παροχές!$AJ$5:$AJ$76) -> 0 | AH10: =SUMIF(Παροχές!$T$5:$T$76,Δεδομένα2!AH$3,Παροχές!$AJ$5:$AJ$76) -> 0 | AI10: =SUMIF(Παροχές!$T$5:$T$76,Δεδομένα2!AI$3,Παροχές!$AJ$5:$AJ$76) -> 0 | AJ10: =SUMIF(Παροχές!$T$5:$T$76,Δεδομένα2!AJ$3,Παροχές!$AJ$5:$AJ$76) -> 0 | AK10: =SUMIF(Παροχές!$T$5:$T$76,Δεδομένα2!AK$3,Παροχές!$AJ$5:$AJ$76) -> 0 | AL10: =SUMIF(Παροχές!$T$5:$T$76,Δεδομένα2!AL$3,Παροχές!$AJ$5:$AJ$76) -> 0 | AM10: =SUMIF(Παροχές!$T$5:$T$76,Δεδομένα2!AM$3,Παροχές!$AJ$5:$AJ$76) -> 0 | AO10: =SUMIF(Παροχές!$T$5:$T$76,Δεδομένα2!AO$3,Παροχές!$AJ$5:$AJ$76) -> 0 | AP10: =SUMIF(Παροχές!$T$5:$T$76,Δεδομένα2!AP$3,Παροχές!$AJ$5:$AJ$76) -> 0 | AQ10: =SUMIF(Παροχές!$T$5:$T$76,Δεδομένα2!AQ$3,Παροχές!$AJ$5:$AJ$76) -> 0 | AR10: =SUMIF(Παροχές!$T$5:$T$76,Δεδομένα2!AR$3,Παροχές!$AJ$5:$AJ$76) -> 0 | AS10: =SUMIF(Παροχές!$T$5:$T$76,Δεδομένα2!AS$3,Παροχές!$AJ$5:$AJ$76) -> 0 | AT10: =SUMIF(Παροχές!$T$5:$T$76,Δεδομένα2!AT$3,Παροχές!$AJ$5:$AJ$76) -> 0 | AU10: =SUMIF(Παροχές!$T$5:$T$76,Δεδομένα2!AU$3,Παροχές!$AJ$5:$AJ$76) -> 0 | AV10: =SUMIF(Παροχές!$T$5:$T$76,Δεδομένα2!AV$3,Παροχές!$AJ$5:$AJ$76) -> 0 | AW10: =SUMIF(Παροχές!$T$5:$T$76,Δεδομένα2!AW$3,Παροχές!$AJ$5:$AJ$76) -> 0 | AX10: =SUMIF(Παροχές!$T$5:$T$76,Δεδομένα2!AX$3,Παροχές!$AJ$5:$AJ$76) -> 0 | AZ10: =SUMIF(Παροχές!$T$5:$T$76,Δεδομένα2!AZ$3,Παροχές!$AJ$5:$AJ$76) -> 213567.3836 | BA10: =SUMIF(Παροχές!$T$5:$T$76,Δεδομένα2!BA$3,Παροχές!$AJ$5:$AJ$76) -> 170000 | BB10: =SUMIF(Παροχές!$T$5:$T$76,Δεδομένα2!BB$3,Παροχές!$AJ$5:$AJ$76) -> 145000 | BC10: =SUMIF(Παροχές!$T$5:$T$76,Δεδομένα2!BC$3,Παροχές!$AJ$5:$AJ$76) -> 185000 | BD10: =SUMIF(Παροχές!$T$5:$T$76,Δεδομένα2!BD$3,Παροχές!$AJ$5:$AJ$76) -> 105000 | BE10: =SUMIF(Παροχές!$T$5:$T$76,Δεδομένα2!BE$3,Παροχές!$AJ$5:$AJ$76) -> 195000 | BF10: =SUMIF(Παροχές!$T$5:$T$76,Δεδομένα2!BF$3,Παροχές!$AJ$5:$AJ$76) -> 235000 | BG10: =SUMIF(Παροχές!$T$5:$T$76,Δεδομένα2!BG$3,Παροχές!$AJ$5:$AJ$76) -> 245000 | BH10: =SUMIF(Παροχές!$T$5:$T$76,Δεδομένα2!BH$3,Παροχές!$AJ$5:$AJ$76) -> 121000 | BI10: =SUMIF(Παροχές!$T$5:$T$76,Δεδομένα2!BI$3,Παροχές!$AJ$5:$AJ$76) -> 121001 | BK10: =SUMIF(Παροχές!$T$5:$T$76,Δεδομένα2!BK$3,Παροχές!$AJ$5:$AJ$76) -> 0 | BL10: =SUMIF(Παροχές!$T$5:$T$76,Δεδομένα2!BL$3,Παροχές!$AJ$5:$AJ$76) -> 0 | BM10: =SUMIF(Παροχές!$T$5:$T$76,Δεδομένα2!BM$3,Παροχές!$AJ$5:$AJ$76) -> 0 | BN10: =SUMIF(Παροχές!$T$5:$T$76,Δεδομένα2!BN$3,Παροχές!$AJ$5:$AJ$76) -> 0 | BO10: =SUMIF(Παροχές!$T$5:$T$76,Δεδομένα2!BO$3,Παροχές!$AJ$5:$AJ$76) -> 0 | BP10: =SUMIF(Παροχές!$T$5:$T$76,Δεδομένα2!BP$3,Παροχές!$AJ$5:$AJ$76) -> 0 | BQ10: =SUMIF(Παροχές!$T$5:$T$76,Δεδομένα2!BQ$3,Παροχές!$AJ$5:$AJ$76) -> 0 | BR10: =SUMIF(Παροχές!$T$5:$T$76,Δεδομένα2!BR$3,Παροχές!$AJ$5:$AJ$76) -> 0 | BS10: =SUMIF(Παροχές!$T$5:$T$76,Δεδομένα2!BS$3,Παροχές!$AJ$5:$AJ$76) -> 0 | BT10: =SUMIF(Παροχές!$T$5:$T$76,Δεδομένα2!BT$3,Παροχές!$AJ$5:$AJ$76) -> 0 | BV10: =SUMIF(Παροχές!$T$5:$T$76,Δεδομένα2!BV$3,Παροχές!$AJ$5:$AJ$76) -> 0 | BW10: =SUMIF(Παροχές!$T$5:$T$76,Δεδομένα2!BW$3,Παροχές!$AJ$5:$AJ$76) -> 0 | BX10: =SUMIF(Παροχές!$T$5:$T$76,Δεδομένα2!BX$3,Παροχές!$AJ$5:$AJ$76) -> 0 | BY10: =SUMIF(Παροχές!$T$5:$T$76,Δεδομένα2!BY$3,Παροχές!$AJ$5:$AJ$76) -> 0 | BZ10: =SUMIF(Παροχές!$T$5:$T$76,Δεδομένα2!BZ$3,Παροχές!$AJ$5:$AJ$76) -> 0 | CA10: =SUMIF(Παροχές!$T$5:$T$76,Δεδομένα2!CA$3,Παροχές!$AJ$5:$AJ$76) -> 0 | CB10: =SUMIF(Παροχές!$T$5:$T$76,Δεδομένα2!CB$3,Παροχές!$AJ$5:$AJ$76) -> 0 | CC10: =SUMIF(Παροχές!$T$5:$T$76,Δεδομένα2!CC$3,Παροχές!$AJ$5:$AJ$76) -> 0 | CD10: =SUMIF(Παροχές!$T$5:$T$76,Δεδομένα2!CD$3,Παροχές!$AJ$5:$AJ$76) -> 0 | CE10: =SUMIF(Παροχές!$T$5:$T$76,Δεδομένα2!CE$3,Παροχές!$AJ$5:$AJ$76) -> 0 | CG10: =SUMIF(Παροχές!$T$5:$T$76,Δεδομένα2!CG$3,Παροχές!$AJ$5:$AJ$76) -> 0 | CH10: =SUMIF(Παροχές!$T$5:$T$76,Δεδομένα2!CH$3,Παροχές!$AJ$5:$AJ$76) -> 0 | CI10: =SUMIF(Παροχές!$T$5:$T$76,Δεδομένα2!CI$3,Παροχές!$AJ$5:$AJ$76) -> 0 | CJ10: =SUMIF(Παροχές!$T$5:$T$76,Δεδομένα2!CJ$3,Παροχές!$AJ$5:$AJ$76) -> 0 | CK10: =SUMIF(Παροχές!$T$5:$T$76,Δεδομένα2!CK$3,Παροχές!$AJ$5:$AJ$76) -> 0 | CL10: =SUMIF(Παροχές!$T$5:$T$76,Δεδομένα2!CL$3,Παροχές!$AJ$5:$AJ$76) -> 0 | CM10: =SUMIF(Παροχές!$T$5:$T$76,Δεδομένα2!CM$3,Παροχές!$AJ$5:$AJ$76) -> 0 | CN10: =SUMIF(Παροχές!$T$5:$T$76,Δεδομένα2!CN$3,Παροχές!$AJ$5:$AJ$76) -> 0 | CO10: =SUMIF(Παροχές!$T$5:$T$76,Δεδομένα2!CO$3,Παροχές!$AJ$5:$AJ$76) -> 0 | CP10: =SUMIF(Παροχές!$T$5:$T$76,Δεδομένα2!CP$3,Παροχές!$AJ$5:$AJ$76) -> 0 | CR10: =SUMIF(Παροχές!$T$5:$T$76,Δεδομένα2!CR$3,Παροχές!$AJ$5:$AJ$76) -> 0 | CS10: =SUMIF(Παροχές!$T$5:$T$76,Δεδομένα2!CS$3,Παροχές!$AJ$5:$AJ$76) -> 0 | CT10: =SUMIF(Παροχές!$T$5:$T$76,Δεδομένα2!CT$3,Παροχές!$AJ$5:$AJ$76) -> 0 | CU10: =SUMIF(Παροχές!$T$5:$T$76,Δεδομένα2!CU$3,Παροχές!$AJ$5:$AJ$76) -> 0 | CV10: =SUMIF(Παροχές!$T$5:$T$76,Δεδομένα2!CV$3,Παροχές!$AJ$5:$AJ$76) -> 0 | CW10: =SUMIF(Παροχές!$T$5:$T$76,Δεδομένα2!CW$3,Παροχές!$AJ$5:$AJ$76) -> 0 | CX10: =SUMIF(Παροχές!$T$5:$T$76,Δεδομένα2!CX$3,Παροχές!$AJ$5:$AJ$76) -> 0 | CY10: =SUMIF(Παροχές!$T$5:$T$76,Δεδομένα2!CY$3,Παροχές!$AJ$5:$AJ$76) -> 0 | CZ10: =SUMIF(Παροχές!$T$5:$T$76,Δεδομένα2!CZ$3,Παροχές!$AJ$5:$AJ$76) -> 0 | DA10: =SUMIF(Παροχές!$T$5:$T$76,Δεδομένα2!DA$3,Παροχές!$AJ$5:$AJ$76) -> 0 | DC10: =SUMIF(Παροχές!$T$5:$T$76,Δεδομένα2!DC$3,Παροχές!$AJ$5:$AJ$76) -> 0 | DD10: =SUMIF(Παροχές!$T$5:$T$76,Δεδομένα2!DD$3,Παροχές!$AJ$5:$AJ$76) -> 0 | DE10: =SUMIF(Παροχές!$T$5:$T$76,Δεδομένα2!DE$3,Παροχές!$AJ$5:$AJ$76) -> 0 | DF10: =SUMIF(Παροχές!$T$5:$T$76,Δεδομένα2!DF$3,Παροχές!$AJ$5:$AJ$76) -> 0 | DG10: =SUMIF(Παροχές!$T$5:$T$76,Δεδομένα2!DG$3,Παροχές!$AJ$5:$AJ$76) -> 0 | DH10: =SUMIF(Παροχές!$T$5:$T$76,Δεδομένα2!DH$3,Παροχές!$AJ$5:$AJ$76) -> 0 | DI10: =SUMIF(Παροχές!$T$5:$T$76,Δεδομένα2!DI$3,Παροχές!$AJ$5:$AJ$76) -> 0 | DJ10: =SUMIF(Παροχές!$T$5:$T$76,Δεδομένα2!DJ$3,Παροχές!$AJ$5:$AJ$76) -> 0 | DK10: =SUMIF(Παροχές!$T$5:$T$76,Δεδομένα2!DK$3,Παροχές!$AJ$5:$AJ$76) -> 0 | DL10: =SUMIF(Παροχές!$T$5:$T$76,Δεδομένα2!DL$3,Παροχές!$AJ$5:$AJ$76) -> 0 | DN10: =SUMIF(Παροχές!$T$5:$T$76,Δεδομένα2!DN$3,Παροχές!$AJ$5:$AJ$76) -> 0 | DO10: =SUMIF(Παροχές!$T$5:$T$76,Δεδομένα2!DO$3,Παροχές!$AJ$5:$AJ$76) -> 0 | DP10: =SUMIF(Παροχές!$T$5:$T$76,Δεδομένα2!DP$3,Παροχές!$AJ$5:$AJ$76) -> 0 | DQ10: =SUMIF(Παροχές!$T$5:$T$76,Δεδομένα2!DQ$3,Παροχές!$AJ$5:$AJ$76) -> 0 | DR10: =SUMIF(Παροχές!$T$5:$T$76,Δεδομένα2!DR$3,Παροχές!$AJ$5:$AJ$76) -> 0 | DS10: =SUMIF(Παροχές!$T$5:$T$76,Δεδομένα2!DS$3,Παροχές!$AJ$5:$AJ$76) -> 0 | DT10: =SUMIF(Παροχές!$T$5:$T$76,Δεδομένα2!DT$3,Παροχές!$AJ$5:$AJ$76) -> 0 | DU10: =SUMIF(Παροχές!$T$5:$T$76,Δεδομένα2!DU$3,Παροχές!$AJ$5:$AJ$76) -> 0 | DV10: =SUMIF(Παροχές!$T$5:$T$76,Δεδομένα2!DV$3,Παροχές!$AJ$5:$AJ$76) -> 0 | DW10: =SUMIF(Παροχές!$T$5:$T$76,Δεδομένα2!DW$3,Παροχές!$AJ$5:$AJ$76) -> 0 | DY10: =SUMIF(Παροχές!$T$5:$T$76,Δεδομένα2!DY$3,Παροχές!$AJ$5:$AJ$76) -> 0 | DZ10: =SUMIF(Παροχές!$T$5:$T$76,Δεδομένα2!DZ$3,Παροχές!$AJ$5:$AJ$76) -> 0 | EA10: =SUMIF(Παροχές!$T$5:$T$76,Δεδομένα2!EA$3,Παροχές!$AJ$5:$AJ$76) -> 0 | EB10: =SUMIF(Παροχές!$T$5:$T$76,Δεδομένα2!EB$3,Παροχές!$AJ$5:$AJ$76) -> 0 | EC10: =SUMIF(Παροχές!$T$5:$T$76,Δεδομένα2!EC$3,Παροχές!$AJ$5:$AJ$76) -> 0 | ED10: =SUMIF(Παροχές!$T$5:$T$76,Δεδομένα2!ED$3,Παροχές!$AJ$5:$AJ$76) -> 0 | EE10: =SUMIF(Παροχές!$T$5:$T$76,Δεδομένα2!EE$3,Παροχές!$AJ$5:$AJ$76) -> 0 | EF10: =SUMIF(Παροχές!$T$5:$T$76,Δεδομένα2!EF$3,Παροχές!$AJ$5:$AJ$76) -> 0 | EG10: =SUMIF(Παροχές!$T$5:$T$76,Δεδομένα2!EG$3,Παροχές!$AJ$5:$AJ$76) -> 0 | EH10: =SUMIF(Παροχές!$T$5:$T$76,Δεδομένα2!EH$3,Παροχές!$AJ$5:$AJ$76) -> 0
B11: Ρυθμιζόμενες Χρεώσεις | Q11: ΣΙ | S11: =+S4 -> 0 | T11: 0 | U11: 0 | V11: 0 | W11: 0 | X11: 0 | Y11: 0 | Z11: 0 | AA11: 0 | AB11: 0 | AD11: =+AD4 -> 0 | AE11: 0 | AF11: 0 | AG11: 0 | AH11: 0 | AI11: 0 | AJ11: 0 | AK11: 0 | AL11: 0 | AM11: 0 | AO11: =+AO4 -> 0 | AP11: =+AP4 -> 0 | AQ11: 0 | AR11: 0 | AS11: 0 | AT11: 0 | AU11: 0 | AV11: 0 | AW11: 0 | AX11: 0 | AZ11: =+AZ4 -> 270 | BA11: 135 | BB11: 135 | BC11: 135 | BD11: 135 | BE11: 135 | BF11: 135 | BG11: 135 | BH11: 135 | BI11: 136 | BK11: =+BK4 -> 0 | BL11: 0 | BM11: 0 | BN11: 0 | BO11: 0 | BP11: 0 | BQ11: 0 | BR11: 0 | BS11: 0 | BT11: 0 | BV11: =+BV4 -> 0 | BW11: 0 | BX11: 0 | BY11: 0 | BZ11: 0 | CA11: 0 | CB11: 0 | CC11: 0 | CD11: 0 | CE11: 0 | CG11: =+CG4 -> 0 | CH11: 0 | CI11: 0 | CJ11: 0 | CK11: 0 | CL11: 0 | CM11: 0 | CN11: 0 | CO11: 0 | CP11: 0 | CR11: =+CR4 -> 0 | CS11: 0 | CT11: 0 | CU11: 0 | CV11: 0 | CW11: 0 | CX11: 0 | CY11: 0 | CZ11: 0 | DA11: 0 | DC11: =+DC4 -> 0 | DD11: 0 | DE11: 0 | DF11: 0 | DG11: 0 | DH11: 0 | DI11: 0 | DJ11: 0 | DK11: 0 | DL11: 0 | DN11: =+DN4 -> 0 | DO11: 0 | DP11: 0 | DQ11: 0 | DR11: 0 | DS11: 0 | DT11: 0 | DU11: 0 | DV11: 0 | DW11: 0 | DY11: =+DY4 -> 0 | DZ11: 0 | EA11: 0 | EB11: 0 | EC11: 0 | ED11: 0 | EE11: 0 | EF11: 0 | EG11: 0 | EH11: 0
B12: Ισχύς ΣΜ (€/kVA/έτος) | C12: =+Δεδομένα1!J41 -> 0.53 | D12: =+Δεδομένα1!J41 -> 0.53 | F12: 0 | G12: =+Δεδομένα1!J41 -> 0.53 | J12: =+Δεδομένα1!J44/1000 -> 1.329 | K12: =+J12 -> 1.329 | L12: 1.329 | M12: 1.329 | Q12: ΧΖ | S12: 0 | T12: 0 | U12: 0 | V12: 0 | W12: 0 | X12: 0 | Y12: 0 | Z12: 0 | AA12: 0 | AB12: 0 | AD12: 0 | AE12: 0 | AF12: 0 | AG12: 0 | AH12: 0 | AI12: 0 | AJ12: 0 | AK12: 0 | AL12: 0 | AM12: 0 | AO12: =+AO5 -> 0 | AP12: 0 | AQ12: 0 | AR12: 0 | AS12: 0 | AT12: 0 | AU12: 0 | AV12: 0 | AW12: 0 | AX12: 0 | AZ12: 0 | BA12: 0 | BB12: 0 | BC12: 0 | BD12: 0 | BE12: 0 | BF12: 0 | BG12: 0 | BH12: 0 | BI12: 0 | BK12: 0 | BL12: 0 | BM12: 0 | BN12: 0 | BO12: 0 | BP12: 0 | BQ12: 0 | BR12: 0 | BS12: 0 | BT12: 0 | BV12: 0 | BW12: 0 | BX12: 0 | BY12: 0 | BZ12: 0 | CA12: 0 | CB12: 0 | CC12: 0 | CD12: 0 | CE12: 0 | CG12: 0 | CH12: 0 | CI12: 0 | CJ12: 0 | CK12: 0 | CL12: 0 | CM12: 0 | CN12: 0 | CO12: 0 | CP12: 0 | CR12: =SUM('CALL-NET-MT'!$F$83:$F$94) -> 775.8333333 | CS12: 0 | CT12: 0 | CU12: 0 | CV12: 0 | CW12: 0 | CX12: 0 | CY12: 0 | CZ12: 0 | DA12: 0 | DC12: =SUM('CALL-NET-MT'!$F$83:$F$94) -> 775.8333333 | DD12: 0 | DE12: 0 | DF12: 0 | DG12: 0 | DH12: 0 | DI12: 0 | DJ12: 0 | DK12: 0 | DL12: 0 | DN12: =SUM('CALL-NET-MT'!$F$83:$F$94) -> 775.8333333 | DO12: 0 | DP12: 0 | DQ12: 0 | DR12: 0 | DS12: 0 | DT12: 0 | DU12: 0 | DV12: 0 | DW12: 0 | DY12: =SUM('CALL-NET-MT'!$F$83:$F$94) -> 775.8333333 | DZ12: 0 | EA12: 0 | EB12: 0 | EC12: 0 | ED12: 0 | EE12: 0 | EF12: 0 | EG12: 0 | EH12: 0
B13: Ενέργεια ΣΜ (€/kWh) | C13: =Δεδομένα1!L41/100 -> 0.00477 | D13: =+Δεδομένα1!L41/100 -> 0.00477 | F13: 0 | G13: =Δεδομένα1!L41/100 -> 0.00477 | J13: =+Δεδομένα1!L44 -> 0 | K13: 0 | L13: 0 | M13: 0 | Q13: Χρωστέα Ημέρας | S13: =SUMIF(Παροχές!$T$5:$T$76,Δεδομένα2!S$3,Παροχές!$AG$5:$AG$76) -> 0 | T13: =SUMIF(Παροχές!$T$5:$T$76,Δεδομένα2!T$3,Παροχές!$AG$5:$AG$76) -> 0 | U13: =SUMIF(Παροχές!$T$5:$T$76,Δεδομένα2!U$3,Παροχές!$AG$5:$AG$76) -> 0 | V13: =SUMIF(Παροχές!$T$5:$T$76,Δεδομένα2!V$3,Παροχές!$AG$5:$AG$76) -> 0 | W13: =SUMIF(Παροχές!$T$5:$T$76,Δεδομένα2!W$3,Παροχές!$AG$5:$AG$76) -> 0 | X13: =SUMIF(Παροχές!$T$5:$T$76,Δεδομένα2!X$3,Παροχές!$AG$5:$AG$76) -> 0 | Y13: =SUMIF(Παροχές!$T$5:$T$76,Δεδομένα2!Y$3,Παροχές!$AG$5:$AG$76) -> 0 | Z13: =SUMIF(Παροχές!$T$5:$T$76,Δεδομένα2!Z$3,Παροχές!$AG$5:$AG$76) -> 0 | AA13: =SUMIF(Παροχές!$T$5:$T$76,Δεδομένα2!AA$3,Παροχές!$AG$5:$AG$76) -> 0 | AB13: =SUMIF(Παροχές!$T$5:$T$76,Δεδομένα2!AB$3,Παροχές!$AG$5:$AG$76) -> 0 | AD13: =SUMIF(Παροχές!$T$5:$T$76,Δεδομένα2!AD$3,Παροχές!$AG$5:$AG$76) -> 0 | AE13: =SUMIF(Παροχές!$T$5:$T$76,Δεδομένα2!AE$3,Παροχές!$AG$5:$AG$76) -> 0 | AF13: =SUMIF(Παροχές!$T$5:$T$76,Δεδομένα2!AF$3,Παροχές!$AG$5:$AG$76) -> 0 | AG13: =SUMIF(Παροχές!$T$5:$T$76,Δεδομένα2!AG$3,Παροχές!$AG$5:$AG$76) -> 0 | AH13: =SUMIF(Παροχές!$T$5:$T$76,Δεδομένα2!AH$3,Παροχές!$AG$5:$AG$76) -> 0 | AI13: =SUMIF(Παροχές!$T$5:$T$76,Δεδομένα2!AI$3,Παροχές!$AG$5:$AG$76) -> 0 | AJ13: =SUMIF(Παροχές!$T$5:$T$76,Δεδομένα2!AJ$3,Παροχές!$AG$5:$AG$76) -> 0 | AK13: =SUMIF(Παροχές!$T$5:$T$76,Δεδομένα2!AK$3,Παροχές!$AG$5:$AG$76) -> 0 | AL13: =SUMIF(Παροχές!$T$5:$T$76,Δεδομένα2!AL$3,Παροχές!$AG$5:$AG$76) -> 0 | AM13: =SUMIF(Παροχές!$T$5:$T$76,Δεδομένα2!AM$3,Παροχές!$AG$5:$AG$76) -> 0 | AO13: =SUMIF(Παροχές!$T$5:$T$76,Δεδομένα2!AO$3,Παροχές!$AG$5:$AG$76) -> 0 | AP13: =SUMIF(Παροχές!$T$5:$T$76,Δεδομένα2!AP$3,Παροχές!$AG$5:$AG$76) -> 0 | AQ13: =SUMIF(Παροχές!$T$5:$T$76,Δεδομένα2!AQ$3,Παροχές!$AG$5:$AG$76) -> 0 | AR13: =SUMIF(Παροχές!$T$5:$T$76,Δεδομένα2!AR$3,Παροχές!$AG$5:$AG$76) -> 0 | AS13: =SUMIF(Παροχές!$T$5:$T$76,Δεδομένα2!AS$3,Παροχές!$AG$5:$AG$76) -> 0 | AT13: =SUMIF(Παροχές!$T$5:$T$76,Δεδομένα2!AT$3,Παροχές!$AG$5:$AG$76) -> 0 | AU13: =SUMIF(Παροχές!$T$5:$T$76,Δεδομένα2!AU$3,Παροχές!$AG$5:$AG$76) -> 0 | AV13: =SUMIF(Παροχές!$T$5:$T$76,Δεδομένα2!AV$3,Παροχές!$AG$5:$AG$76) -> 0 | AW13: =SUMIF(Παροχές!$T$5:$T$76,Δεδομένα2!AW$3,Παροχές!$AG$5:$AG$76) -> 0 | AX13: =SUMIF(Παροχές!$T$5:$T$76,Δεδομένα2!AX$3,Παροχές!$AG$5:$AG$76) -> 0 | AZ13: =SUMIF(Παροχές!$T$5:$T$76,Δεδομένα2!AZ$3,Παροχές!$AG$5:$AG$76) -> 0 | BA13: =SUMIF(Παροχές!$T$5:$T$76,Δεδομένα2!BA$3,Παροχές!$AG$5:$AG$76) -> 7102.054795 | BB13: =SUMIF(Παροχές!$T$5:$T$76,Δεδομένα2!BB$3,Παροχές!$AG$5:$AG$76) -> 38487.67123 | BC13: =SUMIF(Παροχές!$T$5:$T$76,Δεδομένα2!BC$3,Παροχές!$AG$5:$AG$76) -> 79528.76712 | BD13: =SUMIF(Παροχές!$T$5:$T$76,Δεδομένα2!BD$3,Παροχές!$AG$5:$AG$76) -> 69689.0411 | BE13: =SUMIF(Παροχές!$T$5:$T$76,Δεδομένα2!BE$3,Παροχές!$AG$5:$AG$76) -> 189042.4658 | BF13: =SUMIF(Παροχές!$T$5:$T$76,Δεδομένα2!BF$3,Παροχές!$AG$5:$AG$76) -> 235000 | BG13: =SUMIF(Παροχές!$T$5:$T$76,Δεδομένα2!BG$3,Παροχές!$AG$5:$AG$76) -> 245000 | BH13: =SUMIF(Παροχές!$T$5:$T$76,Δεδομένα2!BH$3,Παροχές!$AG$5:$AG$76) -> 121000 | BI13: =SUMIF(Παροχές!$T$5:$T$76,Δεδομένα2!BI$3,Παροχές!$AG$5:$AG$76) -> 121001 | BK13: =SUMIF(Παροχές!$T$5:$T$76,Δεδομένα2!BK$3,Παροχές!$AG$5:$AG$76) -> 0 | BL13: =SUMIF(Παροχές!$T$5:$T$76,Δεδομένα2!BL$3,Παροχές!$AG$5:$AG$76) -> 0 | BM13: =SUMIF(Παροχές!$T$5:$T$76,Δεδομένα2!BM$3,Παροχές!$AG$5:$AG$76) -> 0 | BN13: =SUMIF(Παροχές!$T$5:$T$76,Δεδομένα2!BN$3,Παροχές!$AG$5:$AG$76) -> 0 | BO13: =SUMIF(Παροχές!$T$5:$T$76,Δεδομένα2!BO$3,Παροχές!$AG$5:$AG$76) -> 0 | BP13: =SUMIF(Παροχές!$T$5:$T$76,Δεδομένα2!BP$3,Παροχές!$AG$5:$AG$76) -> 0 | BQ13: =SUMIF(Παροχές!$T$5:$T$76,Δεδομένα2!BQ$3,Παροχές!$AG$5:$AG$76) -> 0 | BR13: =SUMIF(Παροχές!$T$5:$T$76,Δεδομένα2!BR$3,Παροχές!$AG$5:$AG$76) -> 0 | BS13: =SUMIF(Παροχές!$T$5:$T$76,Δεδομένα2!BS$3,Παροχές!$AG$5:$AG$76) -> 0 | BT13: =SUMIF(Παροχές!$T$5:$T$76,Δεδομένα2!BT$3,Παροχές!$AG$5:$AG$76) -> 0 | BV13: =SUMIF(Παροχές!$T$5:$T$76,Δεδομένα2!BV$3,Παροχές!$AG$5:$AG$76) -> 0 | BW13: =SUMIF(Παροχές!$T$5:$T$76,Δεδομένα2!BW$3,Παροχές!$AG$5:$AG$76) -> 0 | BX13: =SUMIF(Παροχές!$T$5:$T$76,Δεδομένα2!BX$3,Παροχές!$AG$5:$AG$76) -> 0 | BY13: =SUMIF(Παροχές!$T$5:$T$76,Δεδομένα2!BY$3,Παροχές!$AG$5:$AG$76) -> 0 | BZ13: =SUMIF(Παροχές!$T$5:$T$76,Δεδομένα2!BZ$3,Παροχές!$AG$5:$AG$76) -> 0 | CA13: =SUMIF(Παροχές!$T$5:$T$76,Δεδομένα2!CA$3,Παροχές!$AG$5:$AG$76) -> 0 | CB13: =SUMIF(Παροχές!$T$5:$T$76,Δεδομένα2!CB$3,Παροχές!$AG$5:$AG$76) -> 0 | CC13: =SUMIF(Παροχές!$T$5:$T$76,Δεδομένα2!CC$3,Παροχές!$AG$5:$AG$76) -> 0 | CD13: =SUMIF(Παροχές!$T$5:$T$76,Δεδομένα2!CD$3,Παροχές!$AG$5:$AG$76) -> 0 | CE13: =SUMIF(Παροχές!$T$5:$T$76,Δεδομένα2!CE$3,Παροχές!$AG$5:$AG$76) -> 0 | CG13: =SUMIF(Παροχές!$T$5:$T$76,Δεδομένα2!CG$3,Παροχές!$AG$5:$AG$76) -> 0 | CH13: =SUMIF(Παροχές!$T$5:$T$76,Δεδομένα2!CH$3,Παροχές!$AG$5:$AG$76) -> 0 | CI13: =SUMIF(Παροχές!$T$5:$T$76,Δεδομένα2!CI$3,Παροχές!$AG$5:$AG$76) -> 0 | CJ13: =SUMIF(Παροχές!$T$5:$T$76,Δεδομένα2!CJ$3,Παροχές!$AG$5:$AG$76) -> 0 | CK13: =SUMIF(Παροχές!$T$5:$T$76,Δεδομένα2!CK$3,Παροχές!$AG$5:$AG$76) -> 0 | CL13: =SUMIF(Παροχές!$T$5:$T$76,Δεδομένα2!CL$3,Παροχές!$AG$5:$AG$76) -> 0 | CM13: =SUMIF(Παροχές!$T$5:$T$76,Δεδομένα2!CM$3,Παροχές!$AG$5:$AG$76) -> 0 | CN13: =SUMIF(Παροχές!$T$5:$T$76,Δεδομένα2!CN$3,Παροχές!$AG$5:$AG$76) -> 0 | CO13: =SUMIF(Παροχές!$T$5:$T$76,Δεδομένα2!CO$3,Παροχές!$AG$5:$AG$76) -> 0 | CP13: =SUMIF(Παροχές!$T$5:$T$76,Δεδομένα2!CP$3,Παροχές!$AG$5:$AG$76) -> 0 | CR13: =SUMIF(Παροχές!$T$5:$T$76,Δεδομένα2!CR$3,Παροχές!$AG$5:$AG$76) -> 0 | CS13: =SUMIF(Παροχές!$T$5:$T$76,Δεδομένα2!CS$3,Παροχές!$AG$5:$AG$76) -> 0 | CT13: =SUMIF(Παροχές!$T$5:$T$76,Δεδομένα2!CT$3,Παροχές!$AG$5:$AG$76) -> 0 | CU13: =SUMIF(Παροχές!$T$5:$T$76,Δεδομένα2!CU$3,Παροχές!$AG$5:$AG$76) -> 0 | CV13: =SUMIF(Παροχές!$T$5:$T$76,Δεδομένα2!CV$3,Παροχές!$AG$5:$AG$76) -> 0 | CW13: =SUMIF(Παροχές!$T$5:$T$76,Δεδομένα2!CW$3,Παροχές!$AG$5:$AG$76) -> 0 | CX13: =SUMIF(Παροχές!$T$5:$T$76,Δεδομένα2!CX$3,Παροχές!$AG$5:$AG$76) -> 0 | CY13: =SUMIF(Παροχές!$T$5:$T$76,Δεδομένα2!CY$3,Παροχές!$AG$5:$AG$76) -> 0 | CZ13: =SUMIF(Παροχές!$T$5:$T$76,Δεδομένα2!CZ$3,Παροχές!$AG$5:$AG$76) -> 0 | DA13: =SUMIF(Παροχές!$T$5:$T$76,Δεδομένα2!DA$3,Παροχές!$AG$5:$AG$76) -> 0 | DC13: =SUMIF(Παροχές!$T$5:$T$76,Δεδομένα2!DC$3,Παροχές!$AG$5:$AG$76) -> 0 | DD13: =SUMIF(Παροχές!$T$5:$T$76,Δεδομένα2!DD$3,Παροχές!$AG$5:$AG$76) -> 0 | DE13: =SUMIF(Παροχές!$T$5:$T$76,Δεδομένα2!DE$3,Παροχές!$AG$5:$AG$76) -> 0 | DF13: =SUMIF(Παροχές!$T$5:$T$76,Δεδομένα2!DF$3,Παροχές!$AG$5:$AG$76) -> 0 | DG13: =SUMIF(Παροχές!$T$5:$T$76,Δεδομένα2!DG$3,Παροχές!$AG$5:$AG$76) -> 0 | DH13: =SUMIF(Παροχές!$T$5:$T$76,Δεδομένα2!DH$3,Παροχές!$AG$5:$AG$76) -> 0 | DI13: =SUMIF(Παροχές!$T$5:$T$76,Δεδομένα2!DI$3,Παροχές!$AG$5:$AG$76) -> 0 | DJ13: =SUMIF(Παροχές!$T$5:$T$76,Δεδομένα2!DJ$3,Παροχές!$AG$5:$AG$76) -> 0 | DK13: =SUMIF(Παροχές!$T$5:$T$76,Δεδομένα2!DK$3,Παροχές!$AG$5:$AG$76) -> 0 | DL13: =SUMIF(Παροχές!$T$5:$T$76,Δεδομένα2!DL$3,Παροχές!$AG$5:$AG$76) -> 0 | DN13: =SUMIF(Παροχές!$T$5:$T$76,Δεδομένα2!DN$3,Παροχές!$AG$5:$AG$76) -> 0 | DO13: =SUMIF(Παροχές!$T$5:$T$76,Δεδομένα2!DO$3,Παροχές!$AG$5:$AG$76) -> 0 | DP13: =SUMIF(Παροχές!$T$5:$T$76,Δεδομένα2!DP$3,Παροχές!$AG$5:$AG$76) -> 0 | DQ13: =SUMIF(Παροχές!$T$5:$T$76,Δεδομένα2!DQ$3,Παροχές!$AG$5:$AG$76) -> 0 | DR13: =SUMIF(Παροχές!$T$5:$T$76,Δεδομένα2!DR$3,Παροχές!$AG$5:$AG$76) -> 0 | DS13: =SUMIF(Παροχές!$T$5:$T$76,Δεδομένα2!DS$3,Παροχές!$AG$5:$AG$76) -> 0 | DT13: =SUMIF(Παροχές!$T$5:$T$76,Δεδομένα2!DT$3,Παροχές!$AG$5:$AG$76) -> 0 | DU13: =SUMIF(Παροχές!$T$5:$T$76,Δεδομένα2!DU$3,Παροχές!$AG$5:$AG$76) -> 0 | DV13: =SUMIF(Παροχές!$T$5:$T$76,Δεδομένα2!DV$3,Παροχές!$AG$5:$AG$76) -> 0 | DW13: =SUMIF(Παροχές!$T$5:$T$76,Δεδομένα2!DW$3,Παροχές!$AG$5:$AG$76) -> 0 | DY13: =SUMIF(Παροχές!$T$5:$T$76,Δεδομένα2!DY$3,Παροχές!$AG$5:$AG$76) -> 0 | DZ13: =SUMIF(Παροχές!$T$5:$T$76,Δεδομένα2!DZ$3,Παροχές!$AG$5:$AG$76) -> 0 | EA13: =SUMIF(Παροχές!$T$5:$T$76,Δεδομένα2!EA$3,Παροχές!$AG$5:$AG$76) -> 0 | EB13: =SUMIF(Παροχές!$T$5:$T$76,Δεδομένα2!EB$3,Παροχές!$AG$5:$AG$76) -> 0 | EC13: =SUMIF(Παροχές!$T$5:$T$76,Δεδομένα2!EC$3,Παροχές!$AG$5:$AG$76) -> 0 | ED13: =SUMIF(Παροχές!$T$5:$T$76,Δεδομένα2!ED$3,Παροχές!$AG$5:$AG$76) -> 0 | EE13: =SUMIF(Παροχές!$T$5:$T$76,Δεδομένα2!EE$3,Παροχές!$AG$5:$AG$76) -> 0 | EF13: =SUMIF(Παροχές!$T$5:$T$76,Δεδομένα2!EF$3,Παροχές!$AG$5:$AG$76) -> 0 | EG13: =SUMIF(Παροχές!$T$5:$T$76,Δεδομένα2!EG$3,Παροχές!$AG$5:$AG$76) -> 0 | EH13: =SUMIF(Παροχές!$T$5:$T$76,Δεδομένα2!EH$3,Παροχές!$AG$5:$AG$76) -> 0
B14: Ισχύς ΔΔ (€/kVA/έτος) | C14: =+Δεδομένα1!J51 -> 1.47 | D14: =+Δεδομένα1!J50 -> 3.17 | E14: =+Δεδομένα1!J49 -> 3.78 | F14: 0 | G14: =+Δεδομένα1!J51 -> 1.47 | H14: =+Δεδομένα1!J50 -> 3.17 | I14: =+Δεδομένα1!J49 -> 3.78 | J14: =+Δεδομένα1!J52/1000 -> 1.179 | K14: 1.179 | L14: 1.179 | M14: 1.179 | Q14: Χρωστέα Νύχτας | S14: =SUMIF(Παροχές!$T$5:$T$76,Δεδομένα2!S$3,Παροχές!$AH$5:$AH$76) -> 0 | T14: =SUMIF(Παροχές!$T$5:$T$76,Δεδομένα2!T$3,Παροχές!$AH$5:$AH$76) -> 0 | U14: =SUMIF(Παροχές!$T$5:$T$76,Δεδομένα2!U$3,Παροχές!$AH$5:$AH$76) -> 0 | V14: =SUMIF(Παροχές!$T$5:$T$76,Δεδομένα2!V$3,Παροχές!$AH$5:$AH$76) -> 0 | W14: =SUMIF(Παροχές!$T$5:$T$76,Δεδομένα2!W$3,Παροχές!$AH$5:$AH$76) -> 0 | X14: =SUMIF(Παροχές!$T$5:$T$76,Δεδομένα2!X$3,Παροχές!$AH$5:$AH$76) -> 0 | Y14: =SUMIF(Παροχές!$T$5:$T$76,Δεδομένα2!Y$3,Παροχές!$AH$5:$AH$76) -> 0 | Z14: =SUMIF(Παροχές!$T$5:$T$76,Δεδομένα2!Z$3,Παροχές!$AH$5:$AH$76) -> 0 | AA14: =SUMIF(Παροχές!$T$5:$T$76,Δεδομένα2!AA$3,Παροχές!$AH$5:$AH$76) -> 0 | AB14: =SUMIF(Παροχές!$T$5:$T$76,Δεδομένα2!AB$3,Παροχές!$AH$5:$AH$76) -> 0 | AD14: =SUMIF(Παροχές!$T$5:$T$76,Δεδομένα2!AD$3,Παροχές!$AH$5:$AH$76) -> 0 | AE14: =SUMIF(Παροχές!$T$5:$T$76,Δεδομένα2!AE$3,Παροχές!$AH$5:$AH$76) -> 0 | AF14: =SUMIF(Παροχές!$T$5:$T$76,Δεδομένα2!AF$3,Παροχές!$AH$5:$AH$76) -> 0 | AG14: =SUMIF(Παροχές!$T$5:$T$76,Δεδομένα2!AG$3,Παροχές!$AH$5:$AH$76) -> 0 | AH14: =SUMIF(Παροχές!$T$5:$T$76,Δεδομένα2!AH$3,Παροχές!$AH$5:$AH$76) -> 0 | AI14: =SUMIF(Παροχές!$T$5:$T$76,Δεδομένα2!AI$3,Παροχές!$AH$5:$AH$76) -> 0 | AJ14: =SUMIF(Παροχές!$T$5:$T$76,Δεδομένα2!AJ$3,Παροχές!$AH$5:$AH$76) -> 0 | AK14: =SUMIF(Παροχές!$T$5:$T$76,Δεδομένα2!AK$3,Παροχές!$AH$5:$AH$76) -> 0 | AL14: =SUMIF(Παροχές!$T$5:$T$76,Δεδομένα2!AL$3,Παροχές!$AH$5:$AH$76) -> 0 | AM14: =SUMIF(Παροχές!$T$5:$T$76,Δεδομένα2!AM$3,Παροχές!$AH$5:$AH$76) -> 0 | AO14: =SUMIF(Παροχές!$T$5:$T$76,Δεδομένα2!AO$3,Παροχές!$AH$5:$AH$76) -> 0 | AP14: =SUMIF(Παροχές!$T$5:$T$76,Δεδομένα2!AP$3,Παροχές!$AH$5:$AH$76) -> 0 | AQ14: =SUMIF(Παροχές!$T$5:$T$76,Δεδομένα2!AQ$3,Παροχές!$AH$5:$AH$76) -> 0 | AR14: =SUMIF(Παροχές!$T$5:$T$76,Δεδομένα2!AR$3,Παροχές!$AH$5:$AH$76) -> 0 | AS14: =SUMIF(Παροχές!$T$5:$T$76,Δεδομένα2!AS$3,Παροχές!$AH$5:$AH$76) -> 0 | AT14: =SUMIF(Παροχές!$T$5:$T$76,Δεδομένα2!AT$3,Παροχές!$AH$5:$AH$76) -> 0 | AU14: =SUMIF(Παροχές!$T$5:$T$76,Δεδομένα2!AU$3,Παροχές!$AH$5:$AH$76) -> 0 | AV14: =SUMIF(Παροχές!$T$5:$T$76,Δεδομένα2!AV$3,Παροχές!$AH$5:$AH$76) -> 0 | AW14: =SUMIF(Παροχές!$T$5:$T$76,Δεδομένα2!AW$3,Παροχές!$AH$5:$AH$76) -> 0 | AX14: =SUMIF(Παροχές!$T$5:$T$76,Δεδομένα2!AX$3,Παροχές!$AH$5:$AH$76) -> 0 | AZ14: =SUMIF(Παροχές!$T$5:$T$76,Δεδομένα2!AZ$3,Παροχές!$AH$5:$AH$76) -> 0 | BA14: =SUMIF(Παροχές!$T$5:$T$76,Δεδομένα2!BA$3,Παροχές!$AH$5:$AH$76) -> 0 | BB14: =SUMIF(Παροχές!$T$5:$T$76,Δεδομένα2!BB$3,Παροχές!$AH$5:$AH$76) -> 0 | BC14: =SUMIF(Παροχές!$T$5:$T$76,Δεδομένα2!BC$3,Παροχές!$AH$5:$AH$76) -> 0 | BD14: =SUMIF(Παροχές!$T$5:$T$76,Δεδομένα2!BD$3,Παροχές!$AH$5:$AH$76) -> 0 | BE14: =SUMIF(Παροχές!$T$5:$T$76,Δεδομένα2!BE$3,Παροχές!$AH$5:$AH$76) -> 0 | BF14: =SUMIF(Παροχές!$T$5:$T$76,Δεδομένα2!BF$3,Παροχές!$AH$5:$AH$76) -> 0 | BG14: =SUMIF(Παροχές!$T$5:$T$76,Δεδομένα2!BG$3,Παροχές!$AH$5:$AH$76) -> 0 | BH14: =SUMIF(Παροχές!$T$5:$T$76,Δεδομένα2!BH$3,Παροχές!$AH$5:$AH$76) -> 0 | BI14: =SUMIF(Παροχές!$T$5:$T$76,Δεδομένα2!BI$3,Παροχές!$AH$5:$AH$76) -> 0 | BK14: =SUMIF(Παροχές!$T$5:$T$76,Δεδομένα2!BK$3,Παροχές!$AH$5:$AH$76) -> 0 | BL14: =SUMIF(Παροχές!$T$5:$T$76,Δεδομένα2!BL$3,Παροχές!$AH$5:$AH$76) -> 0 | BM14: =SUMIF(Παροχές!$T$5:$T$76,Δεδομένα2!BM$3,Παροχές!$AH$5:$AH$76) -> 0 | BN14: =SUMIF(Παροχές!$T$5:$T$76,Δεδομένα2!BN$3,Παροχές!$AH$5:$AH$76) -> 0 | BO14: =SUMIF(Παροχές!$T$5:$T$76,Δεδομένα2!BO$3,Παροχές!$AH$5:$AH$76) -> 0 | BP14: =SUMIF(Παροχές!$T$5:$T$76,Δεδομένα2!BP$3,Παροχές!$AH$5:$AH$76) -> 0 | BQ14: =SUMIF(Παροχές!$T$5:$T$76,Δεδομένα2!BQ$3,Παροχές!$AH$5:$AH$76) -> 0 | BR14: =SUMIF(Παροχές!$T$5:$T$76,Δεδομένα2!BR$3,Παροχές!$AH$5:$AH$76) -> 0 | BS14: =SUMIF(Παροχές!$T$5:$T$76,Δεδομένα2!BS$3,Παροχές!$AH$5:$AH$76) -> 0 | BT14: =SUMIF(Παροχές!$T$5:$T$76,Δεδομένα2!BT$3,Παροχές!$AH$5:$AH$76) -> 0 | BV14: =SUMIF(Παροχές!$T$5:$T$76,Δεδομένα2!BV$3,Παροχές!$AH$5:$AH$76) -> 0 | BW14: =SUMIF(Παροχές!$T$5:$T$76,Δεδομένα2!BW$3,Παροχές!$AH$5:$AH$76) -> 0 | BX14: =SUMIF(Παροχές!$T$5:$T$76,Δεδομένα2!BX$3,Παροχές!$AH$5:$AH$76) -> 0 | BY14: =SUMIF(Παροχές!$T$5:$T$76,Δεδομένα2!BY$3,Παροχές!$AH$5:$AH$76) -> 0 | BZ14: =SUMIF(Παροχές!$T$5:$T$76,Δεδομένα2!BZ$3,Παροχές!$AH$5:$AH$76) -> 0 | CA14: =SUMIF(Παροχές!$T$5:$T$76,Δεδομένα2!CA$3,Παροχές!$AH$5:$AH$76) -> 0 | CB14: =SUMIF(Παροχές!$T$5:$T$76,Δεδομένα2!CB$3,Παροχές!$AH$5:$AH$76) -> 0 | CC14: =SUMIF(Παροχές!$T$5:$T$76,Δεδομένα2!CC$3,Παροχές!$AH$5:$AH$76) -> 0 | CD14: =SUMIF(Παροχές!$T$5:$T$76,Δεδομένα2!CD$3,Παροχές!$AH$5:$AH$76) -> 0 | CE14: =SUMIF(Παροχές!$T$5:$T$76,Δεδομένα2!CE$3,Παροχές!$AH$5:$AH$76) -> 0 | CG14: =SUMIF(Παροχές!$T$5:$T$76,Δεδομένα2!CG$3,Παροχές!$AH$5:$AH$76) -> 0 | CH14: =SUMIF(Παροχές!$T$5:$T$76,Δεδομένα2!CH$3,Παροχές!$AH$5:$AH$76) -> 0 | CI14: =SUMIF(Παροχές!$T$5:$T$76,Δεδομένα2!CI$3,Παροχές!$AH$5:$AH$76) -> 0 | CJ14: =SUMIF(Παροχές!$T$5:$T$76,Δεδομένα2!CJ$3,Παροχές!$AH$5:$AH$76) -> 0 | CK14: =SUMIF(Παροχές!$T$5:$T$76,Δεδομένα2!CK$3,Παροχές!$AH$5:$AH$76) -> 0 | CL14: =SUMIF(Παροχές!$T$5:$T$76,Δεδομένα2!CL$3,Παροχές!$AH$5:$AH$76) -> 0 | CM14: =SUMIF(Παροχές!$T$5:$T$76,Δεδομένα2!CM$3,Παροχές!$AH$5:$AH$76) -> 0 | CN14: =SUMIF(Παροχές!$T$5:$T$76,Δεδομένα2!CN$3,Παροχές!$AH$5:$AH$76) -> 0 | CO14: =SUMIF(Παροχές!$T$5:$T$76,Δεδομένα2!CO$3,Παροχές!$AH$5:$AH$76) -> 0 | CP14: =SUMIF(Παροχές!$T$5:$T$76,Δεδομένα2!CP$3,Παροχές!$AH$5:$AH$76) -> 0 | CR14: =SUMIF(Παροχές!$T$5:$T$76,Δεδομένα2!CR$3,Παροχές!$AH$5:$AH$76) -> 0 | CS14: =SUMIF(Παροχές!$T$5:$T$76,Δεδομένα2!CS$3,Παροχές!$AH$5:$AH$76) -> 0 | CT14: =SUMIF(Παροχές!$T$5:$T$76,Δεδομένα2!CT$3,Παροχές!$AH$5:$AH$76) -> 0 | CU14: =SUMIF(Παροχές!$T$5:$T$76,Δεδομένα2!CU$3,Παροχές!$AH$5:$AH$76) -> 0 | CV14: =SUMIF(Παροχές!$T$5:$T$76,Δεδομένα2!CV$3,Παροχές!$AH$5:$AH$76) -> 0 | CW14: =SUMIF(Παροχές!$T$5:$T$76,Δεδομένα2!CW$3,Παροχές!$AH$5:$AH$76) -> 0 | CX14: =SUMIF(Παροχές!$T$5:$T$76,Δεδομένα2!CX$3,Παροχές!$AH$5:$AH$76) -> 0 | CY14: =SUMIF(Παροχές!$T$5:$T$76,Δεδομένα2!CY$3,Παροχές!$AH$5:$AH$76) -> 0 | CZ14: =SUMIF(Παροχές!$T$5:$T$76,Δεδομένα2!CZ$3,Παροχές!$AH$5:$AH$76) -> 0 | DA14: =SUMIF(Παροχές!$T$5:$T$76,Δεδομένα2!DA$3,Παροχές!$AH$5:$AH$76) -> 0 | DC14: =SUMIF(Παροχές!$T$5:$T$76,Δεδομένα2!DC$3,Παροχές!$AH$5:$AH$76) -> 0 | DD14: =SUMIF(Παροχές!$T$5:$T$76,Δεδομένα2!DD$3,Παροχές!$AH$5:$AH$76) -> 0 | DE14: =SUMIF(Παροχές!$T$5:$T$76,Δεδομένα2!DE$3,Παροχές!$AH$5:$AH$76) -> 0 | DF14: =SUMIF(Παροχές!$T$5:$T$76,Δεδομένα2!DF$3,Παροχές!$AH$5:$AH$76) -> 0 | DG14: =SUMIF(Παροχές!$T$5:$T$76,Δεδομένα2!DG$3,Παροχές!$AH$5:$AH$76) -> 0 | DH14: =SUMIF(Παροχές!$T$5:$T$76,Δεδομένα2!DH$3,Παροχές!$AH$5:$AH$76) -> 0 | DI14: =SUMIF(Παροχές!$T$5:$T$76,Δεδομένα2!DI$3,Παροχές!$AH$5:$AH$76) -> 0 | DJ14: =SUMIF(Παροχές!$T$5:$T$76,Δεδομένα2!DJ$3,Παροχές!$AH$5:$AH$76) -> 0 | DK14: =SUMIF(Παροχές!$T$5:$T$76,Δεδομένα2!DK$3,Παροχές!$AH$5:$AH$76) -> 0 | DL14: =SUMIF(Παροχές!$T$5:$T$76,Δεδομένα2!DL$3,Παροχές!$AH$5:$AH$76) -> 0 | DN14: =SUMIF(Παροχές!$T$5:$T$76,Δεδομένα2!DN$3,Παροχές!$AH$5:$AH$76) -> 0 | DO14: =SUMIF(Παροχές!$T$5:$T$76,Δεδομένα2!DO$3,Παροχές!$AH$5:$AH$76) -> 0 | DP14: =SUMIF(Παροχές!$T$5:$T$76,Δεδομένα2!DP$3,Παροχές!$AH$5:$AH$76) -> 0 | DQ14: =SUMIF(Παροχές!$T$5:$T$76,Δεδομένα2!DQ$3,Παροχές!$AH$5:$AH$76) -> 0 | DR14: =SUMIF(Παροχές!$T$5:$T$76,Δεδομένα2!DR$3,Παροχές!$AH$5:$AH$76) -> 0 | DS14: =SUMIF(Παροχές!$T$5:$T$76,Δεδομένα2!DS$3,Παροχές!$AH$5:$AH$76) -> 0 | DT14: =SUMIF(Παροχές!$T$5:$T$76,Δεδομένα2!DT$3,Παροχές!$AH$5:$AH$76) -> 0 | DU14: =SUMIF(Παροχές!$T$5:$T$76,Δεδομένα2!DU$3,Παροχές!$AH$5:$AH$76) -> 0 | DV14: =SUMIF(Παροχές!$T$5:$T$76,Δεδομένα2!DV$3,Παροχές!$AH$5:$AH$76) -> 0 | DW14: =SUMIF(Παροχές!$T$5:$T$76,Δεδομένα2!DW$3,Παροχές!$AH$5:$AH$76) -> 0 | DY14: =SUMIF(Παροχές!$T$5:$T$76,Δεδομένα2!DY$3,Παροχές!$AH$5:$AH$76) -> 0 | DZ14: =SUMIF(Παροχές!$T$5:$T$76,Δεδομένα2!DZ$3,Παροχές!$AH$5:$AH$76) -> 0 | EA14: =SUMIF(Παροχές!$T$5:$T$76,Δεδομένα2!EA$3,Παροχές!$AH$5:$AH$76) -> 0 | EB14: =SUMIF(Παροχές!$T$5:$T$76,Δεδομένα2!EB$3,Παροχές!$AH$5:$AH$76) -> 0 | EC14: =SUMIF(Παροχές!$T$5:$T$76,Δεδομένα2!EC$3,Παροχές!$AH$5:$AH$76) -> 0 | ED14: =SUMIF(Παροχές!$T$5:$T$76,Δεδομένα2!ED$3,Παροχές!$AH$5:$AH$76) -> 0 | EE14: =SUMIF(Παροχές!$T$5:$T$76,Δεδομένα2!EE$3,Παροχές!$AH$5:$AH$76) -> 0 | EF14: =SUMIF(Παροχές!$T$5:$T$76,Δεδομένα2!EF$3,Παροχές!$AH$5:$AH$76) -> 0 | EG14: =SUMIF(Παροχές!$T$5:$T$76,Δεδομένα2!EG$3,Παροχές!$AH$5:$AH$76) -> 0 | EH14: =SUMIF(Παροχές!$T$5:$T$76,Δεδομένα2!EH$3,Παροχές!$AH$5:$AH$76) -> 0
B15: Ενέργεια ΔΔ (€/kWh) | C15: =+Δεδομένα1!L51/100 -> 0.019 | D15: =+Δεδομένα1!L50/100 -> 0.019 | E15: =+Δεδομένα1!L49/100 -> 0.0167 | F15: 0 | G15: =+Δεδομένα1!L51/100 -> 0.019 | H15: =+Δεδομένα1!L50/100 -> 0.019 | I15: =+Δεδομένα1!L49/100 -> 0.0167 | J15: =+Δεδομένα1!L52/100 -> 0.0029 | K15: 0.0029 | L15: =+K15 -> 0.0029 | M15: 0.0029 | Q15: Χωρίς ΝΕΤ
B16: ΕΤΜΕΑΡ (€/kWh) | C16: =+Δεδομένα1!J33/1000 -> 0.02608 | D16: =+Δεδομένα1!J33/1000 -> 0.02608 | F16: =+Δεδομένα1!J35/1000 -> 0.00939 | G16: =+Δεδομένα1!J33/1000 -> 0.02608 | J16: =+Δεδομένα1!J36/1000 -> 0.00878 | K16: 0.00878 | L16: 0.00878 | M16: 0.00878 | Q16: Προμήθεια | S16: =(S8*$C$7+$C$9*365/30)*(1-Δεδομένα1!$K$10) -> 6.448333333 | T16: =(T8*$C$7+$C$9*365/30)*(1-Δεδομένα1!$K$10) -> 6.448333333 | U16: =(U8*$C$7+$C$9*365/30)*(1-Δεδομένα1!$K$10) -> 6.448333333 | V16: =(V8*$C$7+$C$9*365/30)*(1-Δεδομένα1!$K$10) -> 6.448333333 | W16: =(W8*$C$7+$C$9*365/30)*(1-Δεδομένα1!$K$10) -> 6.448333333 | X16: =(X8*$C$7+$C$9*365/30)*(1-Δεδομένα1!$K$10) -> 6.448333333 | Y16: =(Y8*$C$7+$C$9*365/30)*(1-Δεδομένα1!$K$10) -> 6.448333333 | Z16: =(Z8*$C$7+$C$9*365/30)*(1-Δεδομένα1!$K$10) -> 6.448333333 | AA16: =(AA8*$C$7+$C$9*365/30)*(1-Δεδομένα1!$K$10) -> 6.448333333 | AB16: =(AB8*$C$7+$C$9*365/30)*(1-Δεδομένα1!$K$10) -> 6.448333333 | AD16: =($D$9*365/30+$D$6*AD5+$D$7*AD8)*(1-Δεδομένα1!$K$10) -> 6.448333333 | AE16: =($D$9*365/30+$D$6*AE5+$D$7*AE8)*(1-Δεδομένα1!$K$10) -> 6.448333333 | AF16: =($D$9*365/30+$D$6*AF5+$D$7*AF8)*(1-Δεδομένα1!$K$10) -> 6.448333333 | AG16: =($D$9*365/30+$D$6*AG5+$D$7*AG8)*(1-Δεδομένα1!$K$10) -> 6.448333333 | AH16: =($D$9*365/30+$D$6*AH5+$D$7*AH8)*(1-Δεδομένα1!$K$10) -> 6.448333333 | AI16: =($D$9*365/30+$D$6*AI5+$D$7*AI8)*(1-Δεδομένα1!$K$10) -> 6.448333333 | AJ16: =($D$9*365/30+$D$6*AJ5+$D$7*AJ8)*(1-Δεδομένα1!$K$10) -> 6.448333333 | AK16: =($D$9*365/30+$D$6*AK5+$D$7*AK8)*(1-Δεδομένα1!$K$10) -> 6.448333333 | AL16: =($D$9*365/30+$D$6*AL5+$D$7*AL8)*(1-Δεδομένα1!$K$10) -> 6.448333333 | AM16: =($D$9*365/30+$D$6*AM5+$D$7*AM8)*(1-Δεδομένα1!$K$10) -> 6.448333333 | AO16: =($D$9*365/30+$D$6*AO5+$D$7*AO8)*(1-Δεδομένα1!$K$10) -> 6.448333333 | AP16: =($D$9*365/30+$D$6*AP5+$D$7*AP8)*(1-Δεδομένα1!$K$10) -> 6.448333333 | AQ16: =($D$9*365/30+$D$6*AQ5+$D$7*AQ8)*(1-Δεδομένα1!$K$10) -> 6.448333333 | AR16: =($D$9*365/30+$D$6*AR5+$D$7*AR8)*(1-Δεδομένα1!$K$10) -> 6.448333333 | AS16: =($D$9*365/30+$D$6*AS5+$D$7*AS8)*(1-Δεδομένα1!$K$10) -> 6.448333333 | AT16: =($D$9*365/30+$D$6*AT5+$D$7*AT8)*(1-Δεδομένα1!$K$10) -> 6.448333333 | AU16: =($D$9*365/30+$D$6*AU5+$D$7*AU8)*(1-Δεδομένα1!$K$10) -> 6.448333333 | AV16: =($D$9*365/30+$D$6*AV5+$D$7*AV8)*(1-Δεδομένα1!$K$10) -> 6.448333333 | AW16: =($D$9*365/30+$D$6*AW5+$D$7*AW8)*(1-Δεδομένα1!$K$10) -> 6.448333333 | AX16: =($D$9*365/30+$D$6*AX5+$D$7*AX8)*(1-Δεδομένα1!$K$10) -> 6.448333333 | AZ16: =(AZ8*$F$7+$F$9*365/30)*(1-Δεδομένα1!$K$10) -> 25590.32833 | BA16: =(BA8*$F$7+$F$9*365/30)*(1-Δεδομένα1!$K$10) -> 10906.84833 | BB16: =(BB8*$F$7+$F$9*365/30)*(1-Δεδομένα1!$K$10) -> 9303.848333 | BC16: =(BC8*$F$7+$F$9*365/30)*(1-Δεδομένα1!$K$10) -> 11868.64833 | BD16: =(BD8*$F$7+$F$9*365/30)*(1-Δεδομένα1!$K$10) -> 6739.048333 | BE16: =(BE8*$F$7+$F$9*365/30)*(1-Δεδομένα1!$K$10) -> 12509.84833 | BF16: =(BF8*$F$7+$F$9*365/30)*(1-Δεδομένα1!$K$10) -> 15074.64833 | BG16: =(BG8*$F$7+$F$9*365/30)*(1-Δεδομένα1!$K$10) -> 15715.84833 | BH16: =(BH8*$F$7+$F$9*365/30)*(1-Δεδομένα1!$K$10) -> 7764.968333 | BI16: =(BI8*$F$7+$F$9*365/30)*(1-Δεδομένα1!$K$10) -> 7765.032453 | BK16: =(BK8*$G$7+$G$9*365/30)*(1-Δεδομένα1!$K$10) -> 6.448333333 | BL16: =(BL8*$G$7+$G$9*365/30)*(1-Δεδομένα1!$K$10) -> 6.448333333 | BM16: =(BM8*$G$7+$G$9*365/30)*(1-Δεδομένα1!$K$10) -> 6.448333333 | BN16: =(BN8*$G$7+$G$9*365/30)*(1-Δεδομένα1!$K$10) -> 6.448333333 | BO16: =(BO8*$G$7+$G$9*365/30)*(1-Δεδομένα1!$K$10) -> 6.448333333 | BP16: =(BP8*$G$7+$G$9*365/30)*(1-Δεδομένα1!$K$10) -> 6.448333333 | BQ16: =(BQ8*$G$7+$G$9*365/30)*(1-Δεδομένα1!$K$10) -> 6.448333333 | BR16: =(BR8*$G$7+$G$9*365/30)*(1-Δεδομένα1!$K$10) -> 6.448333333 | BS16: =(BS8*$G$7+$G$9*365/30)*(1-Δεδομένα1!$K$10) -> 6.448333333 | BT16: =(BT8*$G$7+$G$9*365/30)*(1-Δεδομένα1!$K$10) -> 6.448333333 | BV16: =(BV8*$G$7+$G$9*365/30)*(1-Δεδομένα1!$K$10) -> 6.448333333 | BW16: =(BW8*$G$7+$G$9*365/30)*(1-Δεδομένα1!$K$10) -> 6.448333333 | BX16: =(BX8*$G$7+$G$9*365/30)*(1-Δεδομένα1!$K$10) -> 6.448333333 | BY16: =(BY8*$G$7+$G$9*365/30)*(1-Δεδομένα1!$K$10) -> 6.448333333 | BZ16: =(BZ8*$G$7+$G$9*365/30)*(1-Δεδομένα1!$K$10) -> 6.448333333 | CA16: =(CA8*$G$7+$G$9*365/30)*(1-Δεδομένα1!$K$10) -> 6.448333333 | CB16: =(CB8*$G$7+$G$9*365/30)*(1-Δεδομένα1!$K$10) -> 6.448333333 | CC16: =(CC8*$G$7+$G$9*365/30)*(1-Δεδομένα1!$K$10) -> 6.448333333 | CD16: =(CD8*$G$7+$G$9*365/30)*(1-Δεδομένα1!$K$10) -> 6.448333333 | CE16: =(CE8*$G$7+$G$9*365/30)*(1-Δεδομένα1!$K$10) -> 6.448333333 | CG16: =(CG8*$G$7+$G$9*365/30)*(1-Δεδομένα1!$K$10) -> 6.448333333 | CH16: =(CH8*$G$7+$G$9*365/30)*(1-Δεδομένα1!$K$10) -> 6.448333333 | CI16: =(CI8*$G$7+$G$9*365/30)*(1-Δεδομένα1!$K$10) -> 6.448333333 | CJ16: =(CJ8*$G$7+$G$9*365/30)*(1-Δεδομένα1!$K$10) -> 6.448333333 | CK16: =(CK8*$G$7+$G$9*365/30)*(1-Δεδομένα1!$K$10) -> 6.448333333 | CL16: =(CL8*$G$7+$G$9*365/30)*(1-Δεδομένα1!$K$10) -> 6.448333333 | CM16: =(CM8*$G$7+$G$9*365/30)*(1-Δεδομένα1!$K$10) -> 6.448333333 | CN16: =(CN8*$G$7+$G$9*365/30)*(1-Δεδομένα1!$K$10) -> 6.448333333 | CO16: =(CO8*$G$7+$G$9*365/30)*(1-Δεδομένα1!$K$10) -> 6.448333333 | CP16: =(CP8*$G$7+$G$9*365/30)*(1-Δεδομένα1!$K$10) -> 6.448333333 | CR16: =($J$6*CR5+$J$7*CR8+$J$8*CR9)*(1-Δεδομένα1!$K$10) -> 0 | CS16: =($J$6*CS5+$J$7*CS8+$J$8*CS9)*(1-Δεδομένα1!$K$10) -> 0 | CT16: =($J$6*CT5+$J$7*CT8+$J$8*CT9)*(1-Δεδομένα1!$K$10) -> 0 | CU16: =($J$6*CU5+$J$7*CU8+$J$8*CU9)*(1-Δεδομένα1!$K$10) -> 0 | CV16: =($J$6*CV5+$J$7*CV8+$J$8*CV9)*(1-Δεδομένα1!$K$10) -> 0 | CW16: =($J$6*CW5+$J$7*CW8+$J$8*CW9)*(1-Δεδομένα1!$K$10) -> 0 | CX16: =($J$6*CX5+$J$7*CX8+$J$8*CX9)*(1-Δεδομένα1!$K$10) -> 0 | CY16: =($J$6*CY5+$J$7*CY8+$J$8*CY9)*(1-Δεδομένα1!$K$10) -> 0 | CZ16: =($J$6*CZ5+$J$7*CZ8+$J$8*CZ9)*(1-Δεδομένα1!$K$10) -> 0 | DA16: =($J$6*DA5+$J$7*DA8+$J$8*DA9)*(1-Δεδομένα1!$K$10) -> 0 | DC16: =($K$6*DC5+$K$7*DC8+$K$8*DC9)*(1-Δεδομένα1!$K$10) -> 0 | DD16: =($K$6*DD5+$K$7*DD8+$K$8*DD9)*(1-Δεδομένα1!$K$10) -> 0 | DE16: =($K$6*DE5+$K$7*DE8+$K$8*DE9)*(1-Δεδομένα1!$K$10) -> 0 | DF16: =($K$6*DF5+$K$7*DF8+$K$8*DF9)*(1-Δεδομένα1!$K$10) -> 0 | DG16: =($K$6*DG5+$K$7*DG8+$K$8*DG9)*(1-Δεδομένα1!$K$10) -> 0 | DH16: =($K$6*DH5+$K$7*DH8+$K$8*DH9)*(1-Δεδομένα1!$K$10) -> 0 | DI16: =($K$6*DI5+$K$7*DI8+$K$8*DI9)*(1-Δεδομένα1!$K$10) -> 0 | DJ16: =($K$6*DJ5+$K$7*DJ8+$K$8*DJ9)*(1-Δεδομένα1!$K$10) -> 0 | DK16: =($K$6*DK5+$K$7*DK8+$K$8*DK9)*(1-Δεδομένα1!$K$10) -> 0 | DL16: =($K$6*DL5+$K$7*DL8+$K$8*DL9)*(1-Δεδομένα1!$K$10) -> 0 | DN16: =($L$6*DN5+$L$7*DN8+$L$8*DN9)*(1-Δεδομένα1!$K$10) -> 0 | DO16: =($L$6*DO5+$L$7*DO8+$L$8*DO9)*(1-Δεδομένα1!$K$10) -> 0 | DP16: =($L$6*DP5+$L$7*DP8+$L$8*DP9)*(1-Δεδομένα1!$K$10) -> 0 | DQ16: =($L$6*DQ5+$L$7*DQ8+$L$8*DQ9)*(1-Δεδομένα1!$K$10) -> 0 | DR16: =($L$6*DR5+$L$7*DR8+$L$8*DR9)*(1-Δεδομένα1!$K$10) -> 0 | DS16: =($L$6*DS5+$L$7*DS8+$L$8*DS9)*(1-Δεδομένα1!$K$10) -> 0 | DT16: =($L$6*DT5+$L$7*DT8+$L$8*DT9)*(1-Δεδομένα1!$K$10) -> 0 | DU16: =($L$6*DU5+$L$7*DU8+$L$8*DU9)*(1-Δεδομένα1!$K$10) -> 0 | DV16: =($L$6*DV5+$L$7*DV8+$L$8*DV9)*(1-Δεδομένα1!$K$10) -> 0 | DW16: =($L$6*DW5+$L$7*DW8+$L$8*DW9)*(1-Δεδομένα1!$K$10) -> 0 | DY16: =($M$6*DY5+$M$7*DY8+$M$8*DY9)*(1-Δεδομένα1!$K$10) -> 0 | DZ16: =($L$6*DZ5+$L$7*DZ8+$L$8*DZ9)*(1-Δεδομένα1!$K$10) -> 0 | EA16: =($L$6*EA5+$L$7*EA8+$L$8*EA9)*(1-Δεδομένα1!$K$10) -> 0 | EB16: =($L$6*EB5+$L$7*EB8+$L$8*EB9)*(1-Δεδομένα1!$K$10) -> 0 | EC16: =($L$6*EC5+$L$7*EC8+$L$8*EC9)*(1-Δεδομένα1!$K$10) -> 0 | ED16: =($L$6*ED5+$L$7*ED8+$L$8*ED9)*(1-Δεδομένα1!$K$10) -> 0 | EE16: =($L$6*EE5+$L$7*EE8+$L$8*EE9)*(1-Δεδομένα1!$K$10) -> 0 | EF16: =($L$6*EF5+$L$7*EF8+$L$8*EF9)*(1-Δεδομένα1!$K$10) -> 0 | EG16: =($L$6*EG5+$L$7*EG8+$L$8*EG9)*(1-Δεδομένα1!$K$10) -> 0 | EH16: =($L$6*EH5+$L$7*EH8+$L$8*EH9)*(1-Δεδομένα1!$K$10) -> 0
B17: ΥΚΩ (€/kWh) | C17: =+Δεδομένα1!L21/1000 -> 0.01824 | D17: =+Δεδομένα1!L21/1000 -> 0.01824 | F17: =+Δεδομένα1!L24/1000 -> 0.00707 | G17: =+Δεδομένα1!L23/1000 -> 0.01371 | J17: =+Δεδομένα1!L26/1000 -> 0.0179 | K17: =+J17 -> 0.0179 | L17: 0.0179 | M17: 0.0179 | Q17: CO2 | CR17: =((CR8+CR9)*CR7)*(1-Δεδομένα1!$K$10) -> 0 | CS17: =((CS8+CS9)*CS7)*(1-Δεδομένα1!$K$10) -> 0 | CT17: =((CT8+CT9)*CT7)*(1-Δεδομένα1!$K$10) -> 0 | CU17: =((CU8+CU9)*CU7)*(1-Δεδομένα1!$K$10) -> 0 | CV17: =((CV8+CV9)*CV7)*(1-Δεδομένα1!$K$10) -> 0 | CW17: =((CW8+CW9)*CW7)*(1-Δεδομένα1!$K$10) -> 0 | CX17: =((CX8+CX9)*CX7)*(1-Δεδομένα1!$K$10) -> 0 | CY17: =((CY8+CY9)*CY7)*(1-Δεδομένα1!$K$10) -> 0 | CZ17: =((CZ8+CZ9)*CZ7)*(1-Δεδομένα1!$K$10) -> 0 | DA17: =((DA8+DA9)*DA7)*(1-Δεδομένα1!$K$10) -> 0 | DC17: =((DC8+DC9)*DC7)*(1-Δεδομένα1!$K$10) -> 0 | DD17: =((DD8+DD9)*DD7)*(1-Δεδομένα1!$K$10) -> 0 | DE17: =((DE8+DE9)*DE7)*(1-Δεδομένα1!$K$10) -> 0 | DF17: =((DF8+DF9)*DF7)*(1-Δεδομένα1!$K$10) -> 0 | DG17: =((DG8+DG9)*DG7)*(1-Δεδομένα1!$K$10) -> 0 | DH17: =((DH8+DH9)*DH7)*(1-Δεδομένα1!$K$10) -> 0 | DI17: =((DI8+DI9)*DI7)*(1-Δεδομένα1!$K$10) -> 0 | DJ17: =((DJ8+DJ9)*DJ7)*(1-Δεδομένα1!$K$10) -> 0 | DK17: =((DK8+DK9)*DK7)*(1-Δεδομένα1!$K$10) -> 0 | DL17: =((DL8+DL9)*DL7)*(1-Δεδομένα1!$K$10) -> 0 | DN17: =((DN8+DN9)*DN7)*(1-Δεδομένα1!$K$10) -> 0 | DO17: =((DO8+DO9)*DO7)*(1-Δεδομένα1!$K$10) -> 0 | DP17: =((DP8+DP9)*DP7)*(1-Δεδομένα1!$K$10) -> 0 | DQ17: =((DQ8+DQ9)*DQ7)*(1-Δεδομένα1!$K$10) -> 0 | DR17: =((DR8+DR9)*DR7)*(1-Δεδομένα1!$K$10) -> 0 | DS17: =((DS8+DS9)*DS7)*(1-Δεδομένα1!$K$10) -> 0 | DT17: =((DT8+DT9)*DT7)*(1-Δεδομένα1!$K$10) -> 0 | DU17: =((DU8+DU9)*DU7)*(1-Δεδομένα1!$K$10) -> 0 | DV17: =((DV8+DV9)*DV7)*(1-Δεδομένα1!$K$10) -> 0 | DW17: =((DW8+DW9)*DW7)*(1-Δεδομένα1!$K$10) -> 0 | DY17: =((DY8+DY9)*DY7)*(1-Δεδομένα1!$K$10) -> 0 | DZ17: =((DZ8+DZ9)*DZ7)*(1-Δεδομένα1!$K$10) -> 0 | EA17: =((EA8+EA9)*EA7)*(1-Δεδομένα1!$K$10) -> 0 | EB17: =((EB8+EB9)*EB7)*(1-Δεδομένα1!$K$10) -> 0 | EC17: =((EC8+EC9)*EC7)*(1-Δεδομένα1!$K$10) -> 0 | ED17: =((ED8+ED9)*ED7)*(1-Δεδομένα1!$K$10) -> 0 | EE17: =((EE8+EE9)*EE7)*(1-Δεδομένα1!$K$10) -> 0 | EF17: =((EF8+EF9)*EF7)*(1-Δεδομένα1!$K$10) -> 0 | EG17: =((EG8+EG9)*EG7)*(1-Δεδομένα1!$K$10) -> 0 | EH17: =((EH8+EH9)*EH7)*(1-Δεδομένα1!$K$10) -> 0
B18: Λοιπές Χρεώσεις (€/kWh) | C18: =+Δεδομένα1!K57/100 -> 7e-05 | D18: =+Δεδομένα1!K57/100 -> 7e-05 | F18: =+Δεδομένα1!K57/100 -> 7e-05 | G18: =+Δεδομένα1!K57/100 -> 7e-05 | J18: =+Δεδομένα1!K57/100 -> 7e-05 | K18: 7e-05 | L18: 7e-05 | M18: 7e-05 | Q18: Ρυθμιζόμενες | S18: =+(($C$12+$C$14)*S$4)+($C$13+$C$15+$C$16+$C$17+$C$18)*S8 -> 0 | T18: =+(($C$12+$C$14)*T$4)+($C$13+$C$15+$C$16+$C$17+$C$18)*T8 -> 0 | U18: 0 | V18: 0 | W18: 0 | X18: 0 | Y18: 0 | Z18: 0 | AA18: 0 | AB18: 0 | AD18: =(($D$12+$D$14)*AD$4)+(($D$13+$D$15+$D$16+$D$17+$D$18)*AD8) -> 0 | AE18: =(($D$12+$D$14)*AE$4)+(($D$13+$D$15+$D$16+$D$17+$D$18)*AE8) -> 0 | AF18: 0 | AG18: 0 | AH18: 0 | AI18: 0 | AJ18: 0 | AK18: 0 | AL18: 0 | AM18: 0 | AO18: =(($D$12+$E$14)*AO$4)+(($D$13+$E$15+$D$16+$D$17+$D$18)*AO8) -> 0 | AP18: =(($D$12+$E$14)*AP$4)+(($D$13+$E$15+$D$16+$D$17+$D$18)*AP8) -> 0 | AQ18: 0 | AR18: 0 | AS18: 0 | AT18: 0 | AU18: 0 | AV18: 0 | AW18: 0 | AX18: 0 | AZ18: =+(($F$12+$F$14)*AZ$4)+($F$13+$F$15+$F$16+$F$17+$F$18)*AZ8 -> 6595.47 | BA18: =+(($F$12+$F$14)*BA$4)+($F$13+$F$15+$F$16+$F$17+$F$18)*BA8 -> 2810.1 | BB18: 2396.85 | BC18: 3058.05 | BD18: 1735.65 | BE18: 3223.35 | BF18: 3884.55 | BG18: 4049.85 | BH18: 2000.13 | BI18: 2000.14653 | BK18: =+(($G$12+$G$14)*BK$4)+($G$13+$G$15+$G$16+$G$17+$G$18)*BK8 -> 0 | BL18: =+(($G$12+$G$14)*BL$4)+($G$13+$G$15+$G$16+$G$17+$G$18)*BL8 -> 0 | BM18: 0 | BN18: 0 | BO18: 0 | BP18: 0 | BQ18: 0 | BR18: 0 | BS18: 0 | BT18: 0 | BV18: =+(($G$12+$H$14)*BV$4)+($G$13+$H$15+$G$16+$G$17+$G$18)*BV8 -> 0 | BW18: =+(($G$12+$H$14)*BW$4)+($G$13+$H$15+$G$16+$G$17+$G$18)*BW8 -> 0 | BX18: 0 | BY18: 0 | BZ18: 0 | CA18: 0 | CB18: 0 | CC18: 0 | CD18: 0 | CE18: 0 | CG18: =+(($G$12+$I$14)*CG$4)+($G$13+$I$15+$G$16+$G$17+$G$18)*CG8 -> 0 | CH18: =+(($G$12+$I$14)*CH$4)+($G$13+$I$15+$G$16+$G$17+$G$18)*CH8 -> 0 | CI18: 0 | CJ18: 0 | CK18: 0 | CL18: 0 | CM18: 0 | CN18: 0 | CO18: 0 | CP18: 0 | CR18: =(($J$12+$J$14)*CR5)+(CR6+$J$16+$J$17+$J$18)*(CR8+CR9) -> 0 | CS18: =(($J$12+$J$14)*CS5)+(CS6+$J$16+$J$17+$J$18)*(CS8+CS9) -> 0 | CT18: 0 | CU18: 0 | CV18: 0 | CW18: 0 | CX18: 0 | CY18: 0 | CZ18: 0 | DA18: 0 | DC18: =(($K$12+$K$14)*DC5)+(DC6+$K$16+$K$17+$K$18)*(DC8+DC9) -> 0 | DD18: =(($K$12+$K$14)*DD5)+(DD6+$K$16+$K$17+$K$18)*(DD8+DD9) -> 0 | DE18: 0 | DF18: 0 | DG18: 0 | DH18: 0 | DI18: 0 | DJ18: 0 | DK18: 0 | DL18: 0 | DN18: =(($L$12+$L$14)*DN5)+(DN6+$L$16+$L$17+$L$18)*(DN8+DN9) -> 0 | DO18: =(($L$12+$L$14)*DO5)+(DO6+$L$16+$L$17+$L$18)*(DO8+DO9) -> 0 | DP18: 0 | DQ18: 0 | DR18: 0 | DS18: 0 | DT18: 0 | DU18: 0 | DV18: 0 | DW18: 0 | DY18: =(($M$12+$M$14)*DY5)+(DY6+$M$16+$M$17+$M$18)*(DY8+DY9) -> 0 | DZ18: =(($L$12+$L$14)*DZ5)+(DZ6+$L$16+$L$17+$L$18)*(DZ8+DZ9) -> 0 | EA18: 0 | EB18: 0 | EC18: 0 | ED18: 0 | EE18: 0 | EF18: 0 | EG18: 0 | EH18: 0
Q19: ΕΦΚ | S19: =+$C$21*S8 -> 0 | T19: =+$C$21*T8 -> 0 | U19: 0 | V19: 0 | W19: 0 | X19: 0 | Y19: 0 | Z19: 0 | AA19: 0 | AB19: 0 | AD19: =+$D$21*AD8 -> 0 | AE19: =+$D$21*AE8 -> 0 | AF19: 0 | AG19: 0 | AH19: 0 | AI19: 0 | AJ19: 0 | AK19: 0 | AL19: 0 | AM19: 0 | AO19: =+$D$21*AO8 -> 0 | AP19: =+$D$21*AP8 -> 0 | AQ19: 0 | AR19: 0 | AS19: 0 | AT19: 0 | AU19: 0 | AV19: 0 | AW19: 0 | AX19: 0 | AZ19: =+$F$21*AZ8 -> 1995 | BA19: =+$F$21*BA8 -> 850 | BB19: 725 | BC19: 925 | BD19: 525 | BE19: 975 | BF19: 1175 | BG19: 1225 | BH19: 605 | BI19: 605.005 | BK19: =+$G$21*BK8 -> 0 | BL19: =+$G$21*BL8 -> 0 | BM19: 0 | BN19: 0 | BO19: 0 | BP19: 0 | BQ19: 0 | BR19: 0 | BS19: 0 | BT19: 0 | BV19: =+$G$21*BV8 -> 0 | BW19: =+$G$21*BW8 -> 0 | BX19: 0 | BY19: 0 | BZ19: 0 | CA19: 0 | CB19: 0 | CC19: 0 | CD19: 0 | CE19: 0 | CG19: =+$G$21*CG8 -> 0 | CH19: =+$G$21*CH8 -> 0 | CI19: 0 | CJ19: 0 | CK19: 0 | CL19: 0 | CM19: 0 | CN19: 0 | CO19: 0 | CP19: 0 | CR19: =$J$21*(CR8+CR9) -> 0 | CS19: =$J$21*(CS8+CS9) -> 0 | CT19: 0 | CU19: 0 | CV19: 0 | CW19: 0 | CX19: 0 | CY19: 0 | CZ19: 0 | DA19: 0 | DC19: =$K$21*(DC8+DC9) -> 0 | DD19: =$K$21*(DD8+DD9) -> 0 | DE19: 0 | DF19: 0 | DG19: 0 | DH19: 0 | DI19: 0 | DJ19: 0 | DK19: 0 | DL19: 0 | DN19: =$L$21*(DN8+DN9) -> 0 | DO19: =$L$21*(DO8+DO9) -> 0 | DP19: 0 | DQ19: 0 | DR19: 0 | DS19: 0 | DT19: 0 | DU19: 0 | DV19: 0 | DW19: 0 | DY19: =$M$21*(DY8+DY9) -> 0 | DZ19: =$L$21*(DZ8+DZ9) -> 0 | EA19: 0 | EB19: 0 | EC19: 0 | ED19: 0 | EE19: 0 | EF19: 0 | EG19: 0 | EH19: 0
B20: Λοιπές Χρεώσεις | Q20: Ειδικ. Τέλος | S20: =$C$22*(SUM(S16:S19)-$C$16*S8) -> 0.03224166667 | T20: =$C$22*(SUM(T16:T19)-$C$16*T8) -> 0.03224166667 | U20: 0.03224166667 | V20: 0.03224166667 | W20: 0.03224166667 | X20: 0.03224166667 | Y20: 0.03224166667 | Z20: 0.03224166667 | AA20: 0.03224166667 | AB20: 0.03224166667 | AD20: =$D$22*(SUM(AD16:AD19)-$D$16*AD8) -> 0.03224166667 | AE20: =$D$22*(SUM(AE16:AE19)-$D$16*AE8) -> 0.03224166667 | AF20: 0.03224166667 | AG20: 0.03224166667 | AH20: 0.03224166667 | AI20: 0.03224166667 | AJ20: 0.03224166667 | AK20: 0.03224166667 | AL20: 0.03224166667 | AM20: 0.03224166667 | AO20: 0.03224166667 | AP20: 0.03224166667 | AQ20: 0.03224166667 | AR20: 0.03224166667 | AS20: 0.03224166667 | AT20: 0.03224166667 | AU20: 0.03224166667 | AV20: 0.03224166667 | AW20: 0.03224166667 | AX20: 0.03224166667 | AZ20: =$F$22*(SUM(AZ16:AZ19)-$C$16*AZ8) -> 118.8743917 | BA20: =$F$22*(SUM(BA16:BA19)-$C$16*BA8) -> 50.66674167 | BB20: 43.22049167 | BC20: 55.13449167 | BD20: 31.30649167 | BE20: 58.11299167 | BF20: 70.02699167 | BG20: 73.00549167 | BH20: 36.07209167 | BI20: 36.07238952 | BK20: =$G$22*(SUM(BK16:BK19)-$G$16*BK8) -> 0.03224166667 | BL20: =$G$22*(SUM(BL16:BL19)-$G$16*BL8) -> 0.03224166667 | BM20: 0.03224166667 | BN20: 0.03224166667 | BO20: 0.03224166667 | BP20: 0.03224166667 | BQ20: 0.03224166667 | BR20: 0.03224166667 | BS20: 0.03224166667 | BT20: 0.03224166667 | BV20: =$G$22*(SUM(BV16:BV19)-$G$16*BV8) -> 0.03224166667 | BW20: =$G$22*(SUM(BW16:BW19)-$G$16*BW8) -> 0.03224166667 | BX20: 0.03224166667 | BY20: 0.03224166667 | BZ20: 0.03224166667 | CA20: 0.03224166667 | CB20: 0.03224166667 | CC20: 0.03224166667 | CD20: 0.03224166667 | CE20: 0.03224166667 | CG20: =$G$22*(SUM(CG16:CG19)-$G$16*CG8) -> 0.03224166667 | CH20: =$G$22*(SUM(CH16:CH19)-$G$16*CH8) -> 0.03224166667 | CI20: 0.03224166667 | CJ20: 0.03224166667 | CK20: 0.03224166667 | CL20: 0.03224166667 | CM20: 0.03224166667 | CN20: 0.03224166667 | CO20: 0.03224166667 | CP20: 0.03224166667 | CR20: =$J$22*(SUM(CR16:CR19)-$J$16*(CR8+CR9)) -> 0 | CS20: =$J$22*(SUM(CS16:CS19)-$J$16*(CS8+CS9)) -> 0 | CT20: 0 | CU20: 0 | CV20: 0 | CW20: 0 | CX20: 0 | CY20: 0 | CZ20: 0 | DA20: 0 | DC20: =$K$22*(SUM(DC16:DC19)-$K$16*(DC8+DC9)) -> 0 | DD20: =$K$22*(SUM(DD16:DD19)-$K$16*(DD8+DD9)) -> 0 | DE20: 0 | DF20: 0 | DG20: 0 | DH20: 0 | DI20: 0 | DJ20: 0 | DK20: 0 | DL20: 0 | DN20: =$L$22*(SUM(DN16:DN19)-$L$16*(DN8+DN9)) -> 0 | DO20: =$L$22*(SUM(DO16:DO19)-$L$16*(DO8+DO9)) -> 0 | DP20: 0 | DQ20: 0 | DR20: 0 | DS20: 0 | DT20: 0 | DU20: 0 | DV20: 0 | DW20: 0 | DY20: =$M$22*(SUM(DY16:DY19)-$M$16*(DY8+DY9)) -> 0 | DZ20: =$L$22*(SUM(DZ16:DZ19)-$L$16*(DZ8+DZ9)) -> 0 | EA20: 0 | EB20: 0 | EC20: 0 | ED20: 0 | EE20: 0 | EF20: 0 | EG20: 0 | EH20: 0
B21: ΕΦΚ (€/kWh) | C21: =+Δεδομένα1!K58 -> 0.005 | D21: =+C21 -> 0.005 | F21: =+D21 -> 0.005 | G21: =+C21 -> 0.005 | J21: =+C21 -> 0.005 | K21: =+J21 -> 0.005 | L21: 0.005 | M21: 0.005 | Q21: ΦΠΑ | S21: =SUM(S16:S19)*$C$23 -> 0.8382833333 | T21: =SUM(T16:T19)*$C$23 -> 0.8382833333 | U21: 0.8382833333 | V21: 0.8382833333 | W21: 0.8382833333 | X21: 0.8382833333 | Y21: 0.8382833333 | Z21: 0.8382833333 | AA21: 0.8382833333 | AB21: 0.8382833333 | AD21: =SUM(AD16:AD19)*$D$23 -> 0.8382833333 | AE21: =SUM(AE16:AE19)*$D$23 -> 0.8382833333 | AF21: 0.8382833333 | AG21: 0.8382833333 | AH21: 0.8382833333 | AI21: 0.8382833333 | AJ21: 0.8382833333 | AK21: 0.8382833333 | AL21: 0.8382833333 | AM21: 0.8382833333 | AO21: =SUM(AO16:AO19)*$D$23 -> 0.8382833333 | AP21: =SUM(AP16:AP19)*$D$23 -> 0.8382833333 | AQ21: 0.8382833333 | AR21: 0.8382833333 | AS21: 0.8382833333 | AT21: 0.8382833333 | AU21: 0.8382833333 | AV21: 0.8382833333 | AW21: 0.8382833333 | AX21: 0.8382833333 | AZ21: =SUM(AZ16:AZ19)*$F$23 -> 4443.503783 | BA21: =SUM(BA16:BA19)*$F$23 -> 1893.703283 | BB21: 1615.340783 | BC21: 2060.720783 | BD21: 1169.960783 | BE21: 2172.065783 | BF21: 2617.445783 | BG21: 2728.790783 | BH21: 1348.112783 | BI21: 1348.123918 | BK21: =SUM(BK16:BK19)*$G$23 -> 0.8382833333 | BL21: =SUM(BL16:BL19)*$G$23 -> 0.8382833333 | BM21: 0.8382833333 | BN21: 0.8382833333 | BO21: 0.8382833333 | BP21: 0.8382833333 | BQ21: 0.8382833333 | BR21: 0.8382833333 | BS21: 0.8382833333 | BT21: 0.8382833333 | BV21: =SUM(BV16:BV19)*$G$23 -> 0.8382833333 | BW21: =SUM(BW16:BW19)*$G$23 -> 0.8382833333 | BX21: 0.8382833333 | BY21: 0.8382833333 | BZ21: 0.8382833333 | CA21: 0.8382833333 | CB21: 0.8382833333 | CC21: 0.8382833333 | CD21: 0.8382833333 | CE21: 0.8382833333 | CG21: =SUM(CG16:CG19)*$G$23 -> 0.8382833333 | CH21: =SUM(CH16:CH19)*$G$23 -> 0.8382833333 | CI21: 0.8382833333 | CJ21: 0.8382833333 | CK21: 0.8382833333 | CL21: 0.8382833333 | CM21: 0.8382833333 | CN21: 0.8382833333 | CO21: 0.8382833333 | CP21: 0.8382833333 | CR21: =SUM(CR16:CR19)*$J$23 -> 0 | CS21: =SUM(CS16:CS19)*$J$23 -> 0 | CT21: 0 | CU21: 0 | CV21: 0 | CW21: 0 | CX21: 0 | CY21: 0 | CZ21: 0 | DA21: 0 | DC21: =SUM(DC16:DC19)*$K$23 -> 0 | DD21: =SUM(DD16:DD19)*$K$23 -> 0 | DE21: 0 | DF21: 0 | DG21: 0 | DH21: 0 | DI21: 0 | DJ21: 0 | DK21: 0 | DL21: 0 | DN21: =SUM(DN16:DN19)*$K$23 -> 0 | DO21: =SUM(DO16:DO19)*$K$23 -> 0 | DP21: 0 | DQ21: 0 | DR21: 0 | DS21: 0 | DT21: 0 | DU21: 0 | DV21: 0 | DW21: 0 | DY21: =SUM(DY16:DY19)*$K$23 -> 0 | DZ21: =SUM(DZ16:DZ19)*$K$23 -> 0 | EA21: 0 | EB21: 0 | EC21: 0 | ED21: 0 | EE21: 0 | EF21: 0 | EG21: 0 | EH21: 0
B22: Ειδικό Τέλος 5‰ | C22: =+Δεδομένα1!K59 -> 0.005 | D22: =+C22 -> 0.005 | F22: =+D22 -> 0.005 | G22: =+C22 -> 0.005 | J22: =+C22 -> 0.005 | K22: 0.005 | L22: 0.005 | M22: 0.005 | Q22: Τελικό Κόστος | S22: =SUM(S16:S21) -> 7.318858333 | T22: =SUM(T16:T21) -> 7.318858333 | U22: 7.318858333 | V22: 7.318858333 | W22: 7.318858333 | X22: 7.318858333 | Y22: 7.318858333 | Z22: 7.318858333 | AA22: 7.318858333 | AB22: 7.318858333 | AD22: =SUM(AD16:AD21) -> 7.318858333 | AE22: =SUM(AE16:AE21) -> 7.318858333 | AF22: 7.318858333 | AG22: 7.318858333 | AH22: 7.318858333 | AI22: 7.318858333 | AJ22: 7.318858333 | AK22: 7.318858333 | AL22: 7.318858333 | AM22: 7.318858333 | AO22: 7.318858333 | AP22: 7.318858333 | AQ22: 7.318858333 | AR22: 7.318858333 | AS22: 7.318858333 | AT22: 7.318858333 | AU22: 7.318858333 | AV22: 7.318858333 | AW22: 7.318858333 | AX22: 7.318858333 | AZ22: =SUM(AZ16:AZ21) -> 38743.17651 | BA22: =SUM(BA16:BA21) -> 16511.31836 | BB22: 14084.25961 | BC22: 17967.55361 | BD22: 10200.96561 | BE22: 18938.37711 | BF22: 22821.67111 | BG22: 23792.49461 | BH22: 11754.28321 | BI22: 11754.38029 | BK22: =SUM(BK16:BK21) -> 7.318858333 | BL22: =SUM(BL16:BL21) -> 7.318858333 | BM22: 7.318858333 | BN22: 7.318858333 | BO22: 7.318858333 | BP22: 7.318858333 | BQ22: 7.318858333 | BR22: 7.318858333 | BS22: 7.318858333 | BT22: 7.318858333 | BV22: =SUM(BV16:BV21) -> 7.318858333 | BW22: =SUM(BW16:BW21) -> 7.318858333 | BX22: 7.318858333 | BY22: 7.318858333 | BZ22: 7.318858333 | CA22: 7.318858333 | CB22: 7.318858333 | CC22: 7.318858333 | CD22: 7.318858333 | CE22: 7.318858333 | CG22: =SUM(CG16:CG21) -> 7.318858333 | CH22: =SUM(CH16:CH21) -> 7.318858333 | CI22: 7.318858333 | CJ22: 7.318858333 | CK22: 7.318858333 | CL22: 7.318858333 | CM22: 7.318858333 | CN22: 7.318858333 | CO22: 7.318858333 | CP22: 7.318858333 | CR22: =SUM(CR16:CR21) -> 0 | CS22: =SUM(CS16:CS21) -> 0 | CT22: 0 | CU22: 0 | CV22: 0 | CW22: 0 | CX22: 0 | CY22: 0 | CZ22: 0 | DA22: 0 | DC22: =SUM(DC16:DC21) -> 0 | DD22: =SUM(DD16:DD21) -> 0 | DE22: 0 | DF22: 0 | DG22: 0 | DH22: 0 | DI22: 0 | DJ22: 0 | DK22: 0 | DL22: 0 | DN22: =SUM(DN16:DN21) -> 0 | DO22: =SUM(DO16:DO21) -> 0 | DP22: 0 | DQ22: 0 | DR22: 0 | DS22: 0 | DT22: 0 | DU22: 0 | DV22: 0 | DW22: 0 | DY22: =SUM(DY16:DY21) -> 0 | DZ22: 0 | EA22: 0 | EB22: 0 | EC22: 0 | ED22: 0 | EE22: 0 | EF22: 0 | EG22: 0 | EH22: 0
B23: ΦΠΑ | C23: =+Δεδομένα1!$K$3 -> 0.13 | D23: =+C23 -> 0.13 | F23: =+D23 -> 0.13 | G23: =+C23 -> 0.13 | J23: =+C23 -> 0.13 | K23: 0.13 | L23: 0.13 | M23: 0.13
Q24: ΜΕ ΝΕΤ
Q25: Προμήθεια | S25: =S13*$C$7+$C$9*365/30 -> 6.448333333 | T25: =T13*$C$7+$C$9*365/30 -> 6.448333333 | U25: 6.448333333 | V25: 6.448333333 | W25: 6.448333333 | X25: 6.448333333 | Y25: 6.448333333 | Z25: 6.448333333 | AA25: 6.448333333 | AB25: 6.448333333 | AD25: =$D$9*365/30+$D$6*AD5+$D$7*AD13 -> 6.448333333 | AE25: =$D$9*365/30+$D$6*AE5+$D$7*AE13 -> 6.448333333 | AF25: 6.448333333 | AG25: 6.448333333 | AH25: 6.448333333 | AI25: 6.448333333 | AJ25: 6.448333333 | AK25: 6.448333333 | AL25: 6.448333333 | AM25: 6.448333333 | AO25: =$D$9*365/30+$D$6*AO5+$D$7*AO13 -> 6.448333333 | AP25: 6.448333333 | AQ25: 6.448333333 | AR25: 6.448333333 | AS25: 6.448333333 | AT25: 6.448333333 | AU25: 6.448333333 | AV25: 6.448333333 | AW25: 6.448333333 | AX25: 6.448333333 | AZ25: =AZ13*$F$7+$F$9*365/30 -> 6.448333333 | BA25: =BA13*$F$7+$F$9*365/30 -> 461.8320868 | BB25: 2474.277813 | BC25: 5105.832881 | BD25: 4474.909648 | BE25: 12127.85124 | BF25: 15074.64833 | BG25: 15715.84833 | BH25: 7764.968333 | BI25: 7765.032453 | BK25: =BK13*$G$7+$G$9*365/30 -> 6.448333333 | BL25: =BL13*$G$7+$G$9*365/30 -> 6.448333333 | BM25: 6.448333333 | BN25: 6.448333333 | BO25: 6.448333333 | BP25: 6.448333333 | BQ25: 6.448333333 | BR25: 6.448333333 | BS25: 6.448333333 | BT25: 6.448333333 | BV25: =BV13*$G$7+$G$9*365/30 -> 6.448333333 | BW25: =BW13*$G$7+$G$9*365/30 -> 6.448333333 | BX25: 6.448333333 | BY25: 6.448333333 | BZ25: 6.448333333 | CA25: 6.448333333 | CB25: 6.448333333 | CC25: 6.448333333 | CD25: 6.448333333 | CE25: 6.448333333 | CG25: =CG13*$G$7+$G$9*365/30 -> 6.448333333 | CH25: =CH13*$G$7+$G$9*365/30 -> 6.448333333 | CI25: 6.448333333 | CJ25: 6.448333333 | CK25: 6.448333333 | CL25: 6.448333333 | CM25: 6.448333333 | CN25: 6.448333333 | CO25: 6.448333333 | CP25: 6.448333333 | CR25: =$J$6*CR12+$J$7*CR13+$J$8*CR14 -> 4655 | CS25: 0 | CT25: 0 | CU25: 0 | CV25: 0 | CW25: 0 | CX25: 0 | CY25: 0 | CZ25: 0 | DA25: 0 | DC25: =$J$6*DC12+$J$7*DC13+$J$8*DC14 -> 4655 | DD25: 0 | DE25: 0 | DF25: 0 | DG25: 0 | DH25: 0 | DI25: 0 | DJ25: 0 | DK25: 0 | DL25: 0 | DN25: =$J$6*DN12+$J$7*DN13+$J$8*DN14 -> 4655 | DO25: 0 | DP25: 0 | DQ25: 0 | DR25: 0 | DS25: 0 | DT25: 0 | DU25: 0 | DV25: 0 | DW25: 0 | DY25: =$J$6*DY12+$J$7*DY13+$J$8*DY14 -> 4655 | DZ25: 0 | EA25: 0 | EB25: 0 | EC25: 0 | ED25: 0 | EE25: 0 | EF25: 0 | EG25: 0 | EH25: 0
Q26: CO2 | CR26: =+(CR13+CR14)*CR7 -> 0 | CS26: =+(CS13+CS14)*CS7 -> 0 | CT26: 0 | CU26: 0 | CV26: 0 | CW26: 0 | CX26: 0 | CY26: 0 | CZ26: 0 | DA26: 0 | DC26: =+(DC13+DC14)*DC7 -> 0 | DD26: =+(DD13+DD14)*DD7 -> 0 | DE26: 0 | DF26: 0 | DG26: 0 | DH26: 0 | DI26: 0 | DJ26: 0 | DK26: 0 | DL26: 0 | DN26: =+(DN13+DN14)*DN7 -> 0 | DO26: =+(DO13+DO14)*DO7 -> 0 | DP26: 0 | DQ26: 0 | DR26: 0 | DS26: 0 | DT26: 0 | DU26: 0 | DV26: 0 | DW26: 0 | DY26: =+(DY13+DY14)*DY7 -> 0 | DZ26: =+(DZ13+DZ14)*DZ7 -> 0 | EA26: 0 | EB26: 0 | EC26: 0 | ED26: 0 | EE26: 0 | EF26: 0 | EG26: 0 | EH26: 0
Q27: Ρυθμιζόμενες (μόνο ΥΚΩ) | S27: =+$C$17*S8 -> 0 | T27: =+$C$17*T8 -> 0 | U27: 0 | V27: 0 | W27: 0 | X27: 0 | Y27: 0 | Z27: 0 | AA27: 0 | AB27: 0 | AD27: =+$D$17*AD8 -> 0 | AE27: =+$D$17*AE8 -> 0 | AF27: 0 | AG27: 0 | AH27: 0 | AI27: 0 | AJ27: 0 | AK27: 0 | AL27: 0 | AM27: 0 | AO27: =+$D$17*AO8 -> 0 | AP27: 0 | AQ27: 0 | AR27: 0 | AS27: 0 | AT27: 0 | AU27: 0 | AV27: 0 | AW27: 0 | AX27: 0 | AZ27: =+$F$17*AZ8 -> 2820.93 | BA27: =+$F$17*BA8 -> 1201.9 | BB27: 1025.15 | BC27: 1307.95 | BD27: 742.35 | BE27: 1378.65 | BF27: 1661.45 | BG27: 1732.15 | BH27: 855.47 | BI27: 855.47707 | BK27: =+$G$17*BK8 -> 0 | BL27: =+$G$17*BL8 -> 0 | BM27: 0 | BN27: 0 | BO27: 0 | BP27: 0 | BQ27: 0 | BR27: 0 | BS27: 0 | BT27: 0 | BV27: =+$G$17*BV8 -> 0 | BW27: =+$G$17*BW8 -> 0 | BX27: 0 | BY27: 0 | BZ27: 0 | CA27: 0 | CB27: 0 | CC27: 0 | CD27: 0 | CE27: 0 | CG27: =+$G$17*CG8 -> 0 | CH27: =+$G$17*CH8 -> 0 | CI27: 0 | CJ27: 0 | CK27: 0 | CL27: 0 | CM27: 0 | CN27: 0 | CO27: 0 | CP27: 0 | CR27: =+$J$17*(CR13+CR14) -> 0 | CS27: =+$J$17*(CS13+CS14) -> 0 | CT27: 0 | CU27: 0 | CV27: 0 | CW27: 0 | CX27: 0 | CY27: 0 | CZ27: 0 | DA27: 0 | DC27: =+$K$17*(DC13+DC14) -> 0 | DD27: =+$K$17*(DD13+DD14) -> 0 | DE27: 0 | DF27: 0 | DG27: 0 | DH27: 0 | DI27: 0 | DJ27: 0 | DK27: 0 | DL27: 0 | DN27: =+$L$17*(DN13+DN14) -> 0 | DO27: =+$L$17*(DO13+DO14) -> 0 | DP27: 0 | DQ27: 0 | DR27: 0 | DS27: 0 | DT27: 0 | DU27: 0 | DV27: 0 | DW27: 0 | DY27: =+$M$17*(DY13+DY14) -> 0 | DZ27: =+$L$17*(DZ13+DZ14) -> 0 | EA27: 0 | EB27: 0 | EC27: 0 | ED27: 0 | EE27: 0 | EF27: 0 | EG27: 0 | EH27: 0
Q28: Ρυθμιζόμενες (όλες οι άλλες ΥΚΩ) | S28: =+(($C$12+$C$14)*S$4)+($C$13+$C$15+$C$16+$C$18)*S10 -> 0 | T28: =+(($C$12+$C$14)*T$4)+($C$13+$C$15+$C$16+$C$18)*T10 -> 0 | U28: 0 | V28: 0 | W28: 0 | X28: 0 | Y28: 0 | Z28: 0 | AA28: 0 | AB28: 0 | AD28: =(($D$12+$D$14)*AD$4)+(($D$13+$D$15+$D$16+$D$18)*AD10) -> 0 | AE28: =(($D$12+$D$14)*AE$4)+(($D$13+$D$15+$D$16+$D$18)*AE10) -> 0 | AF28: 0 | AG28: 0 | AH28: 0 | AI28: 0 | AJ28: 0 | AK28: 0 | AL28: 0 | AM28: 0 | AO28: =(($D$12+$E$14)*AO$4)+(($D$13+$E$15+$D$16+$D$18)*AO10) -> 0 | AP28: =(($D$12+$E$14)*AP$4)+(($D$13+$E$15+$D$16+$D$18)*AP13) -> 0 | AQ28: 0 | AR28: 0 | AS28: 0 | AT28: 0 | AU28: 0 | AV28: 0 | AW28: 0 | AX28: 0 | AZ28: =+(($F$12+$F$14)*AZ$4)+($F$13+$F$15+$F$16+$F$18)*AZ10 -> 2020.347449 | BA28: =+(($F$12+$F$14)*BA$4)+($F$13+$F$15+$F$16+$F$18)*BA10 -> 1608.2 | BB28: 1371.7 | BC28: 1750.1 | BD28: 993.3 | BE28: 1844.7 | BF28: 2223.1 | BG28: 2317.7 | BH28: 1144.66 | BI28: 1144.66946 | BK28: =+(($G$12+$G$14)*BK$4)+($G$13+$G$15+$G$16+$G$18)*BK10 -> 0 | BL28: =+(($G$12+$G$14)*BL$4)+($G$13+$G$15+$G$16+$G$18)*BL10 -> 0 | BM28: 0 | BN28: 0 | BO28: 0 | BP28: 0 | BQ28: 0 | BR28: 0 | BS28: 0 | BT28: 0 | BV28: =+(($G$12+$H$14)*BV$4)+($G$13+$H$15+$G$16+$G$18)*BV10 -> 0 | BW28: =+(($G$12+$H$14)*BW$4)+($G$13+$H$15+$G$16+$G$18)*BW10 -> 0 | BX28: 0 | BY28: 0 | BZ28: 0 | CA28: 0 | CB28: 0 | CC28: 0 | CD28: 0 | CE28: 0 | CG28: =+(($G$12+$I$14)*CG$4)+($G$13+$I$15+$G$16+$G$18)*CG10 -> 0 | CH28: =+(($G$12+$I$14)*CH$4)+($G$13+$I$15+$G$16+$G$18)*CH10 -> 0 | CI28: 0 | CJ28: 0 | CK28: 0 | CL28: 0 | CM28: 0 | CN28: 0 | CO28: 0 | CP28: 0 | CR28: =(($J$12+$J$14)*CR5)+(CR6+$J$16+$J$18)*CR10 -> 0 | CS28: =(($J$12+$J$14)*CS5)+(CS6+$J$16+$J$18)*CS10 -> 0 | CT28: 0 | CU28: 0 | CV28: 0 | CW28: 0 | CX28: 0 | CY28: 0 | CZ28: 0 | DA28: 0 | DC28: =(($K$12+$K$14)*DC5)+(DC6+$K$16+$K$18)*DC10 -> 0 | DD28: =(($K$12+$K$14)*DD5)+(DD6+$K$16+$K$18)*DD10 -> 0 | DE28: 0 | DF28: 0 | DG28: 0 | DH28: 0 | DI28: 0 | DJ28: 0 | DK28: 0 | DL28: 0 | DN28: =(($L$12+$L$14)*DN5)+(DN6+$L$16+$L$18)*DN10 -> 0 | DO28: =(($L$12+$L$14)*DO5)+(DO6+$L$16+$L$18)*DO10 -> 0 | DP28: 0 | DQ28: 0 | DR28: 0 | DS28: 0 | DT28: 0 | DU28: 0 | DV28: 0 | DW28: 0 | DY28: =(($M$12+$M$14)*DY5)+(DY6+$M$16+$M$18)*DY10 -> 0 | DZ28: =(($L$12+$L$14)*DZ5)+(DZ6+$L$16+$L$18)*DZ10 -> 0 | EA28: 0 | EB28: 0 | EC28: 0 | ED28: 0 | EE28: 0 | EF28: 0 | EG28: 0 | EH28: 0
Q29: ΕΦΚ | S29: =+$C$21*S10 -> 0 | T29: =+$C$21*T10 -> 0 | U29: 0 | V29: 0 | W29: 0 | X29: 0 | Y29: 0 | Z29: 0 | AA29: 0 | AB29: 0 | AD29: =+$D$21*AD10 -> 0 | AE29: =+$D$21*AE10 -> 0 | AF29: 0 | AG29: 0 | AH29: 0 | AI29: 0 | AJ29: 0 | AK29: 0 | AL29: 0 | AM29: 0 | AO29: =+$D$21*AO10 -> 0 | AP29: =+$D$21*AP10 -> 0 | AQ29: 0 | AR29: 0 | AS29: 0 | AT29: 0 | AU29: 0 | AV29: 0 | AW29: 0 | AX29: 0 | AZ29: =+$F$21*AZ10 -> 1067.836918 | BA29: =+$F$21*BA10 -> 850 | BB29: 725 | BC29: 925 | BD29: 525 | BE29: 975 | BF29: 1175 | BG29: 1225 | BH29: 605 | BI29: 605.005 | BK29: =+$G$21*BK10 -> 0 | BL29: =+$G$21*BL10 -> 0 | BM29: 0 | BN29: 0 | BO29: 0 | BP29: 0 | BQ29: 0 | BR29: 0 | BS29: 0 | BT29: 0 | BV29: =+$G$21*BV10 -> 0 | BW29: =+$G$21*BW10 -> 0 | BX29: 0 | BY29: 0 | BZ29: 0 | CA29: 0 | CB29: 0 | CC29: 0 | CD29: 0 | CE29: 0 | CG29: =+$G$21*CG10 -> 0 | CH29: =+$G$21*CH10 -> 0 | CI29: 0 | CJ29: 0 | CK29: 0 | CL29: 0 | CM29: 0 | CN29: 0 | CO29: 0 | CP29: 0 | CR29: =+$J$21*CR10 -> 0 | CS29: =+$J$21*CS10 -> 0 | CT29: 0 | CU29: 0 | CV29: 0 | CW29: 0 | CX29: 0 | CY29: 0 | CZ29: 0 | DA29: 0 | DC29: =+$K$21*DC10 -> 0 | DD29: =+$K$21*DD10 -> 0 | DE29: 0 | DF29: 0 | DG29: 0 | DH29: 0 | DI29: 0 | DJ29: 0 | DK29: 0 | DL29: 0 | DN29: =+$L$21*DN10 -> 0 | DO29: =+$L$21*DO10 -> 0 | DP29: 0 | DQ29: 0 | DR29: 0 | DS29: 0 | DT29: 0 | DU29: 0 | DV29: 0 | DW29: 0 | DY29: =+$M$21*DY10 -> 0 | DZ29: =+$L$21*DZ10 -> 0 | EA29: 0 | EB29: 0 | EC29: 0 | ED29: 0 | EE29: 0 | EF29: 0 | EG29: 0 | EH29: 0
Q30: Ειδικ. Τέλος | S30: =$C$22*(SUM(S25:S29)-$C$16*S10) -> 0.03224166667 | T30: =$C$22*(SUM(T25:T29)-$C$16*T10) -> 0.03224166667 | U30: 0.03224166667 | V30: 0.03224166667 | W30: 0.03224166667 | X30: 0.03224166667 | Y30: 0.03224166667 | Z30: 0.03224166667 | AA30: 0.03224166667 | AB30: =$C$22*(SUM(AB25:AB29)-$C$16*AB10) -> 0.03224166667 | AD30: =$D$22*(SUM(AD25:AD28)-$D$16*AD10) -> 0.03224166667 | AE30: =$D$22*(SUM(AE25:AE28)-$D$16*AE10) -> 0.03224166667 | AF30: 0.03224166667 | AG30: 0.03224166667 | AH30: 0.03224166667 | AI30: 0.03224166667 | AJ30: 0.03224166667 | AK30: 0.03224166667 | AL30: 0.03224166667 | AM30: 0.03224166667 | AO30: =$D$22*(SUM(AO25:AO28)-$D$16*AO10) -> 0.03224166667 | AP30: =$D$22*(SUM(AP25:AP28)-$D$16*AP10) -> 0.03224166667 | AQ30: 0.03224166667 | AR30: 0.03224166667 | AS30: 0.03224166667 | AT30: 0.03224166667 | AU30: 0.03224166667 | AV30: 0.03224166667 | AW30: 0.03224166667 | AX30: 0.03224166667 | AZ30: =$F$22*(SUM(AZ25:AZ29)-$F$16*AZ10) -> 19.55082484 | BA30: =$F$22*(SUM(BA25:BA29)-$F$16*BA10) -> 12.62816043 | BB30: 21.17288906 | BC30: 36.75866441 | BD30: 28.74804824 | BE30: 72.47575619 | BF30: 89.63774167 | BG30: 93.45074167 | BH30: 46.16954167 | BI30: 46.16992297 | BK30: =$G$22*(SUM(BK25:BK29)-$G$16*BK10) -> 0.03224166667 | BL30: =$G$22*(SUM(BL25:BL29)-$G$16*BL10) -> 0.03224166667 | BM30: 0.03224166667 | BN30: 0.03224166667 | BO30: 0.03224166667 | BP30: 0.03224166667 | BQ30: 0.03224166667 | BR30: 0.03224166667 | BS30: 0.03224166667 | BT30: 0.03224166667 | BV30: =$G$22*(SUM(BV25:BV29)-$G$16*BV10) -> 0.03224166667 | BW30: =$G$22*(SUM(BW25:BW29)-$G$16*BW10) -> 0.03224166667 | BX30: 0.03224166667 | BY30: 0.03224166667 | BZ30: 0.03224166667 | CA30: 0.03224166667 | CB30: 0.03224166667 | CC30: 0.03224166667 | CD30: 0.03224166667 | CE30: 0.03224166667 | CG30: =$G$22*(SUM(CG25:CG29)-$G$16*CG10) -> 0.03224166667 | CH30: =$G$22*(SUM(CH25:CH29)-$G$16*CH10) -> 0.03224166667 | CI30: 0.03224166667 | CJ30: 0.03224166667 | CK30: 0.03224166667 | CL30: 0.03224166667 | CM30: 0.03224166667 | CN30: 0.03224166667 | CO30: 0.03224166667 | CP30: 0.03224166667 | CR30: =$J$22*(SUM(CR25:CR29)-$J$16*(CR13+CR14)) -> 23.275 | CS30: =$J$22*(SUM(CS25:CS29)-$J$16*(CS13+CS14)) -> 0 | CT30: 0 | CU30: 0 | CV30: 0 | CW30: 0 | CX30: 0 | CY30: 0 | CZ30: 0 | DA30: 0 | DC30: =$K$22*(SUM(DC25:DC29)-$K$16*(DC13+DC14)) -> 23.275 | DD30: =$K$22*(SUM(DD25:DD29)-$K$16*(DD13+DD14)) -> 0 | DE30: 0 | DF30: 0 | DG30: 0 | DH30: 0 | DI30: 0 | DJ30: 0 | DK30: 0 | DL30: 0 | DN30: =$L$22*(SUM(DN25:DN29)-$L$16*(DN13+DN14)) -> 23.275 | DO30: =$L$22*(SUM(DO25:DO29)-$L$16*(DO13+DO14)) -> 0 | DP30: 0 | DQ30: 0 | DR30: 0 | DS30: 0 | DT30: 0 | DU30: 0 | DV30: 0 | DW30: 0 | DY30: =$M$22*(SUM(DY25:DY29)-$M$16*(DY13+DY14)) -> 23.275 | DZ30: =$L$22*(SUM(DZ25:DZ29)-$L$16*(DZ13+DZ14)) -> 0 | EA30: 0 | EB30: 0 | EC30: 0 | ED30: 0 | EE30: 0 | EF30: 0 | EG30: 0 | EH30: 0
Q31: ΦΠΑ | S31: =SUM(S25:S29)*$C$23 -> 0.8382833333 | T31: 0.8382833333 | U31: 0.8382833333 | V31: 0.8382833333 | W31: 0.8382833333 | X31: 0.8382833333 | Y31: 0.8382833333 | Z31: 0.8382833333 | AA31: 0.8382833333 | AB31: 0.8382833333 | AD31: =SUM(AD25:AD29)*$D$23 -> 0.8382833333 | AE31: =SUM(AE25:AE29)*$D$23 -> 0.8382833333 | AF31: 0.8382833333 | AG31: 0.8382833333 | AH31: 0.8382833333 | AI31: 0.8382833333 | AJ31: 0.8382833333 | AK31: 0.8382833333 | AL31: 0.8382833333 | AM31: 0.8382833333 | AO31: =SUM(AO25:AO29)*$D$23 -> 0.8382833333 | AP31: 0.8382833333 | AQ31: 0.8382833333 | AR31: 0.8382833333 | AS31: 0.8382833333 | AT31: 0.8382833333 | AU31: 0.8382833333 | AV31: 0.8382833333 | AW31: 0.8382833333 | AX31: 0.8382833333 | AZ31: =SUM(AZ25:AZ29)*$F$23 -> 769.0231511 | BA31: =SUM(BA25:BA29)*$F$23 -> 535.8511713 | BB31: 727.4966157 | BC31: 1181.554775 | BD31: 875.6227543 | BE31: 2122.406161 | BF31: 2617.445783 | BG31: 2728.790783 | BH31: 1348.112783 | BI31: 1348.123918 | BK31: =SUM(BK25:BK29)*$G$23 -> 0.8382833333 | BL31: =SUM(BL25:BL29)*$G$23 -> 0.8382833333 | BM31: 0.8382833333 | BN31: 0.8382833333 | BO31: 0.8382833333 | BP31: 0.8382833333 | BQ31: 0.8382833333 | BR31: 0.8382833333 | BS31: 0.8382833333 | BT31: 0.8382833333 | BV31: =SUM(BV25:BV29)*$G$23 -> 0.8382833333 | BW31: =SUM(BW25:BW29)*$G$23 -> 0.8382833333 | BX31: 0.8382833333 | BY31: 0.8382833333 | BZ31: 0.8382833333 | CA31: 0.8382833333 | CB31: 0.8382833333 | CC31: 0.8382833333 | CD31: 0.8382833333 | CE31: 0.8382833333 | CG31: =SUM(CG25:CG29)*$G$23 -> 0.8382833333 | CH31: =SUM(CH25:CH29)*$G$23 -> 0.8382833333 | CI31: 0.8382833333 | CJ31: 0.8382833333 | CK31: 0.8382833333 | CL31: 0.8382833333 | CM31: 0.8382833333 | CN31: 0.8382833333 | CO31: 0.8382833333 | CP31: 0.8382833333 | CR31: =SUM(CR25:CR29)*$J$23 -> 605.15 | CS31: =SUM(CS25:CS29)*$J$23 -> 0 | CT31: 0 | CU31: 0 | CV31: 0 | CW31: 0 | CX31: 0 | CY31: 0 | CZ31: 0 | DA31: 0 | DC31: =SUM(DC25:DC29)*$K$23 -> 605.15 | DD31: =SUM(DD25:DD29)*$K$23 -> 0 | DE31: 0 | DF31: 0 | DG31: 0 | DH31: 0 | DI31: 0 | DJ31: 0 | DK31: 0 | DL31: 0 | DN31: =SUM(DN25:DN29)*$L$23 -> 605.15 | DO31: =SUM(DO25:DO29)*$L$23 -> 0 | DP31: 0 | DQ31: 0 | DR31: 0 | DS31: 0 | DT31: 0 | DU31: 0 | DV31: 0 | DW31: 0 | DY31: =SUM(DY25:DY29)*$L$23 -> 605.15 | DZ31: =SUM(DZ25:DZ29)*$L$23 -> 0 | EA31: 0 | EB31: 0 | EC31: 0 | ED31: 0 | EE31: 0 | EF31: 0 | EG31: 0 | EH31: 0
Q32: Τελικό Κόστος | S32: =SUM(S25:S31) -> 7.318858333 | T32: 7.318858333 | U32: 7.318858333 | V32: 7.318858333 | W32: 7.318858333 | X32: 7.318858333 | Y32: 7.318858333 | Z32: 7.318858333 | AA32: 7.318858333 | AB32: 7.318858333 | AD32: =SUM(AD25:AD31) -> 7.318858333 | AE32: =SUM(AE25:AE31) -> 7.318858333 | AF32: 7.318858333 | AG32: 7.318858333 | AH32: 7.318858333 | AI32: 7.318858333 | AJ32: 7.318858333 | AK32: 7.318858333 | AL32: 7.318858333 | AM32: 7.318858333 | AO32: =SUM(AO25:AO31) -> 7.318858333 | AP32: =SUM(AP25:AP31) -> 7.318858333 | AQ32: 7.318858333 | AR32: 7.318858333 | AS32: 7.318858333 | AT32: 7.318858333 | AU32: 7.318858333 | AV32: 7.318858333 | AW32: 7.318858333 | AX32: 7.318858333 | AZ32: =SUM(AZ25:AZ31) -> 6704.136677 | BA32: =SUM(BA25:BA31) -> 4670.411418 | BB32: 6344.797318 | BC32: 10307.19632 | BD32: 7639.930451 | BE32: 18521.08315 | BF32: 22841.28186 | BG32: 23812.93986 | BH32: 11764.38066 | BI32: 11764.47782 | BK32: =SUM(BK25:BK31) -> 7.318858333 | BL32: =SUM(BL25:BL31) -> 7.318858333 | BM32: 7.318858333 | BN32: 7.318858333 | BO32: 7.318858333 | BP32: 7.318858333 | BQ32: 7.318858333 | BR32: 7.318858333 | BS32: 7.318858333 | BT32: 7.318858333 | BV32: =SUM(BV25:BV31) -> 7.318858333 | BW32: =SUM(BW25:BW31) -> 7.318858333 | BX32: 7.318858333 | BY32: 7.318858333 | BZ32: 7.318858333 | CA32: 7.318858333 | CB32: 7.318858333 | CC32: 7.318858333 | CD32: 7.318858333 | CE32: 7.318858333 | CG32: =SUM(CG25:CG31) -> 7.318858333 | CH32: =SUM(CH25:CH31) -> 7.318858333 | CI32: 7.318858333 | CJ32: 7.318858333 | CK32: 7.318858333 | CL32: 7.318858333 | CM32: 7.318858333 | CN32: 7.318858333 | CO32: 7.318858333 | CP32: 7.318858333 | CR32: =SUM(CR25:CR31) -> 5283.425 | CS32: =SUM(CS25:CS31) -> 0 | CT32: 0 | CU32: 0 | CV32: 0 | CW32: 0 | CX32: 0 | CY32: 0 | CZ32: 0 | DA32: 0 | DC32: =SUM(DC25:DC31) -> 5283.425 | DD32: =SUM(DD25:DD31) -> 0 | DE32: 0 | DF32: 0 | DG32: 0 | DH32: 0 | DI32: 0 | DJ32: 0 | DK32: 0 | DL32: 0 | DN32: =SUM(DN25:DN31) -> 5283.425 | DO32: =SUM(DO25:DO31) -> 0 | DP32: 0 | DQ32: 0 | DR32: 0 | DS32: 0 | DT32: 0 | DU32: 0 | DV32: 0 | DW32: 0 | DY32: =SUM(DY25:DY31) -> 5283.425 | DZ32: 0 | EA32: 0 | EB32: 0 | EC32: 0 | ED32: 0 | EE32: 0 | EF32: 0 | EG32: 0 | EH32: 0

Sheet Παροχές
B2: ΔΕΔΟΜΕΝΑ ΠΑΡΟΧΩΝ ΠΟΥ ΣΥΜΜΕΤΕΧΟΥΝ ΣΤΟ NET METERING
B3: Γενικά Στοιχεία Ταυτοποίησης | I3: Περίοδος Κατανάλωσης | K3: Είδος Φορτίου: | M3: Σταθερό | Q3: Κατηγορία φορτίου | R3: =IF(LEFT(D5,2)="ΜΤ","ΜΤ","ΧΤ") -> ΧΤ | T3: Για τον υπολογισμό του Ετήσιου Κόστους
B4: α/α | C4: Αρ. Παροχής | D4: Κατηγορία Τιμολογίου | E4: ΣΙ (kVA) | F4: ΧΖ/ΧΜΖ (kW) | G4: συν(φ) | H4: Συν. Εκπ. (€/kWh) | I4: από | J4: εώς | K4: Ημέρες | L4: Κατανάλωση Ημέρας (kWh) | M4: Κατανάλωση Νύχτας (kWh) | O4: Μεσοσταθμικό Ετήσιο Κόστος (€) | P4: Μεσοσταθμικό Ετήσιο Κόστος NET METERING(€) | Q4: Διάρκεια έτους | T4: Τιμολόγιο | V4: ΣΙ | W4: ΧΖ στο έτος | AA4: Διάρκεια καταχωρήσεων | AB4: min | AC4: max | AD4: Κατανάλωση στο έτος 365 ημερών Ημέρας | AE4: Κατανάλωση στο έτος 365 ημερών Νύχτας | AF4: =MAX(AF5:AF76) -> 21 | AG4: Ανταγ. Σκέλος Ημέρα | AH4: Ανταγ. Σκέλος Νύχτας | AI4: ΥΚΩ | AJ4: Λοιπές | AS4: Ημέρας | AT4: 1 | AU4: 2 | AV4: 3 | AW4: 4 | AX4: 5 | AY4: 6 | AZ4: 7 | BA4: 8 | BB4: 9 | BC4: 10 | BD4: 11 | BE4: 12
B5: =IF(C5="","",1) -> 1 | C5: 2222 | D5: ΑΓ-ΧΤ | E5: 135 | I5: 2017-01-01 | J5: 2017-12-31 | K5: =IF(OR(I5="",J5=""),"",J5-I5+1) -> 365 | L5: 189000 | O5: =IF(T5="","",IF(ISERROR(AD5),"",ROUND(SUMIF(Δεδομένα2!$S$3:$EH$3,Παροχές!T5,Δεδομένα2!$S$22:$EH$22),0))) -> 38743 | P5: =IF(T5="","",IF(ISERROR(AD5),"",ROUND(SUMIF(Δεδομένα2!$S$3:$EH$3,Παροχές!T5,Δεδομένα2!$S$32:$EH$32),0))) -> 6704 | Q5: =IF(AB5<>"",((DATE(YEAR(AB5)+1,MONTH(AB5),DAY(AB5)))-AB5),"") -> 365 | R5: =IF(C5<>"",C5,"") -> 2222 | S5: =IF(T5="","",COUNTIF($B$5:$B$76,B5)) -> 2 | T5: =IF(B5="","",IF(B5<>B4,B5 & "-" &D5,"")) -> 1-ΑΓ-ΧΤ | U5: =IF(E5<>"",E5*K5/365,"") -> 135 | V5: =IF(B5="","",IF(B5<>B4,SUMIF($C$5:$C$76,C5,$U$5:$U$76),"")) -> 270 | W5: =IF(B5="","",IF(B5<>B4,AA5*SUMIF($C$5:$C$76,C5,$F$5:$F$76)/365,"")) -> 0 | X5: =IF(B5="","",IF(B5<>B4,SUMIF($C$5:$C$76,C5,$H$5:$H$76)/S5,"")) -> 0 | Y5: =IF(B5="","",IF(B5<>B4,SUMIF($C$5:$C$76,C5,$Z$5:$Z$76)/S5,"")) -> 0 | Z5: =IF(G5<>"",Δεδομένα2!$J$15/Παροχές!G5,"") ->  | AA5: =IF(B5="","",IF(B5<>B4,SUMIF($C$5:$C$76,C5,$K$5:$K$76),"")) -> 4015 | AB5: =IF(T5<>"",MIN(INDIRECT("i" & ROW()):INDIRECT("i" & ROW()+S5-1)),"") -> 2017-01-01 | AC5: =IF(T5<>"",AB5+Q5-1,"") -> 2017-12-31 | AD5: =IF(B5="","",SUMIF($AS$5:$AS$14,AF5,$BG$5:$BG$14)) -> 399000 | AE5: =IF(B5="","",SUMIF($AS$17:$AS$26,AF5,$BG$17:$BG$26)) -> 0 | AF5: =IF(T5<>"",B5,"") -> 1 | AG5: =IF(AF5<>"",SUMIF($BS$28:$DF$28,AF5,$BS$67:$DF$67),"") -> 0 | AH5: =IF(AF5<>"",SUMIF($BS$28:$DF$28,AF5,$BS$68:$DF$68),"") -> 0 | AI5: =IF(AF5<>"",AD5+AE5,"") -> 399000 | AJ5: =IF(AF5<>"",BV83,"") -> 213567.3836 | AS5: 1 | AT5: =SUMIF('SORT-DAY'!$D$16:$IR$16,AT$4,'SORT-DAY'!$D100:$IR100)+SUMIF('SORT-DAY'!$A$124:$IR$124,AT$4,'SORT-DAY'!$A208:$IR208) -> 33887.67123 | AU5: =SUMIF('SORT-DAY'!$D$16:$IR$16,AU$4,'SORT-DAY'!$D100:$IR100)+SUMIF('SORT-DAY'!$A$124:$IR$124,AU$4,'SORT-DAY'!$A208:$IR208) -> 30608.21918 | AV5: =SUMIF('SORT-DAY'!$D$16:$IR$16,AV$4,'SORT-DAY'!$D100:$IR100)+SUMIF('SORT-DAY'!$A$124:$IR$124,AV$4,'SORT-DAY'!$A208:$IR208) -> 33887.67123 | AW5: =SUMIF('SORT-DAY'!$D$16:$IR$16,AW$4,'SORT-DAY'!$D100:$IR100)+SUMIF('SORT-DAY'!$A$124:$IR$124,AW$4,'SORT-DAY'!$A208:$IR208) -> 32794.52055 | AX5: =SUMIF('SORT-DAY'!$D$16:$IR$16,AX$4,'SORT-DAY'!$D100:$IR100)+SUMIF('SORT-DAY'!$A$124:$IR$124,AX$4,'SORT-DAY'!$A208:$IR208) -> 33887.67123 | AY5: =SUMIF('SORT-DAY'!$D$16:$IR$16,AY$4,'SORT-DAY'!$D100:$IR100)+SUMIF('SORT-DAY'!$A$124:$IR$124,AY$4,'SORT-DAY'!$A208:$IR208) -> 32794.52055 | AZ5: =SUMIF('SORT-DAY'!$D$16:$IR$16,AZ$4,'SORT-DAY'!$D100:$IR100)+SUMIF('SORT-DAY'!$A$124:$IR$124,AZ$4,'SORT-DAY'!$A208:$IR208) -> 33887.67123 | BA5: =SUMIF('SORT-DAY'!$D$16:$IR$16,BA$4,'SORT-DAY'!$D100:$IR100)+SUMIF('SORT-DAY'!$A$124:$IR$124,BA$4,'SORT-DAY'!$A208:$IR208) -> 33887.67123 | BB5: =SUMIF('SORT-DAY'!$D$16:$IR$16,BB$4,'SORT-DAY'!$D100:$IR100)+SUMIF('SORT-DAY'!$A$124:$IR$124,BB$4,'SORT-DAY'!$A208:$IR208) -> 32794.52055 | BC5: =SUMIF('SORT-DAY'!$D$16:$IR$16,BC$4,'SORT-DAY'!$D100:$IR100)+SUMIF('SORT-DAY'!$A$124:$IR$124,BC$4,'SORT-DAY'!$A208:$IR208) -> 33887.67123 | BD5: =SUMIF('SORT-DAY'!$D$16:$IR$16,BD$4,'SORT-DAY'!$D100:$IR100)+SUMIF('SORT-DAY'!$A$124:$IR$124,BD$4,'SORT-DAY'!$A208:$IR208) -> 32794.52055 | BE5: =SUMIF('SORT-DAY'!$D$16:$IR$16,BE$4,'SORT-DAY'!$D100:$IR100)+SUMIF('SORT-DAY'!$A$124:$IR$124,BE$4,'SORT-DAY'!$A208:$IR208) -> 33887.67123 | BG5: =SUM(AT5:BE5) -> 399000
B6: =IF(C6="","",IF(B5<10,IF(C6=C5,B5,B5+1),"")) -> 1 | C6: 2222 | D6: ΑΓ-ΧΤ | E6: 135 | I6: 2017-01-01 | J6: 2017-12-31 | K6: 365 | L6: 210000 | O6: =IF(T6="","",IF(ISERROR(AD6),"",ROUND(SUMIF(Δεδομένα2!$S$3:$EH$3,Παροχές!T6,Δεδομένα2!$S$22:$EH$22),0))) ->  | P6: =IF(T6="","",IF(ISERROR(AD6),"",ROUND(SUMIF(Δεδομένα2!$S$3:$EH$3,Παροχές!T6,Δεδομένα2!$S$32:$EH$32),0))) ->  | Q6: =IF(AB6<>"",((DATE(YEAR(AB6)+1,MONTH(AB6),DAY(AB6)))-AB6),"") ->  | R6: =IF(C6<>"",C6,"") -> 2222 | U6: =IF(E6<>"",E6*K6/365,"") -> 135 | V6: =IF(B6="","",IF(B6<>B5,SUMIF($C$5:$C$76,C6,$U$5:$U$76),"")) ->  | W6: =IF(B6="","",IF(B6<>B5,AA6*SUMIF($C$5:$C$76,C6,$F$5:$F$76)/365,"")) ->  | Z6: =IF(G6<>"",Δεδομένα2!$J$15/Παροχές!G6,"") ->  | AB6: =IF(T6<>"",MIN(INDIRECT("i" & ROW()):INDIRECT("i" & ROW()+S6-1)),"") ->  | AD6: 0 | AE6: 0 | AF6: =IF(T6<>"",B6,"") ->  | AJ6: =IF(AF6<>"",AI6,"") ->  | AS6: 2 | AT6: =SUMIF('SORT-DAY'!$D$16:$IR$16,AT$4,'SORT-DAY'!$D101:$IR101)+SUMIF('SORT-DAY'!$A$124:$IR$124,AT$4,'SORT-DAY'!$A209:$IR209) -> 14438.35616 | AU6: =SUMIF('SORT-DAY'!$D$16:$IR$16,AU$4,'SORT-DAY'!$D101:$IR101)+SUMIF('SORT-DAY'!$A$124:$IR$124,AU$4,'SORT-DAY'!$A209:$IR209) -> 13041.09589 | AV6: =SUMIF('SORT-DAY'!$D$16:$IR$16,AV$4,'SORT-DAY'!$D101:$IR101)+SUMIF('SORT-DAY'!$A$124:$IR$124,AV$4,'SORT-DAY'!$A209:$IR209) -> 14438.35616 | AW6: =SUMIF('SORT-DAY'!$D$16:$IR$16,AW$4,'SORT-DAY'!$D101:$IR101)+SUMIF('SORT-DAY'!$A$124:$IR$124,AW$4,'SORT-DAY'!$A209:$IR209) -> 13972.60274 | AX6: =SUMIF('SORT-DAY'!$D$16:$IR$16,AX$4,'SORT-DAY'!$D101:$IR101)+SUMIF('SORT-DAY'!$A$124:$IR$124,AX$4,'SORT-DAY'!$A209:$IR209) -> 14438.35616 | AY6: =SUMIF('SORT-DAY'!$D$16:$IR$16,AY$4,'SORT-DAY'!$D101:$IR101)+SUMIF('SORT-DAY'!$A$124:$IR$124,AY$4,'SORT-DAY'!$A209:$IR209) -> 13972.60274 | AZ6: =SUMIF('SORT-DAY'!$D$16:$IR$16,AZ$4,'SORT-DAY'!$D101:$IR101)+SUMIF('SORT-DAY'!$A$124:$IR$124,AZ$4,'SORT-DAY'!$A209:$IR209) -> 14438.35616 | BA6: =SUMIF('SORT-DAY'!$D$16:$IR$16,BA$4,'SORT-DAY'!$D101:$IR101)+SUMIF('SORT-DAY'!$A$124:$IR$124,BA$4,'SORT-DAY'!$A209:$IR209) -> 14438.35616 | BB6: =SUMIF('SORT-DAY'!$D$16:$IR$16,BB$4,'SORT-DAY'!$D101:$IR101)+SUMIF('SORT-DAY'!$A$124:$IR$124,BB$4,'SORT-DAY'!$A209:$IR209) -> 13972.60274 | BC6: =SUMIF('SORT-DAY'!$D$16:$IR$16,BC$4,'SORT-DAY'!$D101:$IR101)+SUMIF('SORT-DAY'!$A$124:$IR$124,BC$4,'SORT-DAY'!$A209:$IR209) -> 14438.35616 | BD6: =SUMIF('SORT-DAY'!$D$16:$IR$16,BD$4,'SORT-DAY'!$D101:$IR101)+SUMIF('SORT-DAY'!$A$124:$IR$124,BD$4,'SORT-DAY'!$A209:$IR209) -> 13972.60274 | BE6: =SUMIF('SORT-DAY'!$D$16:$IR$16,BE$4,'SORT-DAY'!$D101:$IR101)+SUMIF('SORT-DAY'!$A$124:$IR$124,BE$4,'SORT-DAY'!$A209:$IR209) -> 14438.35616 | BG6: 170000
B7: =IF(C7="","",IF(B6<10,IF(C7=C6,B6,B6+1),"")) -> 2 | C7: 3333 | D7: ΑΓ-ΧΤ | E7: 135 | I7: 2017-01-01 | J7: 2017-12-31 | K7: 365 | L7: 170000 | O7: =IF(T7="","",IF(ISERROR(AD7),"",ROUND(SUMIF(Δεδομένα2!$S$3:$EH$3,Παροχές!T7,Δεδομένα2!$S$22:$EH$22),0))) -> 16511 | P7: =IF(T7="","",IF(ISERROR(AD7),"",ROUND(SUMIF(Δεδομένα2!$S$3:$EH$3,Παροχές!T7,Δεδομένα2!$S$32:$EH$32),0))) -> 4670 | Q7: 365 | R7: 3333 | S7: 1 | T7: 2-ΑΓ-ΧΤ | U7: 135 | V7: 135 | W7: 0 | X7: 0 | Y7: 0 | Z7: =IF(G7<>"",Δεδομένα2!$J$15/Παροχές!G7,"") ->  | AA7: 365 | AB7: =IF(T7<>"",MIN(INDIRECT("i" & ROW()):INDIRECT("i" & ROW()+S7-1)),"") -> 2017-01-01 | AC7: 2017-12-31 | AD7: 170000 | AE7: 0 | AF7: 2 | AG7: 7102.054795 | AH7: 0 | AI7: 170000 | AJ7: 170000 | AS7: 3 | AT7: =SUMIF('SORT-DAY'!$D$16:$IR$16,AT$4,'SORT-DAY'!$D102:$IR102)+SUMIF('SORT-DAY'!$A$124:$IR$124,AT$4,'SORT-DAY'!$A210:$IR210) -> 12315.06849 | AU7: =SUMIF('SORT-DAY'!$D$16:$IR$16,AU$4,'SORT-DAY'!$D102:$IR102)+SUMIF('SORT-DAY'!$A$124:$IR$124,AU$4,'SORT-DAY'!$A210:$IR210) -> 11123.28767 | AV7: =SUMIF('SORT-DAY'!$D$16:$IR$16,AV$4,'SORT-DAY'!$D102:$IR102)+SUMIF('SORT-DAY'!$A$124:$IR$124,AV$4,'SORT-DAY'!$A210:$IR210) -> 12315.06849 | AW7: =SUMIF('SORT-DAY'!$D$16:$IR$16,AW$4,'SORT-DAY'!$D102:$IR102)+SUMIF('SORT-DAY'!$A$124:$IR$124,AW$4,'SORT-DAY'!$A210:$IR210) -> 11917.80822 | AX7: =SUMIF('SORT-DAY'!$D$16:$IR$16,AX$4,'SORT-DAY'!$D102:$IR102)+SUMIF('SORT-DAY'!$A$124:$IR$124,AX$4,'SORT-DAY'!$A210:$IR210) -> 12315.06849 | AY7: =SUMIF('SORT-DAY'!$D$16:$IR$16,AY$4,'SORT-DAY'!$D102:$IR102)+SUMIF('SORT-DAY'!$A$124:$IR$124,AY$4,'SORT-DAY'!$A210:$IR210) -> 11917.80822 | AZ7: =SUMIF('SORT-DAY'!$D$16:$IR$16,AZ$4,'SORT-DAY'!$D102:$IR102)+SUMIF('SORT-DAY'!$A$124:$IR$124,AZ$4,'SORT-DAY'!$A210:$IR210) -> 12315.06849 | BA7: =SUMIF('SORT-DAY'!$D$16:$IR$16,BA$4,'SORT-DAY'!$D102:$IR102)+SUMIF('SORT-DAY'!$A$124:$IR$124,BA$4,'SORT-DAY'!$A210:$IR210) -> 12315.06849 | BB7: =SUMIF('SORT-DAY'!$D$16:$IR$16,BB$4,'SORT-DAY'!$D102:$IR102)+SUMIF('SORT-DAY'!$A$124:$IR$124,BB$4,'SORT-DAY'!$A210:$IR210) -> 11917.80822 | BC7: =SUMIF('SORT-DAY'!$D$16:$IR$16,BC$4,'SORT-DAY'!$D102:$IR102)+SUMIF('SORT-DAY'!$A$124:$IR$124,BC$4,'SORT-DAY'!$A210:$IR210) -> 12315.06849 | BD7: =SUMIF('SORT-DAY'!$D$16:$IR$16,BD$4,'SORT-DAY'!$D102:$IR102)+SUMIF('SORT-DAY'!$A$124:$IR$124,BD$4,'SORT-DAY'!$A210:$IR210) -> 11917.80822 | BE7: =SUMIF('SORT-DAY'!$D$16:$IR$16,BE$4,'SORT-DAY'!$D102:$IR102)+SUMIF('SORT-DAY'!$A$124:$IR$124,BE$4,'SORT-DAY'!$A210:$IR210) -> 12315.06849 | BG7: 145000
B8: 3 | C8: 4444 | D8: ΑΓ-ΧΤ | E8: 135 | I8: 2017-01-01 | J8: 2017-12-31 | K8: 365 | L8: 145000 | O8: =IF(T8="","",IF(ISERROR(AD8),"",ROUND(SUMIF(Δεδομένα2!$S$3:$EH$3,Παροχές!T8,Δεδομένα2!$S$22:$EH$22),0))) -> 14084 | P8: =IF(T8="","",IF(ISERROR(AD8),"",ROUND(SUMIF(Δεδομένα2!$S$3:$EH$3,Παροχές!T8,Δεδομένα2!$S$32:$EH$32),0))) -> 6345 | Q8: 365 | R8: 4444 | S8: 1 | T8: 3-ΑΓ-ΧΤ | U8: 135 | V8: 135 | W8: 0 | X8: 0 | Y8: 0 | Z8: =IF(G8<>"",Δεδομένα2!$J$15/Παροχές!G8,"") ->  | AA8: 365 | AB8: =IF(T8<>"",MIN(INDIRECT("i" & ROW()):INDIRECT("i" & ROW()+S8-1)),"") -> 2017-01-01 | AC8: 2017-12-31 | AD8: 145000 | AE8: 0 | AF8: 3 | AG8: 38487.67123 | AH8: 0 | AI8: 145000 | AJ8: 145000 | AS8: 4 | AT8: =SUMIF('SORT-DAY'!$D$16:$IR$16,AT$4,'SORT-DAY'!$D103:$IR103)+SUMIF('SORT-DAY'!$A$124:$IR$124,AT$4,'SORT-DAY'!$A211:$IR211) -> 15712.32877 | AU8: =SUMIF('SORT-DAY'!$D$16:$IR$16,AU$4,'SORT-DAY'!$D103:$IR103)+SUMIF('SORT-DAY'!$A$124:$IR$124,AU$4,'SORT-DAY'!$A211:$IR211) -> 14191.78082 | AV8: =SUMIF('SORT-DAY'!$D$16:$IR$16,AV$4,'SORT-DAY'!$D103:$IR103)+SUMIF('SORT-DAY'!$A$124:$IR$124,AV$4,'SORT-DAY'!$A211:$IR211) -> 15712.32877 | AW8: =SUMIF('SORT-DAY'!$D$16:$IR$16,AW$4,'SORT-DAY'!$D103:$IR103)+SUMIF('SORT-DAY'!$A$124:$IR$124,AW$4,'SORT-DAY'!$A211:$IR211) -> 15205.47945 | AX8: =SUMIF('SORT-DAY'!$D$16:$IR$16,AX$4,'SORT-DAY'!$D103:$IR103)+SUMIF('SORT-DAY'!$A$124:$IR$124,AX$4,'SORT-DAY'!$A211:$IR211) -> 15712.32877 | AY8: =SUMIF('SORT-DAY'!$D$16:$IR$16,AY$4,'SORT-DAY'!$D103:$IR103)+SUMIF('SORT-DAY'!$A$124:$IR$124,AY$4,'SORT-DAY'!$A211:$IR211) -> 15205.47945 | AZ8: =SUMIF('SORT-DAY'!$D$16:$IR$16,AZ$4,'SORT-DAY'!$D103:$IR103)+SUMIF('SORT-DAY'!$A$124:$IR$124,AZ$4,'SORT-DAY'!$A211:$IR211) -> 15712.32877 | BA8: =SUMIF('SORT-DAY'!$D$16:$IR$16,BA$4,'SORT-DAY'!$D103:$IR103)+SUMIF('SORT-DAY'!$A$124:$IR$124,BA$4,'SORT-DAY'!$A211:$IR211) -> 15712.32877 | BB8: =SUMIF('SORT-DAY'!$D$16:$IR$16,BB$4,'SORT-DAY'!$D103:$IR103)+SUMIF('SORT-DAY'!$A$124:$IR$124,BB$4,'SORT-DAY'!$A211:$IR211) -> 15205.47945 | BC8: =SUMIF('SORT-DAY'!$D$16:$IR$16,BC$4,'SORT-DAY'!$D103:$IR103)+SUMIF('SORT-DAY'!$A$124:$IR$124,BC$4,'SORT-DAY'!$A211:$IR211) -> 15712.32877 | BD8: =SUMIF('SORT-DAY'!$D$16:$IR$16,BD$4,'SORT-DAY'!$D103:$IR103)+SUMIF('SORT-DAY'!$A$124:$IR$124,BD$4,'SORT-DAY'!$A211:$IR211) -> 15205.47945 | BE8: =SUMIF('SORT-DAY'!$D$16:$IR$16,BE$4,'SORT-DAY'!$D103:$IR103)+SUMIF('SORT-DAY'!$A$124:$IR$124,BE$4,'SORT-DAY'!$A211:$IR211) -> 15712.32877 | BG8: 185000
B9: 4 | C9: 5555 | D9: ΑΓ-ΧΤ | E9: 135 | I9: 2017-01-01 | J9: 2017-12-31 | K9: 365 | L9: 185000 | O9: =IF(T9="","",IF(ISERROR(AD9),"",ROUND(SUMIF(Δεδομένα2!$S$3:$EH$3,Παροχές!T9,Δεδομένα2!$S$22:$EH$22),0))) -> 17968 | P9: =IF(T9="","",IF(ISERROR(AD9),"",ROUND(SUMIF(Δεδομένα2!$S$3:$EH$3,Παροχές!T9,Δεδομένα2!$S$32:$EH$32),0))) -> 10307 | Q9: 365 | R9: 5555 | S9: 1 | T9: 4-ΑΓ-ΧΤ | U9: 135 | V9: 135 | W9: 0 | X9: 0 | Y9: 0 | Z9: =IF(G9<>"",Δεδομένα2!$J$15/Παροχές!G9,"") ->  | AA9: 365 | AB9: =IF(T9<>"",MIN(INDIRECT("i" & ROW()):INDIRECT("i" & ROW()+S9-1)),"") -> 2017-01-01 | AC9: 2017-12-31 | AD9: 185000 | AE9: 0 | AF9: 4 | AG9: 79528.76712 | AH9: 0 | AI9: 185000 | AJ9: 185000 | AS9: 5 | AT9: =SUMIF('SORT-DAY'!$D$16:$IR$16,AT$4,'SORT-DAY'!$D104:$IR104)+SUMIF('SORT-DAY'!$A$124:$IR$124,AT$4,'SORT-DAY'!$A212:$IR212) -> 8917.808219 | AU9: =SUMIF('SORT-DAY'!$D$16:$IR$16,AU$4,'SORT-DAY'!$D104:$IR104)+SUMIF('SORT-DAY'!$A$124:$IR$124,AU$4,'SORT-DAY'!$A212:$IR212) -> 8054.794521 | AV9: =SUMIF('SORT-DAY'!$D$16:$IR$16,AV$4,'SORT-DAY'!$D104:$IR104)+SUMIF('SORT-DAY'!$A$124:$IR$124,AV$4,'SORT-DAY'!$A212:$IR212) -> 8917.808219 | AW9: =SUMIF('SORT-DAY'!$D$16:$IR$16,AW$4,'SORT-DAY'!$D104:$IR104)+SUMIF('SORT-DAY'!$A$124:$IR$124,AW$4,'SORT-DAY'!$A212:$IR212) -> 8630.136986 | AX9: =SUMIF('SORT-DAY'!$D$16:$IR$16,AX$4,'SORT-DAY'!$D104:$IR104)+SUMIF('SORT-DAY'!$A$124:$IR$124,AX$4,'SORT-DAY'!$A212:$IR212) -> 8917.808219 | AY9: =SUMIF('SORT-DAY'!$D$16:$IR$16,AY$4,'SORT-DAY'!$D104:$IR104)+SUMIF('SORT-DAY'!$A$124:$IR$124,AY$4,'SORT-DAY'!$A212:$IR212) -> 8630.136986 | AZ9: =SUMIF('SORT-DAY'!$D$16:$IR$16,AZ$4,'SORT-DAY'!$D104:$IR104)+SUMIF('SORT-DAY'!$A$124:$IR$124,AZ$4,'SORT-DAY'!$A212:$IR212) -> 8917.808219 | BA9: =SUMIF('SORT-DAY'!$D$16:$IR$16,BA$4,'SORT-DAY'!$D104:$IR104)+SUMIF('SORT-DAY'!$A$124:$IR$124,BA$4,'SORT-DAY'!$A212:$IR212) -> 8917.808219 | BB9: =SUMIF('SORT-DAY'!$D$16:$IR$16,BB$4,'SORT-DAY'!$D104:$IR104)+SUMIF('SORT-DAY'!$A$124:$IR$124,BB$4,'SORT-DAY'!$A212:$IR212) -> 8630.136986 | BC9: =SUMIF('SORT-DAY'!$D$16:$IR$16,BC$4,'SORT-DAY'!$D104:$IR104)+SUMIF('SORT-DAY'!$A$124:$IR$124,BC$4,'SORT-DAY'!$A212:$IR212) -> 8917.808219 | BD9: =SUMIF('SORT-DAY'!$D$16:$IR$16,BD$4,'SORT-DAY'!$D104:$IR104)+SUMIF('SORT-DAY'!$A$124:$IR$124,BD$4,'SORT-DAY'!$A212:$IR212) -> 8630.136986 | BE9: =SUMIF('SORT-DAY'!$D$16:$IR$16,BE$4,'SORT-DAY'!$D104:$IR104)+SUMIF('SORT-DAY'!$A$124:$IR$124,BE$4,'SORT-DAY'!$A212:$IR212) -> 8917.808219 | BG9: 105000
B10: 5 | C10: 6666 | D10: ΑΓ-ΧΤ | E10: 135 | I10: 2017-01-01 | J10: 2017-12-31 | K10: 365 | L10: 105000 | O10: =IF(T10="","",IF(ISERROR(AD10),"",ROUND(SUMIF(Δεδομένα2!$S$3:$EH$3,Παροχές!T10,Δεδομένα2!$S$22:$EH$22),0))) -> 10201 | P10: =IF(T10="","",IF(ISERROR(AD10),"",ROUND(SUMIF(Δεδομένα2!$S$3:$EH$3,Παροχές!T10,Δεδομένα2!$S$32:$EH$32),0))) -> 7640 | Q10: 365 | R10: 6666 | S10: 1 | T10: 5-ΑΓ-ΧΤ | U10: 135 | V10: 135 | W10: 0 | X10: 0 | Y10: 0 | Z10: =IF(G10<>"",Δεδομένα2!$J$15/Παροχές!G10,"") ->  | AA10: 365 | AB10: =IF(T10<>"",MIN(INDIRECT("i" & ROW()):INDIRECT("i" & ROW()+S10-1)),"") -> 2017-01-01 | AC10: 2017-12-31 | AD10: 105000 | AE10: 0 | AF10: 5 | AG10: 69689.0411 | AH10: 0 | AI10: 105000 | AJ10: 105000 | AS10: 6 | AT10: =SUMIF('SORT-DAY'!$D$16:$IR$16,AT$4,'SORT-DAY'!$D105:$IR105)+SUMIF('SORT-DAY'!$A$124:$IR$124,AT$4,'SORT-DAY'!$A213:$IR213) -> 16561.64384 | AU10: =SUMIF('SORT-DAY'!$D$16:$IR$16,AU$4,'SORT-DAY'!$D105:$IR105)+SUMIF('SORT-DAY'!$A$124:$IR$124,AU$4,'SORT-DAY'!$A213:$IR213) -> 14958.90411 | AV10: =SUMIF('SORT-DAY'!$D$16:$IR$16,AV$4,'SORT-DAY'!$D105:$IR105)+SUMIF('SORT-DAY'!$A$124:$IR$124,AV$4,'SORT-DAY'!$A213:$IR213) -> 16561.64384 | AW10: =SUMIF('SORT-DAY'!$D$16:$IR$16,AW$4,'SORT-DAY'!$D105:$IR105)+SUMIF('SORT-DAY'!$A$124:$IR$124,AW$4,'SORT-DAY'!$A213:$IR213) -> 16027.39726 | AX10: =SUMIF('SORT-DAY'!$D$16:$IR$16,AX$4,'SORT-DAY'!$D105:$IR105)+SUMIF('SORT-DAY'!$A$124:$IR$124,AX$4,'SORT-DAY'!$A213:$IR213) -> 16561.64384 | AY10: =SUMIF('SORT-DAY'!$D$16:$IR$16,AY$4,'SORT-DAY'!$D105:$IR105)+SUMIF('SORT-DAY'!$A$124:$IR$124,AY$4,'SORT-DAY'!$A213:$IR213) -> 16027.39726 | AZ10: =SUMIF('SORT-DAY'!$D$16:$IR$16,AZ$4,'SORT-DAY'!$D105:$IR105)+SUMIF('SORT-DAY'!$A$124:$IR$124,AZ$4,'SORT-DAY'!$A213:$IR213) -> 16561.64384 | BA10: =SUMIF('SORT-DAY'!$D$16:$IR$16,BA$4,'SORT-DAY'!$D105:$IR105)+SUMIF('SORT-DAY'!$A$124:$IR$124,BA$4,'SORT-DAY'!$A213:$IR213) -> 16561.64384 | BB10: =SUMIF('SORT-DAY'!$D$16:$IR$16,BB$4,'SORT-DAY'!$D105:$IR105)+SUMIF('SORT-DAY'!$A$124:$IR$124,BB$4,'SORT-DAY'!$A213:$IR213) -> 16027.39726 | BC10: =SUMIF('SORT-DAY'!$D$16:$IR$16,BC$4,'SORT-DAY'!$D105:$IR105)+SUMIF('SORT-DAY'!$A$124:$IR$124,BC$4,'SORT-DAY'!$A213:$IR213) -> 16561.64384 | BD10: =SUMIF('SORT-DAY'!$D$16:$IR$16,BD$4,'SORT-DAY'!$D105:$IR105)+SUMIF('SORT-DAY'!$A$124:$IR$124,BD$4,'SORT-DAY'!$A213:$IR213) -> 16027.39726 | BE10: =SUMIF('SORT-DAY'!$D$16:$IR$16,BE$4,'SORT-DAY'!$D105:$IR105)+SUMIF('SORT-DAY'!$A$124:$IR$124,BE$4,'SORT-DAY'!$A213:$IR213) -> 16561.64384 | BG10: 195000
B11: 6 | C11: 7777 | D11: ΑΓ-ΧΤ | E11: 135 | I11: 2017-01-01 | J11: 2017-12-31 | K11: 365 | L11: 195000 | O11: =IF(T11="","",IF(ISERROR(AD11),"",ROUND(SUMIF(Δεδομένα2!$S$3:$EH$3,Παροχές!T11,Δεδομένα2!$S$22:$EH$22),0))) -> 18938 | P11: =IF(T11="","",IF(ISERROR(AD11),"",ROUND(SUMIF(Δεδομένα2!$S$3:$EH$3,Παροχές!T11,Δεδομένα2!$S$32:$EH$32),0))) -> 18521 | Q11: 365 | R11: 7777 | S11: 1 | T11: 6-ΑΓ-ΧΤ | U11: 135 | V11: 135 | W11: 0 | X11: 0 | Y11: 0 | Z11: =IF(G11<>"",Δεδομένα2!$J$15/Παροχές!G11,"") ->  | AA11: 365 | AB11: =IF(T11<>"",MIN(INDIRECT("i" & ROW()):INDIRECT("i" & ROW()+S11-1)),"") -> 2017-01-01 | AC11: 2017-12-31 | AD11: 195000 | AE11: 0 | AF11: 6 | AG11: 189042.4658 | AH11: 0 | AI11: 195000 | AJ11: 195000 | AS11: 7 | AT11: =SUMIF('SORT-DAY'!$D$16:$IR$16,AT$4,'SORT-DAY'!$D106:$IR106)+SUMIF('SORT-DAY'!$A$124:$IR$124,AT$4,'SORT-DAY'!$A214:$IR214) -> 19958.90411 | AU11: =SUMIF('SORT-DAY'!$D$16:$IR$16,AU$4,'SORT-DAY'!$D106:$IR106)+SUMIF('SORT-DAY'!$A$124:$IR$124,AU$4,'SORT-DAY'!$A214:$IR214) -> 18027.39726 | AV11: =SUMIF('SORT-DAY'!$D$16:$IR$16,AV$4,'SORT-DAY'!$D106:$IR106)+SUMIF('SORT-DAY'!$A$124:$IR$124,AV$4,'SORT-DAY'!$A214:$IR214) -> 19958.90411 | AW11: =SUMIF('SORT-DAY'!$D$16:$IR$16,AW$4,'SORT-DAY'!$D106:$IR106)+SUMIF('SORT-DAY'!$A$124:$IR$124,AW$4,'SORT-DAY'!$A214:$IR214) -> 19315.06849 | AX11: =SUMIF('SORT-DAY'!$D$16:$IR$16,AX$4,'SORT-DAY'!$D106:$IR106)+SUMIF('SORT-DAY'!$A$124:$IR$124,AX$4,'SORT-DAY'!$A214:$IR214) -> 19958.90411 | AY11: =SUMIF('SORT-DAY'!$D$16:$IR$16,AY$4,'SORT-DAY'!$D106:$IR106)+SUMIF('SORT-DAY'!$A$124:$IR$124,AY$4,'SORT-DAY'!$A214:$IR214) -> 19315.06849 | AZ11: =SUMIF('SORT-DAY'!$D$16:$IR$16,AZ$4,'SORT-DAY'!$D106:$IR106)+SUMIF('SORT-DAY'!$A$124:$IR$124,AZ$4,'SORT-DAY'!$A214:$IR214) -> 19958.90411 | BA11: =SUMIF('SORT-DAY'!$D$16:$IR$16,BA$4,'SORT-DAY'!$D106:$IR106)+SUMIF('SORT-DAY'!$A$124:$IR$124,BA$4,'SORT-DAY'!$A214:$IR214) -> 19958.90411 | BB11: =SUMIF('SORT-DAY'!$D$16:$IR$16,BB$4,'SORT-DAY'!$D106:$IR106)+SUMIF('SORT-DAY'!$A$124:$IR$124,BB$4,'SORT-DAY'!$A214:$IR214) -> 19315.06849 | BC11: =SUMIF('SORT-DAY'!$D$16:$IR$16,BC$4,'SORT-DAY'!$D106:$IR106)+SUMIF('SORT-DAY'!$A$124:$IR$124,BC$4,'SORT-DAY'!$A214:$IR214) -> 19958.90411 | BD11: =SUMIF('SORT-DAY'!$D$16:$IR$16,BD$4,'SORT-DAY'!$D106:$IR106)+SUMIF('SORT-DAY'!$A$124:$IR$124,BD$4,'SORT-DAY'!$A214:$IR214) -> 19315.06849 | BE11: =SUMIF('SORT-DAY'!$D$16:$IR$16,BE$4,'SORT-DAY'!$D106:$IR106)+SUMIF('SORT-DAY'!$A$124:$IR$124,BE$4,'SORT-DAY'!$A214:$IR214) -> 19958.90411 | BG11: 235000
B12: 7 | C12: 8888 | D12: ΑΓ-ΧΤ | E12: 135 | I12: 2017-01-01 | J12: 2017-12-31 | K12: 365 | L12: 235000 | O12: =IF(T12="","",IF(ISERROR(AD12),"",ROUND(SUMIF(Δεδομένα2!$S$3:$EH$3,Παροχές!T12,Δεδομένα2!$S$22:$EH$22),0))) -> 22822 | P12: =IF(T12="","",IF(ISERROR(AD12),"",ROUND(SUMIF(Δεδομένα2!$S$3:$EH$3,Παροχές!T12,Δεδομένα2!$S$32:$EH$32),0))) -> 22841 | Q12: 365 | R12: 8888 | S12: 1 | T12: 7-ΑΓ-ΧΤ | U12: 135 | V12: 135 | W12: 0 | X12: 0 | Y12: 0 | Z12: =IF(G12<>"",Δεδομένα2!$J$15/Παροχές!G12,"") ->  | AA12: 365 | AB12: =IF(T12<>"",MIN(INDIRECT("i" & ROW()):INDIRECT("i" & ROW()+S12-1)),"") -> 2017-01-01 | AC12: 2017-12-31 | AD12: 235000 | AE12: 0 | AF12: 7 | AG12: 235000 | AH12: 0 | AI12: 235000 | AJ12: 235000 | AS12: 8 | AT12: =SUMIF('SORT-DAY'!$D$16:$IR$16,AT$4,'SORT-DAY'!$D107:$IR107)+SUMIF('SORT-DAY'!$A$124:$IR$124,AT$4,'SORT-DAY'!$A215:$IR215) -> 20808.21918 | AU12: =SUMIF('SORT-DAY'!$D$16:$IR$16,AU$4,'SORT-DAY'!$D107:$IR107)+SUMIF('SORT-DAY'!$A$124:$IR$124,AU$4,'SORT-DAY'!$A215:$IR215) -> 18794.52055 | AV12: =SUMIF('SORT-DAY'!$D$16:$IR$16,AV$4,'SORT-DAY'!$D107:$IR107)+SUMIF('SORT-DAY'!$A$124:$IR$124,AV$4,'SORT-DAY'!$A215:$IR215) -> 20808.21918 | AW12: =SUMIF('SORT-DAY'!$D$16:$IR$16,AW$4,'SORT-DAY'!$D107:$IR107)+SUMIF('SORT-DAY'!$A$124:$IR$124,AW$4,'SORT-DAY'!$A215:$IR215) -> 20136.9863 | AX12: =SUMIF('SORT-DAY'!$D$16:$IR$16,AX$4,'SORT-DAY'!$D107:$IR107)+SUMIF('SORT-DAY'!$A$124:$IR$124,AX$4,'SORT-DAY'!$A215:$IR215) -> 20808.21918 | AY12: =SUMIF('SORT-DAY'!$D$16:$IR$16,AY$4,'SORT-DAY'!$D107:$IR107)+SUMIF('SORT-DAY'!$A$124:$IR$124,AY$4,'SORT-DAY'!$A215:$IR215) -> 20136.9863 | AZ12: =SUMIF('SORT-DAY'!$D$16:$IR$16,AZ$4,'SORT-DAY'!$D107:$IR107)+SUMIF('SORT-DAY'!$A$124:$IR$124,AZ$4,'SORT-DAY'!$A215:$IR215) -> 20808.21918 | BA12: =SUMIF('SORT-DAY'!$D$16:$IR$16,BA$4,'SORT-DAY'!$D107:$IR107)+SUMIF('SORT-DAY'!$A$124:$IR$124,BA$4,'SORT-DAY'!$A215:$IR215) -> 20808.21918 | BB12: =SUMIF('SORT-DAY'!$D$16:$IR$16,BB$4,'SORT-DAY'!$D107:$IR107)+SUMIF('SORT-DAY'!$A$124:$IR$124,BB$4,'SORT-DAY'!$A215:$IR215) -> 20136.9863 | BC12: =SUMIF('SORT-DAY'!$D$16:$IR$16,BC$4,'SORT-DAY'!$D107:$IR107)+SUMIF('SORT-DAY'!$A$124:$IR$124,BC$4,'SORT-DAY'!$A215:$IR215) -> 20808.21918 | BD12: =SUMIF('SORT-DAY'!$D$16:$IR$16,BD$4,'SORT-DAY'!$D107:$IR107)+SUMIF('SORT-DAY'!$A$124:$IR$124,BD$4,'SORT-DAY'!$A215:$IR215) -> 20136.9863 | BE12: =SUMIF('SORT-DAY'!$D$16:$IR$16,BE$4,'SORT-DAY'!$D107:$IR107)+SUMIF('SORT-DAY'!$A$124:$IR$124,BE$4,'SORT-DAY'!$A215:$IR215) -> 20808.21918 | BG12: 245000
B13: 8 | C13: 9999 | D13: ΑΓ-ΧΤ | E13: 135 | I13: 2017-01-01 | J13: 2017-12-31 | K13: 365 | L13: 245000 | O13: =IF(T13="","",IF(ISERROR(AD13),"",ROUND(SUMIF(Δεδομένα2!$S$3:$EH$3,Παροχές!T13,Δεδομένα2!$S$22:$EH$22),0))) -> 23792 | P13: =IF(T13="","",IF(ISERROR(AD13),"",ROUND(SUMIF(Δεδομένα2!$S$3:$EH$3,Παροχές!T13,Δεδομένα2!$S$32:$EH$32),0))) -> 23813 | Q13: 365 | R13: 9999 | S13: 1 | T13: 8-ΑΓ-ΧΤ | U13: 135 | V13: 135 | W13: 0 | X13: 0 | Y13: 0 | Z13: =IF(G13<>"",Δεδομένα2!$J$15/Παροχές!G13,"") ->  | AA13: 365 | AB13: =IF(T13<>"",MIN(INDIRECT("i" & ROW()):INDIRECT("i" & ROW()+S13-1)),"") -> 2017-01-01 | AC13: 2017-12-31 | AD13: 245000 | AE13: 0 | AF13: 8 | AG13: 245000 | AH13: 0 | AI13: 245000 | AJ13: 245000 | AS13: 9 | AT13: =SUMIF('SORT-DAY'!$D$16:$IR$16,AT$4,'SORT-DAY'!$D108:$IR108)+SUMIF('SORT-DAY'!$A$124:$IR$124,AT$4,'SORT-DAY'!$A216:$IR216) -> 10276.71233 | AU13: =SUMIF('SORT-DAY'!$D$16:$IR$16,AU$4,'SORT-DAY'!$D108:$IR108)+SUMIF('SORT-DAY'!$A$124:$IR$124,AU$4,'SORT-DAY'!$A216:$IR216) -> 9282.191781 | AV13: =SUMIF('SORT-DAY'!$D$16:$IR$16,AV$4,'SORT-DAY'!$D108:$IR108)+SUMIF('SORT-DAY'!$A$124:$IR$124,AV$4,'SORT-DAY'!$A216:$IR216) -> 10276.71233 | AW13: =SUMIF('SORT-DAY'!$D$16:$IR$16,AW$4,'SORT-DAY'!$D108:$IR108)+SUMIF('SORT-DAY'!$A$124:$IR$124,AW$4,'SORT-DAY'!$A216:$IR216) -> 9945.205479 | AX13: =SUMIF('SORT-DAY'!$D$16:$IR$16,AX$4,'SORT-DAY'!$D108:$IR108)+SUMIF('SORT-DAY'!$A$124:$IR$124,AX$4,'SORT-DAY'!$A216:$IR216) -> 10276.71233 | AY13: =SUMIF('SORT-DAY'!$D$16:$IR$16,AY$4,'SORT-DAY'!$D108:$IR108)+SUMIF('SORT-DAY'!$A$124:$IR$124,AY$4,'SORT-DAY'!$A216:$IR216) -> 9945.205479 | AZ13: =SUMIF('SORT-DAY'!$D$16:$IR$16,AZ$4,'SORT-DAY'!$D108:$IR108)+SUMIF('SORT-DAY'!$A$124:$IR$124,AZ$4,'SORT-DAY'!$A216:$IR216) -> 10276.71233 | BA13: =SUMIF('SORT-DAY'!$D$16:$IR$16,BA$4,'SORT-DAY'!$D108:$IR108)+SUMIF('SORT-DAY'!$A$124:$IR$124,BA$4,'SORT-DAY'!$A216:$IR216) -> 10276.71233 | BB13: =SUMIF('SORT-DAY'!$D$16:$IR$16,BB$4,'SORT-DAY'!$D108:$IR108)+SUMIF('SORT-DAY'!$A$124:$IR$124,BB$4,'SORT-DAY'!$A216:$IR216) -> 9945.205479 | BC13: =SUMIF('SORT-DAY'!$D$16:$IR$16,BC$4,'SORT-DAY'!$D108:$IR108)+SUMIF('SORT-DAY'!$A$124:$IR$124,BC$4,'SORT-DAY'!$A216:$IR216) -> 10276.71233 | BD13: =SUMIF('SORT-DAY'!$D$16:$IR$16,BD$4,'SORT-DAY'!$D108:$IR108)+SUMIF('SORT-DAY'!$A$124:$IR$124,BD$4,'SORT-DAY'!$A216:$IR216) -> 9945.205479 | BE13: =SUMIF('SORT-DAY'!$D$16:$IR$16,BE$4,'SORT-DAY'!$D108:$IR108)+SUMIF('SORT-DAY'!$A$124:$IR$124,BE$4,'SORT-DAY'!$A216:$IR216) -> 10276.71233 | BG13: 121000
B14: 9 | C14: 1010 | D14: ΑΓ-ΧΤ | E14: 135 | I14: 2017-01-01 | J14: 2017-12-31 | K14: 365 | L14: 121000 | O14: =IF(T14="","",IF(ISERROR(AD14),"",ROUND(SUMIF(Δεδομένα2!$S$3:$EH$3,Παροχές!T14,Δεδομένα2!$S$22:$EH$22),0))) -> 11754 | P14: =IF(T14="","",IF(ISERROR(AD14),"",ROUND(SUMIF(Δεδομένα2!$S$3:$EH$3,Παροχές!T14,Δεδομένα2!$S$32:$EH$32),0))) -> 11764 | Q14: 365 | R14: 1010 | S14: 1 | T14: 9-ΑΓ-ΧΤ | U14: 135 | V14: 135 | W14: 0 | X14: 0 | Y14: 0 | Z14: =IF(G14<>"",Δεδομένα2!$J$15/Παροχές!G14,"") ->  | AA14: 365 | AB14: =IF(T14<>"",MIN(INDIRECT("i" & ROW()):INDIRECT("i" & ROW()+S14-1)),"") -> 2017-01-01 | AC14: 2017-12-31 | AD14: 121000 | AE14: 0 | AF14: 9 | AG14: 121000 | AH14: 0 | AI14: 121000 | AJ14: 121000 | AS14: 10 | AT14: =SUMIF('SORT-DAY'!$D$16:$IR$16,AT$4,'SORT-DAY'!$D109:$IR109)+SUMIF('SORT-DAY'!$A$124:$IR$124,AT$4,'SORT-DAY'!$A217:$IR217) -> 10276.79726 | AU14: =SUMIF('SORT-DAY'!$D$16:$IR$16,AU$4,'SORT-DAY'!$D109:$IR109)+SUMIF('SORT-DAY'!$A$124:$IR$124,AU$4,'SORT-DAY'!$A217:$IR217) -> 9282.268493 | AV14: =SUMIF('SORT-DAY'!$D$16:$IR$16,AV$4,'SORT-DAY'!$D109:$IR109)+SUMIF('SORT-DAY'!$A$124:$IR$124,AV$4,'SORT-DAY'!$A217:$IR217) -> 10276.79726 | AW14: =SUMIF('SORT-DAY'!$D$16:$IR$16,AW$4,'SORT-DAY'!$D109:$IR109)+SUMIF('SORT-DAY'!$A$124:$IR$124,AW$4,'SORT-DAY'!$A217:$IR217) -> 9945.287671 | AX14: =SUMIF('SORT-DAY'!$D$16:$IR$16,AX$4,'SORT-DAY'!$D109:$IR109)+SUMIF('SORT-DAY'!$A$124:$IR$124,AX$4,'SORT-DAY'!$A217:$IR217) -> 10276.79726 | AY14: =SUMIF('SORT-DAY'!$D$16:$IR$16,AY$4,'SORT-DAY'!$D109:$IR109)+SUMIF('SORT-DAY'!$A$124:$IR$124,AY$4,'SORT-DAY'!$A217:$IR217) -> 9945.287671 | AZ14: =SUMIF('SORT-DAY'!$D$16:$IR$16,AZ$4,'SORT-DAY'!$D109:$IR109)+SUMIF('SORT-DAY'!$A$124:$IR$124,AZ$4,'SORT-DAY'!$A217:$IR217) -> 10276.79726 | BA14: =SUMIF('SORT-DAY'!$D$16:$IR$16,BA$4,'SORT-DAY'!$D109:$IR109)+SUMIF('SORT-DAY'!$A$124:$IR$124,BA$4,'SORT-DAY'!$A217:$IR217) -> 10276.79726 | BB14: =SUMIF('SORT-DAY'!$D$16:$IR$16,BB$4,'SORT-DAY'!$D109:$IR109)+SUMIF('SORT-DAY'!$A$124:$IR$124,BB$4,'SORT-DAY'!$A217:$IR217) -> 9945.287671 | BC14: =SUMIF('SORT-DAY'!$D$16:$IR$16,BC$4,'SORT-DAY'!$D109:$IR109)+SUMIF('SORT-DAY'!$A$124:$IR$124,BC$4,'SORT-DAY'!$A217:$IR217) -> 10276.79726 | BD14: =SUMIF('SORT-DAY'!$D$16:$IR$16,BD$4,'SORT-DAY'!$D109:$IR109)+SUMIF('SORT-DAY'!$A$124:$IR$124,BD$4,'SORT-DAY'!$A217:$IR217) -> 9945.287671 | BE14: =SUMIF('SORT-DAY'!$D$16:$IR$16,BE$4,'SORT-DAY'!$D109:$IR109)+SUMIF('SORT-DAY'!$A$124:$IR$124,BE$4,'SORT-DAY'!$A217:$IR217) -> 10276.79726 | BG14: 121001
B15: 10 | C15: 1025 | D15: ΑΓ-ΧΤ | E15: 136 | I15: 2017-01-01 | J15: 2017-12-31 | K15: =IF(OR(I15="",J15=""),"",J15-I15+1) -> 365 | L15: 121001 | O15: =IF(T15="","",IF(ISERROR(AD15),"",ROUND(SUMIF(Δεδομένα2!$S$3:$EH$3,Παροχές!T15,Δεδομένα2!$S$22:$EH$22),0))) -> 11754 | P15: =IF(T15="","",IF(ISERROR(AD15),"",ROUND(SUMIF(Δεδομένα2!$S$3:$EH$3,Παροχές!T15,Δεδομένα2!$S$32:$EH$32),0))) -> 11764 | Q15: 365 | R15: 1025 | S15: 1 | T15: 10-ΑΓ-ΧΤ | U15: 136 | V15: 136 | W15: 0 | X15: 0 | Y15: 0 | Z15: =IF(G15<>"",Δεδομένα2!$J$15/Παροχές!G15,"") ->  | AA15: 365 | AB15: =IF(T15<>"",MIN(INDIRECT("i" & ROW()):INDIRECT("i" & ROW()+S15-1)),"") -> 2017-01-01 | AC15: 2017-12-31 | AD15: 121001 | AE15: 0 | AF15: 10 | AG15: 121001 | AH15: 0 | AI15: 121001 | AJ15: 121001
B16: =IF(C16="","",IF(B15<300,IF(C16=C15,B15,B15+1),"")) -> 11 | C16: 2225 | D16: ΦΟΠ3 | E16: 135 | I16: 2017-01-01 | J16: 2017-12-31 | K16: 365 | O16: =IF(T16="","",IF(ISERROR(AD16),"",ROUND(SUMIF(Δεδομένα2!$S$3:$EH$3,Παροχές!T16,Δεδομένα2!$S$22:$EH$22),0))) -> 0 | P16: =IF(T16="","",IF(ISERROR(AD16),"",ROUND(SUMIF(Δεδομένα2!$S$3:$EH$3,Παροχές!T16,Δεδομένα2!$S$32:$EH$32),0))) -> 0 | Q16: 365 | R16: 2225 | S16: 1 | T16: 11-ΦΟΠ3 | U16: 135 | V16: 135 | W16: 0 | X16: 0 | Y16: 0 | Z16: =IF(G16<>"",Δεδομένα2!$J$15/Παροχές!G16,"") ->  | AA16: 365 | AB16: =IF(T16<>"",MIN(INDIRECT("i" & ROW()):INDIRECT("i" & ROW()+S16-1)),"") -> 2017-01-01 | AC16: 2017-12-31 | AD16: 0 | AE16: 0 | AF16: 11 | AG16: 0 | AH16: 0 | AI16: 0 | AJ16: 0 | AS16: Νύχτας | AT16: 1 | AU16: 2 | AV16: 3 | AW16: 4 | AX16: 5 | AY16: 6 | AZ16: 7 | BA16: 8 | BB16: 9 | BC16: 10 | BD16: 11 | BE16: 12
B17: =IF(C17="","",IF(B16<300,IF(C17=C16,B16,B16+1),"")) -> 12 | C17: 2589 | I17: 2017-01-01 | J17: 2017-12-31 | K17: 365 | O17: =IF(T17="","",IF(ISERROR(AD17),"",ROUND(SUMIF(Δεδομένα2!$S$3:$EH$3,Παροχές!T17,Δεδομένα2!$S$22:$EH$22),0))) -> 0 | P17: =IF(T17="","",IF(ISERROR(AD17),"",ROUND(SUMIF(Δεδομένα2!$S$3:$EH$3,Παροχές!T17,Δεδομένα2!$S$32:$EH$32),0))) -> 0 | Q17: 365 | R17: 2589 | S17: 1 | T17: 12- | V17: 0 | W17: 0 | X17: 0 | Y17: 0 | Z17: =IF(G17<>"",Δεδομένα2!$J$15/Παροχές!G17,"") ->  | AA17: 730 | AB17: =IF(T17<>"",MIN(INDIRECT("i" & ROW()):INDIRECT("i" & ROW()+S17-1)),"") -> 2017-01-01 | AC17: 2017-12-31 | AD17: 0 | AE17: 0 | AF17: 12 | AG17: 0 | AH17: 0 | AI17: 0 | AJ17: 0 | AS17: 1 | AT17: =SUMIF('SORT-NIGHT'!$D$16:$IS$16,AT$16,'SORT-NIGHT'!$D100:$IS100)+SUMIF('SORT-NIGHT'!$D$124:$IT$124,AT$16,'SORT-NIGHT'!$D208:$IT208) -> 0 | AU17: =SUMIF('SORT-NIGHT'!$D$16:$IS$16,AU$16,'SORT-NIGHT'!$D100:$IS100)+SUMIF('SORT-NIGHT'!$D$124:$IT$124,AU$16,'SORT-NIGHT'!$D208:$IT208) -> 0 | AV17: =SUMIF('SORT-NIGHT'!$D$16:$IS$16,AV$16,'SORT-NIGHT'!$D100:$IS100)+SUMIF('SORT-NIGHT'!$D$124:$IT$124,AV$16,'SORT-NIGHT'!$D208:$IT208) -> 0 | AW17: =SUMIF('SORT-NIGHT'!$D$16:$IS$16,AW$16,'SORT-NIGHT'!$D100:$IS100)+SUMIF('SORT-NIGHT'!$D$124:$IT$124,AW$16,'SORT-NIGHT'!$D208:$IT208) -> 0 | AX17: =SUMIF('SORT-NIGHT'!$D$16:$IS$16,AX$16,'SORT-NIGHT'!$D100:$IS100)+SUMIF('SORT-NIGHT'!$D$124:$IT$124,AX$16,'SORT-NIGHT'!$D208:$IT208) -> 0 | AY17: =SUMIF('SORT-NIGHT'!$D$16:$IS$16,AY$16,'SORT-NIGHT'!$D100:$IS100)+SUMIF('SORT-NIGHT'!$D$124:$IT$124,AY$16,'SORT-NIGHT'!$D208:$IT208) -> 0 | AZ17: =SUMIF('SORT-NIGHT'!$D$16:$IS$16,AZ$16,'SORT-NIGHT'!$D100:$IS100)+SUMIF('SORT-NIGHT'!$D$124:$IT$124,AZ$16,'SORT-NIGHT'!$D208:$IT208) -> 0 | BA17: =SUMIF('SORT-NIGHT'!$D$16:$IS$16,BA$16,'SORT-NIGHT'!$D100:$IS100)+SUMIF('SORT-NIGHT'!$D$124:$IT$124,BA$16,'SORT-NIGHT'!$D208:$IT208) -> 0 | BB17: =SUMIF('SORT-NIGHT'!$D$16:$IS$16,BB$16,'SORT-NIGHT'!$D100:$IS100)+SUMIF('SORT-NIGHT'!$D$124:$IT$124,BB$16,'SORT-NIGHT'!$D208:$IT208) -> 0 | BC17: =SUMIF('SORT-NIGHT'!$D$16:$IS$16,BC$16,'SORT-NIGHT'!$D100:$IS100)+SUMIF('SORT-NIGHT'!$D$124:$IT$124,BC$16,'SORT-NIGHT'!$D208:$IT208) -> 0 | BD17: =SUMIF('SORT-NIGHT'!$D$16:$IS$16,BD$16,'SORT-NIGHT'!$D100:$IS100)+SUMIF('SORT-NIGHT'!$D$124:$IT$124,BD$16,'SORT-NIGHT'!$D208:$IT208) -> 0 | BE17: =SUMIF('SORT-NIGHT'!$D$16:$IS$16,BE$16,'SORT-NIGHT'!$D100:$IS100)+SUMIF('SORT-NIGHT'!$D$124:$IT$124,BE$16,'SORT-NIGHT'!$D208:$IT208) -> 0 | BG17: =SUM(AT17:BE17) -> 0
B18: 13 | C18: 2547 | I18: 2017-01-01 | J18: 2017-12-31 | K18: 365 | O18: =IF(T18="","",IF(ISERROR(AD18),"",ROUND(SUMIF(Δεδομένα2!$S$3:$EH$3,Παροχές!T18,Δεδομένα2!$S$22:$EH$22),0))) -> 0 | P18: =IF(T18="","",IF(ISERROR(AD18),"",ROUND(SUMIF(Δεδομένα2!$S$3:$EH$3,Παροχές!T18,Δεδομένα2!$S$32:$EH$32),0))) -> 0 | Q18: 365 | R18: 2547 | S18: 1 | T18: 13- | V18: 0 | W18: 0 | X18: 0 | Y18: 0 | Z18: =IF(G18<>"",Δεδομένα2!$J$15/Παροχές!G18,"") ->  | AA18: 730 | AB18: =IF(T18<>"",MIN(INDIRECT("i" & ROW()):INDIRECT("i" & ROW()+S18-1)),"") -> 2017-01-01 | AC18: 2017-12-31 | AD18: 0 | AE18: 0 | AF18: 13 | AG18: 0 | AH18: 0 | AI18: 0 | AJ18: 0 | AS18: 2 | AT18: =SUMIF('SORT-NIGHT'!$D$16:$IS$16,AT$16,'SORT-NIGHT'!$D101:$IS101)+SUMIF('SORT-NIGHT'!$D$124:$IT$124,AT$16,'SORT-NIGHT'!$D209:$IT209) -> 0 | AU18: =SUMIF('SORT-NIGHT'!$D$16:$IS$16,AU$16,'SORT-NIGHT'!$D101:$IS101)+SUMIF('SORT-NIGHT'!$D$124:$IT$124,AU$16,'SORT-NIGHT'!$D209:$IT209) -> 0 | AV18: =SUMIF('SORT-NIGHT'!$D$16:$IS$16,AV$16,'SORT-NIGHT'!$D101:$IS101)+SUMIF('SORT-NIGHT'!$D$124:$IT$124,AV$16,'SORT-NIGHT'!$D209:$IT209) -> 0 | AW18: =SUMIF('SORT-NIGHT'!$D$16:$IS$16,AW$16,'SORT-NIGHT'!$D101:$IS101)+SUMIF('SORT-NIGHT'!$D$124:$IT$124,AW$16,'SORT-NIGHT'!$D209:$IT209) -> 0 | AX18: =SUMIF('SORT-NIGHT'!$D$16:$IS$16,AX$16,'SORT-NIGHT'!$D101:$IS101)+SUMIF('SORT-NIGHT'!$D$124:$IT$124,AX$16,'SORT-NIGHT'!$D209:$IT209) -> 0 | AY18: =SUMIF('SORT-NIGHT'!$D$16:$IS$16,AY$16,'SORT-NIGHT'!$D101:$IS101)+SUMIF('SORT-NIGHT'!$D$124:$IT$124,AY$16,'SORT-NIGHT'!$D209:$IT209) -> 0 | AZ18: =SUMIF('SORT-NIGHT'!$D$16:$IS$16,AZ$16,'SORT-NIGHT'!$D101:$IS101)+SUMIF('SORT-NIGHT'!$D$124:$IT$124,AZ$16,'SORT-NIGHT'!$D209:$IT209) -> 0 | BA18: =SUMIF('SORT-NIGHT'!$D$16:$IS$16,BA$16,'SORT-NIGHT'!$D101:$IS101)+SUMIF('SORT-NIGHT'!$D$124:$IT$124,BA$16,'SORT-NIGHT'!$D209:$IT209) -> 0 | BB18: =SUMIF('SORT-NIGHT'!$D$16:$IS$16,BB$16,'SORT-NIGHT'!$D101:$IS101)+SUMIF('SORT-NIGHT'!$D$124:$IT$124,BB$16,'SORT-NIGHT'!$D209:$IT209) -> 0 | BC18: =SUMIF('SORT-NIGHT'!$D$16:$IS$16,BC$16,'SORT-NIGHT'!$D101:$IS101)+SUMIF('SORT-NIGHT'!$D$124:$IT$124,BC$16,'SORT-NIGHT'!$D209:$IT209) -> 0 | BD18: =SUMIF('SORT-NIGHT'!$D$16:$IS$16,BD$16,'SORT-NIGHT'!$D101:$IS101)+SUMIF('SORT-NIGHT'!$D$124:$IT$124,BD$16,'SORT-NIGHT'!$D209:$IT209) -> 0 | BE18: =SUMIF('SORT-NIGHT'!$D$16:$IS$16,BE$16,'SORT-NIGHT'!$D101:$IS101)+SUMIF('SORT-NIGHT'!$D$124:$IT$124,BE$16,'SORT-NIGHT'!$D209:$IT209) -> 0 | BG18: 0
B19: =IF(C19="","",IF(B18<300,IF(C19=C18,B18,B18+1),"")) -> 14 | C19: 4443 | I19: 2017-01-01 | J19: 2017-12-31 | K19: 365 | O19: =IF(T19="","",IF(ISERROR(AD19),"",ROUND(SUMIF(Δεδομένα2!$S$3:$EH$3,Παροχές!T19,Δεδομένα2!$S$22:$EH$22),0))) -> 0 | P19: =IF(T19="","",IF(ISERROR(AD19),"",ROUND(SUMIF(Δεδομένα2!$S$3:$EH$3,Παροχές!T19,Δεδομένα2!$S$32:$EH$32),0))) -> 0 | Q19: 365 | R19: 4443 | S19: 1 | T19: 14- | V19: 0 | W19: 0 | X19: 0 | Y19: 0 | Z19: =IF(G19<>"",Δεδομένα2!$J$15/Παροχές!G19,"") ->  | AA19: 365 | AB19: =IF(T19<>"",MIN(INDIRECT("i" & ROW()):INDIRECT("i" & ROW()+S19-1)),"") -> 2017-01-01 | AC19: 2017-12-31 | AD19: 0 | AE19: 0 | AF19: 14 | AG19: 0 | AH19: 0 | AI19: 0 | AJ19: 0 | AS19: 3 | AT19: =SUMIF('SORT-NIGHT'!$D$16:$IS$16,AT$16,'SORT-NIGHT'!$D102:$IS102)+SUMIF('SORT-NIGHT'!$D$124:$IT$124,AT$16,'SORT-NIGHT'!$D210:$IT210) -> 0 | AU19: =SUMIF('SORT-NIGHT'!$D$16:$IS$16,AU$16,'SORT-NIGHT'!$D102:$IS102)+SUMIF('SORT-NIGHT'!$D$124:$IT$124,AU$16,'SORT-NIGHT'!$D210:$IT210) -> 0 | AV19: =SUMIF('SORT-NIGHT'!$D$16:$IS$16,AV$16,'SORT-NIGHT'!$D102:$IS102)+SUMIF('SORT-NIGHT'!$D$124:$IT$124,AV$16,'SORT-NIGHT'!$D210:$IT210) -> 0 | AW19: =SUMIF('SORT-NIGHT'!$D$16:$IS$16,AW$16,'SORT-NIGHT'!$D102:$IS102)+SUMIF('SORT-NIGHT'!$D$124:$IT$124,AW$16,'SORT-NIGHT'!$D210:$IT210) -> 0 | AX19: =SUMIF('SORT-NIGHT'!$D$16:$IS$16,AX$16,'SORT-NIGHT'!$D102:$IS102)+SUMIF('SORT-NIGHT'!$D$124:$IT$124,AX$16,'SORT-NIGHT'!$D210:$IT210) -> 0 | AY19: =SUMIF('SORT-NIGHT'!$D$16:$IS$16,AY$16,'SORT-NIGHT'!$D102:$IS102)+SUMIF('SORT-NIGHT'!$D$124:$IT$124,AY$16,'SORT-NIGHT'!$D210:$IT210) -> 0 | AZ19: =SUMIF('SORT-NIGHT'!$D$16:$IS$16,AZ$16,'SORT-NIGHT'!$D102:$IS102)+SUMIF('SORT-NIGHT'!$D$124:$IT$124,AZ$16,'SORT-NIGHT'!$D210:$IT210) -> 0 | BA19: =SUMIF('SORT-NIGHT'!$D$16:$IS$16,BA$16,'SORT-NIGHT'!$D102:$IS102)+SUMIF('SORT-NIGHT'!$D$124:$IT$124,BA$16,'SORT-NIGHT'!$D210:$IT210) -> 0 | BB19: =SUMIF('SORT-NIGHT'!$D$16:$IS$16,BB$16,'SORT-NIGHT'!$D102:$IS102)+SUMIF('SORT-NIGHT'!$D$124:$IT$124,BB$16,'SORT-NIGHT'!$D210:$IT210) -> 0 | BC19: =SUMIF('SORT-NIGHT'!$D$16:$IS$16,BC$16,'SORT-NIGHT'!$D102:$IS102)+SUMIF('SORT-NIGHT'!$D$124:$IT$124,BC$16,'SORT-NIGHT'!$D210:$IT210) -> 0 | BD19: =SUMIF('SORT-NIGHT'!$D$16:$IS$16,BD$16,'SORT-NIGHT'!$D102:$IS102)+SUMIF('SORT-NIGHT'!$D$124:$IT$124,BD$16,'SORT-NIGHT'!$D210:$IT210) -> 0 | BE19: =SUMIF('SORT-NIGHT'!$D$16:$IS$16,BE$16,'SORT-NIGHT'!$D102:$IS102)+SUMIF('SORT-NIGHT'!$D$124:$IT$124,BE$16,'SORT-NIGHT'!$D210:$IT210) -> 0 | BG19: 0
B20: 15 | C20: 2558 | I20: 2017-01-01 | J20: 2017-12-31 | K20: 365 | O20: =IF(T20="","",IF(ISERROR(AD20),"",ROUND(SUMIF(Δεδομένα2!$S$3:$EH$3,Παροχές!T20,Δεδομένα2!$S$22:$EH$22),0))) -> 0 | P20: =IF(T20="","",IF(ISERROR(AD20),"",ROUND(SUMIF(Δεδομένα2!$S$3:$EH$3,Παροχές!T20,Δεδομένα2!$S$32:$EH$32),0))) -> 0 | Q20: 365 | R20: 2558 | S20: 1 | T20: 15- | V20: 0 | W20: 0 | X20: 0 | Y20: 0 | Z20: =IF(G20<>"",Δεδομένα2!$J$15/Παροχές!G20,"") ->  | AA20: 365 | AB20: =IF(T20<>"",MIN(INDIRECT("i" & ROW()):INDIRECT("i" & ROW()+S20-1)),"") -> 2017-01-01 | AC20: 2017-12-31 | AD20: 0 | AE20: 0 | AF20: 15 | AG20: 0 | AH20: 0 | AI20: 0 | AJ20: 0 | AS20: 4 | AT20: =SUMIF('SORT-NIGHT'!$D$16:$IS$16,AT$16,'SORT-NIGHT'!$D103:$IS103)+SUMIF('SORT-NIGHT'!$D$124:$IT$124,AT$16,'SORT-NIGHT'!$D211:$IT211) -> 0 | AU20: =SUMIF('SORT-NIGHT'!$D$16:$IS$16,AU$16,'SORT-NIGHT'!$D103:$IS103)+SUMIF('SORT-NIGHT'!$D$124:$IT$124,AU$16,'SORT-NIGHT'!$D211:$IT211) -> 0 | AV20: =SUMIF('SORT-NIGHT'!$D$16:$IS$16,AV$16,'SORT-NIGHT'!$D103:$IS103)+SUMIF('SORT-NIGHT'!$D$124:$IT$124,AV$16,'SORT-NIGHT'!$D211:$IT211) -> 0 | AW20: =SUMIF('SORT-NIGHT'!$D$16:$IS$16,AW$16,'SORT-NIGHT'!$D103:$IS103)+SUMIF('SORT-NIGHT'!$D$124:$IT$124,AW$16,'SORT-NIGHT'!$D211:$IT211) -> 0 | AX20: =SUMIF('SORT-NIGHT'!$D$16:$IS$16,AX$16,'SORT-NIGHT'!$D103:$IS103)+SUMIF('SORT-NIGHT'!$D$124:$IT$124,AX$16,'SORT-NIGHT'!$D211:$IT211) -> 0 | AY20: =SUMIF('SORT-NIGHT'!$D$16:$IS$16,AY$16,'SORT-NIGHT'!$D103:$IS103)+SUMIF('SORT-NIGHT'!$D$124:$IT$124,AY$16,'SORT-NIGHT'!$D211:$IT211) -> 0 | AZ20: =SUMIF('SORT-NIGHT'!$D$16:$IS$16,AZ$16,'SORT-NIGHT'!$D103:$IS103)+SUMIF('SORT-NIGHT'!$D$124:$IT$124,AZ$16,'SORT-NIGHT'!$D211:$IT211) -> 0 | BA20: =SUMIF('SORT-NIGHT'!$D$16:$IS$16,BA$16,'SORT-NIGHT'!$D103:$IS103)+SUMIF('SORT-NIGHT'!$D$124:$IT$124,BA$16,'SORT-NIGHT'!$D211:$IT211) -> 0 | BB20: =SUMIF('SORT-NIGHT'!$D$16:$IS$16,BB$16,'SORT-NIGHT'!$D103:$IS103)+SUMIF('SORT-NIGHT'!$D$124:$IT$124,BB$16,'SORT-NIGHT'!$D211:$IT211) -> 0 | BC20: =SUMIF('SORT-NIGHT'!$D$16:$IS$16,BC$16,'SORT-NIGHT'!$D103:$IS103)+SUMIF('SORT-NIGHT'!$D$124:$IT$124,BC$16,'SORT-NIGHT'!$D211:$IT211) -> 0 | BD20: =SUMIF('SORT-NIGHT'!$D$16:$IS$16,BD$16,'SORT-NIGHT'!$D103:$IS103)+SUMIF('SORT-NIGHT'!$D$124:$IT$124,BD$16,'SORT-NIGHT'!$D211:$IT211) -> 0 | BE20: =SUMIF('SORT-NIGHT'!$D$16:$IS$16,BE$16,'SORT-NIGHT'!$D103:$IS103)+SUMIF('SORT-NIGHT'!$D$124:$IT$124,BE$16,'SORT-NIGHT'!$D211:$IT211) -> 0 | BG20: 0
B21: 16 | C21: 2698 | I21: 2017-01-01 | J21: 2017-12-31 | K21: 365 | O21: =IF(T21="","",IF(ISERROR(AD21),"",ROUND(SUMIF(Δεδομένα2!$S$3:$EH$3,Παροχές!T21,Δεδομένα2!$S$22:$EH$22),0))) -> 0 | P21: =IF(T21="","",IF(ISERROR(AD21),"",ROUND(SUMIF(Δεδομένα2!$S$3:$EH$3,Παροχές!T21,Δεδομένα2!$S$32:$EH$32),0))) -> 0 | Q21: 365 | R21: 2698 | S21: 1 | T21: 16- | V21: 0 | W21: 0 | X21: 0 | Y21: 0 | Z21: =IF(G21<>"",Δεδομένα2!$J$15/Παροχές!G21,"") ->  | AA21: 365 | AB21: =IF(T21<>"",MIN(INDIRECT("i" & ROW()):INDIRECT("i" & ROW()+S21-1)),"") -> 2017-01-01 | AC21: 2017-12-31 | AD21: 0 | AE21: 0 | AF21: 16 | AG21: 0 | AH21: 0 | AI21: 0 | AJ21: 0 | AS21: 5 | AT21: =SUMIF('SORT-NIGHT'!$D$16:$IS$16,AT$16,'SORT-NIGHT'!$D104:$IS104)+SUMIF('SORT-NIGHT'!$D$124:$IT$124,AT$16,'SORT-NIGHT'!$D212:$IT212) -> 0 | AU21: =SUMIF('SORT-NIGHT'!$D$16:$IS$16,AU$16,'SORT-NIGHT'!$D104:$IS104)+SUMIF('SORT-NIGHT'!$D$124:$IT$124,AU$16,'SORT-NIGHT'!$D212:$IT212) -> 0 | AV21: =SUMIF('SORT-NIGHT'!$D$16:$IS$16,AV$16,'SORT-NIGHT'!$D104:$IS104)+SUMIF('SORT-NIGHT'!$D$124:$IT$124,AV$16,'SORT-NIGHT'!$D212:$IT212) -> 0 | AW21: =SUMIF('SORT-NIGHT'!$D$16:$IS$16,AW$16,'SORT-NIGHT'!$D104:$IS104)+SUMIF('SORT-NIGHT'!$D$124:$IT$124,AW$16,'SORT-NIGHT'!$D212:$IT212) -> 0 | AX21: =SUMIF('SORT-NIGHT'!$D$16:$IS$16,AX$16,'SORT-NIGHT'!$D104:$IS104)+SUMIF('SORT-NIGHT'!$D$124:$IT$124,AX$16,'SORT-NIGHT'!$D212:$IT212) -> 0 | AY21: =SUMIF('SORT-NIGHT'!$D$16:$IS$16,AY$16,'SORT-NIGHT'!$D104:$IS104)+SUMIF('SORT-NIGHT'!$D$124:$IT$124,AY$16,'SORT-NIGHT'!$D212:$IT212) -> 0 | AZ21: =SUMIF('SORT-NIGHT'!$D$16:$IS$16,AZ$16,'SORT-NIGHT'!$D104:$IS104)+SUMIF('SORT-NIGHT'!$D$124:$IT$124,AZ$16,'SORT-NIGHT'!$D212:$IT212) -> 0 | BA21: =SUMIF('SORT-NIGHT'!$D$16:$IS$16,BA$16,'SORT-NIGHT'!$D104:$IS104)+SUMIF('SORT-NIGHT'!$D$124:$IT$124,BA$16,'SORT-NIGHT'!$D212:$IT212) -> 0 | BB21: =SUMIF('SORT-NIGHT'!$D$16:$IS$16,BB$16,'SORT-NIGHT'!$D104:$IS104)+SUMIF('SORT-NIGHT'!$D$124:$IT$124,BB$16,'SORT-NIGHT'!$D212:$IT212) -> 0 | BC21: =SUMIF('SORT-NIGHT'!$D$16:$IS$16,BC$16,'SORT-NIGHT'!$D104:$IS104)+SUMIF('SORT-NIGHT'!$D$124:$IT$124,BC$16,'SORT-NIGHT'!$D212:$IT212) -> 0 | BD21: =SUMIF('SORT-NIGHT'!$D$16:$IS$16,BD$16,'SORT-NIGHT'!$D104:$IS104)+SUMIF('SORT-NIGHT'!$D$124:$IT$124,BD$16,'SORT-NIGHT'!$D212:$IT212) -> 0 | BE21: =SUMIF('SORT-NIGHT'!$D$16:$IS$16,BE$16,'SORT-NIGHT'!$D104:$IS104)+SUMIF('SORT-NIGHT'!$D$124:$IT$124,BE$16,'SORT-NIGHT'!$D212:$IT212) -> 0 | BG21: 0
B22: 17 | C22: 2547 | I22: 2017-01-01 | J22: 2017-12-31 | K22: 365 | O22: =IF(T22="","",IF(ISERROR(AD22),"",ROUND(SUMIF(Δεδομένα2!$S$3:$EH$3,Παροχές!T22,Δεδομένα2!$S$22:$EH$22),0))) -> 0 | P22: =IF(T22="","",IF(ISERROR(AD22),"",ROUND(SUMIF(Δεδομένα2!$S$3:$EH$3,Παροχές!T22,Δεδομένα2!$S$32:$EH$32),0))) -> 0 | Q22: 365 | R22: 2547 | S22: 1 | T22: 17- | V22: 0 | W22: 0 | X22: 0 | Y22: 0 | Z22: =IF(G22<>"",Δεδομένα2!$J$15/Παροχές!G22,"") ->  | AA22: 730 | AB22: =IF(T22<>"",MIN(INDIRECT("i" & ROW()):INDIRECT("i" & ROW()+S22-1)),"") -> 2017-01-01 | AC22: 2017-12-31 | AD22: 0 | AE22: 0 | AF22: 17 | AG22: 0 | AH22: 0 | AI22: 0 | AJ22: 0 | AS22: 6 | AT22: =SUMIF('SORT-NIGHT'!$D$16:$IS$16,AT$16,'SORT-NIGHT'!$D105:$IS105)+SUMIF('SORT-NIGHT'!$D$124:$IT$124,AT$16,'SORT-NIGHT'!$D213:$IT213) -> 0 | AU22: =SUMIF('SORT-NIGHT'!$D$16:$IS$16,AU$16,'SORT-NIGHT'!$D105:$IS105)+SUMIF('SORT-NIGHT'!$D$124:$IT$124,AU$16,'SORT-NIGHT'!$D213:$IT213) -> 0 | AV22: =SUMIF('SORT-NIGHT'!$D$16:$IS$16,AV$16,'SORT-NIGHT'!$D105:$IS105)+SUMIF('SORT-NIGHT'!$D$124:$IT$124,AV$16,'SORT-NIGHT'!$D213:$IT213) -> 0 | AW22: =SUMIF('SORT-NIGHT'!$D$16:$IS$16,AW$16,'SORT-NIGHT'!$D105:$IS105)+SUMIF('SORT-NIGHT'!$D$124:$IT$124,AW$16,'SORT-NIGHT'!$D213:$IT213) -> 0 | AX22: =SUMIF('SORT-NIGHT'!$D$16:$IS$16,AX$16,'SORT-NIGHT'!$D105:$IS105)+SUMIF('SORT-NIGHT'!$D$124:$IT$124,AX$16,'SORT-NIGHT'!$D213:$IT213) -> 0 | AY22: =SUMIF('SORT-NIGHT'!$D$16:$IS$16,AY$16,'SORT-NIGHT'!$D105:$IS105)+SUMIF('SORT-NIGHT'!$D$124:$IT$124,AY$16,'SORT-NIGHT'!$D213:$IT213) -> 0 | AZ22: =SUMIF('SORT-NIGHT'!$D$16:$IS$16,AZ$16,'SORT-NIGHT'!$D105:$IS105)+SUMIF('SORT-NIGHT'!$D$124:$IT$124,AZ$16,'SORT-NIGHT'!$D213:$IT213) -> 0 | BA22: =SUMIF('SORT-NIGHT'!$D$16:$IS$16,BA$16,'SORT-NIGHT'!$D105:$IS105)+SUMIF('SORT-NIGHT'!$D$124:$IT$124,BA$16,'SORT-NIGHT'!$D213:$IT213) -> 0 | BB22: =SUMIF('SORT-NIGHT'!$D$16:$IS$16,BB$16,'SORT-NIGHT'!$D105:$IS105)+SUMIF('SORT-NIGHT'!$D$124:$IT$124,BB$16,'SORT-NIGHT'!$D213:$IT213) -> 0 | BC22: =SUMIF('SORT-NIGHT'!$D$16:$IS$16,BC$16,'SORT-NIGHT'!$D105:$IS105)+SUMIF('SORT-NIGHT'!$D$124:$IT$124,BC$16,'SORT-NIGHT'!$D213:$IT213) -> 0 | BD22: =SUMIF('SORT-NIGHT'!$D$16:$IS$16,BD$16,'SORT-NIGHT'!$D105:$IS105)+SUMIF('SORT-NIGHT'!$D$124:$IT$124,BD$16,'SORT-NIGHT'!$D213:$IT213) -> 0 | BE22: =SUMIF('SORT-NIGHT'!$D$16:$IS$16,BE$16,'SORT-NIGHT'!$D105:$IS105)+SUMIF('SORT-NIGHT'!$D$124:$IT$124,BE$16,'SORT-NIGHT'!$D213:$IT213) -> 0 | BG22: 0
B23: 18 | C23: 2589 | I23: 2017-01-01 | J23: 2017-12-31 | K23: 365 | O23: =IF(T23="","",IF(ISERROR(AD23),"",ROUND(SUMIF(Δεδομένα2!$S$3:$EH$3,Παροχές!T23,Δεδομένα2!$S$22:$EH$22),0))) -> 0 | P23: =IF(T23="","",IF(ISERROR(AD23),"",ROUND(SUMIF(Δεδομένα2!$S$3:$EH$3,Παροχές!T23,Δεδομένα2!$S$32:$EH$32),0))) -> 0 | Q23: 365 | R23: 2589 | S23: 1 | T23: 18- | V23: 0 | W23: 0 | X23: 0 | Y23: 0 | Z23: =IF(G23<>"",Δεδομένα2!$J$15/Παροχές!G23,"") ->  | AA23: 730 | AB23: =IF(T23<>"",MIN(INDIRECT("i" & ROW()):INDIRECT("i" & ROW()+S23-1)),"") -> 2017-01-01 | AC23: 2017-12-31 | AD23: 0 | AE23: 0 | AF23: 18 | AG23: 0 | AH23: 0 | AI23: 0 | AJ23: 0 | AS23: 7 | AT23: =SUMIF('SORT-NIGHT'!$D$16:$IS$16,AT$16,'SORT-NIGHT'!$D106:$IS106)+SUMIF('SORT-NIGHT'!$D$124:$IT$124,AT$16,'SORT-NIGHT'!$D214:$IT214) -> 0 | AU23: =SUMIF('SORT-NIGHT'!$D$16:$IS$16,AU$16,'SORT-NIGHT'!$D106:$IS106)+SUMIF('SORT-NIGHT'!$D$124:$IT$124,AU$16,'SORT-NIGHT'!$D214:$IT214) -> 0 | AV23: =SUMIF('SORT-NIGHT'!$D$16:$IS$16,AV$16,'SORT-NIGHT'!$D106:$IS106)+SUMIF('SORT-NIGHT'!$D$124:$IT$124,AV$16,'SORT-NIGHT'!$D214:$IT214) -> 0 | AW23: =SUMIF('SORT-NIGHT'!$D$16:$IS$16,AW$16,'SORT-NIGHT'!$D106:$IS106)+SUMIF('SORT-NIGHT'!$D$124:$IT$124,AW$16,'SORT-NIGHT'!$D214:$IT214) -> 0 | AX23: =SUMIF('SORT-NIGHT'!$D$16:$IS$16,AX$16,'SORT-NIGHT'!$D106:$IS106)+SUMIF('SORT-NIGHT'!$D$124:$IT$124,AX$16,'SORT-NIGHT'!$D214:$IT214) -> 0 | AY23: =SUMIF('SORT-NIGHT'!$D$16:$IS$16,AY$16,'SORT-NIGHT'!$D106:$IS106)+SUMIF('SORT-NIGHT'!$D$124:$IT$124,AY$16,'SORT-NIGHT'!$D214:$IT214) -> 0 | AZ23: =SUMIF('SORT-NIGHT'!$D$16:$IS$16,AZ$16,'SORT-NIGHT'!$D106:$IS106)+SUMIF('SORT-NIGHT'!$D$124:$IT$124,AZ$16,'SORT-NIGHT'!$D214:$IT214) -> 0 | BA23: =SUMIF('SORT-NIGHT'!$D$16:$IS$16,BA$16,'SORT-NIGHT'!$D106:$IS106)+SUMIF('SORT-NIGHT'!$D$124:$IT$124,BA$16,'SORT-NIGHT'!$D214:$IT214) -> 0 | BB23: =SUMIF('SORT-NIGHT'!$D$16:$IS$16,BB$16,'SORT-NIGHT'!$D106:$IS106)+SUMIF('SORT-NIGHT'!$D$124:$IT$124,BB$16,'SORT-NIGHT'!$D214:$IT214) -> 0 | BC23: =SUMIF('SORT-NIGHT'!$D$16:$IS$16,BC$16,'SORT-NIGHT'!$D106:$IS106)+SUMIF('SORT-NIGHT'!$D$124:$IT$124,BC$16,'SORT-NIGHT'!$D214:$IT214) -> 0 | BD23: =SUMIF('SORT-NIGHT'!$D$16:$IS$16,BD$16,'SORT-NIGHT'!$D106:$IS106)+SUMIF('SORT-NIGHT'!$D$124:$IT$124,BD$16,'SORT-NIGHT'!$D214:$IT214) -> 0 | BE23: =SUMIF('SORT-NIGHT'!$D$16:$IS$16,BE$16,'SORT-NIGHT'!$D106:$IS106)+SUMIF('SORT-NIGHT'!$D$124:$IT$124,BE$16,'SORT-NIGHT'!$D214:$IT214) -> 0 | BG23: 0
B24: 19 | C24: 3558 | I24: 2017-01-01 | J24: 2017-12-31 | K24: 365 | O24: =IF(T24="","",IF(ISERROR(AD24),"",ROUND(SUMIF(Δεδομένα2!$S$3:$EH$3,Παροχές!T24,Δεδομένα2!$S$22:$EH$22),0))) -> 0 | P24: =IF(T24="","",IF(ISERROR(AD24),"",ROUND(SUMIF(Δεδομένα2!$S$3:$EH$3,Παροχές!T24,Δεδομένα2!$S$32:$EH$32),0))) -> 0 | Q24: 365 | R24: 3558 | S24: 1 | T24: 19- | V24: 0 | W24: 0 | X24: 0 | Y24: 0 | Z24: =IF(G24<>"",Δεδομένα2!$J$15/Παροχές!G24,"") ->  | AA24: 365 | AB24: =IF(T24<>"",MIN(INDIRECT("i" & ROW()):INDIRECT("i" & ROW()+S24-1)),"") -> 2017-01-01 | AC24: 2017-12-31 | AD24: 0 | AE24: 0 | AF24: 19 | AG24: 0 | AH24: 0 | AI24: 0 | AJ24: 0 | AS24: 8 | AT24: =SUMIF('SORT-NIGHT'!$D$16:$IS$16,AT$16,'SORT-NIGHT'!$D107:$IS107)+SUMIF('SORT-NIGHT'!$D$124:$IT$124,AT$16,'SORT-NIGHT'!$D215:$IT215) -> 0 | AU24: =SUMIF('SORT-NIGHT'!$D$16:$IS$16,AU$16,'SORT-NIGHT'!$D107:$IS107)+SUMIF('SORT-NIGHT'!$D$124:$IT$124,AU$16,'SORT-NIGHT'!$D215:$IT215) -> 0 | AV24: =SUMIF('SORT-NIGHT'!$D$16:$IS$16,AV$16,'SORT-NIGHT'!$D107:$IS107)+SUMIF('SORT-NIGHT'!$D$124:$IT$124,AV$16,'SORT-NIGHT'!$D215:$IT215) -> 0 | AW24: =SUMIF('SORT-NIGHT'!$D$16:$IS$16,AW$16,'SORT-NIGHT'!$D107:$IS107)+SUMIF('SORT-NIGHT'!$D$124:$IT$124,AW$16,'SORT-NIGHT'!$D215:$IT215) -> 0 | AX24: =SUMIF('SORT-NIGHT'!$D$16:$IS$16,AX$16,'SORT-NIGHT'!$D107:$IS107)+SUMIF('SORT-NIGHT'!$D$124:$IT$124,AX$16,'SORT-NIGHT'!$D215:$IT215) -> 0 | AY24: =SUMIF('SORT-NIGHT'!$D$16:$IS$16,AY$16,'SORT-NIGHT'!$D107:$IS107)+SUMIF('SORT-NIGHT'!$D$124:$IT$124,AY$16,'SORT-NIGHT'!$D215:$IT215) -> 0 | AZ24: =SUMIF('SORT-NIGHT'!$D$16:$IS$16,AZ$16,'SORT-NIGHT'!$D107:$IS107)+SUMIF('SORT-NIGHT'!$D$124:$IT$124,AZ$16,'SORT-NIGHT'!$D215:$IT215) -> 0 | BA24: =SUMIF('SORT-NIGHT'!$D$16:$IS$16,BA$16,'SORT-NIGHT'!$D107:$IS107)+SUMIF('SORT-NIGHT'!$D$124:$IT$124,BA$16,'SORT-NIGHT'!$D215:$IT215) -> 0 | BB24: =SUMIF('SORT-NIGHT'!$D$16:$IS$16,BB$16,'SORT-NIGHT'!$D107:$IS107)+SUMIF('SORT-NIGHT'!$D$124:$IT$124,BB$16,'SORT-NIGHT'!$D215:$IT215) -> 0 | BC24: =SUMIF('SORT-NIGHT'!$D$16:$IS$16,BC$16,'SORT-NIGHT'!$D107:$IS107)+SUMIF('SORT-NIGHT'!$D$124:$IT$124,BC$16,'SORT-NIGHT'!$D215:$IT215) -> 0 | BD24: =SUMIF('SORT-NIGHT'!$D$16:$IS$16,BD$16,'SORT-NIGHT'!$D107:$IS107)+SUMIF('SORT-NIGHT'!$D$124:$IT$124,BD$16,'SORT-NIGHT'!$D215:$IT215) -> 0 | BE24: =SUMIF('SORT-NIGHT'!$D$16:$IS$16,BE$16,'SORT-NIGHT'!$D107:$IS107)+SUMIF('SORT-NIGHT'!$D$124:$IT$124,BE$16,'SORT-NIGHT'!$D215:$IT215) -> 0 | BG24: 0
B25: 20 | C25: 2222 | I25: 2017-01-01 | J25: 2017-12-31 | K25: 365 | O25: =IF(T25="","",IF(ISERROR(AD25),"",ROUND(SUMIF(Δεδομένα2!$S$3:$EH$3,Παροχές!T25,Δεδομένα2!$S$22:$EH$22),0))) -> 0 | P25: =IF(T25="","",IF(ISERROR(AD25),"",ROUND(SUMIF(Δεδομένα2!$S$3:$EH$3,Παροχές!T25,Δεδομένα2!$S$32:$EH$32),0))) -> 0 | Q25: 365 | R25: 2222 | S25: 9 | T25: 20- | V25: 270 | W25: 0 | X25: 0 | Y25: 0 | Z25: =IF(G25<>"",Δεδομένα2!$J$15/Παροχές!G25,"") ->  | AA25: 4015 | AB25: =IF(T25<>"",MIN(INDIRECT("i" & ROW()):INDIRECT("i" & ROW()+S25-1)),"") -> 2017-01-01 | AC25: 2017-12-31 | AD25: 0 | AE25: 0 | AF25: 20 | AG25: 0 | AH25: 0 | AI25: 0 | AJ25: 0 | AS25: 9 | AT25: =SUMIF('SORT-NIGHT'!$D$16:$IS$16,AT$16,'SORT-NIGHT'!$D108:$IS108)+SUMIF('SORT-NIGHT'!$D$124:$IT$124,AT$16,'SORT-NIGHT'!$D216:$IT216) -> 0 | AU25: =SUMIF('SORT-NIGHT'!$D$16:$IS$16,AU$16,'SORT-NIGHT'!$D108:$IS108)+SUMIF('SORT-NIGHT'!$D$124:$IT$124,AU$16,'SORT-NIGHT'!$D216:$IT216) -> 0 | AV25: =SUMIF('SORT-NIGHT'!$D$16:$IS$16,AV$16,'SORT-NIGHT'!$D108:$IS108)+SUMIF('SORT-NIGHT'!$D$124:$IT$124,AV$16,'SORT-NIGHT'!$D216:$IT216) -> 0 | AW25: =SUMIF('SORT-NIGHT'!$D$16:$IS$16,AW$16,'SORT-NIGHT'!$D108:$IS108)+SUMIF('SORT-NIGHT'!$D$124:$IT$124,AW$16,'SORT-NIGHT'!$D216:$IT216) -> 0 | AX25: =SUMIF('SORT-NIGHT'!$D$16:$IS$16,AX$16,'SORT-NIGHT'!$D108:$IS108)+SUMIF('SORT-NIGHT'!$D$124:$IT$124,AX$16,'SORT-NIGHT'!$D216:$IT216) -> 0 | AY25: =SUMIF('SORT-NIGHT'!$D$16:$IS$16,AY$16,'SORT-NIGHT'!$D108:$IS108)+SUMIF('SORT-NIGHT'!$D$124:$IT$124,AY$16,'SORT-NIGHT'!$D216:$IT216) -> 0 | AZ25: =SUMIF('SORT-NIGHT'!$D$16:$IS$16,AZ$16,'SORT-NIGHT'!$D108:$IS108)+SUMIF('SORT-NIGHT'!$D$124:$IT$124,AZ$16,'SORT-NIGHT'!$D216:$IT216) -> 0 | BA25: =SUMIF('SORT-NIGHT'!$D$16:$IS$16,BA$16,'SORT-NIGHT'!$D108:$IS108)+SUMIF('SORT-NIGHT'!$D$124:$IT$124,BA$16,'SORT-NIGHT'!$D216:$IT216) -> 0 | BB25: =SUMIF('SORT-NIGHT'!$D$16:$IS$16,BB$16,'SORT-NIGHT'!$D108:$IS108)+SUMIF('SORT-NIGHT'!$D$124:$IT$124,BB$16,'SORT-NIGHT'!$D216:$IT216) -> 0 | BC25: =SUMIF('SORT-NIGHT'!$D$16:$IS$16,BC$16,'SORT-NIGHT'!$D108:$IS108)+SUMIF('SORT-NIGHT'!$D$124:$IT$124,BC$16,'SORT-NIGHT'!$D216:$IT216) -> 0 | BD25: =SUMIF('SORT-NIGHT'!$D$16:$IS$16,BD$16,'SORT-NIGHT'!$D108:$IS108)+SUMIF('SORT-NIGHT'!$D$124:$IT$124,BD$16,'SORT-NIGHT'!$D216:$IT216) -> 0 | BE25: =SUMIF('SORT-NIGHT'!$D$16:$IS$16,BE$16,'SORT-NIGHT'!$D108:$IS108)+SUMIF('SORT-NIGHT'!$D$124:$IT$124,BE$16,'SORT-NIGHT'!$D216:$IT216) -> 0 | BG25: 0
B26: 20 | C26: 2222 | I26: 2024-01-01 | J26: 2024-12-30 | K26: 365 | O26: =IF(T26="","",IF(ISERROR(AD26),"",ROUND(SUMIF(Δεδομένα2!$S$3:$EH$3,Παροχές!T26,Δεδομένα2!$S$22:$EH$22),0))) ->  | P26: =IF(T26="","",IF(ISERROR(AD26),"",ROUND(SUMIF(Δεδομένα2!$S$3:$EH$3,Παροχές!T26,Δεδομένα2!$S$32:$EH$32),0))) ->  | R26: 2222 | Z26: =IF(G26<>"",Δεδομένα2!$J$15/Παροχές!G26,"") ->  | AB26: =IF(T26<>"",MIN(INDIRECT("i" & ROW()):INDIRECT("i" & ROW()+S26-1)),"") ->  | AD26: 0 | AE26: 0 | AS26: 10 | AT26: =SUMIF('SORT-NIGHT'!$D$16:$IS$16,AT$16,'SORT-NIGHT'!$D109:$IS109)+SUMIF('SORT-NIGHT'!$D$124:$IT$124,AT$16,'SORT-NIGHT'!$D217:$IT217) -> 0 | AU26: =SUMIF('SORT-NIGHT'!$D$16:$IS$16,AU$16,'SORT-NIGHT'!$D109:$IS109)+SUMIF('SORT-NIGHT'!$D$124:$IT$124,AU$16,'SORT-NIGHT'!$D217:$IT217) -> 0 | AV26: =SUMIF('SORT-NIGHT'!$D$16:$IS$16,AV$16,'SORT-NIGHT'!$D109:$IS109)+SUMIF('SORT-NIGHT'!$D$124:$IT$124,AV$16,'SORT-NIGHT'!$D217:$IT217) -> 0 | AW26: =SUMIF('SORT-NIGHT'!$D$16:$IS$16,AW$16,'SORT-NIGHT'!$D109:$IS109)+SUMIF('SORT-NIGHT'!$D$124:$IT$124,AW$16,'SORT-NIGHT'!$D217:$IT217) -> 0 | AX26: =SUMIF('SORT-NIGHT'!$D$16:$IS$16,AX$16,'SORT-NIGHT'!$D109:$IS109)+SUMIF('SORT-NIGHT'!$D$124:$IT$124,AX$16,'SORT-NIGHT'!$D217:$IT217) -> 0 | AY26: =SUMIF('SORT-NIGHT'!$D$16:$IS$16,AY$16,'SORT-NIGHT'!$D109:$IS109)+SUMIF('SORT-NIGHT'!$D$124:$IT$124,AY$16,'SORT-NIGHT'!$D217:$IT217) -> 0 | AZ26: =SUMIF('SORT-NIGHT'!$D$16:$IS$16,AZ$16,'SORT-NIGHT'!$D109:$IS109)+SUMIF('SORT-NIGHT'!$D$124:$IT$124,AZ$16,'SORT-NIGHT'!$D217:$IT217) -> 0 | BA26: =SUMIF('SORT-NIGHT'!$D$16:$IS$16,BA$16,'SORT-NIGHT'!$D109:$IS109)+SUMIF('SORT-NIGHT'!$D$124:$IT$124,BA$16,'SORT-NIGHT'!$D217:$IT217) -> 0 | BB26: =SUMIF('SORT-NIGHT'!$D$16:$IS$16,BB$16,'SORT-NIGHT'!$D109:$IS109)+SUMIF('SORT-NIGHT'!$D$124:$IT$124,BB$16,'SORT-NIGHT'!$D217:$IT217) -> 0 | BC26: =SUMIF('SORT-NIGHT'!$D$16:$IS$16,BC$16,'SORT-NIGHT'!$D109:$IS109)+SUMIF('SORT-NIGHT'!$D$124:$IT$124,BC$16,'SORT-NIGHT'!$D217:$IT217) -> 0 | BD26: =SUMIF('SORT-NIGHT'!$D$16:$IS$16,BD$16,'SORT-NIGHT'!$D109:$IS109)+SUMIF('SORT-NIGHT'!$D$124:$IT$124,BD$16,'SORT-NIGHT'!$D217:$IT217) -> 0 | BE26: =SUMIF('SORT-NIGHT'!$D$16:$IS$16,BE$16,'SORT-NIGHT'!$D109:$IS109)+SUMIF('SORT-NIGHT'!$D$124:$IT$124,BE$16,'SORT-NIGHT'!$D217:$IT217) -> 0 | BG26: 0
B27: 20 | C27: 2222 | I27: 2024-01-01 | J27: 2024-12-30 | K27: 365 | O27: =IF(T27="","",IF(ISERROR(AD27),"",ROUND(SUMIF(Δεδομένα2!$S$3:$EH$3,Παροχές!T27,Δεδομένα2!$S$22:$EH$22),0))) ->  | P27: =IF(T27="","",IF(ISERROR(AD27),"",ROUND(SUMIF(Δεδομένα2!$S$3:$EH$3,Παροχές!T27,Δεδομένα2!$S$32:$EH$32),0))) ->  | R27: 2222 | Z27: =IF(G27<>"",Δεδομένα2!$J$15/Παροχές!G27,"") ->  | AB27: =IF(T27<>"",MIN(INDIRECT("i" & ROW()):INDIRECT("i" & ROW()+S27-1)),"") ->  | AD27: 0 | AE27: 0
B28: 20 | C28: 2222 | I28: 2024-01-01 | J28: 2024-12-30 | K28: 365 | O28: =IF(T28="","",IF(ISERROR(AD28),"",ROUND(SUMIF(Δεδομένα2!$S$3:$EH$3,Παροχές!T28,Δεδομένα2!$S$22:$EH$22),0))) ->  | P28: =IF(T28="","",IF(ISERROR(AD28),"",ROUND(SUMIF(Δεδομένα2!$S$3:$EH$3,Παροχές!T28,Δεδομένα2!$S$32:$EH$32),0))) ->  | R28: 2222 | Z28: =IF(G28<>"",Δεδομένα2!$J$15/Παροχές!G28,"") ->  | AB28: =IF(T28<>"",MIN(INDIRECT("i" & ROW()):INDIRECT("i" & ROW()+S28-1)),"") ->  | AD28: 0 | AE28: 0 | AT28: Ημερά | AU28: Νύχτα | AV28: Ημερά | AW28: Νύχτα | AX28: Ημερά | AY28: Νύχτα | AZ28: Ημερά | BA28: Νύχτα | BB28: Ημερά | BC28: Νύχτα | BD28: Ημερά | BE28: Νύχτα | BF28: Ημερά | BG28: Νύχτα | BH28: Ημερά | BI28: Νύχτα | BJ28: Ημερά | BK28: Νύχτα | BL28: Ημερά | BM28: Νύχτα | BS28: 1 | BW28: 2 | CA28: 3 | CE28: 4 | CI28: 5 | CM28: 6 | CQ28: 7 | CU28: 8 | CY28: 9 | DC28: 10
B29: 20 | C29: 2222 | I29: 2024-01-01 | J29: 2024-12-30 | K29: 365 | O29: =IF(T29="","",IF(ISERROR(AD29),"",ROUND(SUMIF(Δεδομένα2!$S$3:$EH$3,Παροχές!T29,Δεδομένα2!$S$22:$EH$22),0))) ->  | P29: =IF(T29="","",IF(ISERROR(AD29),"",ROUND(SUMIF(Δεδομένα2!$S$3:$EH$3,Παροχές!T29,Δεδομένα2!$S$32:$EH$32),0))) ->  | R29: 2222 | Z29: =IF(G29<>"",Δεδομένα2!$J$15/Παροχές!G29,"") ->  | AB29: =IF(T29<>"",MIN(INDIRECT("i" & ROW()):INDIRECT("i" & ROW()+S29-1)),"") ->  | AD29: 0 | AE29: 0 | AS29: 0 | AT29: 1 | AV29: 2 | AX29: 3 | AZ29: 4 | BB29: 5 | BD29: 6 | BF29: 7 | BH29: 8 | BJ29: 9 | BL29: 10 | BN29: A ημέρα | BO29: A νύχτα | BP29: A | BQ29: E | BR29: Παραγωγή | BS29: Ανταγ Ημερας | BT29: Πίστωση 1 | BU29: Ανταγ Νύχτας | BV29: Πίστωση2 | BW29: Ανταγ Ημερας | BX29: Πίστωση 1 | BY29: Ανταγ Νύχτας | BZ29: Πίστωση2 | CA29: Ανταγ Ημερας | CB29: Πίστωση 1 | CC29: Ανταγ Νύχτας | CD29: Πίστωση2 | CE29: Ανταγ Ημερας | CF29: Πίστωση 1 | CG29: Ανταγ Νύχτας | CH29: Πίστωση2 | CI29: Ανταγ Ημερας | CJ29: Πίστωση 1 | CK29: Ανταγ Νύχτας | CL29: Πίστωση2 | CM29: Ανταγ Ημερας | CN29: Πίστωση 1 | CO29: Ανταγ Νύχτας | CP29: Πίστωση2 | CQ29: Ανταγ Ημερας | CR29: Πίστωση 1 | CS29: Ανταγ Νύχτας | CT29: Πίστωση2 | CU29: Ανταγ Ημερας | CV29: Πίστωση 1 | CW29: Ανταγ Νύχτας | CX29: Πίστωση2 | CY29: Ανταγ Ημερας | CZ29: Πίστωση 1 | DA29: Ανταγ Νύχτας | DB29: Πίστωση2 | DC29: Ανταγ Ημερας | DD29: Πίστωση 1 | DE29: Ανταγ Νύχτας | DF29: Πίστωση2
B30: 20 | C30: 2222 | I30: 2024-01-01 | J30: 2024-12-30 | K30: 365 | O30: =IF(T30="","",IF(ISERROR(AD30),"",ROUND(SUMIF(Δεδομένα2!$S$3:$EH$3,Παροχές!T30,Δεδομένα2!$S$22:$EH$22),0))) ->  | P30: =IF(T30="","",IF(ISERROR(AD30),"",ROUND(SUMIF(Δεδομένα2!$S$3:$EH$3,Παροχές!T30,Δεδομένα2!$S$32:$EH$32),0))) ->  | R30: 2222 | Z30: =IF(G30<>"",Δεδομένα2!$J$15/Παροχές!G30,"") ->  | AB30: =IF(T30<>"",MIN(INDIRECT("i" & ROW()):INDIRECT("i" & ROW()+S30-1)),"") ->  | AD30: 0 | AE30: 0 | AS30: 1 | AT30: =+AT5 -> 33887.67123 | AU30: =+AT17 -> 0 | AV30: =+AT6 -> 14438.35616 | AW30: =+AT18 -> 0 | AX30: =+AT7 -> 12315.06849 | AY30: =+AT19 -> 0 | AZ30: =+AT8 -> 15712.32877 | BA30: =+AT20 -> 0 | BB30: =+AT9 -> 8917.808219 | BC30: =+AT21 -> 0 | BD30: =+AT10 -> 16561.64384 | BE30: =+AT22 -> 0 | BF30: =+AT11 -> 19958.90411 | BG30: =+AT23 -> 0 | BH30: =+AT12 -> 20808.21918 | BI30: =+AT24 -> 0 | BJ30: =+AT13 -> 10276.71233 | BK30: =+AT25 -> 0 | BL30: =+AT14 -> 10276.79726 | BM30: =+AT26 -> 0 | BN30: =IF($R$3<>"ΜΤ",'CALL-NET-XT'!I110,'CALL-NET-MT'!H83) -> 19933.97184 | BO30: =IF($R$3<>"ΜΤ",0,'CALL-NET-MT'!I83) -> 0 | BP30: =+BN30+BO30 -> 19933.97184 | BQ30: =IF($R$3<>"ΜΤ",'CALL-NET-XT'!J110,'CALL-NET-MT'!I129) -> 33046.30061 | BR30: =AT30+AU30-BP30+BQ30 -> 47000 | BS30: =IF(BN30-BQ30>=0,BN30-BQ30,0) -> 0 | BT30: =IF(BN30-BQ30<0,BQ30-BN30,0) -> 13112.32877 | BU30: =IF(BO30-BT30>=0,BO30-BT30,0) -> 0 | BV30: =IF(BO30-BT30<0,BT30-BO30,0) -> 13112.32877 | BW30: =IF(AV30-BV30>=0,AV30-BV30,0) -> 1326.027397 | BX30: =IF(AV30-BV30<0,BV30-AV30,0) -> 0 | BY30: =IF(AW30-BX30>=0,AW30-BX30,0) -> 0 | BZ30: =IF(AW30-BX30<0,BX30-AW30,0) -> 0 | CA30: =IF(AX30-BZ30>=0,AX30-BZ30,0) -> 12315.06849 | CB30: =IF(AX30-BZ30<0,BZ30-AX30,0) -> 0 | CC30: =IF(AY30-CB30>=0,AY30-CB30,0) -> 0 | CD30: =IF(AY30-CB30<0,CB30-AY30,0) -> 0 | CE30: =IF(AZ30-CD30>=0,AZ30-CD30,0) -> 15712.32877 | CF30: =IF(AZ30-CD30<0,CD30-AZ30,0) -> 0 | CG30: =IF(BA30-CF30>=0,BA30-CF30,0) -> 0 | CH30: =IF(BA30-CF30<0,CF30-BA30,0) -> 0 | CI30: =IF(BB30-CH30>=0,BB30-CH30,0) -> 8917.808219 | CJ30: =IF(BB30-CH30<0,CH30-BB30,0) -> 0 | CK30: =IF(BC30-CJ30>=0,BC30-CJ30,0) -> 0 | CL30: =IF(BC30-CJ30<0,CJ30-BC30,0) -> 0 | CM30: =IF(BD30-CL30>=0,BD30-CL30,0) -> 16561.64384 | CN30: =IF(BD30-CL30<0,CL30-BD30,0) -> 0 | CO30: =IF(BE30-CN30>=0,BE30-CN30,0) -> 0 | CP30: =IF(BE30-CN30<0,CN30-BE30,0) -> 0 | CQ30: =IF(BF30-CP30>=0,BF30-CP30,0) -> 19958.90411 | CR30: =IF(BF30-CP30<0,CP30-BF30,0) -> 0 | CS30: =IF(BG30-CR30>=0,BG30-CR30,0) -> 0 | CT30: =IF(BG30-CR30<0,CR30-BG30,0) -> 0 | CU30: =IF(BH30-CT30>=0,BH30-CT30,0) -> 20808.21918 | CV30: =IF(BH30-CT30<0,CT30-BH30,0) -> 0 | CW30: =IF(BI30-CV30>=0,BI30-CV30,0) -> 0 | CX30: =IF(BI30-CV30<0,CV30-BI30,0) -> 0 | CY30: =IF(BJ30-CX30>=0,BJ30-CX30,0) -> 10276.71233 | CZ30: =IF(BJ30-CX30<0,CX30-BJ30,0) -> 0 | DA30: =IF(BK30-CZ30>=0,BK30-CZ30,0) -> 0 | DB30: =IF(BK30-CZ30<0,CZ30-BK30,0) -> 0 | DC30: =IF(BL30-DB30>=0,BL30-DB30,0) -> 10276.79726 | DD30: =IF(BL30-DB30<0,DB30-BL30,0) -> 0 | DE30: =IF(BM30-DD30>=0,BM30-DD30,0) -> 0 | DF30: =IF(BM30-DD30<0,DD30-BM30,0) -> 0
B31: 20 | C31: 2222 | I31: 2024-01-01 | J31: 2024-12-30 | K31: 365 | O31: =IF(T31="","",IF(ISERROR(AD31),"",ROUND(SUMIF(Δεδομένα2!$S$3:$EH$3,Παροχές!T31,Δεδομένα2!$S$22:$EH$22),0))) ->  | P31: =IF(T31="","",IF(ISERROR(AD31),"",ROUND(SUMIF(Δεδομένα2!$S$3:$EH$3,Παροχές!T31,Δεδομένα2!$S$32:$EH$32),0))) ->  | R31: 2222 | Z31: =IF(G31<>"",Δεδομένα2!$J$15/Παροχές!G31,"") ->  | AB31: =IF(T31<>"",MIN(INDIRECT("i" & ROW()):INDIRECT("i" & ROW()+S31-1)),"") ->  | AD31: 0 | AE31: 0 | AS31: 2 | AT31: =+AU5 -> 30608.21918 | AU31: =+AU17 -> 0 | AV31: =+AU6 -> 13041.09589 | AW31: =+AU18 -> 0 | AX31: =+AU7 -> 11123.28767 | AY31: =+AU19 -> 0 | AZ31: =+AU8 -> 14191.78082 | BA31: =+AU20 -> 0 | BB31: =+AU9 -> 8054.794521 | BC31: =+AU21 -> 0 | BD31: =+AU10 -> 14958.90411 | BE31: =+AU22 -> 0 | BF31: =+AU11 -> 18027.39726 | BG31: =+AU23 -> 0 | BH31: =+AU12 -> 18794.52055 | BI31: =+AU24 -> 0 | BJ31: =+AU13 -> 9282.191781 | BK31: =+AU25 -> 0 | BL31: =+AU14 -> 9282.268493 | BM31: =+AU26 -> 0 | BN31: =IF($R$3<>"ΜΤ",'CALL-NET-XT'!I111,'CALL-NET-MT'!H84) -> 17908.72785 | BO31: =IF($R$3<>"ΜΤ",0,'CALL-NET-MT'!I84) -> 0 | BP31: =+BN31+BO31 -> 17908.72785 | BQ31: =IF($R$3<>"ΜΤ",'CALL-NET-XT'!J111,'CALL-NET-MT'!I130) -> 36400.50867 | BR31: =AT31+AU31-BP31+BQ31 -> 49100 | BS31: =IF(BN31-(BQ31+DF30)>=0,BN31-(BQ31+DF30),0) -> 0 | BT31: =IF(BN31-(BQ31+DF30)<0,(BQ31+DF30)-BN31,0) -> 18491.78082 | BU31: 0 | BV31: =IF(BO31-BT31<0,BT31-BO31,0) -> 18491.78082 | BW31: 0 | BX31: 5450.684932 | BY31: 0 | BZ31: 5450.684932 | CA31: 5672.60274 | CB31: 0 | CC31: 0 | CD31: 0 | CE31: 14191.78082 | CF31: 0 | CG31: 0 | CH31: 0 | CI31: 8054.794521 | CJ31: 0 | CK31: 0 | CL31: 0 | CM31: 14958.90411 | CN31: 0 | CO31: 0 | CP31: 0 | CQ31: 18027.39726 | CR31: 0 | CS31: 0 | CT31: 0 | CU31: 18794.52055 | CV31: 0 | CW31: 0 | CX31: 0 | CY31: =IF(BJ31-CX31>=0,BJ31-CX31,0) -> 9282.191781 | CZ31: 0 | DA31: 0 | DB31: 0 | DC31: =IF(BL31-DB31>=0,BL31-DB31,0) -> 9282.268493 | DD31: 0 | DE31: 0 | DF31: 0
B32: 20 | C32: 2222 | I32: 2024-01-01 | J32: 2024-12-30 | K32: 365 | O32: =IF(T32="","",IF(ISERROR(AD32),"",ROUND(SUMIF(Δεδομένα2!$S$3:$EH$3,Παροχές!T32,Δεδομένα2!$S$22:$EH$22),0))) ->  | P32: =IF(T32="","",IF(ISERROR(AD32),"",ROUND(SUMIF(Δεδομένα2!$S$3:$EH$3,Παροχές!T32,Δεδομένα2!$S$32:$EH$32),0))) ->  | R32: 2222 | Z32: =IF(G32<>"",Δεδομένα2!$J$15/Παροχές!G32,"") ->  | AB32: =IF(T32<>"",MIN(INDIRECT("i" & ROW()):INDIRECT("i" & ROW()+S32-1)),"") ->  | AD32: 0 | AE32: 0 | AS32: 3 | AT32: =+AV5 -> 33887.67123 | AU32: =+AV17 -> 0 | AV32: =+AV6 -> 14438.35616 | AW32: =+AV18 -> 0 | AX32: =+AV7 -> 12315.06849 | AY32: =+AV19 -> 0 | AZ32: =+AV8 -> 15712.32877 | BA32: =+AV20 -> 0 | BB32: =+AV9 -> 8917.808219 | BC32: =+AV21 -> 0 | BD32: =+AV10 -> 16561.64384 | BE32: =+AV22 -> 0 | BF32: =+AV11 -> 19958.90411 | BG32: =+AV23 -> 0 | BH32: =+AV12 -> 20808.21918 | BI32: =+AV24 -> 0 | BJ32: =+AV13 -> 10276.71233 | BK32: =+AV25 -> 0 | BL32: =+AV14 -> 10276.79726 | BM32: =+AV26 -> 0 | BN32: =IF($R$3<>"ΜΤ",'CALL-NET-XT'!I112,'CALL-NET-MT'!H85) -> 17910.83906 | BO32: =IF($R$3<>"ΜΤ",0,'CALL-NET-MT'!I85) -> 0 | BP32: 17910.83906 | BQ32: =IF($R$3<>"ΜΤ",'CALL-NET-XT'!J112,'CALL-NET-MT'!I131) -> 55023.16783 | BR32: 71000 | BS32: 0 | BT32: 37112.32877 | BU32: 0 | BV32: =IF(BP32-(BQ32+DD31)<0,(BQ32+DD31)-BP32,0) -> 37112.32877 | BW32: 0 | BX32: 22673.9726 | BY32: 0 | BZ32: 22673.9726 | CA32: 0 | CB32: 10358.90411 | CC32: 0 | CD32: 10358.90411 | CE32: 5353.424658 | CF32: 0 | CG32: 0 | CH32: 0 | CI32: 8917.808219 | CJ32: 0 | CK32: 0 | CL32: 0 | CM32: 16561.64384 | CN32: 0 | CO32: 0 | CP32: 0 | CQ32: 19958.90411 | CR32: 0 | CS32: 0 | CT32: 0 | CU32: 20808.21918 | CV32: 0 | CW32: 0 | CX32: 0 | CY32: 10276.71233 | CZ32: 0 | DA32: 0 | DB32: 0 | DC32: 10276.79726 | DD32: 0 | DE32: 0 | DF32: 0
B33: 20 | C33: 2222 | I33: 2024-01-01 | J33: 2024-12-30 | K33: 365 | O33: =IF(T33="","",IF(ISERROR(AD33),"",ROUND(SUMIF(Δεδομένα2!$S$3:$EH$3,Παροχές!T33,Δεδομένα2!$S$22:$EH$22),0))) ->  | P33: =IF(T33="","",IF(ISERROR(AD33),"",ROUND(SUMIF(Δεδομένα2!$S$3:$EH$3,Παροχές!T33,Δεδομένα2!$S$32:$EH$32),0))) ->  | R33: 2222 | Z33: =IF(G33<>"",Δεδομένα2!$J$15/Παροχές!G33,"") ->  | AB33: =IF(T33<>"",MIN(INDIRECT("i" & ROW()):INDIRECT("i" & ROW()+S33-1)),"") ->  | AD33: 0 | AE33: 0 | AS33: 4 | AT33: =+AW5 -> 32794.52055 | AU33: =+AW17 -> 0 | AV33: =+AW6 -> 13972.60274 | AW33: =+AW18 -> 0 | AX33: =+AW7 -> 11917.80822 | AY33: =+AW19 -> 0 | AZ33: =+AW8 -> 15205.47945 | BA33: =+AW20 -> 0 | BB33: =+AW9 -> 8630.136986 | BC33: =+AW21 -> 0 | BD33: =+AW10 -> 16027.39726 | BE33: =+AW22 -> 0 | BF33: =+AW11 -> 19315.06849 | BG33: =+AW23 -> 0 | BH33: =+AW12 -> 20136.9863 | BI33: =+AW24 -> 0 | BJ33: =+AW13 -> 9945.205479 | BK33: =+AW25 -> 0 | BL33: =+AW14 -> 9945.287671 | BM33: =+AW26 -> 0 | BN33: =IF($R$3<>"ΜΤ",'CALL-NET-XT'!I113,'CALL-NET-MT'!H86) -> 16745.8494 | BO33: =IF($R$3<>"ΜΤ",0,'CALL-NET-MT'!I86) -> 0 | BP33: 16745.8494 | BQ33: =IF($R$3<>"ΜΤ",'CALL-NET-XT'!J113,'CALL-NET-MT'!I132) -> 62951.32885 | BR33: 79000 | BS33: 0 | BT33: 46205.47945 | BU33: 0 | BV33: 46205.47945 | BW33: 0 | BX33: 32232.87671 | BY33: 0 | BZ33: 32232.87671 | CA33: 0 | CB33: 20315.06849 | CC33: 0 | CD33: 20315.06849 | CE33: 0 | CF33: 5109.589041 | CG33: 0 | CH33: 5109.589041 | CI33: 3520.547945 | CJ33: 0 | CK33: 0 | CL33: 0 | CM33: 16027.39726 | CN33: 0 | CO33: 0 | CP33: 0 | CQ33: 19315.06849 | CR33: 0 | CS33: 0 | CT33: 0 | CU33: 20136.9863 | CV33: 0 | CW33: 0 | CX33: 0 | CY33: 9945.205479 | CZ33: 0 | DA33: 0 | DB33: 0 | DC33: 9945.287671 | DD33: 0 | DE33: 0 | DF33: 0
B34: 21 | C34: 2585 | I34: 2024-01-01 | J34: 2024-12-30 | K34: 365 | O34: =IF(T34="","",IF(ISERROR(AD34),"",ROUND(SUMIF(Δεδομένα2!$S$3:$EH$3,Παροχές!T34,Δεδομένα2!$S$22:$EH$22),0))) -> 0 | P34: =IF(T34="","",IF(ISERROR(AD34),"",ROUND(SUMIF(Δεδομένα2!$S$3:$EH$3,Παροχές!T34,Δεδομένα2!$S$32:$EH$32),0))) -> 0 | Q34: 366 | R34: 2585 | S34: 1 | T34: 21- | V34: 0 | W34: 0 | X34: 0 | Y34: 0 | Z34: =IF(G34<>"",Δεδομένα2!$J$15/Παροχές!G34,"") ->  | AA34: 365 | AB34: =IF(T34<>"",MIN(INDIRECT("i" & ROW()):INDIRECT("i" & ROW()+S34-1)),"") -> 2024-01-01 | AC34: 2024-12-31 | AD34: 0 | AE34: 0 | AF34: 21 | AG34: 0 | AH34: 0 | AI34: 0 | AJ34: 0 | AS34: 5 | AT34: =+AX5 -> 33887.67123 | AU34: =+AX17 -> 0 | AV34: =+AX6 -> 14438.35616 | AW34: =+AX18 -> 0 | AX34: =+AX7 -> 12315.06849 | AY34: =+AX19 -> 0 | AZ34: =+AX8 -> 15712.32877 | BA34: =+AX20 -> 0 | BB34: =+AX9 -> 8917.808219 | BC34: =+AX21 -> 0 | BD34: =+AX10 -> 16561.64384 | BE34: =+AX22 -> 0 | BF34: =+AX11 -> 19958.90411 | BG34: =+AX23 -> 0 | BH34: =+AX12 -> 20808.21918 | BI34: =+AX24 -> 0 | BJ34: =+AX13 -> 10276.71233 | BK34: =+AX25 -> 0 | BL34: =+AX14 -> 10276.79726 | BM34: =+AX26 -> 0 | BN34: =IF($R$3<>"ΜΤ",'CALL-NET-XT'!I114,'CALL-NET-MT'!H87) -> 16769.37039 | BO34: =IF($R$3<>"ΜΤ",0,'CALL-NET-MT'!I87) -> 0 | BP34: 16769.37039 | BQ34: =IF($R$3<>"ΜΤ",'CALL-NET-XT'!J114,'CALL-NET-MT'!I133) -> 64381.69915 | BR34: 81500 | BS34: 0 | BT34: 47612.32877 | BU34: 0 | BV34: 47612.32877 | BW34: 0 | BX34: 33173.9726 | BY34: 0 | BZ34: 33173.9726 | CA34: 0 | CB34: 20858.90411 | CC34: 0 | CD34: 20858.90411 | CE34: 0 | CF34: 5146.575342 | CG34: 0 | CH34: 5146.575342 | CI34: 3771.232877 | CJ34: 0 | CK34: 0 | CL34: 0 | CM34: 16561.64384 | CN34: 0 | CO34: 0 | CP34: 0 | CQ34: 19958.90411 | CR34: 0 | CS34: 0 | CT34: 0 | CU34: 20808.21918 | CV34: 0 | CW34: 0 | CX34: 0 | CY34: 10276.71233 | CZ34: 0 | DA34: 0 | DB34: 0 | DC34: 10276.79726 | DD34: 0 | DE34: 0 | DF34: 0
I35: . | O35: =IF(T35="","",IF(ISERROR(AD35),"",ROUND(SUMIF(Δεδομένα2!$S$3:$EH$3,Παροχές!T35,Δεδομένα2!$S$22:$EH$22),0))) ->  | P35: =IF(T35="","",IF(ISERROR(AD35),"",ROUND(SUMIF(Δεδομένα2!$S$3:$EH$3,Παροχές!T35,Δεδομένα2!$S$32:$EH$32),0))) ->  | Z35: =IF(G35<>"",Δεδομένα2!$J$15/Παροχές!G35,"") ->  | AB35: =IF(T35<>"",MIN(INDIRECT("i" & ROW()):INDIRECT("i" & ROW()+S35-1)),"") ->  | AS35: 6 | AT35: =+AY5 -> 32794.52055 | AU35: =+AY17 -> 0 | AV35: =+AY6 -> 13972.60274 | AW35: =+AY18 -> 0 | AX35: =+AY7 -> 11917.80822 | AY35: =+AY19 -> 0 | AZ35: =+AY8 -> 15205.47945 | BA35: =+AY20 -> 0 | BB35: =+AY9 -> 8630.136986 | BC35: =+AY21 -> 0 | BD35: =+AY10 -> 16027.39726 | BE35: =+AY22 -> 0 | BF35: =+AY11 -> 19315.06849 | BG35: =+AY23 -> 0 | BH35: =+AY12 -> 20136.9863 | BI35: =+AY24 -> 0 | BJ35: =+AY13 -> 9945.205479 | BK35: =+AY25 -> 0 | BL35: =+AY14 -> 9945.287671 | BM35: =+AY26 -> 0 | BN35: =IF($R$3<>"ΜΤ",'CALL-NET-XT'!I115,'CALL-NET-MT'!H88) -> 16038.86537 | BO35: =IF($R$3<>"ΜΤ",0,'CALL-NET-MT'!I88) -> 0 | BP35: 16038.86537 | BQ35: =IF($R$3<>"ΜΤ",'CALL-NET-XT'!J115,'CALL-NET-MT'!I134) -> 64244.34482 | BR35: 81000 | BS35: 0 | BT35: 48205.47945 | BU35: 0 | BV35: 48205.47945 | BW35: 0 | BX35: 34232.87671 | BY35: 0 | BZ35: 34232.87671 | CA35: 0 | CB35: 22315.06849 | CC35: 0 | CD35: 22315.06849 | CE35: 0 | CF35: 7109.589041 | CG35: 0 | CH35: 7109.589041 | CI35: 1520.547945 | CJ35: 0 | CK35: 0 | CL35: 0 | CM35: 16027.39726 | CN35: 0 | CO35: 0 | CP35: 0 | CQ35: 19315.06849 | CR35: 0 | CS35: 0 | CT35: 0 | CU35: 20136.9863 | CV35: 0 | CW35: 0 | CX35: 0 | CY35: 9945.205479 | CZ35: 0 | DA35: 0 | DB35: 0 | DC35: 9945.287671 | DD35: 0 | DE35: 0 | DF35: 0
O36: =IF(T36="","",IF(ISERROR(AD36),"",ROUND(SUMIF(Δεδομένα2!$S$3:$EH$3,Παροχές!T36,Δεδομένα2!$S$22:$EH$22),0))) ->  | P36: =IF(T36="","",IF(ISERROR(AD36),"",ROUND(SUMIF(Δεδομένα2!$S$3:$EH$3,Παροχές!T36,Δεδομένα2!$S$32:$EH$32),0))) ->  | Z36: =IF(G36<>"",Δεδομένα2!$J$15/Παροχές!G36,"") ->  | AB36: =IF(T36<>"",MIN(INDIRECT("i" & ROW()):INDIRECT("i" & ROW()+S36-1)),"") ->  | AS36: 7 | AT36: =+AZ5 -> 33887.67123 | AU36: =+AZ17 -> 0 | AV36: =+AZ6 -> 14438.35616 | AW36: =+AZ18 -> 0 | AX36: =+AZ7 -> 12315.06849 | AY36: =+AZ19 -> 0 | AZ36: =+AZ8 -> 15712.32877 | BA36: =+AZ20 -> 0 | BB36: =+AZ9 -> 8917.808219 | BC36: =+AZ21 -> 0 | BD36: =+AZ10 -> 16561.64384 | BE36: =+AZ22 -> 0 | BF36: =+AZ11 -> 19958.90411 | BG36: =+AZ23 -> 0 | BH36: =+AZ12 -> 20808.21918 | BI36: =+AZ24 -> 0 | BJ36: =+AZ13 -> 10276.71233 | BK36: =+AZ25 -> 0 | BL36: =+AZ14 -> 10276.79726 | BM36: =+AZ26 -> 0 | BN36: =IF($R$3<>"ΜΤ",'CALL-NET-XT'!I116,'CALL-NET-MT'!H89) -> 16682.2562 | BO36: =IF($R$3<>"ΜΤ",0,'CALL-NET-MT'!I89) -> 0 | BP36: 16682.2562 | BQ36: =IF($R$3<>"ΜΤ",'CALL-NET-XT'!J116,'CALL-NET-MT'!I135) -> 71294.58497 | BR36: 88500 | BS36: 0 | BT36: 54612.32877 | BU36: 0 | BV36: 54612.32877 | BW36: 0 | BX36: 40173.9726 | BY36: 0 | BZ36: 40173.9726 | CA36: 0 | CB36: 27858.90411 | CC36: 0 | CD36: 27858.90411 | CE36: 0 | CF36: 12146.57534 | CG36: 0 | CH36: 12146.57534 | CI36: 0 | CJ36: 3228.767123 | CK36: 0 | CL36: 3228.767123 | CM36: 13332.87671 | CN36: 0 | CO36: 0 | CP36: 0 | CQ36: 19958.90411 | CR36: 0 | CS36: 0 | CT36: 0 | CU36: 20808.21918 | CV36: 0 | CW36: 0 | CX36: 0 | CY36: 10276.71233 | CZ36: 0 | DA36: 0 | DB36: 0 | DC36: 10276.79726 | DD36: 0 | DE36: 0 | DF36: 0
O37: =IF(T37="","",IF(ISERROR(AD37),"",ROUND(SUMIF(Δεδομένα2!$S$3:$EH$3,Παροχές!T37,Δεδομένα2!$S$22:$EH$22),0))) ->  | P37: =IF(T37="","",IF(ISERROR(AD37),"",ROUND(SUMIF(Δεδομένα2!$S$3:$EH$3,Παροχές!T37,Δεδομένα2!$S$32:$EH$32),0))) ->  | Z37: =IF(G37<>"",Δεδομένα2!$J$15/Παροχές!G37,"") ->  | AB37: =IF(T37<>"",MIN(INDIRECT("i" & ROW()):INDIRECT("i" & ROW()+S37-1)),"") ->  | AS37: 8 | AT37: =+BA5 -> 33887.67123 | AU37: =+BA17 -> 0 | AV37: =+BA6 -> 14438.35616 | AW37: =+BA18 -> 0 | AX37: =+BA7 -> 12315.06849 | AY37: =+BA19 -> 0 | AZ37: =+BA8 -> 15712.32877 | BA37: =+BA20 -> 0 | BB37: =+BA9 -> 8917.808219 | BC37: =+BA21 -> 0 | BD37: =+BA10 -> 16561.64384 | BE37: =+BA22 -> 0 | BF37: =+BA11 -> 19958.90411 | BG37: =+BA23 -> 0 | BH37: =+BA12 -> 20808.21918 | BI37: =+BA24 -> 0 | BJ37: =+BA13 -> 10276.71233 | BK37: =+BA25 -> 0 | BL37: =+BA14 -> 10276.79726 | BM37: =+BA26 -> 0 | BN37: =IF($R$3<>"ΜΤ",'CALL-NET-XT'!I117,'CALL-NET-MT'!H90) -> 16979.79337 | BO37: =IF($R$3<>"ΜΤ",0,'CALL-NET-MT'!I90) -> 0 | BP37: 16979.79337 | BQ37: =IF($R$3<>"ΜΤ",'CALL-NET-XT'!J117,'CALL-NET-MT'!I136) -> 71092.12213 | BR37: 88000 | BS37: 0 | BT37: 54112.32877 | BU37: 0 | BV37: 54112.32877 | BW37: 0 | BX37: 39673.9726 | BY37: 0 | BZ37: 39673.9726 | CA37: 0 | CB37: 27358.90411 | CC37: 0 | CD37: 27358.90411 | CE37: 0 | CF37: 11646.57534 | CG37: 0 | CH37: 11646.57534 | CI37: 0 | CJ37: 2728.767123 | CK37: 0 | CL37: 2728.767123 | CM37: 13832.87671 | CN37: 0 | CO37: 0 | CP37: 0 | CQ37: 19958.90411 | CR37: 0 | CS37: 0 | CT37: 0 | CU37: 20808.21918 | CV37: 0 | CW37: 0 | CX37: 0 | CY37: 10276.71233 | CZ37: 0 | DA37: 0 | DB37: 0 | DC37: 10276.79726 | DD37: 0 | DE37: 0 | DF37: 0
O38: =IF(T38="","",IF(ISERROR(AD38),"",ROUND(SUMIF(Δεδομένα2!$S$3:$EH$3,Παροχές!T38,Δεδομένα2!$S$22:$EH$22),0))) ->  | P38: =IF(T38="","",IF(ISERROR(AD38),"",ROUND(SUMIF(Δεδομένα2!$S$3:$EH$3,Παροχές!T38,Δεδομένα2!$S$32:$EH$32),0))) ->  | Z38: =IF(G38<>"",Δεδομένα2!$J$15/Παροχές!G38,"") ->  | AB38: =IF(T38<>"",MIN(INDIRECT("i" & ROW()):INDIRECT("i" & ROW()+S38-1)),"") ->  | AS38: 9 | AT38: =+BB5 -> 32794.52055 | AU38: =+BB17 -> 0 | AV38: =+BB6 -> 13972.60274 | AW38: =+BB18 -> 0 | AX38: =+BB7 -> 11917.80822 | AY38: =+BB19 -> 0 | AZ38: =+BB8 -> 15205.47945 | BA38: =+BB20 -> 0 | BB38: =+BB9 -> 8630.136986 | BC38: =+BB21 -> 0 | BD38: =+BB10 -> 16027.39726 | BE38: =+BB22 -> 0 | BF38: =+BB11 -> 19315.06849 | BG38: =+BB23 -> 0 | BH38: =+BB12 -> 20136.9863 | BI38: =+BB24 -> 0 | BJ38: =+BB13 -> 9945.205479 | BK38: =+BB25 -> 0 | BL38: =+BB14 -> 9945.287671 | BM38: =+BB26 -> 0 | BN38: =IF($R$3<>"ΜΤ",'CALL-NET-XT'!I118,'CALL-NET-MT'!H91) -> 17009.84011 | BO38: =IF($R$3<>"ΜΤ",0,'CALL-NET-MT'!I91) -> 0 | BP38: 17009.84011 | BQ38: =IF($R$3<>"ΜΤ",'CALL-NET-XT'!J118,'CALL-NET-MT'!I137) -> 58215.31957 | BR38: 74000 | BS38: 0 | BT38: 41205.47945 | BU38: 0 | BV38: 41205.47945 | BW38: 0 | BX38: 27232.87671 | BY38: 0 | BZ38: 27232.87671 | CA38: 0 | CB38: 15315.06849 | CC38: 0 | CD38: 15315.06849 | CE38: 0 | CF38: 109.5890411 | CG38: 0 | CH38: 109.5890411 | CI38: 8520.547945 | CJ38: 0 | CK38: 0 | CL38: 0 | CM38: 16027.39726 | CN38: 0 | CO38: 0 | CP38: 0 | CQ38: 19315.06849 | CR38: 0 | CS38: 0 | CT38: 0 | CU38: 20136.9863 | CV38: 0 | CW38: 0 | CX38: 0 | CY38: 9945.205479 | CZ38: 0 | DA38: 0 | DB38: 0 | DC38: 9945.287671 | DD38: 0 | DE38: 0 | DF38: 0
O39: =IF(T39="","",IF(ISERROR(AD39),"",ROUND(SUMIF(Δεδομένα2!$S$3:$EH$3,Παροχές!T39,Δεδομένα2!$S$22:$EH$22),0))) ->  | P39: =IF(T39="","",IF(ISERROR(AD39),"",ROUND(SUMIF(Δεδομένα2!$S$3:$EH$3,Παροχές!T39,Δεδομένα2!$S$32:$EH$32),0))) ->  | Z39: =IF(G39<>"",Δεδομένα2!$J$15/Παροχές!G39,"") ->  | AB39: =IF(T39<>"",MIN(INDIRECT("i" & ROW()):INDIRECT("i" & ROW()+S39-1)),"") ->  | AS39: 10 | AT39: =+BC5 -> 33887.67123 | AU39: =+BC17 -> 0 | AV39: =+BC6 -> 14438.35616 | AW39: =+BC18 -> 0 | AX39: =+BC7 -> 12315.06849 | AY39: =+BC19 -> 0 | AZ39: =+BC8 -> 15712.32877 | BA39: =+BC20 -> 0 | BB39: =+BC9 -> 8917.808219 | BC39: =+BC21 -> 0 | BD39: =+BC10 -> 16561.64384 | BE39: =+BC22 -> 0 | BF39: =+BC11 -> 19958.90411 | BG39: =+BC23 -> 0 | BH39: =+BC12 -> 20808.21918 | BI39: =+BC24 -> 0 | BJ39: =+BC13 -> 10276.71233 | BK39: =+BC25 -> 0 | BL39: =+BC14 -> 10276.79726 | BM39: =+BC26 -> 0 | BN39: =IF($R$3<>"ΜΤ",'CALL-NET-XT'!I119,'CALL-NET-MT'!H92) -> 18284.22261 | BO39: =IF($R$3<>"ΜΤ",0,'CALL-NET-MT'!I92) -> 0 | BP39: 18284.22261 | BQ39: =IF($R$3<>"ΜΤ",'CALL-NET-XT'!J119,'CALL-NET-MT'!I138) -> 47396.55138 | BR39: 63000 | BS39: 0 | BT39: 29112.32877 | BU39: 0 | BV39: 29112.32877 | BW39: 0 | BX39: 14673.9726 | BY39: 0 | BZ39: 14673.9726 | CA39: 0 | CB39: 2358.90411 | CC39: 0 | CD39: 2358.90411 | CE39: 13353.42466 | CF39: 0 | CG39: 0 | CH39: 0 | CI39: 8917.808219 | CJ39: 0 | CK39: 0 | CL39: 0 | CM39: 16561.64384 | CN39: 0 | CO39: 0 | CP39: 0 | CQ39: 19958.90411 | CR39: 0 | CS39: 0 | CT39: 0 | CU39: 20808.21918 | CV39: 0 | CW39: 0 | CX39: 0 | CY39: 10276.71233 | CZ39: 0 | DA39: 0 | DB39: 0 | DC39: 10276.79726 | DD39: 0 | DE39: 0 | DF39: 0
O40: =IF(T40="","",IF(ISERROR(AD40),"",ROUND(SUMIF(Δεδομένα2!$S$3:$EH$3,Παροχές!T40,Δεδομένα2!$S$22:$EH$22),0))) ->  | P40: =IF(T40="","",IF(ISERROR(AD40),"",ROUND(SUMIF(Δεδομένα2!$S$3:$EH$3,Παροχές!T40,Δεδομένα2!$S$32:$EH$32),0))) ->  | Z40: =IF(G40<>"",Δεδομένα2!$J$15/Παροχές!G40,"") ->  | AB40: =IF(T40<>"",MIN(INDIRECT("i" & ROW()):INDIRECT("i" & ROW()+S40-1)),"") ->  | AS40: 11 | AT40: =+BD5 -> 32794.52055 | AU40: =+BD17 -> 0 | AV40: =+BD6 -> 13972.60274 | AW40: =+BD18 -> 0 | AX40: =+BD7 -> 11917.80822 | AY40: =+BD19 -> 0 | AZ40: =+BD8 -> 15205.47945 | BA40: =+BD20 -> 0 | BB40: =+BD9 -> 8630.136986 | BC40: =+BD21 -> 0 | BD40: =+BD10 -> 16027.39726 | BE40: =+BD22 -> 0 | BF40: =+BD11 -> 19315.06849 | BG40: =+BD23 -> 0 | BH40: =+BD12 -> 20136.9863 | BI40: =+BD24 -> 0 | BJ40: =+BD13 -> 9945.205479 | BK40: =+BD25 -> 0 | BL40: =+BD14 -> 9945.287671 | BM40: =+BD26 -> 0 | BN40: =IF($R$3<>"ΜΤ",'CALL-NET-XT'!I120,'CALL-NET-MT'!H93) -> 19207.82569 | BO40: =IF($R$3<>"ΜΤ",0,'CALL-NET-MT'!I93) -> 0 | BP40: 19207.82569 | BQ40: =IF($R$3<>"ΜΤ",'CALL-NET-XT'!J120,'CALL-NET-MT'!I139) -> 36913.30514 | BR40: 50500 | BS40: 0 | BT40: 17705.47945 | BU40: 0 | BV40: 17705.47945 | BW40: 0 | BX40: 3732.876712 | BY40: 0 | BZ40: 3732.876712 | CA40: 8184.931507 | CB40: 0 | CC40: 0 | CD40: 0 | CE40: 15205.47945 | CF40: 0 | CG40: 0 | CH40: 0 | CI40: 8630.136986 | CJ40: 0 | CK40: 0 | CL40: 0 | CM40: 16027.39726 | CN40: 0 | CO40: 0 | CP40: 0 | CQ40: 19315.06849 | CR40: 0 | CS40: 0 | CT40: 0 | CU40: 20136.9863 | CV40: 0 | CW40: 0 | CX40: 0 | CY40: 9945.205479 | CZ40: 0 | DA40: 0 | DB40: 0 | DC40: 9945.287671 | DD40: 0 | DE40: 0 | DF40: 0
O41: =IF(T41="","",IF(ISERROR(AD41),"",ROUND(SUMIF(Δεδομένα2!$S$3:$EH$3,Παροχές!T41,Δεδομένα2!$S$22:$EH$22),0))) ->  | P41: =IF(T41="","",IF(ISERROR(AD41),"",ROUND(SUMIF(Δεδομένα2!$S$3:$EH$3,Παροχές!T41,Δεδομένα2!$S$32:$EH$32),0))) ->  | Z41: =IF(G41<>"",Δεδομένα2!$J$15/Παροχές!G41,"") ->  | AB41: =IF(T41<>"",MIN(INDIRECT("i" & ROW()):INDIRECT("i" & ROW()+S41-1)),"") ->  | AS41: 12 | AT41: =+BE5 -> 33887.67123 | AU41: =+BE17 -> 0 | AV41: =+BE6 -> 14438.35616 | AW41: =+BE18 -> 0 | AX41: =+BE7 -> 12315.06849 | AY41: =+BE19 -> 0 | AZ41: =+BE8 -> 15712.32877 | BA41: =+BE20 -> 0 | BB41: =+BE9 -> 8917.808219 | BC41: =+BE21 -> 0 | BD41: =+BE10 -> 16561.64384 | BE41: =+BE22 -> 0 | BF41: =+BE11 -> 19958.90411 | BG41: =+BE23 -> 0 | BH41: =+BE12 -> 20808.21918 | BI41: =+BE24 -> 0 | BJ41: =+BE13 -> 10276.71233 | BK41: =+BE25 -> 0 | BL41: =+BE14 -> 10276.79726 | BM41: =+BE26 -> 0 | BN41: =IF($R$3<>"ΜΤ",'CALL-NET-XT'!I121,'CALL-NET-MT'!H94) -> 20095.82174 | BO41: =IF($R$3<>"ΜΤ",0,'CALL-NET-MT'!I94) -> 0 | BP41: 20095.82174 | BQ41: =IF($R$3<>"ΜΤ",'CALL-NET-XT'!J121,'CALL-NET-MT'!I140) -> 28758.15051 | BR41: 42550 | BS41: 0 | BT41: 8662.328767 | BU41: 0 | BV41: 8662.328767 | BW41: 5776.027397 | BX41: 0 | BY41: 0 | BZ41: 0 | CA41: 12315.06849 | CB41: 0 | CC41: 0 | CD41: 0 | CE41: 15712.32877 | CF41: 0 | CG41: 0 | CH41: 0 | CI41: 8917.808219 | CJ41: 0 | CK41: 0 | CL41: 0 | CM41: 16561.64384 | CN41: 0 | CO41: 0 | CP41: 0 | CQ41: 19958.90411 | CR41: 0 | CS41: 0 | CT41: 0 | CU41: 20808.21918 | CV41: 0 | CW41: 0 | CX41: 0 | CY41: 10276.71233 | CZ41: 0 | DA41: 0 | DB41: 0 | DC41: 10276.79726 | DD41: 0 | DE41: 0 | DF41: 0
O42: =IF(T42="","",IF(ISERROR(AD42),"",ROUND(SUMIF(Δεδομένα2!$S$3:$EH$3,Παροχές!T42,Δεδομένα2!$S$22:$EH$22),0))) ->  | P42: =IF(T42="","",IF(ISERROR(AD42),"",ROUND(SUMIF(Δεδομένα2!$S$3:$EH$3,Παροχές!T42,Δεδομένα2!$S$32:$EH$32),0))) ->  | Z42: =IF(G42<>"",Δεδομένα2!$J$15/Παροχές!G42,"") ->  | AB42: =IF(T42<>"",MIN(INDIRECT("i" & ROW()):INDIRECT("i" & ROW()+S42-1)),"") ->  | AS42: =+AS30 -> 1 | AT42: 33887.67123 | AU42: 0 | AV42: 14438.35616 | AW42: 0 | AX42: 12315.06849 | AY42: 0 | AZ42: 15712.32877 | BA42: 0 | BB42: 8917.808219 | BC42: 0 | BD42: 16561.64384 | BE42: 0 | BF42: 19958.90411 | BG42: 0 | BH42: 20808.21918 | BI42: 0 | BJ42: 10276.71233 | BK42: 0 | BL42: 10276.79726 | BM42: 0 | BN42: 19933.97184 | BO42: 0 | BP42: 19933.97184 | BQ42: 33046.30061 | BS42: 0 | BT42: 13112.32877 | BU42: 0 | BV42: 13112.32877 | BW42: 1326.027397 | BX42: 0 | BY42: 0 | BZ42: 0 | CA42: 12315.06849 | CB42: 0 | CC42: 0 | CD42: 0 | CE42: 15712.32877 | CF42: 0 | CG42: 0 | CH42: 0 | CI42: 8917.808219 | CJ42: 0 | CK42: 0 | CL42: 0 | CM42: 16561.64384 | CN42: 0 | CO42: 0 | CP42: 0 | CQ42: 19958.90411 | CR42: 0 | CS42: 0 | CT42: 0 | CU42: 20808.21918 | CV42: 0 | CW42: 0 | CX42: 0 | CY42: 10276.71233 | CZ42: 0 | DA42: 0 | DB42: 0 | DC42: 10276.79726 | DD42: 0 | DE42: 0 | DF42: 0
O43: =IF(T43="","",IF(ISERROR(AD43),"",ROUND(SUMIF(Δεδομένα2!$S$3:$EH$3,Παροχές!T43,Δεδομένα2!$S$22:$EH$22),0))) ->  | P43: =IF(T43="","",IF(ISERROR(AD43),"",ROUND(SUMIF(Δεδομένα2!$S$3:$EH$3,Παροχές!T43,Δεδομένα2!$S$32:$EH$32),0))) ->  | Z43: =IF(G43<>"",Δεδομένα2!$J$15/Παροχές!G43,"") ->  | AB43: =IF(T43<>"",MIN(INDIRECT("i" & ROW()):INDIRECT("i" & ROW()+S43-1)),"") ->  | AS43: 2 | AT43: 30608.21918 | AU43: 0 | AV43: 13041.09589 | AW43: 0 | AX43: 11123.28767 | AY43: 0 | AZ43: 14191.78082 | BA43: 0 | BB43: 8054.794521 | BC43: 0 | BD43: 14958.90411 | BE43: 0 | BF43: 18027.39726 | BG43: 0 | BH43: 18794.52055 | BI43: 0 | BJ43: 9282.191781 | BK43: 0 | BL43: 9282.268493 | BM43: 0 | BN43: 17908.72785 | BO43: 0 | BP43: 17908.72785 | BQ43: 36400.50867 | BS43: 0 | BT43: 18491.78082 | BU43: 0 | BV43: 18491.78082 | BW43: 0 | BX43: 5450.684932 | BY43: 0 | BZ43: 5450.684932 | CA43: 5672.60274 | CB43: 0 | CC43: 0 | CD43: 0 | CE43: 14191.78082 | CF43: 0 | CG43: 0 | CH43: 0 | CI43: 8054.794521 | CJ43: 0 | CK43: 0 | CL43: 0 | CM43: 14958.90411 | CN43: 0 | CO43: 0 | CP43: 0 | CQ43: 18027.39726 | CR43: 0 | CS43: 0 | CT43: 0 | CU43: 18794.52055 | CV43: 0 | CW43: 0 | CX43: 0 | CY43: 9282.191781 | CZ43: 0 | DA43: 0 | DB43: 0 | DC43: 9282.268493 | DD43: 0 | DE43: 0 | DF43: 0
O44: =IF(T44="","",IF(ISERROR(AD44),"",ROUND(SUMIF(Δεδομένα2!$S$3:$EH$3,Παροχές!T44,Δεδομένα2!$S$22:$EH$22),0))) ->  | P44: =IF(T44="","",IF(ISERROR(AD44),"",ROUND(SUMIF(Δεδομένα2!$S$3:$EH$3,Παροχές!T44,Δεδομένα2!$S$32:$EH$32),0))) ->  | Z44: =IF(G44<>"",Δεδομένα2!$J$15/Παροχές!G44,"") ->  | AB44: =IF(T44<>"",MIN(INDIRECT("i" & ROW()):INDIRECT("i" & ROW()+S44-1)),"") ->  | AS44: 3 | AT44: 33887.67123 | AU44: 0 | AV44: 14438.35616 | AW44: 0 | AX44: 12315.06849 | AY44: 0 | AZ44: 15712.32877 | BA44: 0 | BB44: 8917.808219 | BC44: 0 | BD44: 16561.64384 | BE44: 0 | BF44: 19958.90411 | BG44: 0 | BH44: 20808.21918 | BI44: 0 | BJ44: 10276.71233 | BK44: 0 | BL44: 10276.79726 | BM44: 0 | BN44: 17910.83906 | BO44: 0 | BP44: 17910.83906 | BQ44: 55023.16783 | BS44: 0 | BT44: 37112.32877 | BU44: 0 | BV44: 37112.32877 | BW44: 0 | BX44: 22673.9726 | BY44: 0 | BZ44: 22673.9726 | CA44: 0 | CB44: 10358.90411 | CC44: 0 | CD44: 10358.90411 | CE44: 5353.424658 | CF44: 0 | CG44: 0 | CH44: 0 | CI44: 8917.808219 | CJ44: 0 | CK44: 0 | CL44: 0 | CM44: 16561.64384 | CN44: 0 | CO44: 0 | CP44: 0 | CQ44: 19958.90411 | CR44: 0 | CS44: 0 | CT44: 0 | CU44: 20808.21918 | CV44: 0 | CW44: 0 | CX44: 0 | CY44: 10276.71233 | CZ44: 0 | DA44: 0 | DB44: 0 | DC44: 10276.79726 | DD44: 0 | DE44: 0 | DF44: 0
O45: =IF(T45="","",IF(ISERROR(AD45),"",ROUND(SUMIF(Δεδομένα2!$S$3:$EH$3,Παροχές!T45,Δεδομένα2!$S$22:$EH$22),0))) ->  | P45: =IF(T45="","",IF(ISERROR(AD45),"",ROUND(SUMIF(Δεδομένα2!$S$3:$EH$3,Παροχές!T45,Δεδομένα2!$S$32:$EH$32),0))) ->  | Z45: =IF(G45<>"",Δεδομένα2!$J$15/Παροχές!G45,"") ->  | AB45: =IF(T45<>"",MIN(INDIRECT("i" & ROW()):INDIRECT("i" & ROW()+S45-1)),"") ->  | AS45: 4 | AT45: 32794.52055 | AU45: 0 | AV45: 13972.60274 | AW45: 0 | AX45: 11917.80822 | AY45: 0 | AZ45: 15205.47945 | BA45: 0 | BB45: 8630.136986 | BC45: 0 | BD45: 16027.39726 | BE45: 0 | BF45: 19315.06849 | BG45: 0 | BH45: 20136.9863 | BI45: 0 | BJ45: 9945.205479 | BK45: 0 | BL45: 9945.287671 | BM45: 0 | BN45: 16745.8494 | BO45: 0 | BP45: 16745.8494 | BQ45: 62951.32885 | BS45: 0 | BT45: 46205.47945 | BU45: 0 | BV45: 46205.47945 | BW45: 0 | BX45: 32232.87671 | BY45: 0 | BZ45: 32232.87671 | CA45: 0 | CB45: 20315.06849 | CC45: 0 | CD45: 20315.06849 | CE45: 0 | CF45: 5109.589041 | CG45: 0 | CH45: 5109.589041 | CI45: 3520.547945 | CJ45: 0 | CK45: 0 | CL45: 0 | CM45: 16027.39726 | CN45: 0 | CO45: 0 | CP45: 0 | CQ45: 19315.06849 | CR45: 0 | CS45: 0 | CT45: 0 | CU45: 20136.9863 | CV45: 0 | CW45: 0 | CX45: 0 | CY45: 9945.205479 | CZ45: 0 | DA45: 0 | DB45: 0 | DC45: 9945.287671 | DD45: 0 | DE45: 0 | DF45: 0
O46: =IF(T46="","",IF(ISERROR(AD46),"",ROUND(SUMIF(Δεδομένα2!$S$3:$EH$3,Παροχές!T46,Δεδομένα2!$S$22:$EH$22),0))) ->  | P46: =IF(T46="","",IF(ISERROR(AD46),"",ROUND(SUMIF(Δεδομένα2!$S$3:$EH$3,Παροχές!T46,Δεδομένα2!$S$32:$EH$32),0))) ->  | Z46: =IF(G46<>"",Δεδομένα2!$J$15/Παροχές!G46,"") ->  | AB46: =IF(T46<>"",MIN(INDIRECT("i" & ROW()):INDIRECT("i" & ROW()+S46-1)),"") ->  | AS46: 5 | AT46: 33887.67123 | AU46: 0 | AV46: 14438.35616 | AW46: 0 | AX46: 12315.06849 | AY46: 0 | AZ46: 15712.32877 | BA46: 0 | BB46: 8917.808219 | BC46: 0 | BD46: 16561.64384 | BE46: 0 | BF46: 19958.90411 | BG46: 0 | BH46: 20808.21918 | BI46: 0 | BJ46: 10276.71233 | BK46: 0 | BL46: 10276.79726 | BM46: 0 | BN46: 16769.37039 | BO46: 0 | BP46: 16769.37039 | BQ46: 64381.69915 | BS46: 0 | BT46: 47612.32877 | BU46: 0 | BV46: 47612.32877 | BW46: 0 | BX46: 33173.9726 | BY46: 0 | BZ46: 33173.9726 | CA46: 0 | CB46: 20858.90411 | CC46: 0 | CD46: 20858.90411 | CE46: 0 | CF46: 5146.575342 | CG46: 0 | CH46: 5146.575342 | CI46: 3771.232877 | CJ46: 0 | CK46: 0 | CL46: 0 | CM46: 16561.64384 | CN46: 0 | CO46: 0 | CP46: 0 | CQ46: 19958.90411 | CR46: 0 | CS46: 0 | CT46: 0 | CU46: 20808.21918 | CV46: 0 | CW46: 0 | CX46: 0 | CY46: 10276.71233 | CZ46: 0 | DA46: 0 | DB46: 0 | DC46: 10276.79726 | DD46: 0 | DE46: 0 | DF46: 0
O47: =IF(T47="","",IF(ISERROR(AD47),"",ROUND(SUMIF(Δεδομένα2!$S$3:$EH$3,Παροχές!T47,Δεδομένα2!$S$22:$EH$22),0))) ->  | P47: =IF(T47="","",IF(ISERROR(AD47),"",ROUND(SUMIF(Δεδομένα2!$S$3:$EH$3,Παροχές!T47,Δεδομένα2!$S$32:$EH$32),0))) ->  | Z47: =IF(G47<>"",Δεδομένα2!$J$15/Παροχές!G47,"") ->  | AB47: =IF(T47<>"",MIN(INDIRECT("i" & ROW()):INDIRECT("i" & ROW()+S47-1)),"") ->  | AS47: 6 | AT47: 32794.52055 | AU47: 0 | AV47: 13972.60274 | AW47: 0 | AX47: 11917.80822 | AY47: 0 | AZ47: 15205.47945 | BA47: 0 | BB47: 8630.136986 | BC47: 0 | BD47: 16027.39726 | BE47: 0 | BF47: 19315.06849 | BG47: 0 | BH47: 20136.9863 | BI47: 0 | BJ47: 9945.205479 | BK47: 0 | BL47: 9945.287671 | BM47: 0 | BN47: 16038.86537 | BO47: 0 | BP47: 16038.86537 | BQ47: 64244.34482 | BS47: 0 | BT47: 48205.47945 | BU47: 0 | BV47: 48205.47945 | BW47: 0 | BX47: 34232.87671 | BY47: 0 | BZ47: 34232.87671 | CA47: 0 | CB47: 22315.06849 | CC47: 0 | CD47: 22315.06849 | CE47: 0 | CF47: 7109.589041 | CG47: 0 | CH47: 7109.589041 | CI47: 1520.547945 | CJ47: 0 | CK47: 0 | CL47: 0 | CM47: 16027.39726 | CN47: 0 | CO47: 0 | CP47: 0 | CQ47: 19315.06849 | CR47: 0 | CS47: 0 | CT47: 0 | CU47: 20136.9863 | CV47: 0 | CW47: 0 | CX47: 0 | CY47: 9945.205479 | CZ47: 0 | DA47: 0 | DB47: 0 | DC47: 9945.287671 | DD47: 0 | DE47: 0 | DF47: 0
O48: =IF(T48="","",IF(ISERROR(AD48),"",ROUND(SUMIF(Δεδομένα2!$S$3:$EH$3,Παροχές!T48,Δεδομένα2!$S$22:$EH$22),0))) ->  | P48: =IF(T48="","",IF(ISERROR(AD48),"",ROUND(SUMIF(Δεδομένα2!$S$3:$EH$3,Παροχές!T48,Δεδομένα2!$S$32:$EH$32),0))) ->  | Z48: =IF(G48<>"",Δεδομένα2!$J$15/Παροχές!G48,"") ->  | AB48: =IF(T48<>"",MIN(INDIRECT("i" & ROW()):INDIRECT("i" & ROW()+S48-1)),"") ->  | AS48: 7 | AT48: 33887.67123 | AU48: 0 | AV48: 14438.35616 | AW48: 0 | AX48: 12315.06849 | AY48: 0 | AZ48: 15712.32877 | BA48: 0 | BB48: 8917.808219 | BC48: 0 | BD48: 16561.64384 | BE48: 0 | BF48: 19958.90411 | BG48: 0 | BH48: 20808.21918 | BI48: 0 | BJ48: 10276.71233 | BK48: 0 | BL48: 10276.79726 | BM48: 0 | BN48: 16682.2562 | BO48: 0 | BP48: 16682.2562 | BQ48: 71294.58497 | BS48: 0 | BT48: 54612.32877 | BU48: 0 | BV48: 54612.32877 | BW48: 0 | BX48: 40173.9726 | BY48: 0 | BZ48: 40173.9726 | CA48: 0 | CB48: 27858.90411 | CC48: 0 | CD48: 27858.90411 | CE48: 0 | CF48: 12146.57534 | CG48: 0 | CH48: 12146.57534 | CI48: 0 | CJ48: 3228.767123 | CK48: 0 | CL48: 3228.767123 | CM48: 13332.87671 | CN48: 0 | CO48: 0 | CP48: 0 | CQ48: 19958.90411 | CR48: 0 | CS48: 0 | CT48: 0 | CU48: 20808.21918 | CV48: 0 | CW48: 0 | CX48: 0 | CY48: 10276.71233 | CZ48: 0 | DA48: 0 | DB48: 0 | DC48: 10276.79726 | DD48: 0 | DE48: 0 | DF48: 0
O49: =IF(T49="","",IF(ISERROR(AD49),"",ROUND(SUMIF(Δεδομένα2!$S$3:$EH$3,Παροχές!T49,Δεδομένα2!$S$22:$EH$22),0))) ->  | P49: =IF(T49="","",IF(ISERROR(AD49),"",ROUND(SUMIF(Δεδομένα2!$S$3:$EH$3,Παροχές!T49,Δεδομένα2!$S$32:$EH$32),0))) ->  | Z49: =IF(G49<>"",Δεδομένα2!$J$15/Παροχές!G49,"") ->  | AB49: =IF(T49<>"",MIN(INDIRECT("i" & ROW()):INDIRECT("i" & ROW()+S49-1)),"") ->  | AS49: 8 | AT49: 33887.67123 | AU49: 0 | AV49: 14438.35616 | AW49: 0 | AX49: 12315.06849 | AY49: 0 | AZ49: 15712.32877 | BA49: 0 | BB49: 8917.808219 | BC49: 0 | BD49: 16561.64384 | BE49: 0 | BF49: 19958.90411 | BG49: 0 | BH49: 20808.21918 | BI49: 0 | BJ49: 10276.71233 | BK49: 0 | BL49: 10276.79726 | BM49: 0 | BN49: 16979.79337 | BO49: 0 | BP49: 16979.79337 | BQ49: 71092.12213 | BS49: 0 | BT49: 54112.32877 | BU49: 0 | BV49: 54112.32877 | BW49: 0 | BX49: 39673.9726 | BY49: 0 | BZ49: 39673.9726 | CA49: 0 | CB49: 27358.90411 | CC49: 0 | CD49: 27358.90411 | CE49: 0 | CF49: 11646.57534 | CG49: 0 | CH49: 11646.57534 | CI49: 0 | CJ49: 2728.767123 | CK49: 0 | CL49: 2728.767123 | CM49: 13832.87671 | CN49: 0 | CO49: 0 | CP49: 0 | CQ49: 19958.90411 | CR49: 0 | CS49: 0 | CT49: 0 | CU49: 20808.21918 | CV49: 0 | CW49: 0 | CX49: 0 | CY49: 10276.71233 | CZ49: 0 | DA49: 0 | DB49: 0 | DC49: 10276.79726 | DD49: 0 | DE49: 0 | DF49: 0
O50: =IF(T50="","",IF(ISERROR(AD50),"",ROUND(SUMIF(Δεδομένα2!$S$3:$EH$3,Παροχές!T50,Δεδομένα2!$S$22:$EH$22),0))) ->  | P50: =IF(T50="","",IF(ISERROR(AD50),"",ROUND(SUMIF(Δεδομένα2!$S$3:$EH$3,Παροχές!T50,Δεδομένα2!$S$32:$EH$32),0))) ->  | Z50: =IF(G50<>"",Δεδομένα2!$J$15/Παροχές!G50,"") ->  | AB50: =IF(T50<>"",MIN(INDIRECT("i" & ROW()):INDIRECT("i" & ROW()+S50-1)),"") ->  | AS50: 9 | AT50: 32794.52055 | AU50: 0 | AV50: 13972.60274 | AW50: 0 | AX50: 11917.80822 | AY50: 0 | AZ50: 15205.47945 | BA50: 0 | BB50: 8630.136986 | BC50: 0 | BD50: 16027.39726 | BE50: 0 | BF50: 19315.06849 | BG50: 0 | BH50: 20136.9863 | BI50: 0 | BJ50: 9945.205479 | BK50: 0 | BL50: 9945.287671 | BM50: 0 | BN50: 17009.84011 | BO50: 0 | BP50: 17009.84011 | BQ50: 58215.31957 | BS50: 0 | BT50: 41205.47945 | BU50: 0 | BV50: 41205.47945 | BW50: 0 | BX50: 27232.87671 | BY50: 0 | BZ50: 27232.87671 | CA50: 0 | CB50: 15315.06849 | CC50: 0 | CD50: 15315.06849 | CE50: 0 | CF50: 109.5890411 | CG50: 0 | CH50: 109.5890411 | CI50: 8520.547945 | CJ50: 0 | CK50: 0 | CL50: 0 | CM50: 16027.39726 | CN50: 0 | CO50: 0 | CP50: 0 | CQ50: 19315.06849 | CR50: 0 | CS50: 0 | CT50: 0 | CU50: 20136.9863 | CV50: 0 | CW50: 0 | CX50: 0 | CY50: 9945.205479 | CZ50: 0 | DA50: 0 | DB50: 0 | DC50: 9945.287671 | DD50: 0 | DE50: 0 | DF50: 0
O51: =IF(T51="","",IF(ISERROR(AD51),"",ROUND(SUMIF(Δεδομένα2!$S$3:$EH$3,Παροχές!T51,Δεδομένα2!$S$22:$EH$22),0))) ->  | P51: =IF(T51="","",IF(ISERROR(AD51),"",ROUND(SUMIF(Δεδομένα2!$S$3:$EH$3,Παροχές!T51,Δεδομένα2!$S$32:$EH$32),0))) ->  | Z51: =IF(G51<>"",Δεδομένα2!$J$15/Παροχές!G51,"") ->  | AB51: =IF(T51<>"",MIN(INDIRECT("i" & ROW()):INDIRECT("i" & ROW()+S51-1)),"") ->  | AS51: 10 | AT51: 33887.67123 | AU51: 0 | AV51: 14438.35616 | AW51: 0 | AX51: 12315.06849 | AY51: 0 | AZ51: 15712.32877 | BA51: 0 | BB51: 8917.808219 | BC51: 0 | BD51: 16561.64384 | BE51: 0 | BF51: 19958.90411 | BG51: 0 | BH51: 20808.21918 | BI51: 0 | BJ51: 10276.71233 | BK51: 0 | BL51: 10276.79726 | BM51: 0 | BN51: 18284.22261 | BO51: 0 | BP51: 18284.22261 | BQ51: 47396.55138 | BS51: 0 | BT51: 29112.32877 | BU51: 0 | BV51: 29112.32877 | BW51: 0 | BX51: 14673.9726 | BY51: 0 | BZ51: 14673.9726 | CA51: 0 | CB51: 2358.90411 | CC51: 0 | CD51: 2358.90411 | CE51: 13353.42466 | CF51: 0 | CG51: 0 | CH51: 0 | CI51: 8917.808219 | CJ51: 0 | CK51: 0 | CL51: 0 | CM51: 16561.64384 | CN51: 0 | CO51: 0 | CP51: 0 | CQ51: 19958.90411 | CR51: 0 | CS51: 0 | CT51: 0 | CU51: 20808.21918 | CV51: 0 | CW51: 0 | CX51: 0 | CY51: 10276.71233 | CZ51: 0 | DA51: 0 | DB51: 0 | DC51: 10276.79726 | DD51: 0 | DE51: 0 | DF51: 0
O52: =IF(T52="","",IF(ISERROR(AD52),"",ROUND(SUMIF(Δεδομένα2!$S$3:$EH$3,Παροχές!T52,Δεδομένα2!$S$22:$EH$22),0))) ->  | P52: =IF(T52="","",IF(ISERROR(AD52),"",ROUND(SUMIF(Δεδομένα2!$S$3:$EH$3,Παροχές!T52,Δεδομένα2!$S$32:$EH$32),0))) ->  | Z52: =IF(G52<>"",Δεδομένα2!$J$15/Παροχές!G52,"") ->  | AB52: =IF(T52<>"",MIN(INDIRECT("i" & ROW()):INDIRECT("i" & ROW()+S52-1)),"") ->  | AS52: 11 | AT52: 32794.52055 | AU52: 0 | AV52: 13972.60274 | AW52: 0 | AX52: =+AX40 -> 11917.80822 | AY52: 0 | AZ52: 15205.47945 | BA52: 0 | BB52: 8630.136986 | BC52: 0 | BD52: 16027.39726 | BE52: 0 | BF52: 19315.06849 | BG52: 0 | BH52: 20136.9863 | BI52: 0 | BJ52: 9945.205479 | BK52: 0 | BL52: 9945.287671 | BM52: 0 | BN52: 19207.82569 | BO52: 0 | BP52: 19207.82569 | BQ52: 36913.30514 | BS52: 0 | BT52: 17705.47945 | BU52: 0 | BV52: 17705.47945 | BW52: 0 | BX52: 3732.876712 | BY52: 0 | BZ52: 3732.876712 | CA52: 8184.931507 | CB52: 0 | CC52: 0 | CD52: 0 | CE52: 15205.47945 | CF52: 0 | CG52: 0 | CH52: 0 | CI52: 8630.136986 | CJ52: 0 | CK52: 0 | CL52: 0 | CM52: 16027.39726 | CN52: 0 | CO52: 0 | CP52: 0 | CQ52: 19315.06849 | CR52: 0 | CS52: 0 | CT52: 0 | CU52: 20136.9863 | CV52: 0 | CW52: 0 | CX52: 0 | CY52: 9945.205479 | CZ52: 0 | DA52: 0 | DB52: 0 | DC52: 9945.287671 | DD52: 0 | DE52: 0 | DF52: 0
O53: =IF(T53="","",IF(ISERROR(AD53),"",ROUND(SUMIF(Δεδομένα2!$S$3:$EH$3,Παροχές!T53,Δεδομένα2!$S$22:$EH$22),0))) ->  | P53: =IF(T53="","",IF(ISERROR(AD53),"",ROUND(SUMIF(Δεδομένα2!$S$3:$EH$3,Παροχές!T53,Δεδομένα2!$S$32:$EH$32),0))) ->  | Z53: =IF(G53<>"",Δεδομένα2!$J$15/Παροχές!G53,"") ->  | AB53: =IF(T53<>"",MIN(INDIRECT("i" & ROW()):INDIRECT("i" & ROW()+S53-1)),"") ->  | AS53: =+AS41 -> 12 | AT53: 33887.67123 | AU53: 0 | AV53: 14438.35616 | AW53: 0 | AX53: 12315.06849 | AY53: 0 | AZ53: 15712.32877 | BA53: 0 | BB53: 8917.808219 | BC53: 0 | BD53: 16561.64384 | BE53: 0 | BF53: 19958.90411 | BG53: 0 | BH53: 20808.21918 | BI53: 0 | BJ53: 10276.71233 | BK53: 0 | BL53: 10276.79726 | BM53: 0 | BN53: 20095.82174 | BO53: 0 | BP53: 20095.82174 | BQ53: 28758.15051 | BS53: 0 | BT53: 8662.328767 | BU53: 0 | BV53: 8662.328767 | BW53: 5776.027397 | BX53: 0 | BY53: 0 | BZ53: 0 | CA53: 12315.06849 | CB53: 0 | CC53: 0 | CD53: 0 | CE53: 15712.32877 | CF53: 0 | CG53: 0 | CH53: 0 | CI53: 8917.808219 | CJ53: 0 | CK53: 0 | CL53: 0 | CM53: 16561.64384 | CN53: 0 | CO53: 0 | CP53: 0 | CQ53: 19958.90411 | CR53: 0 | CS53: 0 | CT53: 0 | CU53: 20808.21918 | CV53: 0 | CW53: 0 | CX53: 0 | CY53: 10276.71233 | CZ53: 0 | DA53: 0 | DB53: 0 | DC53: 10276.79726 | DD53: 0 | DE53: 0 | DF53: 0
O54: =IF(T54="","",IF(ISERROR(AD54),"",ROUND(SUMIF(Δεδομένα2!$S$3:$EH$3,Παροχές!T54,Δεδομένα2!$S$22:$EH$22),0))) ->  | P54: =IF(T54="","",IF(ISERROR(AD54),"",ROUND(SUMIF(Δεδομένα2!$S$3:$EH$3,Παροχές!T54,Δεδομένα2!$S$32:$EH$32),0))) ->  | Z54: =IF(G54<>"",Δεδομένα2!$J$15/Παροχές!G54,"") ->  | AB54: =IF(T54<>"",MIN(INDIRECT("i" & ROW()):INDIRECT("i" & ROW()+S54-1)),"") ->  | AS54: 1 | AT54: 33887.67123 | AU54: 0 | AV54: 14438.35616 | AW54: 0 | AX54: 12315.06849 | AY54: 0 | AZ54: 15712.32877 | BA54: 0 | BB54: 8917.808219 | BC54: 0 | BD54: 16561.64384 | BE54: 0 | BF54: 19958.90411 | BG54: 0 | BH54: 20808.21918 | BI54: 0 | BJ54: 10276.71233 | BK54: 0 | BL54: 10276.79726 | BM54: 0 | BN54: 19933.97184 | BO54: 0 | BP54: 19933.97184 | BQ54: 33046.30061 | BS54: 0 | BT54: 13112.32877 | BU54: 0 | BV54: 13112.32877 | BW54: 1326.027397 | BX54: 0 | BY54: 0 | BZ54: 0 | CA54: 12315.06849 | CB54: 0 | CC54: 0 | CD54: 0 | CE54: 15712.32877 | CF54: 0 | CG54: 0 | CH54: 0 | CI54: 8917.808219 | CJ54: 0 | CK54: 0 | CL54: 0 | CM54: 16561.64384 | CN54: 0 | CO54: 0 | CP54: 0 | CQ54: 19958.90411 | CR54: 0 | CS54: 0 | CT54: 0 | CU54: 20808.21918 | CV54: 0 | CW54: 0 | CX54: 0 | CY54: 10276.71233 | CZ54: 0 | DA54: 0 | DB54: 0 | DC54: 10276.79726 | DD54: 0 | DE54: 0 | DF54: 0
O55: =IF(T55="","",IF(ISERROR(AD55),"",ROUND(SUMIF(Δεδομένα2!$S$3:$EH$3,Παροχές!T55,Δεδομένα2!$S$22:$EH$22),0))) ->  | P55: =IF(T55="","",IF(ISERROR(AD55),"",ROUND(SUMIF(Δεδομένα2!$S$3:$EH$3,Παροχές!T55,Δεδομένα2!$S$32:$EH$32),0))) ->  | Z55: =IF(G55<>"",Δεδομένα2!$J$15/Παροχές!G55,"") ->  | AB55: =IF(T55<>"",MIN(INDIRECT("i" & ROW()):INDIRECT("i" & ROW()+S55-1)),"") ->  | AS55: 2 | AT55: 30608.21918 | AU55: 0 | AV55: 13041.09589 | AW55: 0 | AX55: 11123.28767 | AY55: 0 | AZ55: 14191.78082 | BA55: 0 | BB55: 8054.794521 | BC55: 0 | BD55: 14958.90411 | BE55: 0 | BF55: 18027.39726 | BG55: 0 | BH55: 18794.52055 | BI55: 0 | BJ55: 9282.191781 | BK55: 0 | BL55: 9282.268493 | BM55: 0 | BN55: 17908.72785 | BO55: 0 | BP55: 17908.72785 | BQ55: 36400.50867 | BS55: 0 | BT55: 18491.78082 | BU55: 0 | BV55: 18491.78082 | BW55: 0 | BX55: 5450.684932 | BY55: 0 | BZ55: 5450.684932 | CA55: 5672.60274 | CB55: 0 | CC55: 0 | CD55: 0 | CE55: 14191.78082 | CF55: 0 | CG55: 0 | CH55: 0 | CI55: 8054.794521 | CJ55: 0 | CK55: 0 | CL55: 0 | CM55: 14958.90411 | CN55: 0 | CO55: 0 | CP55: 0 | CQ55: 18027.39726 | CR55: 0 | CS55: 0 | CT55: 0 | CU55: 18794.52055 | CV55: 0 | CW55: 0 | CX55: 0 | CY55: 9282.191781 | CZ55: 0 | DA55: 0 | DB55: 0 | DC55: 9282.268493 | DD55: 0 | DE55: 0 | DF55: 0
O56: =IF(T56="","",IF(ISERROR(AD56),"",ROUND(SUMIF(Δεδομένα2!$S$3:$EH$3,Παροχές!T56,Δεδομένα2!$S$22:$EH$22),0))) ->  | P56: =IF(T56="","",IF(ISERROR(AD56),"",ROUND(SUMIF(Δεδομένα2!$S$3:$EH$3,Παροχές!T56,Δεδομένα2!$S$32:$EH$32),0))) ->  | Z56: =IF(G56<>"",Δεδομένα2!$J$15/Παροχές!G56,"") ->  | AB56: =IF(T56<>"",MIN(INDIRECT("i" & ROW()):INDIRECT("i" & ROW()+S56-1)),"") ->  | AS56: 3 | AT56: 33887.67123 | AU56: 0 | AV56: 14438.35616 | AW56: 0 | AX56: 12315.06849 | AY56: 0 | AZ56: 15712.32877 | BA56: 0 | BB56: 8917.808219 | BC56: 0 | BD56: 16561.64384 | BE56: 0 | BF56: 19958.90411 | BG56: 0 | BH56: 20808.21918 | BI56: 0 | BJ56: 10276.71233 | BK56: 0 | BL56: 10276.79726 | BM56: 0 | BN56: 17910.83906 | BO56: 0 | BP56: 17910.83906 | BQ56: 55023.16783 | BS56: 0 | BT56: 37112.32877 | BU56: 0 | BV56: 37112.32877 | BW56: 0 | BX56: 22673.9726 | BY56: 0 | BZ56: 22673.9726 | CA56: 0 | CB56: 10358.90411 | CC56: 0 | CD56: 10358.90411 | CE56: 5353.424658 | CF56: 0 | CG56: 0 | CH56: 0 | CI56: 8917.808219 | CJ56: 0 | CK56: 0 | CL56: 0 | CM56: 16561.64384 | CN56: 0 | CO56: 0 | CP56: 0 | CQ56: 19958.90411 | CR56: 0 | CS56: 0 | CT56: 0 | CU56: 20808.21918 | CV56: 0 | CW56: 0 | CX56: 0 | CY56: 10276.71233 | CZ56: 0 | DA56: 0 | DB56: 0 | DC56: 10276.79726 | DD56: 0 | DE56: 0 | DF56: 0
O57: =IF(T57="","",IF(ISERROR(AD57),"",ROUND(SUMIF(Δεδομένα2!$S$3:$EH$3,Παροχές!T57,Δεδομένα2!$S$22:$EH$22),0))) ->  | P57: =IF(T57="","",IF(ISERROR(AD57),"",ROUND(SUMIF(Δεδομένα2!$S$3:$EH$3,Παροχές!T57,Δεδομένα2!$S$32:$EH$32),0))) ->  | Z57: =IF(G57<>"",Δεδομένα2!$J$15/Παροχές!G57,"") ->  | AB57: =IF(T57<>"",MIN(INDIRECT("i" & ROW()):INDIRECT("i" & ROW()+S57-1)),"") ->  | AS57: 4 | AT57: 32794.52055 | AU57: 0 | AV57: 13972.60274 | AW57: 0 | AX57: 11917.80822 | AY57: 0 | AZ57: 15205.47945 | BA57: 0 | BB57: 8630.136986 | BC57: 0 | BD57: 16027.39726 | BE57: 0 | BF57: 19315.06849 | BG57: 0 | BH57: 20136.9863 | BI57: 0 | BJ57: 9945.205479 | BK57: 0 | BL57: 9945.287671 | BM57: 0 | BN57: 16745.8494 | BO57: 0 | BP57: 16745.8494 | BQ57: 62951.32885 | BS57: 0 | BT57: 46205.47945 | BU57: 0 | BV57: 46205.47945 | BW57: 0 | BX57: 32232.87671 | BY57: 0 | BZ57: 32232.87671 | CA57: 0 | CB57: 20315.06849 | CC57: 0 | CD57: 20315.06849 | CE57: 0 | CF57: 5109.589041 | CG57: 0 | CH57: 5109.589041 | CI57: 3520.547945 | CJ57: 0 | CK57: 0 | CL57: 0 | CM57: 16027.39726 | CN57: 0 | CO57: 0 | CP57: 0 | CQ57: 19315.06849 | CR57: 0 | CS57: 0 | CT57: 0 | CU57: 20136.9863 | CV57: 0 | CW57: 0 | CX57: 0 | CY57: 9945.205479 | CZ57: 0 | DA57: 0 | DB57: 0 | DC57: 9945.287671 | DD57: 0 | DE57: 0 | DF57: 0
O58: =IF(T58="","",IF(ISERROR(AD58),"",ROUND(SUMIF(Δεδομένα2!$S$3:$EH$3,Παροχές!T58,Δεδομένα2!$S$22:$EH$22),0))) ->  | P58: =IF(T58="","",IF(ISERROR(AD58),"",ROUND(SUMIF(Δεδομένα2!$S$3:$EH$3,Παροχές!T58,Δεδομένα2!$S$32:$EH$32),0))) ->  | Z58: =IF(G58<>"",Δεδομένα2!$J$15/Παροχές!G58,"") ->  | AB58: =IF(T58<>"",MIN(INDIRECT("i" & ROW()):INDIRECT("i" & ROW()+S58-1)),"") ->  | AS58: 5 | AT58: 33887.67123 | AU58: 0 | AV58: 14438.35616 | AW58: 0 | AX58: 12315.06849 | AY58: 0 | AZ58: 15712.32877 | BA58: 0 | BB58: 8917.808219 | BC58: 0 | BD58: 16561.64384 | BE58: 0 | BF58: 19958.90411 | BG58: 0 | BH58: 20808.21918 | BI58: 0 | BJ58: 10276.71233 | BK58: 0 | BL58: 10276.79726 | BM58: 0 | BN58: 16769.37039 | BO58: 0 | BP58: 16769.37039 | BQ58: 64381.69915 | BS58: 0 | BT58: 47612.32877 | BU58: 0 | BV58: 47612.32877 | BW58: 0 | BX58: 33173.9726 | BY58: 0 | BZ58: 33173.9726 | CA58: 0 | CB58: 20858.90411 | CC58: 0 | CD58: 20858.90411 | CE58: 0 | CF58: 5146.575342 | CG58: 0 | CH58: 5146.575342 | CI58: 3771.232877 | CJ58: 0 | CK58: 0 | CL58: 0 | CM58: 16561.64384 | CN58: 0 | CO58: 0 | CP58: 0 | CQ58: 19958.90411 | CR58: 0 | CS58: 0 | CT58: 0 | CU58: 20808.21918 | CV58: 0 | CW58: 0 | CX58: 0 | CY58: 10276.71233 | CZ58: 0 | DA58: 0 | DB58: 0 | DC58: 10276.79726 | DD58: 0 | DE58: 0 | DF58: 0
O59: =IF(T59="","",IF(ISERROR(AD59),"",ROUND(SUMIF(Δεδομένα2!$S$3:$EH$3,Παροχές!T59,Δεδομένα2!$S$22:$EH$22),0))) ->  | P59: =IF(T59="","",IF(ISERROR(AD59),"",ROUND(SUMIF(Δεδομένα2!$S$3:$EH$3,Παροχές!T59,Δεδομένα2!$S$32:$EH$32),0))) ->  | Z59: =IF(G59<>"",Δεδομένα2!$J$15/Παροχές!G59,"") ->  | AB59: =IF(T59<>"",MIN(INDIRECT("i" & ROW()):INDIRECT("i" & ROW()+S59-1)),"") ->  | AS59: 6 | AT59: 32794.52055 | AU59: 0 | AV59: 13972.60274 | AW59: 0 | AX59: 11917.80822 | AY59: 0 | AZ59: 15205.47945 | BA59: 0 | BB59: 8630.136986 | BC59: 0 | BD59: 16027.39726 | BE59: 0 | BF59: 19315.06849 | BG59: 0 | BH59: 20136.9863 | BI59: 0 | BJ59: 9945.205479 | BK59: 0 | BL59: 9945.287671 | BM59: 0 | BN59: 16038.86537 | BO59: 0 | BP59: 16038.86537 | BQ59: 64244.34482 | BS59: 0 | BT59: 48205.47945 | BU59: 0 | BV59: 48205.47945 | BW59: 0 | BX59: 34232.87671 | BY59: 0 | BZ59: 34232.87671 | CA59: 0 | CB59: 22315.06849 | CC59: 0 | CD59: 22315.06849 | CE59: 0 | CF59: 7109.589041 | CG59: 0 | CH59: 7109.589041 | CI59: 1520.547945 | CJ59: 0 | CK59: 0 | CL59: 0 | CM59: 16027.39726 | CN59: 0 | CO59: 0 | CP59: 0 | CQ59: 19315.06849 | CR59: 0 | CS59: 0 | CT59: 0 | CU59: 20136.9863 | CV59: 0 | CW59: 0 | CX59: 0 | CY59: 9945.205479 | CZ59: 0 | DA59: 0 | DB59: 0 | DC59: 9945.287671 | DD59: 0 | DE59: 0 | DF59: 0
O60: =IF(T60="","",IF(ISERROR(AD60),"",ROUND(SUMIF(Δεδομένα2!$S$3:$EH$3,Παροχές!T60,Δεδομένα2!$S$22:$EH$22),0))) ->  | P60: =IF(T60="","",IF(ISERROR(AD60),"",ROUND(SUMIF(Δεδομένα2!$S$3:$EH$3,Παροχές!T60,Δεδομένα2!$S$32:$EH$32),0))) ->  | Z60: =IF(G60<>"",Δεδομένα2!$J$15/Παροχές!G60,"") ->  | AB60: =IF(T60<>"",MIN(INDIRECT("i" & ROW()):INDIRECT("i" & ROW()+S60-1)),"") ->  | AS60: 7 | AT60: 33887.67123 | AU60: 0 | AV60: 14438.35616 | AW60: 0 | AX60: 12315.06849 | AY60: 0 | AZ60: 15712.32877 | BA60: 0 | BB60: 8917.808219 | BC60: 0 | BD60: 16561.64384 | BE60: 0 | BF60: 19958.90411 | BG60: 0 | BH60: 20808.21918 | BI60: 0 | BJ60: 10276.71233 | BK60: 0 | BL60: 10276.79726 | BM60: 0 | BN60: 16682.2562 | BO60: 0 | BP60: 16682.2562 | BQ60: 71294.58497 | BS60: 0 | BT60: 54612.32877 | BU60: 0 | BV60: 54612.32877 | BW60: 0 | BX60: 40173.9726 | BY60: 0 | BZ60: 40173.9726 | CA60: 0 | CB60: 27858.90411 | CC60: 0 | CD60: 27858.90411 | CE60: 0 | CF60: 12146.57534 | CG60: 0 | CH60: 12146.57534 | CI60: 0 | CJ60: 3228.767123 | CK60: 0 | CL60: 3228.767123 | CM60: 13332.87671 | CN60: 0 | CO60: 0 | CP60: 0 | CQ60: 19958.90411 | CR60: 0 | CS60: 0 | CT60: 0 | CU60: 20808.21918 | CV60: 0 | CW60: 0 | CX60: 0 | CY60: 10276.71233 | CZ60: 0 | DA60: 0 | DB60: 0 | DC60: 10276.79726 | DD60: 0 | DE60: 0 | DF60: 0
O61: =IF(T61="","",IF(ISERROR(AD61),"",ROUND(SUMIF(Δεδομένα2!$S$3:$EH$3,Παροχές!T61,Δεδομένα2!$S$22:$EH$22),0))) ->  | P61: =IF(T61="","",IF(ISERROR(AD61),"",ROUND(SUMIF(Δεδομένα2!$S$3:$EH$3,Παροχές!T61,Δεδομένα2!$S$32:$EH$32),0))) ->  | Z61: =IF(G61<>"",Δεδομένα2!$J$15/Παροχές!G61,"") ->  | AB61: =IF(T61<>"",MIN(INDIRECT("i" & ROW()):INDIRECT("i" & ROW()+S61-1)),"") ->  | AS61: 8 | AT61: 33887.67123 | AU61: 0 | AV61: 14438.35616 | AW61: 0 | AX61: 12315.06849 | AY61: 0 | AZ61: 15712.32877 | BA61: 0 | BB61: 8917.808219 | BC61: 0 | BD61: 16561.64384 | BE61: 0 | BF61: 19958.90411 | BG61: 0 | BH61: 20808.21918 | BI61: 0 | BJ61: 10276.71233 | BK61: 0 | BL61: 10276.79726 | BM61: 0 | BN61: 16979.79337 | BO61: 0 | BP61: 16979.79337 | BQ61: 71092.12213 | BS61: 0 | BT61: 54112.32877 | BU61: 0 | BV61: 54112.32877 | BW61: 0 | BX61: 39673.9726 | BY61: 0 | BZ61: 39673.9726 | CA61: 0 | CB61: 27358.90411 | CC61: 0 | CD61: 27358.90411 | CE61: 0 | CF61: 11646.57534 | CG61: 0 | CH61: 11646.57534 | CI61: 0 | CJ61: 2728.767123 | CK61: 0 | CL61: 2728.767123 | CM61: 13832.87671 | CN61: 0 | CO61: 0 | CP61: 0 | CQ61: 19958.90411 | CR61: 0 | CS61: 0 | CT61: 0 | CU61: 20808.21918 | CV61: 0 | CW61: 0 | CX61: 0 | CY61: 10276.71233 | CZ61: 0 | DA61: 0 | DB61: 0 | DC61: 10276.79726 | DD61: 0 | DE61: 0 | DF61: 0
O62: =IF(T62="","",IF(ISERROR(AD62),"",ROUND(SUMIF(Δεδομένα2!$S$3:$EH$3,Παροχές!T62,Δεδομένα2!$S$22:$EH$22),0))) ->  | P62: =IF(T62="","",IF(ISERROR(AD62),"",ROUND(SUMIF(Δεδομένα2!$S$3:$EH$3,Παροχές!T62,Δεδομένα2!$S$32:$EH$32),0))) ->  | Z62: =IF(G62<>"",Δεδομένα2!$J$15/Παροχές!G62,"") ->  | AB62: =IF(T62<>"",MIN(INDIRECT("i" & ROW()):INDIRECT("i" & ROW()+S62-1)),"") ->  | AS62: 9 | AT62: 32794.52055 | AU62: 0 | AV62: 13972.60274 | AW62: 0 | AX62: 11917.80822 | AY62: 0 | AZ62: 15205.47945 | BA62: 0 | BB62: 8630.136986 | BC62: 0 | BD62: 16027.39726 | BE62: 0 | BF62: 19315.06849 | BG62: 0 | BH62: 20136.9863 | BI62: 0 | BJ62: 9945.205479 | BK62: 0 | BL62: 9945.287671 | BM62: 0 | BN62: 17009.84011 | BO62: 0 | BP62: 17009.84011 | BQ62: 58215.31957 | BS62: 0 | BT62: 41205.47945 | BU62: 0 | BV62: 41205.47945 | BW62: 0 | BX62: 27232.87671 | BY62: 0 | BZ62: 27232.87671 | CA62: 0 | CB62: 15315.06849 | CC62: 0 | CD62: 15315.06849 | CE62: 0 | CF62: 109.5890411 | CG62: 0 | CH62: 109.5890411 | CI62: 8520.547945 | CJ62: 0 | CK62: 0 | CL62: 0 | CM62: 16027.39726 | CN62: 0 | CO62: 0 | CP62: 0 | CQ62: 19315.06849 | CR62: 0 | CS62: 0 | CT62: 0 | CU62: 20136.9863 | CV62: 0 | CW62: 0 | CX62: 0 | CY62: 9945.205479 | CZ62: 0 | DA62: 0 | DB62: 0 | DC62: 9945.287671 | DD62: 0 | DE62: 0 | DF62: 0
... 6 more rows

Sheet Παραγωγή
B2: ΔΕΔΟΜΕΝΑ Φ/Β ΣΤΑΘΜΟΥ
B3: Α. Χωροθέτηση Φ/Β σταθμού
D4: Μοίρες | E4: Λεπτά | F4: Δευτερόλεπτα
B5: Γεωγραφικό πλάτος: | D5: 39 | E5: 25 | F5: 30 | H5: =ROUND(D5+((E5+F5/60)/60),3) -> 39.425 | J5: =+L5 -> 45292 | L5: =+B15 -> 2024-01-01 | M5: =+D15 -> 47000 | O5: =+L5 -> 2024-01-01 | P5: =SUM(M5:M8) -> 246100
B6: Γεωγραφικό μήκος: | D6: 21 | E6: 50 | F6: 10 | H6: =ROUND(D6+((E6+F6/60)/60),3) -> 21.836 | J6: =+L6 -> 45323 | L6: 2024-02-01 | M6: 49100 | O6: 2024-02-01 | P6: =SUM(M6:M9) -> 280600
B7: Κλίση Φ/Β στοιχείων: | D7: 32 | J7: 45352 | L7: 2024-03-01 | M7: 71000 | O7: 2024-03-01 | P7: =SUM(M7:M10) -> 312500 | R7: =+P7-P5 -> 66400
B8: Προσανατολισμός Φ/Β: | D8: -8 | J8: 45383 | L8: 2024-04-01 | M8: 79000 | O8: 2024-04-01 | P8: =SUM(M8:M11) -> 330000
B9: Β. Προϋπολογισμός Φ/Β σταθμού | J9: 45413 | L9: 2024-05-01 | M9: 81500 | O9: 2024-05-01 | P9: 339000
B10: Μοναδιαίο Κόστος Φ/Β, χωρίς ΦΠΑ: | D10: 1048.38 | E10: Κόστος Φ/Β σταθμού: | H10: =D11*D10 -> 524190 | J10: 45444 | L10: 2024-06-01 | M10: 81000 | O10: 2024-06-01 | P10: 331500
B11: Ισχύς Φ/Β σταθμού: | D11: 500 | J11: 45474 | L11: 2024-07-01 | M11: 88500 | O11: 2024-07-01 | P11: 313500
B12: Γ. Παραγωγή ηλεκτρικής ενέργειας Φ/Β σταθμού | J12: 45505 | L12: 2024-08-01 | M12: 88000 | O12: 2024-08-01 | P12: 275500
J13: 45536 | L13: 2024-09-01 | M13: 74000 | O13: 2024-09-01 | P13: 230050
C14: Μοναδιαία Μηνιαία Παραγωγή Ενέργειας (kWh) | D14: Μηνιαία Παραγωγή Ενέργειας Φ/Β (kWh) | J14: 45566 | L14: 2024-10-01 | M14: 63000 | O14: 2024-10-01 | P14: 203050
B15: =DATE(YEAR(TODAY()),1,1) -> 2024-01-01 | C15: 94 | D15: =ROUND((C15*$D$11),2) -> 47000 | E15: http://re.jrc.ec.europa.eu/pvg_tools/en/tools.html#PVP | J15: 45597 | L15: 2024-11-01 | M15: 50500 | O15: 2024-11-01 | P15: 189150
B16: =DATE(YEAR(B15),MONTH(B15)+1,1) -> 2024-02-01 | C16: 98.2 | D16: =ROUND((C16*$D$11),2) -> 49100 | J16: 45627 | L16: 2024-12-01 | M16: 42550 | O16: 2024-12-01 | P16: 209650
B17: =DATE(YEAR(B16),MONTH(B16)+1,1) -> 2024-03-01 | C17: 142 | D17: 71000 | J17: 45658 | L17: =DATE(YEAR(L16)+1,1,1) -> 2025-01-01 | M17: =+M5 -> 47000
B18: 2024-04-01 | C18: 158 | D18: 79000 | J18: 45689 | L18: =DATE(YEAR(L17),MONTH(L17)+1,1) -> 2025-02-01 | M18: =+M6 -> 49100
B19: 2024-05-01 | C19: 163 | D19: 81500 | J19: 45717 | L19: 2025-03-01 | M19: =+M7 -> 71000
B20: 2024-06-01 | C20: 162 | D20: 81000 | J20: 45748 | L20: 2025-04-01 | M20: 79000
B21: 2024-07-01 | C21: 177 | D21: 88500 | J21: 45778 | L21: 2025-05-01 | M21: 81500
B22: 2024-08-01 | C22: 176 | D22: 88000 | J22: 45809 | L22: 2025-06-01 | M22: 81000
B23: 2024-09-01 | C23: 148 | D23: 74000 | J23: 45839 | L23: 2025-07-01 | M23: 88500
B24: 2024-10-01 | C24: 126 | D24: 63000 | J24: 45870 | L24: 2025-08-01 | M24: 88000
B25: 2024-11-01 | C25: 101 | D25: 50500 | J25: 45901 | L25: 2025-09-01 | M25: 74000
B26: 2024-12-01 | C26: 85.1 | D26: 42550 | J26: 45931 | L26: 2025-10-01 | M26: 63000
C27: =SUM(C15:C26) -> 1630.3 | D27: =SUM(D15:D26) -> 815150 | J27: 45962 | L27: 2025-11-01 | M27: 50500
J28: 45992 | L28: 2025-12-01 | M28: 42550
J29: 46023 | L29: 2026-01-01 | M29: 47000
J30: 46054 | L30: 2026-02-01 | M30: 49100
J31: 46082 | L31: 2026-03-01 | M31: 71000
J32: 46113 | L32: 2026-04-01 | M32: 79000
J33: 46143 | L33: 2026-05-01 | M33: 81500
J34: 46174 | L34: 2026-06-01 | M34: 81000
J35: 46204 | L35: 2026-07-01 | M35: 88500
J36: 46235 | L36: 2026-08-01 | M36: 88000
J37: 46266 | L37: 2026-09-01 | M37: 74000
J38: 46296 | L38: 2026-10-01 | M38: 63000
J39: =+L39 -> 46327 | L39: 2026-11-01 | M39: 50500
J40: =+L40 -> 46357 | L40: 2026-12-01 | M40: 42550
J41: =+L41 -> 46388 | L41: 2027-01-01 | M41: 47000
J42: =+L42 -> 46419 | L42: 2027-02-01 | M42: 49100
J43: =+L43 -> 46447 | L43: 2027-03-01 | M43: 71000

Sheet NET METERING
B2: NET METERING
D3: Συμβατικό Σύστημα | F3: Εφαρμογή NET METERING
B4: α/α | C4: Αρ. Παροχής | D4: Κατανάλωση Ημέρας (kWh) | E4: Κατανάλωση Νύχτας (kWh) | F4: Κατ. Ημέρας Ανταγωνιστικό σκέλος (kWh) | G4: Κατ. Νύχτας Ανταγωνιστικό σκέλος (kWh) | H4: ΥΚΩ | I4: Λοιπές | J4: Μεσοσταθμικό Ετήσιο Κόστος (€) | K4: Μεσοσταθμικό Ετήσιο Κόστος με NET METERING (€)
B5: =IF(Παροχές!B5<>"",Παροχές!B5,"") -> 1 | C5: =LOOKUP(B5,Παροχές!$AF$5:AF76,Παροχές!$R$5:R76) -> 2222 | D5: =LOOKUP(B5,Παροχές!$AF$5:AF76,Παροχές!$AD$5:AD76) -> 399000 | E5: =LOOKUP(B5,Παροχές!$AF$5:AF76,Παροχές!$AE$5:AE76) -> 0 | F5: =LOOKUP(B5,Παροχές!$AF$5:AF76,Παροχές!$AG$5:AG76) -> 0 | G5: =LOOKUP(B5,Παροχές!$AF$5:AF76,Παροχές!$AH$5:AH76) -> 0 | H5: =LOOKUP(B5,Παροχές!$AF$5:AF76,Παροχές!$AI$5:AI76) -> 399000 | I5: =LOOKUP(B5,Παροχές!$AF$5:AF76,Παροχές!$AJ$5:AJ76) -> 213567.3836 | J5: =LOOKUP(B5,Παροχές!$AF$5:AF76,Παροχές!$O$5:O76) -> 38743 | K5: =LOOKUP(B5,Παροχές!$AF$5:AF76,Παροχές!$P$5:P76) -> 6704
B6: =IF(B5<Παροχές!$AF$4,B5+1,"") -> 2 | C6: =LOOKUP(B6,Παροχές!$AF$5:AF77,Παροχές!$R$5:R77) -> 3333 | D6: =LOOKUP(B6,Παροχές!$AF$5:AF77,Παροχές!$AD$5:AD77) -> 170000 | E6: =LOOKUP(B6,Παροχές!$AF$5:AF77,Παροχές!$AE$5:AE77) -> 0 | F6: =LOOKUP(B6,Παροχές!$AF$5:AF77,Παροχές!$AG$5:AG77) -> 7102.054795 | G6: =LOOKUP(B6,Παροχές!$AF$5:AF77,Παροχές!$AH$5:AH77) -> 0 | H6: =LOOKUP(B6,Παροχές!$AF$5:AF77,Παροχές!$AI$5:AI77) -> 170000 | I6: =LOOKUP(B6,Παροχές!$AF$5:AF77,Παροχές!$AJ$5:AJ77) -> 170000 | J6: =LOOKUP(B6,Παροχές!$AF$5:AF77,Παροχές!$O$5:O77) -> 16511 | K6: =LOOKUP(B6,Παροχές!$AF$5:AF77,Παροχές!$P$5:P77) -> 4670
B7: =IF(B6<Παροχές!$AF$4,B6+1,"") -> 3 | C7: =LOOKUP(B7,Παροχές!$AF$5:AF78,Παροχές!$R$5:R78) -> 4444 | D7: =LOOKUP(B7,Παροχές!$AF$5:AF78,Παροχές!$AD$5:AD78) -> 145000 | E7: =LOOKUP(B7,Παροχές!$AF$5:AF78,Παροχές!$AE$5:AE78) -> 0 | F7: =LOOKUP(B7,Παροχές!$AF$5:AF78,Παροχές!$AG$5:AG78) -> 38487.67123 | G7: =LOOKUP(B7,Παροχές!$AF$5:AF78,Παροχές!$AH$5:AH78) -> 0 | H7: =LOOKUP(B7,Παροχές!$AF$5:AF78,Παροχές!$AI$5:AI78) -> 145000 | I7: =LOOKUP(B7,Παροχές!$AF$5:AF78,Παροχές!$AJ$5:AJ78) -> 145000 | J7: =LOOKUP(B7,Παροχές!$AF$5:AF78,Παροχές!$O$5:O78) -> 14084 | K7: =LOOKUP(B7,Παροχές!$AF$5:AF78,Παροχές!$P$5:P78) -> 6345
B8: =IF(B7<Παροχές!$AF$4,B7+1,"") -> 4 | C8: =LOOKUP(B8,Παροχές!$AF$5:AF79,Παροχές!$R$5:R79) -> 5555 | D8: =LOOKUP(B8,Παροχές!$AF$5:AF79,Παροχές!$AD$5:AD79) -> 185000 | E8: =LOOKUP(B8,Παροχές!$AF$5:AF79,Παροχές!$AE$5:AE79) -> 0 | F8: =LOOKUP(B8,Παροχές!$AF$5:AF79,Παροχές!$AG$5:AG79) -> 79528.76712 | G8: =LOOKUP(B8,Παροχές!$AF$5:AF79,Παροχές!$AH$5:AH79) -> 0 | H8: =LOOKUP(B8,Παροχές!$AF$5:AF79,Παροχές!$AI$5:AI79) -> 185000 | I8: =LOOKUP(B8,Παροχές!$AF$5:AF79,Παροχές!$AJ$5:AJ79) -> 185000 | J8: =LOOKUP(B8,Παροχές!$AF$5:AF79,Παροχές!$O$5:O79) -> 17968 | K8: =LOOKUP(B8,Παροχές!$AF$5:AF79,Παροχές!$P$5:P79) -> 10307
B9: =IF(B8<Παροχές!$AF$4,B8+1,"") -> 5 | C9: =LOOKUP(B9,Παροχές!$AF$5:AF80,Παροχές!$R$5:R80) -> 6666 | D9: =LOOKUP(B9,Παροχές!$AF$5:AF80,Παροχές!$AD$5:AD80) -> 105000 | E9: =LOOKUP(B9,Παροχές!$AF$5:AF80,Παροχές!$AE$5:AE80) -> 0 | F9: =LOOKUP(B9,Παροχές!$AF$5:AF80,Παροχές!$AG$5:AG80) -> 69689.0411 | G9: =LOOKUP(B9,Παροχές!$AF$5:AF80,Παροχές!$AH$5:AH80) -> 0 | H9: =LOOKUP(B9,Παροχές!$AF$5:AF80,Παροχές!$AI$5:AI80) -> 105000 | I9: =LOOKUP(B9,Παροχές!$AF$5:AF80,Παροχές!$AJ$5:AJ80) -> 105000 | J9: =LOOKUP(B9,Παροχές!$AF$5:AF80,Παροχές!$O$5:O80) -> 10201 | K9: =LOOKUP(B9,Παροχές!$AF$5:AF80,Παροχές!$P$5:P80) -> 7640
B10: =IF(B9<Παροχές!$AF$4,B9+1,"") -> 6 | C10: =LOOKUP(B10,Παροχές!$AF$5:AF81,Παροχές!$R$5:R81) -> 7777 | D10: =LOOKUP(B10,Παροχές!$AF$5:AF81,Παροχές!$AD$5:AD81) -> 195000 | E10: =LOOKUP(B10,Παροχές!$AF$5:AF81,Παροχές!$AE$5:AE81) -> 0 | F10: =LOOKUP(B10,Παροχές!$AF$5:AF81,Παροχές!$AG$5:AG81) -> 189042.4658 | G10: =LOOKUP(B10,Παροχές!$AF$5:AF81,Παροχές!$AH$5:AH81) -> 0 | H10: =LOOKUP(B10,Παροχές!$AF$5:AF81,Παροχές!$AI$5:AI81) -> 195000 | I10: =LOOKUP(B10,Παροχές!$AF$5:AF81,Παροχές!$AJ$5:AJ81) -> 195000 | J10: =LOOKUP(B10,Παροχές!$AF$5:AF81,Παροχές!$O$5:O81) -> 18938 | K10: =LOOKUP(B10,Παροχές!$AF$5:AF81,Παροχές!$P$5:P81) -> 18521
B11: =IF(B10<Παροχές!$AF$4,B10+1,"") -> 7 | C11: =LOOKUP(B11,Παροχές!$AF$5:AF82,Παροχές!$R$5:R82) -> 8888 | D11: =LOOKUP(B11,Παροχές!$AF$5:AF82,Παροχές!$AD$5:AD82) -> 235000 | E11: =LOOKUP(B11,Παροχές!$AF$5:AF82,Παροχές!$AE$5:AE82) -> 0 | F11: =LOOKUP(B11,Παροχές!$AF$5:AF82,Παροχές!$AG$5:AG82) -> 235000 | G11: =LOOKUP(B11,Παροχές!$AF$5:AF82,Παροχές!$AH$5:AH82) -> 0 | H11: =LOOKUP(B11,Παροχές!$AF$5:AF82,Παροχές!$AI$5:AI82) -> 235000 | I11: =LOOKUP(B11,Παροχές!$AF$5:AF82,Παροχές!$AJ$5:AJ82) -> 235000 | J11: =LOOKUP(B11,Παροχές!$AF$5:AF82,Παροχές!$O$5:O82) -> 22822 | K11: =LOOKUP(B11,Παροχές!$AF$5:AF82,Παροχές!$P$5:P82) -> 22841
B12: =IF(B11<Παροχές!$AF$4,B11+1,"") -> 8 | C12: =LOOKUP(B12,Παροχές!$AF$5:AF83,Παροχές!$R$5:R83) -> 9999 | D12: =LOOKUP(B12,Παροχές!$AF$5:AF83,Παροχές!$AD$5:AD83) -> 245000 | E12: =LOOKUP(B12,Παροχές!$AF$5:AF83,Παροχές!$AE$5:AE83) -> 0 | F12: =LOOKUP(B12,Παροχές!$AF$5:AF83,Παροχές!$AG$5:AG83) -> 245000 | G12: =LOOKUP(B12,Παροχές!$AF$5:AF83,Παροχές!$AH$5:AH83) -> 0 | H12: =LOOKUP(B12,Παροχές!$AF$5:AF83,Παροχές!$AI$5:AI83) -> 245000 | I12: =LOOKUP(B12,Παροχές!$AF$5:AF83,Παροχές!$AJ$5:AJ83) -> 245000 | J12: =LOOKUP(B12,Παροχές!$AF$5:AF83,Παροχές!$O$5:O83) -> 23792 | K12: =LOOKUP(B12,Παροχές!$AF$5:AF83,Παροχές!$P$5:P83) -> 23813
B13: =IF(B12<Παροχές!$AF$4,B12+1,"") -> 9 | C13: =LOOKUP(B13,Παροχές!$AF$5:AF84,Παροχές!$R$5:R84) -> 1010 | D13: =LOOKUP(B13,Παροχές!$AF$5:AF84,Παροχές!$AD$5:AD84) -> 121000 | E13: =LOOKUP(B13,Παροχές!$AF$5:AF84,Παροχές!$AE$5:AE84) -> 0 | F13: =LOOKUP(B13,Παροχές!$AF$5:AF84,Παροχές!$AG$5:AG84) -> 121000 | G13: =LOOKUP(B13,Παροχές!$AF$5:AF84,Παροχές!$AH$5:AH84) -> 0 | H13: =LOOKUP(B13,Παροχές!$AF$5:AF84,Παροχές!$AI$5:AI84) -> 121000 | I13: =LOOKUP(B13,Παροχές!$AF$5:AF84,Παροχές!$AJ$5:AJ84) -> 121000 | J13: =LOOKUP(B13,Παροχές!$AF$5:AF84,Παροχές!$O$5:O84) -> 11754 | K13: =LOOKUP(B13,Παροχές!$AF$5:AF84,Παροχές!$P$5:P84) -> 11764
B14: =IF(B13<Παροχές!$AF$4,B13+1,"") -> 10 | C14: =LOOKUP(B14,Παροχές!$AF$5:AF85,Παροχές!$R$5:R85) -> 1025 | D14: =LOOKUP(B14,Παροχές!$AF$5:AF85,Παροχές!$AD$5:AD85) -> 121001 | E14: =LOOKUP(B14,Παροχές!$AF$5:AF85,Παροχές!$AE$5:AE85) -> 0 | F14: =LOOKUP(B14,Παροχές!$AF$5:AF85,Παροχές!$AG$5:AG85) -> 121001 | G14: =LOOKUP(B14,Παροχές!$AF$5:AF85,Παροχές!$AH$5:AH85) -> 0 | H14: =LOOKUP(B14,Παροχές!$AF$5:AF85,Παροχές!$AI$5:AI85) -> 121001 | I14: =LOOKUP(B14,Παροχές!$AF$5:AF85,Παροχές!$AJ$5:AJ85) -> 121001 | J14: =LOOKUP(B14,Παροχές!$AF$5:AF85,Παροχές!$O$5:O85) -> 11754 | K14: =LOOKUP(B14,Παροχές!$AF$5:AF85,Παροχές!$P$5:P85) -> 11764
B15: 11 | C15: =LOOKUP(B15,Παροχές!$AF$5:AF86,Παροχές!$R$5:R86) -> 2225 | D15: =LOOKUP(B15,Παροχές!$AF$5:AF86,Παροχές!$AD$5:AD86) -> 0 | E15: =LOOKUP(B15,Παροχές!$AF$5:AF86,Παροχές!$AE$5:AE86) -> 0 | F15: =LOOKUP(B15,Παροχές!$AF$5:AF86,Παροχές!$AG$5:AG86) -> 0 | G15: =LOOKUP(B15,Παροχές!$AF$5:AF86,Παροχές!$AH$5:AH86) -> 0 | H15: =LOOKUP(B15,Παροχές!$AF$5:AF86,Παροχές!$AI$5:AI86) -> 0 | I15: =LOOKUP(B15,Παροχές!$AF$5:AF86,Παροχές!$AJ$5:AJ86) -> 0 | J15: =LOOKUP(B15,Παροχές!$AF$5:AF86,Παροχές!$O$5:O86) -> 0 | K15: =LOOKUP(B15,Παροχές!$AF$5:AF86,Παροχές!$P$5:P86) -> 0
B16: 12 | C16: =LOOKUP(B16,Παροχές!$AF$5:AF87,Παροχές!$R$5:R87) -> 2589 | D16: =LOOKUP(B16,Παροχές!$AF$5:AF87,Παροχές!$AD$5:AD87) -> 0 | E16: =LOOKUP(B16,Παροχές!$AF$5:AF87,Παροχές!$AE$5:AE87) -> 0 | F16: =LOOKUP(B16,Παροχές!$AF$5:AF87,Παροχές!$AG$5:AG87) -> 0 | G16: =LOOKUP(B16,Παροχές!$AF$5:AF87,Παροχές!$AH$5:AH87) -> 0 | H16: =LOOKUP(B16,Παροχές!$AF$5:AF87,Παροχές!$AI$5:AI87) -> 0 | I16: =LOOKUP(B16,Παροχές!$AF$5:AF87,Παροχές!$AJ$5:AJ87) -> 0 | J16: =LOOKUP(B16,Παροχές!$AF$5:AF87,Παροχές!$O$5:O87) -> 0 | K16: =LOOKUP(B16,Παροχές!$AF$5:AF87,Παροχές!$P$5:P87) -> 0
B17: 13 | C17: =LOOKUP(B17,Παροχές!$AF$5:AF88,Παροχές!$R$5:R88) -> 2547 | D17: =LOOKUP(B17,Παροχές!$AF$5:AF88,Παροχές!$AD$5:AD88) -> 0 | E17: =LOOKUP(B17,Παροχές!$AF$5:AF88,Παροχές!$AE$5:AE88) -> 0 | F17: =LOOKUP(B17,Παροχές!$AF$5:AF88,Παροχές!$AG$5:AG88) -> 0 | G17: =LOOKUP(B17,Παροχές!$AF$5:AF88,Παροχές!$AH$5:AH88) -> 0 | H17: =LOOKUP(B17,Παροχές!$AF$5:AF88,Παροχές!$AI$5:AI88) -> 0 | I17: =LOOKUP(B17,Παροχές!$AF$5:AF88,Παροχές!$AJ$5:AJ88) -> 0 | J17: =LOOKUP(B17,Παροχές!$AF$5:AF88,Παροχές!$O$5:O88) -> 0 | K17: =LOOKUP(B17,Παροχές!$AF$5:AF88,Παροχές!$P$5:P88) -> 0
B18: =IF(B17<Παροχές!$AF$4,B17+1,"") -> 14 | C18: =LOOKUP(B18,Παροχές!$AF$5:AF89,Παροχές!$R$5:R89) -> 4443 | D18: =LOOKUP(B18,Παροχές!$AF$5:AF89,Παροχές!$AD$5:AD89) -> 0 | E18: =LOOKUP(B18,Παροχές!$AF$5:AF89,Παροχές!$AE$5:AE89) -> 0 | F18: =LOOKUP(B18,Παροχές!$AF$5:AF89,Παροχές!$AG$5:AG89) -> 0 | G18: =LOOKUP(B18,Παροχές!$AF$5:AF89,Παροχές!$AH$5:AH89) -> 0 | H18: =LOOKUP(B18,Παροχές!$AF$5:AF89,Παροχές!$AI$5:AI89) -> 0 | I18: =LOOKUP(B18,Παροχές!$AF$5:AF89,Παροχές!$AJ$5:AJ89) -> 0 | J18: =LOOKUP(B18,Παροχές!$AF$5:AF89,Παροχές!$O$5:O89) -> 0 | K18: =LOOKUP(B18,Παροχές!$AF$5:AF89,Παροχές!$P$5:P89) -> 0
B19: =IF(B18<Παροχές!$AF$4,B18+1,"") -> 15 | C19: =LOOKUP(B19,Παροχές!$AF$5:AF90,Παροχές!$R$5:R90) -> 2558 | D19: =LOOKUP(B19,Παροχές!$AF$5:AF90,Παροχές!$AD$5:AD90) -> 0 | E19: =LOOKUP(B19,Παροχές!$AF$5:AF90,Παροχές!$AE$5:AE90) -> 0 | F19: =LOOKUP(B19,Παροχές!$AF$5:AF90,Παροχές!$AG$5:AG90) -> 0 | G19: =LOOKUP(B19,Παροχές!$AF$5:AF90,Παροχές!$AH$5:AH90) -> 0 | H19: =LOOKUP(B19,Παροχές!$AF$5:AF90,Παροχές!$AI$5:AI90) -> 0 | I19: =LOOKUP(B19,Παροχές!$AF$5:AF90,Παροχές!$AJ$5:AJ90) -> 0 | J19: =LOOKUP(B19,Παροχές!$AF$5:AF90,Παροχές!$O$5:O90) -> 0 | K19: =LOOKUP(B19,Παροχές!$AF$5:AF90,Παροχές!$P$5:P90) -> 0
B20: =IF(B19<Παροχές!$AF$4,B19+1,"") -> 16 | C20: =LOOKUP(B20,Παροχές!$AF$5:AF91,Παροχές!$R$5:R91) -> 2698 | D20: =LOOKUP(B20,Παροχές!$AF$5:AF91,Παροχές!$AD$5:AD91) -> 0 | E20: =LOOKUP(B20,Παροχές!$AF$5:AF91,Παροχές!$AE$5:AE91) -> 0 | F20: =LOOKUP(B20,Παροχές!$AF$5:AF91,Παροχές!$AG$5:AG91) -> 0 | G20: =LOOKUP(B20,Παροχές!$AF$5:AF91,Παροχές!$AH$5:AH91) -> 0 | H20: =LOOKUP(B20,Παροχές!$AF$5:AF91,Παροχές!$AI$5:AI91) -> 0 | I20: =LOOKUP(B20,Παροχές!$AF$5:AF91,Παροχές!$AJ$5:AJ91) -> 0 | J20: =LOOKUP(B20,Παροχές!$AF$5:AF91,Παροχές!$O$5:O91) -> 0 | K20: =LOOKUP(B20,Παροχές!$AF$5:AF91,Παροχές!$P$5:P91) -> 0
B21: =IF(B20<Παροχές!$AF$4,B20+1,"") -> 17 | C21: =LOOKUP(B21,Παροχές!$AF$5:AF92,Παροχές!$R$5:R92) -> 2547 | D21: =LOOKUP(B21,Παροχές!$AF$5:AF92,Παροχές!$AD$5:AD92) -> 0 | E21: =LOOKUP(B21,Παροχές!$AF$5:AF92,Παροχές!$AE$5:AE92) -> 0 | F21: =LOOKUP(B21,Παροχές!$AF$5:AF92,Παροχές!$AG$5:AG92) -> 0 | G21: =LOOKUP(B21,Παροχές!$AF$5:AF92,Παροχές!$AH$5:AH92) -> 0 | H21: =LOOKUP(B21,Παροχές!$AF$5:AF92,Παροχές!$AI$5:AI92) -> 0 | I21: =LOOKUP(B21,Παροχές!$AF$5:AF92,Παροχές!$AJ$5:AJ92) -> 0 | J21: =LOOKUP(B21,Παροχές!$AF$5:AF92,Παροχές!$O$5:O92) -> 0 | K21: =LOOKUP(B21,Παροχές!$AF$5:AF92,Παροχές!$P$5:P92) -> 0
B22: =IF(B21<Παροχές!$AF$4,B21+1,"") -> 18 | C22: =LOOKUP(B22,Παροχές!$AF$5:AF93,Παροχές!$R$5:R93) -> 2589 | D22: =LOOKUP(B22,Παροχές!$AF$5:AF93,Παροχές!$AD$5:AD93) -> 0 | E22: =LOOKUP(B22,Παροχές!$AF$5:AF93,Παροχές!$AE$5:AE93) -> 0 | F22: =LOOKUP(B22,Παροχές!$AF$5:AF93,Παροχές!$AG$5:AG93) -> 0 | G22: =LOOKUP(B22,Παροχές!$AF$5:AF93,Παροχές!$AH$5:AH93) -> 0 | H22: =LOOKUP(B22,Παροχές!$AF$5:AF93,Παροχές!$AI$5:AI93) -> 0 | I22: =LOOKUP(B22,Παροχές!$AF$5:AF93,Παροχές!$AJ$5:AJ93) -> 0 | J22: =LOOKUP(B22,Παροχές!$AF$5:AF93,Παροχές!$O$5:O93) -> 0 | K22: =LOOKUP(B22,Παροχές!$AF$5:AF93,Παροχές!$P$5:P93) -> 0
B23: =IF(B22<Παροχές!$AF$4,B22+1,"") -> 19 | C23: =LOOKUP(B23,Παροχές!$AF$5:AF94,Παροχές!$R$5:R94) -> 3558 | D23: =LOOKUP(B23,Παροχές!$AF$5:AF94,Παροχές!$AD$5:AD94) -> 0 | E23: =LOOKUP(B23,Παροχές!$AF$5:AF94,Παροχές!$AE$5:AE94) -> 0 | F23: =LOOKUP(B23,Παροχές!$AF$5:AF94,Παροχές!$AG$5:AG94) -> 0 | G23: =LOOKUP(B23,Παροχές!$AF$5:AF94,Παροχές!$AH$5:AH94) -> 0 | H23: =LOOKUP(B23,Παροχές!$AF$5:AF94,Παροχές!$AI$5:AI94) -> 0 | I23: =LOOKUP(B23,Παροχές!$AF$5:AF94,Παροχές!$AJ$5:AJ94) -> 0 | J23: =LOOKUP(B23,Παροχές!$AF$5:AF94,Παροχές!$O$5:O94) -> 0 | K23: =LOOKUP(B23,Παροχές!$AF$5:AF94,Παροχές!$P$5:P94) -> 0
B24: =IF(B23<Παροχές!$AF$4,B23+1,"") -> 20 | C24: =LOOKUP(B24,Παροχές!$AF$5:AF95,Παροχές!$R$5:R95) -> 2222 | D24: =LOOKUP(B24,Παροχές!$AF$5:AF95,Παροχές!$AD$5:AD95) -> 0 | E24: =LOOKUP(B24,Παροχές!$AF$5:AF95,Παροχές!$AE$5:AE95) -> 0 | F24: =LOOKUP(B24,Παροχές!$AF$5:AF95,Παροχές!$AG$5:AG95) -> 0 | G24: =LOOKUP(B24,Παροχές!$AF$5:AF95,Παροχές!$AH$5:AH95) -> 0 | H24: =LOOKUP(B24,Παροχές!$AF$5:AF95,Παροχές!$AI$5:AI95) -> 0 | I24: =LOOKUP(B24,Παροχές!$AF$5:AF95,Παροχές!$AJ$5:AJ95) -> 0 | J24: =LOOKUP(B24,Παροχές!$AF$5:AF95,Παροχές!$O$5:O95) -> 0 | K24: =LOOKUP(B24,Παροχές!$AF$5:AF95,Παροχές!$P$5:P95) -> 0
B25: =IF(B24<Παροχές!$AF$4,B24+1,"") -> 21 | C25: =LOOKUP(B25,Παροχές!$AF$5:AF96,Παροχές!$R$5:R96) -> 2585 | D25: =LOOKUP(B25,Παροχές!$AF$5:AF96,Παροχές!$AD$5:AD96) -> 0 | E25: =LOOKUP(B25,Παροχές!$AF$5:AF96,Παροχές!$AE$5:AE96) -> 0 | F25: =LOOKUP(B25,Παροχές!$AF$5:AF96,Παροχές!$AG$5:AG96) -> 0 | G25: =LOOKUP(B25,Παροχές!$AF$5:AF96,Παροχές!$AH$5:AH96) -> 0 | H25: =LOOKUP(B25,Παροχές!$AF$5:AF96,Παροχές!$AI$5:AI96) -> 0 | I25: =LOOKUP(B25,Παροχές!$AF$5:AF96,Παροχές!$AJ$5:AJ96) -> 0 | J25: =LOOKUP(B25,Παροχές!$AF$5:AF96,Παροχές!$O$5:O96) -> 0 | K25: =LOOKUP(B25,Παροχές!$AF$5:AF96,Παροχές!$P$5:P96) -> 0
B26: =IF(B25<Παροχές!$AF$4,B25+1,"") ->  | C26: =LOOKUP(B26,Παροχές!$AF$5:AF97,Παροχές!$R$5:R97) ->  | D26: =LOOKUP(B26,Παροχές!$AF$5:AF97,Παροχές!$AD$5:AD97) ->  | E26: =LOOKUP(B26,Παροχές!$AF$5:AF97,Παροχές!$AE$5:AE97) ->  | F26: =LOOKUP(B26,Παροχές!$AF$5:AF97,Παροχές!$AG$5:AG97) ->  | G26: =LOOKUP(B26,Παροχές!$AF$5:AF97,Παροχές!$AH$5:AH97) ->  | H26: =LOOKUP(B26,Παροχές!$AF$5:AF97,Παροχές!$AI$5:AI97) ->  | I26: =LOOKUP(B26,Παροχές!$AF$5:AF97,Παροχές!$AJ$5:AJ97) ->  | J26: =LOOKUP(B26,Παροχές!$AF$5:AF97,Παροχές!$O$5:O97) ->  | K26: =LOOKUP(B26,Παροχές!$AF$5:AF97,Παροχές!$P$5:P97) -> 
B27: =IF(B26<Παροχές!$AF$4,B26+1,"") ->  | C27: =LOOKUP(B27,Παροχές!$AF$5:AF98,Παροχές!$R$5:R98) ->  | D27: =LOOKUP(B27,Παροχές!$AF$5:AF98,Παροχές!$AD$5:AD98) ->  | E27: =LOOKUP(B27,Παροχές!$AF$5:AF98,Παροχές!$AE$5:AE98) ->  | F27: =LOOKUP(B27,Παροχές!$AF$5:AF98,Παροχές!$AG$5:AG98) ->  | G27: =LOOKUP(B27,Παροχές!$AF$5:AF98,Παροχές!$AH$5:AH98) ->  | H27: =LOOKUP(B27,Παροχές!$AF$5:AF98,Παροχές!$AI$5:AI98) ->  | I27: =LOOKUP(B27,Παροχές!$AF$5:AF98,Παροχές!$AJ$5:AJ98) ->  | J27: =LOOKUP(B27,Παροχές!$AF$5:AF98,Παροχές!$O$5:O98) ->  | K27: =LOOKUP(B27,Παροχές!$AF$5:AF98,Παροχές!$P$5:P98) -> 
B28: =IF(B27<Παροχές!$AF$4,B27+1,"") ->  | C28: =LOOKUP(B28,Παροχές!$AF$5:AF99,Παροχές!$R$5:R99) ->  | D28: =LOOKUP(B28,Παροχές!$AF$5:AF99,Παροχές!$AD$5:AD99) ->  | E28: =LOOKUP(B28,Παροχές!$AF$5:AF99,Παροχές!$AE$5:AE99) ->  | F28: =LOOKUP(B28,Παροχές!$AF$5:AF99,Παροχές!$AG$5:AG99) ->  | G28: =LOOKUP(B28,Παροχές!$AF$5:AF99,Παροχές!$AH$5:AH99) ->  | H28: =LOOKUP(B28,Παροχές!$AF$5:AF99,Παροχές!$AI$5:AI99) ->  | I28: =LOOKUP(B28,Παροχές!$AF$5:AF99,Παροχές!$AJ$5:AJ99) ->  | J28: =LOOKUP(B28,Παροχές!$AF$5:AF99,Παροχές!$O$5:O99) ->  | K28: =LOOKUP(B28,Παροχές!$AF$5:AF99,Παροχές!$P$5:P99) -> 
B29: =IF(B28<Παροχές!$AF$4,B28+1,"") ->  | C29: =LOOKUP(B29,Παροχές!$AF$5:AF100,Παροχές!$R$5:R100) ->  | D29: =LOOKUP(B29,Παροχές!$AF$5:AF100,Παροχές!$AD$5:AD100) ->  | E29: =LOOKUP(B29,Παροχές!$AF$5:AF100,Παροχές!$AE$5:AE100) ->  | F29: =LOOKUP(B29,Παροχές!$AF$5:AF100,Παροχές!$AG$5:AG100) ->  | G29: =LOOKUP(B29,Παροχές!$AF$5:AF100,Παροχές!$AH$5:AH100) ->  | H29: =LOOKUP(B29,Παροχές!$AF$5:AF100,Παροχές!$AI$5:AI100) ->  | I29: =LOOKUP(B29,Παροχές!$AF$5:AF100,Παροχές!$AJ$5:AJ100) ->  | J29: =LOOKUP(B29,Παροχές!$AF$5:AF100,Παροχές!$O$5:O100) ->  | K29: =LOOKUP(B29,Παροχές!$AF$5:AF100,Παροχές!$P$5:P100) -> 
B30: =IF(B29<Παροχές!$AF$4,B29+1,"") ->  | C30: =LOOKUP(B30,Παροχές!$AF$5:AF101,Παροχές!$R$5:R101) ->  | D30: =LOOKUP(B30,Παροχές!$AF$5:AF101,Παροχές!$AD$5:AD101) ->  | E30: =LOOKUP(B30,Παροχές!$AF$5:AF101,Παροχές!$AE$5:AE101) ->  | F30: =LOOKUP(B30,Παροχές!$AF$5:AF101,Παροχές!$AG$5:AG101) ->  | G30: =LOOKUP(B30,Παροχές!$AF$5:AF101,Παροχές!$AH$5:AH101) ->  | H30: =LOOKUP(B30,Παροχές!$AF$5:AF101,Παροχές!$AI$5:AI101) ->  | I30: =LOOKUP(B30,Παροχές!$AF$5:AF101,Παροχές!$AJ$5:AJ101) ->  | J30: =LOOKUP(B30,Παροχές!$AF$5:AF101,Παροχές!$O$5:O101) ->  | K30: =LOOKUP(B30,Παροχές!$AF$5:AF101,Παροχές!$P$5:P101) -> 
B31: =IF(B30<Παροχές!$AF$4,B30+1,"") ->  | C31: =LOOKUP(B31,Παροχές!$AF$5:AF102,Παροχές!$R$5:R102) ->  | D31: =LOOKUP(B31,Παροχές!$AF$5:AF102,Παροχές!$AD$5:AD102) ->  | E31: =LOOKUP(B31,Παροχές!$AF$5:AF102,Παροχές!$AE$5:AE102) ->  | F31: =LOOKUP(B31,Παροχές!$AF$5:AF102,Παροχές!$AG$5:AG102) ->  | G31: =LOOKUP(B31,Παροχές!$AF$5:AF102,Παροχές!$AH$5:AH102) ->  | H31: =LOOKUP(B31,Παροχές!$AF$5:AF102,Παροχές!$AI$5:AI102) ->  | I31: =LOOKUP(B31,Παροχές!$AF$5:AF102,Παροχές!$AJ$5:AJ102) ->  | J31: =LOOKUP(B31,Παροχές!$AF$5:AF102,Παροχές!$O$5:O102) ->  | K31: =LOOKUP(B31,Παροχές!$AF$5:AF102,Παροχές!$P$5:P102) -> 
B32: =IF(B31<Παροχές!$AF$4,B31+1,"") ->  | C32: =LOOKUP(B32,Παροχές!$AF$5:AF103,Παροχές!$R$5:R103) ->  | D32: =LOOKUP(B32,Παροχές!$AF$5:AF103,Παροχές!$AD$5:AD103) ->  | E32: =LOOKUP(B32,Παροχές!$AF$5:AF103,Παροχές!$AE$5:AE103) ->  | F32: =LOOKUP(B32,Παροχές!$AF$5:AF103,Παροχές!$AG$5:AG103) ->  | G32: =LOOKUP(B32,Παροχές!$AF$5:AF103,Παροχές!$AH$5:AH103) ->  | H32: =LOOKUP(B32,Παροχές!$AF$5:AF103,Παροχές!$AI$5:AI103) ->  | I32: =LOOKUP(B32,Παροχές!$AF$5:AF103,Παροχές!$AJ$5:AJ103) ->  | J32: =LOOKUP(B32,Παροχές!$AF$5:AF103,Παροχές!$O$5:O103) ->  | K32: =LOOKUP(B32,Παροχές!$AF$5:AF103,Παροχές!$P$5:P103) -> 
B33: =IF(B32<Παροχές!$AF$4,B32+1,"") ->  | C33: =LOOKUP(B33,Παροχές!$AF$5:AF104,Παροχές!$R$5:R104) ->  | D33: =LOOKUP(B33,Παροχές!$AF$5:AF104,Παροχές!$AD$5:AD104) ->  | E33: =LOOKUP(B33,Παροχές!$AF$5:AF104,Παροχές!$AE$5:AE104) ->  | F33: =LOOKUP(B33,Παροχές!$AF$5:AF104,Παροχές!$AG$5:AG104) ->  | G33: =LOOKUP(B33,Παροχές!$AF$5:AF104,Παροχές!$AH$5:AH104) ->  | H33: =LOOKUP(B33,Παροχές!$AF$5:AF104,Παροχές!$AI$5:AI104) ->  | I33: =LOOKUP(B33,Παροχές!$AF$5:AF104,Παροχές!$AJ$5:AJ104) ->  | J33: =LOOKUP(B33,Παροχές!$AF$5:AF104,Παροχές!$O$5:O104) ->  | K33: =LOOKUP(B33,Παροχές!$AF$5:AF104,Παροχές!$P$5:P104) -> 
B34: =IF(B33<Παροχές!$AF$4,B33+1,"") ->  | C34: =LOOKUP(B34,Παροχές!$AF$5:AF105,Παροχές!$R$5:R105) ->  | D34: =LOOKUP(B34,Παροχές!$AF$5:AF105,Παροχές!$AD$5:AD105) ->  | E34: =LOOKUP(B34,Παροχές!$AF$5:AF105,Παροχές!$AE$5:AE105) ->  | F34: =LOOKUP(B34,Παροχές!$AF$5:AF105,Παροχές!$AG$5:AG105) ->  | G34: =LOOKUP(B34,Παροχές!$AF$5:AF105,Παροχές!$AH$5:AH105) ->  | H34: =LOOKUP(B34,Παροχές!$AF$5:AF105,Παροχές!$AI$5:AI105) ->  | I34: =LOOKUP(B34,Παροχές!$AF$5:AF105,Παροχές!$AJ$5:AJ105) ->  | J34: =LOOKUP(B34,Παροχές!$AF$5:AF105,Παροχές!$O$5:O105) ->  | K34: =LOOKUP(B34,Παροχές!$AF$5:AF105,Παροχές!$P$5:P105) -> 
B35: =IF(B34<Παροχές!$AF$4,B34+1,"") ->  | C35: =LOOKUP(B35,Παροχές!$AF$5:AF106,Παροχές!$R$5:R106) ->  | D35: =LOOKUP(B35,Παροχές!$AF$5:AF106,Παροχές!$AD$5:AD106) ->  | E35: =LOOKUP(B35,Παροχές!$AF$5:AF106,Παροχές!$AE$5:AE106) ->  | F35: =LOOKUP(B35,Παροχές!$AF$5:AF106,Παροχές!$AG$5:AG106) ->  | G35: =LOOKUP(B35,Παροχές!$AF$5:AF106,Παροχές!$AH$5:AH106) ->  | H35: =LOOKUP(B35,Παροχές!$AF$5:AF106,Παροχές!$AI$5:AI106) ->  | I35: =LOOKUP(B35,Παροχές!$AF$5:AF106,Παροχές!$AJ$5:AJ106) ->  | J35: =LOOKUP(B35,Παροχές!$AF$5:AF106,Παροχές!$O$5:O106) ->  | K35: =LOOKUP(B35,Παροχές!$AF$5:AF106,Παροχές!$P$5:P106) -> 
B36: =IF(B35<Παροχές!$AF$4,B35+1,"") ->  | C36: =LOOKUP(B36,Παροχές!$AF$5:AF107,Παροχές!$R$5:R107) ->  | D36: =LOOKUP(B36,Παροχές!$AF$5:AF107,Παροχές!$AD$5:AD107) ->  | E36: =LOOKUP(B36,Παροχές!$AF$5:AF107,Παροχές!$AE$5:AE107) ->  | F36: =LOOKUP(B36,Παροχές!$AF$5:AF107,Παροχές!$AG$5:AG107) ->  | G36: =LOOKUP(B36,Παροχές!$AF$5:AF107,Παροχές!$AH$5:AH107) ->  | H36: =LOOKUP(B36,Παροχές!$AF$5:AF107,Παροχές!$AI$5:AI107) ->  | I36: =LOOKUP(B36,Παροχές!$AF$5:AF107,Παροχές!$AJ$5:AJ107) ->  | J36: =LOOKUP(B36,Παροχές!$AF$5:AF107,Παροχές!$O$5:O107) ->  | K36: =LOOKUP(B36,Παροχές!$AF$5:AF107,Παροχές!$P$5:P107) -> 
B37: =IF(B36<Παροχές!$AF$4,B36+1,"") ->  | C37: =LOOKUP(B37,Παροχές!$AF$5:AF108,Παροχές!$R$5:R108) ->  | D37: =LOOKUP(B37,Παροχές!$AF$5:AF108,Παροχές!$AD$5:AD108) ->  | E37: =LOOKUP(B37,Παροχές!$AF$5:AF108,Παροχές!$AE$5:AE108) ->  | F37: =LOOKUP(B37,Παροχές!$AF$5:AF108,Παροχές!$AG$5:AG108) ->  | G37: =LOOKUP(B37,Παροχές!$AF$5:AF108,Παροχές!$AH$5:AH108) ->  | H37: =LOOKUP(B37,Παροχές!$AF$5:AF108,Παροχές!$AI$5:AI108) ->  | I37: =LOOKUP(B37,Παροχές!$AF$5:AF108,Παροχές!$AJ$5:AJ108) ->  | J37: =LOOKUP(B37,Παροχές!$AF$5:AF108,Παροχές!$O$5:O108) ->  | K37: =LOOKUP(B37,Παροχές!$AF$5:AF108,Παροχές!$P$5:P108) -> 
B38: =IF(B37<Παροχές!$AF$4,B37+1,"") ->  | C38: =LOOKUP(B38,Παροχές!$AF$5:AF109,Παροχές!$R$5:R109) ->  | D38: =LOOKUP(B38,Παροχές!$AF$5:AF109,Παροχές!$AD$5:AD109) ->  | E38: =LOOKUP(B38,Παροχές!$AF$5:AF109,Παροχές!$AE$5:AE109) ->  | F38: =LOOKUP(B38,Παροχές!$AF$5:AF109,Παροχές!$AG$5:AG109) ->  | G38: =LOOKUP(B38,Παροχές!$AF$5:AF109,Παροχές!$AH$5:AH109) ->  | H38: =LOOKUP(B38,Παροχές!$AF$5:AF109,Παροχές!$AI$5:AI109) ->  | I38: =LOOKUP(B38,Παροχές!$AF$5:AF109,Παροχές!$AJ$5:AJ109) ->  | J38: =LOOKUP(B38,Παροχές!$AF$5:AF109,Παροχές!$O$5:O109) ->  | K38: =LOOKUP(B38,Παροχές!$AF$5:AF109,Παροχές!$P$5:P109) -> 
B39: =IF(B38<Παροχές!$AF$4,B38+1,"") ->  | C39: =LOOKUP(B39,Παροχές!$AF$5:AF110,Παροχές!$R$5:R110) ->  | D39: =LOOKUP(B39,Παροχές!$AF$5:AF110,Παροχές!$AD$5:AD110) ->  | E39: =LOOKUP(B39,Παροχές!$AF$5:AF110,Παροχές!$AE$5:AE110) ->  | F39: =LOOKUP(B39,Παροχές!$AF$5:AF110,Παροχές!$AG$5:AG110) ->  | G39: =LOOKUP(B39,Παροχές!$AF$5:AF110,Παροχές!$AH$5:AH110) ->  | H39: =LOOKUP(B39,Παροχές!$AF$5:AF110,Παροχές!$AI$5:AI110) ->  | I39: =LOOKUP(B39,Παροχές!$AF$5:AF110,Παροχές!$AJ$5:AJ110) ->  | J39: =LOOKUP(B39,Παροχές!$AF$5:AF110,Παροχές!$O$5:O110) ->  | K39: =LOOKUP(B39,Παροχές!$AF$5:AF110,Παροχές!$P$5:P110) -> 
B40: =IF(B39<Παροχές!$AF$4,B39+1,"") ->  | C40: =LOOKUP(B40,Παροχές!$AF$5:AF111,Παροχές!$R$5:R111) ->  | D40: =LOOKUP(B40,Παροχές!$AF$5:AF111,Παροχές!$AD$5:AD111) ->  | E40: =LOOKUP(B40,Παροχές!$AF$5:AF111,Παροχές!$AE$5:AE111) ->  | F40: =LOOKUP(B40,Παροχές!$AF$5:AF111,Παροχές!$AG$5:AG111) ->  | G40: =LOOKUP(B40,Παροχές!$AF$5:AF111,Παροχές!$AH$5:AH111) ->  | H40: =LOOKUP(B40,Παροχές!$AF$5:AF111,Παροχές!$AI$5:AI111) ->  | I40: =LOOKUP(B40,Παροχές!$AF$5:AF111,Παροχές!$AJ$5:AJ111) ->  | J40: =LOOKUP(B40,Παροχές!$AF$5:AF111,Παροχές!$O$5:O111) ->  | K40: =LOOKUP(B40,Παροχές!$AF$5:AF111,Παροχές!$P$5:P111) -> 
B41: =IF(B40<Παροχές!$AF$4,B40+1,"") ->  | C41: =LOOKUP(B41,Παροχές!$AF$5:AF112,Παροχές!$R$5:R112) ->  | D41: =LOOKUP(B41,Παροχές!$AF$5:AF112,Παροχές!$AD$5:AD112) ->  | E41: =LOOKUP(B41,Παροχές!$AF$5:AF112,Παροχές!$AE$5:AE112) ->  | F41: =LOOKUP(B41,Παροχές!$AF$5:AF112,Παροχές!$AG$5:AG112) ->  | G41: =LOOKUP(B41,Παροχές!$AF$5:AF112,Παροχές!$AH$5:AH112) ->  | H41: =LOOKUP(B41,Παροχές!$AF$5:AF112,Παροχές!$AI$5:AI112) ->  | I41: =LOOKUP(B41,Παροχές!$AF$5:AF112,Παροχές!$AJ$5:AJ112) ->  | J41: =LOOKUP(B41,Παροχές!$AF$5:AF112,Παροχές!$O$5:O112) ->  | K41: =LOOKUP(B41,Παροχές!$AF$5:AF112,Παροχές!$P$5:P112) -> 
B42: =IF(B41<Παροχές!$AF$4,B41+1,"") ->  | C42: =LOOKUP(B42,Παροχές!$AF$5:AF113,Παροχές!$R$5:R113) ->  | D42: =LOOKUP(B42,Παροχές!$AF$5:AF113,Παροχές!$AD$5:AD113) ->  | E42: =LOOKUP(B42,Παροχές!$AF$5:AF113,Παροχές!$AE$5:AE113) ->  | F42: =LOOKUP(B42,Παροχές!$AF$5:AF113,Παροχές!$AG$5:AG113) ->  | G42: =LOOKUP(B42,Παροχές!$AF$5:AF113,Παροχές!$AH$5:AH113) ->  | H42: =LOOKUP(B42,Παροχές!$AF$5:AF113,Παροχές!$AI$5:AI113) ->  | I42: =LOOKUP(B42,Παροχές!$AF$5:AF113,Παροχές!$AJ$5:AJ113) ->  | J42: =LOOKUP(B42,Παροχές!$AF$5:AF113,Παροχές!$O$5:O113) ->  | K42: =LOOKUP(B42,Παροχές!$AF$5:AF113,Παροχές!$P$5:P113) -> 
B43: =IF(B42<Παροχές!$AF$4,B42+1,"") ->  | C43: =LOOKUP(B43,Παροχές!$AF$5:AF114,Παροχές!$R$5:R114) ->  | D43: =LOOKUP(B43,Παροχές!$AF$5:AF114,Παροχές!$AD$5:AD114) ->  | E43: =LOOKUP(B43,Παροχές!$AF$5:AF114,Παροχές!$AE$5:AE114) ->  | F43: =LOOKUP(B43,Παροχές!$AF$5:AF114,Παροχές!$AG$5:AG114) ->  | G43: =LOOKUP(B43,Παροχές!$AF$5:AF114,Παροχές!$AH$5:AH114) ->  | H43: =LOOKUP(B43,Παροχές!$AF$5:AF114,Παροχές!$AI$5:AI114) ->  | I43: =LOOKUP(B43,Παροχές!$AF$5:AF114,Παροχές!$AJ$5:AJ114) ->  | J43: =LOOKUP(B43,Παροχές!$AF$5:AF114,Παροχές!$O$5:O114) ->  | K43: =LOOKUP(B43,Παροχές!$AF$5:AF114,Παροχές!$P$5:P114) -> 
B44: =IF(B43<Παροχές!$AF$4,B43+1,"") ->  | C44: =LOOKUP(B44,Παροχές!$AF$5:AF115,Παροχές!$R$5:R115) ->  | D44: =LOOKUP(B44,Παροχές!$AF$5:AF115,Παροχές!$AD$5:AD115) ->  | E44: =LOOKUP(B44,Παροχές!$AF$5:AF115,Παροχές!$AE$5:AE115) ->  | F44: =LOOKUP(B44,Παροχές!$AF$5:AF115,Παροχές!$AG$5:AG115) ->  | G44: =LOOKUP(B44,Παροχές!$AF$5:AF115,Παροχές!$AH$5:AH115) ->  | H44: =LOOKUP(B44,Παροχές!$AF$5:AF115,Παροχές!$AI$5:AI115) ->  | I44: =LOOKUP(B44,Παροχές!$AF$5:AF115,Παροχές!$AJ$5:AJ115) ->  | J44: =LOOKUP(B44,Παροχές!$AF$5:AF115,Παροχές!$O$5:O115) ->  | K44: =LOOKUP(B44,Παροχές!$AF$5:AF115,Παροχές!$P$5:P115) -> 
B45: =IF(B44<Παροχές!$AF$4,B44+1,"") ->  | C45: =LOOKUP(B45,Παροχές!$AF$5:AF116,Παροχές!$R$5:R116) ->  | D45: =LOOKUP(B45,Παροχές!$AF$5:AF116,Παροχές!$AD$5:AD116) ->  | E45: =LOOKUP(B45,Παροχές!$AF$5:AF116,Παροχές!$AE$5:AE116) ->  | F45: =LOOKUP(B45,Παροχές!$AF$5:AF116,Παροχές!$AG$5:AG116) ->  | G45: =LOOKUP(B45,Παροχές!$AF$5:AF116,Παροχές!$AH$5:AH116) ->  | H45: =LOOKUP(B45,Παροχές!$AF$5:AF116,Παροχές!$AI$5:AI116) ->  | I45: =LOOKUP(B45,Παροχές!$AF$5:AF116,Παροχές!$AJ$5:AJ116) ->  | J45: =LOOKUP(B45,Παροχές!$AF$5:AF116,Παροχές!$O$5:O116) ->  | K45: =LOOKUP(B45,Παροχές!$AF$5:AF116,Παροχές!$P$5:P116) -> 
B46: =IF(B45<Παροχές!$AF$4,B45+1,"") ->  | C46: =LOOKUP(B46,Παροχές!$AF$5:AF117,Παροχές!$R$5:R117) ->  | D46: =LOOKUP(B46,Παροχές!$AF$5:AF117,Παροχές!$AD$5:AD117) ->  | E46: =LOOKUP(B46,Παροχές!$AF$5:AF117,Παροχές!$AE$5:AE117) ->  | F46: =LOOKUP(B46,Παροχές!$AF$5:AF117,Παροχές!$AG$5:AG117) ->  | G46: =LOOKUP(B46,Παροχές!$AF$5:AF117,Παροχές!$AH$5:AH117) ->  | H46: =LOOKUP(B46,Παροχές!$AF$5:AF117,Παροχές!$AI$5:AI117) ->  | I46: =LOOKUP(B46,Παροχές!$AF$5:AF117,Παροχές!$AJ$5:AJ117) ->  | J46: =LOOKUP(B46,Παροχές!$AF$5:AF117,Παροχές!$O$5:O117) ->  | K46: =LOOKUP(B46,Παροχές!$AF$5:AF117,Παροχές!$P$5:P117) -> 
B47: =IF(B46<Παροχές!$AF$4,B46+1,"") ->  | C47: =LOOKUP(B47,Παροχές!$AF$5:AF118,Παροχές!$R$5:R118) ->  | D47: =LOOKUP(B47,Παροχές!$AF$5:AF118,Παροχές!$AD$5:AD118) ->  | E47: =LOOKUP(B47,Παροχές!$AF$5:AF118,Παροχές!$AE$5:AE118) ->  | F47: =LOOKUP(B47,Παροχές!$AF$5:AF118,Παροχές!$AG$5:AG118) ->  | G47: =LOOKUP(B47,Παροχές!$AF$5:AF118,Παροχές!$AH$5:AH118) ->  | H47: =LOOKUP(B47,Παροχές!$AF$5:AF118,Παροχές!$AI$5:AI118) ->  | I47: =LOOKUP(B47,Παροχές!$AF$5:AF118,Παροχές!$AJ$5:AJ118) ->  | J47: =LOOKUP(B47,Παροχές!$AF$5:AF118,Παροχές!$O$5:O118) ->  | K47: =LOOKUP(B47,Παροχές!$AF$5:AF118,Παροχές!$P$5:P118) -> 
B48: =IF(B47<Παροχές!$AF$4,B47+1,"") ->  | C48: =LOOKUP(B48,Παροχές!$AF$5:AF119,Παροχές!$R$5:R119) ->  | D48: =LOOKUP(B48,Παροχές!$AF$5:AF119,Παροχές!$AD$5:AD119) ->  | E48: =LOOKUP(B48,Παροχές!$AF$5:AF119,Παροχές!$AE$5:AE119) ->  | F48: =LOOKUP(B48,Παροχές!$AF$5:AF119,Παροχές!$AG$5:AG119) ->  | G48: =LOOKUP(B48,Παροχές!$AF$5:AF119,Παροχές!$AH$5:AH119) ->  | H48: =LOOKUP(B48,Παροχές!$AF$5:AF119,Παροχές!$AI$5:AI119) ->  | I48: =LOOKUP(B48,Παροχές!$AF$5:AF119,Παροχές!$AJ$5:AJ119) ->  | J48: =LOOKUP(B48,Παροχές!$AF$5:AF119,Παροχές!$O$5:O119) ->  | K48: =LOOKUP(B48,Παροχές!$AF$5:AF119,Παροχές!$P$5:P119) -> 
B49: =IF(B48<Παροχές!$AF$4,B48+1,"") ->  | C49: =LOOKUP(B49,Παροχές!$AF$5:AF120,Παροχές!$R$5:R120) ->  | D49: =LOOKUP(B49,Παροχές!$AF$5:AF120,Παροχές!$AD$5:AD120) ->  | E49: =LOOKUP(B49,Παροχές!$AF$5:AF120,Παροχές!$AE$5:AE120) ->  | F49: =LOOKUP(B49,Παροχές!$AF$5:AF120,Παροχές!$AG$5:AG120) ->  | G49: =LOOKUP(B49,Παροχές!$AF$5:AF120,Παροχές!$AH$5:AH120) ->  | H49: =LOOKUP(B49,Παροχές!$AF$5:AF120,Παροχές!$AI$5:AI120) ->  | I49: =LOOKUP(B49,Παροχές!$AF$5:AF120,Παροχές!$AJ$5:AJ120) ->  | J49: =LOOKUP(B49,Παροχές!$AF$5:AF120,Παροχές!$O$5:O120) ->  | K49: =LOOKUP(B49,Παροχές!$AF$5:AF120,Παροχές!$P$5:P120) -> 
B50: =IF(B49<Παροχές!$AF$4,B49+1,"") ->  | C50: =LOOKUP(B50,Παροχές!$AF$5:AF121,Παροχές!$R$5:R121) ->  | D50: =LOOKUP(B50,Παροχές!$AF$5:AF121,Παροχές!$AD$5:AD121) ->  | E50: =LOOKUP(B50,Παροχές!$AF$5:AF121,Παροχές!$AE$5:AE121) ->  | F50: =LOOKUP(B50,Παροχές!$AF$5:AF121,Παροχές!$AG$5:AG121) ->  | G50: =LOOKUP(B50,Παροχές!$AF$5:AF121,Παροχές!$AH$5:AH121) ->  | H50: =LOOKUP(B50,Παροχές!$AF$5:AF121,Παροχές!$AI$5:AI121) ->  | I50: =LOOKUP(B50,Παροχές!$AF$5:AF121,Παροχές!$AJ$5:AJ121) ->  | J50: =LOOKUP(B50,Παροχές!$AF$5:AF121,Παροχές!$O$5:O121) ->  | K50: =LOOKUP(B50,Παροχές!$AF$5:AF121,Παροχές!$P$5:P121) -> 
B51: =IF(B50<Παροχές!$AF$4,B50+1,"") ->  | C51: =LOOKUP(B51,Παροχές!$AF$5:AF122,Παροχές!$R$5:R122) ->  | D51: =LOOKUP(B51,Παροχές!$AF$5:AF122,Παροχές!$AD$5:AD122) ->  | E51: =LOOKUP(B51,Παροχές!$AF$5:AF122,Παροχές!$AE$5:AE122) ->  | F51: =LOOKUP(B51,Παροχές!$AF$5:AF122,Παροχές!$AG$5:AG122) ->  | G51: =LOOKUP(B51,Παροχές!$AF$5:AF122,Παροχές!$AH$5:AH122) ->  | H51: =LOOKUP(B51,Παροχές!$AF$5:AF122,Παροχές!$AI$5:AI122) ->  | I51: =LOOKUP(B51,Παροχές!$AF$5:AF122,Παροχές!$AJ$5:AJ122) ->  | J51: =LOOKUP(B51,Παροχές!$AF$5:AF122,Παροχές!$O$5:O122) ->  | K51: =LOOKUP(B51,Παροχές!$AF$5:AF122,Παροχές!$P$5:P122) -> 
B52: =IF(B51<Παροχές!$AF$4,B51+1,"") ->  | C52: =LOOKUP(B52,Παροχές!$AF$5:AF123,Παροχές!$R$5:R123) ->  | D52: =LOOKUP(B52,Παροχές!$AF$5:AF123,Παροχές!$AD$5:AD123) ->  | E52: =LOOKUP(B52,Παροχές!$AF$5:AF123,Παροχές!$AE$5:AE123) ->  | F52: =LOOKUP(B52,Παροχές!$AF$5:AF123,Παροχές!$AG$5:AG123) ->  | G52: =LOOKUP(B52,Παροχές!$AF$5:AF123,Παροχές!$AH$5:AH123) ->  | H52: =LOOKUP(B52,Παροχές!$AF$5:AF123,Παροχές!$AI$5:AI123) ->  | I52: =LOOKUP(B52,Παροχές!$AF$5:AF123,Παροχές!$AJ$5:AJ123) ->  | J52: =LOOKUP(B52,Παροχές!$AF$5:AF123,Παροχές!$O$5:O123) ->  | K52: =LOOKUP(B52,Παροχές!$AF$5:AF123,Παροχές!$P$5:P123) -> 
B53: =IF(B52<Παροχές!$AF$4,B52+1,"") ->  | C53: =LOOKUP(B53,Παροχές!$AF$5:AF124,Παροχές!$R$5:R124) ->  | D53: =LOOKUP(B53,Παροχές!$AF$5:AF124,Παροχές!$AD$5:AD124) ->  | E53: =LOOKUP(B53,Παροχές!$AF$5:AF124,Παροχές!$AE$5:AE124) ->  | F53: =LOOKUP(B53,Παροχές!$AF$5:AF124,Παροχές!$AG$5:AG124) ->  | G53: =LOOKUP(B53,Παροχές!$AF$5:AF124,Παροχές!$AH$5:AH124) ->  | H53: =LOOKUP(B53,Παροχές!$AF$5:AF124,Παροχές!$AI$5:AI124) ->  | I53: =LOOKUP(B53,Παροχές!$AF$5:AF124,Παροχές!$AJ$5:AJ124) ->  | J53: =LOOKUP(B53,Παροχές!$AF$5:AF124,Παροχές!$O$5:O124) ->  | K53: =LOOKUP(B53,Παροχές!$AF$5:AF124,Παροχές!$P$5:P124) -> 
B54: =IF(B53<Παροχές!$AF$4,B53+1,"") ->  | C54: =LOOKUP(B54,Παροχές!$AF$5:AF125,Παροχές!$R$5:R125) ->  | D54: =LOOKUP(B54,Παροχές!$AF$5:AF125,Παροχές!$AD$5:AD125) ->  | E54: =LOOKUP(B54,Παροχές!$AF$5:AF125,Παροχές!$AE$5:AE125) ->  | F54: =LOOKUP(B54,Παροχές!$AF$5:AF125,Παροχές!$AG$5:AG125) ->  | G54: =LOOKUP(B54,Παροχές!$AF$5:AF125,Παροχές!$AH$5:AH125) ->  | H54: =LOOKUP(B54,Παροχές!$AF$5:AF125,Παροχές!$AI$5:AI125) ->  | I54: =LOOKUP(B54,Παροχές!$AF$5:AF125,Παροχές!$AJ$5:AJ125) ->  | J54: =LOOKUP(B54,Παροχές!$AF$5:AF125,Παροχές!$O$5:O125) ->  | K54: =LOOKUP(B54,Παροχές!$AF$5:AF125,Παροχές!$P$5:P125) -> 
B55: =IF(B54<Παροχές!$AF$4,B54+1,"") ->  | C55: =LOOKUP(B55,Παροχές!$AF$5:AF126,Παροχές!$R$5:R126) ->  | D55: =LOOKUP(B55,Παροχές!$AF$5:AF126,Παροχές!$AD$5:AD126) ->  | E55: =LOOKUP(B55,Παροχές!$AF$5:AF126,Παροχές!$AE$5:AE126) ->  | F55: =LOOKUP(B55,Παροχές!$AF$5:AF126,Παροχές!$AG$5:AG126) ->  | G55: =LOOKUP(B55,Παροχές!$AF$5:AF126,Παροχές!$AH$5:AH126) ->  | H55: =LOOKUP(B55,Παροχές!$AF$5:AF126,Παροχές!$AI$5:AI126) ->  | I55: =LOOKUP(B55,Παροχές!$AF$5:AF126,Παροχές!$AJ$5:AJ126) ->  | J55: =LOOKUP(B55,Παροχές!$AF$5:AF126,Παροχές!$O$5:O126) ->  | K55: =LOOKUP(B55,Παροχές!$AF$5:AF126,Παροχές!$P$5:P126) -> 
B56: =IF(B55<Παροχές!$AF$4,B55+1,"") ->  | C56: =LOOKUP(B56,Παροχές!$AF$5:AF127,Παροχές!$R$5:R127) ->  | D56: =LOOKUP(B56,Παροχές!$AF$5:AF127,Παροχές!$AD$5:AD127) ->  | E56: =LOOKUP(B56,Παροχές!$AF$5:AF127,Παροχές!$AE$5:AE127) ->  | F56: =LOOKUP(B56,Παροχές!$AF$5:AF127,Παροχές!$AG$5:AG127) ->  | G56: =LOOKUP(B56,Παροχές!$AF$5:AF127,Παροχές!$AH$5:AH127) ->  | H56: =LOOKUP(B56,Παροχές!$AF$5:AF127,Παροχές!$AI$5:AI127) ->  | I56: =LOOKUP(B56,Παροχές!$AF$5:AF127,Παροχές!$AJ$5:AJ127) ->  | J56: =LOOKUP(B56,Παροχές!$AF$5:AF127,Παροχές!$O$5:O127) ->  | K56: =LOOKUP(B56,Παροχές!$AF$5:AF127,Παροχές!$P$5:P127) -> 
B57: =IF(B56<Παροχές!$AF$4,B56+1,"") ->  | C57: =LOOKUP(B57,Παροχές!$AF$5:AF128,Παροχές!$R$5:R128) ->  | D57: =LOOKUP(B57,Παροχές!$AF$5:AF128,Παροχές!$AD$5:AD128) ->  | E57: =LOOKUP(B57,Παροχές!$AF$5:AF128,Παροχές!$AE$5:AE128) ->  | F57: =LOOKUP(B57,Παροχές!$AF$5:AF128,Παροχές!$AG$5:AG128) ->  | G57: =LOOKUP(B57,Παροχές!$AF$5:AF128,Παροχές!$AH$5:AH128) ->  | H57: =LOOKUP(B57,Παροχές!$AF$5:AF128,Παροχές!$AI$5:AI128) ->  | I57: =LOOKUP(B57,Παροχές!$AF$5:AF128,Παροχές!$AJ$5:AJ128) ->  | J57: =LOOKUP(B57,Παροχές!$AF$5:AF128,Παροχές!$O$5:O128) ->  | K57: =LOOKUP(B57,Παροχές!$AF$5:AF128,Παροχές!$P$5:P128) -> 
B58: =IF(B57<Παροχές!$AF$4,B57+1,"") ->  | C58: =LOOKUP(B58,Παροχές!$AF$5:AF129,Παροχές!$R$5:R129) ->  | D58: =LOOKUP(B58,Παροχές!$AF$5:AF129,Παροχές!$AD$5:AD129) ->  | E58: =LOOKUP(B58,Παροχές!$AF$5:AF129,Παροχές!$AE$5:AE129) ->  | F58: =LOOKUP(B58,Παροχές!$AF$5:AF129,Παροχές!$AG$5:AG129) ->  | G58: =LOOKUP(B58,Παροχές!$AF$5:AF129,Παροχές!$AH$5:AH129) ->  | H58: =LOOKUP(B58,Παροχές!$AF$5:AF129,Παροχές!$AI$5:AI129) ->  | I58: =LOOKUP(B58,Παροχές!$AF$5:AF129,Παροχές!$AJ$5:AJ129) ->  | J58: =LOOKUP(B58,Παροχές!$AF$5:AF129,Παροχές!$O$5:O129) ->  | K58: =LOOKUP(B58,Παροχές!$AF$5:AF129,Παροχές!$P$5:P129) -> 
B59: =IF(B58<Παροχές!$AF$4,B58+1,"") ->  | C59: =LOOKUP(B59,Παροχές!$AF$5:AF130,Παροχές!$R$5:R130) ->  | D59: =LOOKUP(B59,Παροχές!$AF$5:AF130,Παροχές!$AD$5:AD130) ->  | E59: =LOOKUP(B59,Παροχές!$AF$5:AF130,Παροχές!$AE$5:AE130) ->  | F59: =LOOKUP(B59,Παροχές!$AF$5:AF130,Παροχές!$AG$5:AG130) ->  | G59: =LOOKUP(B59,Παροχές!$AF$5:AF130,Παροχές!$AH$5:AH130) ->  | H59: =LOOKUP(B59,Παροχές!$AF$5:AF130,Παροχές!$AI$5:AI130) ->  | I59: =LOOKUP(B59,Παροχές!$AF$5:AF130,Παροχές!$AJ$5:AJ130) ->  | J59: =LOOKUP(B59,Παροχές!$AF$5:AF130,Παροχές!$O$5:O130) ->  | K59: =LOOKUP(B59,Παροχές!$AF$5:AF130,Παροχές!$P$5:P130) -> 
B60: =IF(B59<Παροχές!$AF$4,B59+1,"") ->  | C60: =LOOKUP(B60,Παροχές!$AF$5:AF131,Παροχές!$R$5:R131) ->  | D60: =LOOKUP(B60,Παροχές!$AF$5:AF131,Παροχές!$AD$5:AD131) ->  | E60: =LOOKUP(B60,Παροχές!$AF$5:AF131,Παροχές!$AE$5:AE131) ->  | F60: =LOOKUP(B60,Παροχές!$AF$5:AF131,Παροχές!$AG$5:AG131) ->  | G60: =LOOKUP(B60,Παροχές!$AF$5:AF131,Παροχές!$AH$5:AH131) ->  | H60: =LOOKUP(B60,Παροχές!$AF$5:AF131,Παροχές!$AI$5:AI131) ->  | I60: =LOOKUP(B60,Παροχές!$AF$5:AF131,Παροχές!$AJ$5:AJ131) ->  | J60: =LOOKUP(B60,Παροχές!$AF$5:AF131,Παροχές!$O$5:O131) ->  | K60: =LOOKUP(B60,Παροχές!$AF$5:AF131,Παροχές!$P$5:P131) -> 
B61: =IF(B60<Παροχές!$AF$4,B60+1,"") ->  | C61: =LOOKUP(B61,Παροχές!$AF$5:AF132,Παροχές!$R$5:R132) ->  | D61: =LOOKUP(B61,Παροχές!$AF$5:AF132,Παροχές!$AD$5:AD132) ->  | E61: =LOOKUP(B61,Παροχές!$AF$5:AF132,Παροχές!$AE$5:AE132) ->  | F61: =LOOKUP(B61,Παροχές!$AF$5:AF132,Παροχές!$AG$5:AG132) ->  | G61: =LOOKUP(B61,Παροχές!$AF$5:AF132,Παροχές!$AH$5:AH132) ->  | H61: =LOOKUP(B61,Παροχές!$AF$5:AF132,Παροχές!$AI$5:AI132) ->  | I61: =LOOKUP(B61,Παροχές!$AF$5:AF132,Παροχές!$AJ$5:AJ132) ->  | J61: =LOOKUP(B61,Παροχές!$AF$5:AF132,Παροχές!$O$5:O132) ->  | K61: =LOOKUP(B61,Παροχές!$AF$5:AF132,Παροχές!$P$5:P132) -> 
B62: =IF(B61<Παροχές!$AF$4,B61+1,"") ->  | C62: =LOOKUP(B62,Παροχές!$AF$5:AF133,Παροχές!$R$5:R133) ->  | D62: =LOOKUP(B62,Παροχές!$AF$5:AF133,Παροχές!$AD$5:AD133) ->  | E62: =LOOKUP(B62,Παροχές!$AF$5:AF133,Παροχές!$AE$5:AE133) ->  | F62: =LOOKUP(B62,Παροχές!$AF$5:AF133,Παροχές!$AG$5:AG133) ->  | G62: =LOOKUP(B62,Παροχές!$AF$5:AF133,Παροχές!$AH$5:AH133) ->  | H62: =LOOKUP(B62,Παροχές!$AF$5:AF133,Παροχές!$AI$5:AI133) ->  | I62: =LOOKUP(B62,Παροχές!$AF$5:AF133,Παροχές!$AJ$5:AJ133) ->  | J62: =LOOKUP(B62,Παροχές!$AF$5:AF133,Παροχές!$O$5:O133) ->  | K62: =LOOKUP(B62,Παροχές!$AF$5:AF133,Παροχές!$P$5:P133) -> 
... 77 more rows

Sheet Αποτελέσματα
B2: ΑΠΟΤΕΛΕΣΜΑΤΑ
B3: Α. ΥΦΙΣΤΑΜΕΝΕΣ ΕΝΕΡΓΕΙΑΚΕΣ ΚΑΤΑΝΑΛΩΣΕΙΣ
B4: Αριθμός Παροχών | H4: =COUNT(Παροχές!S5:S76) -> 21
B5: Είδος συμψηφισμού | H5: =IF(H4=1,"Ενεργειακός Συμψηφισμός","Εικονικός Ενεργειακός Συμψηφισμός") -> Εικονικός Ενεργειακός Συμψηφισμός
B6: Κατανάλωση Ηλεκτρικής Ενέργειας προς συμψηφισμό (kWh/Έτος) | H6: =ROUND(SUM('NET METERING'!D5:E349),0) -> 1921001
B7: Ετήσια Δαπάνη Ηλεκτρικής Ενέργειας (€/Έτος) | H7: =ROUND(SUM('NET METERING'!J5:J349),0) -> 186567
B8: Β. ΣΥΣΤΗΜΑ ΠΑΡΑΓΩΓΗΣ ΕΝΕΡΓΕΙΑΣ ΜΕ Φ/Β
B9: Εγκατεστημένη Ισχύς Φ/Β (kW) | H9: =+Παραγωγή!D11 -> 500
B10: Ετήσια Παραγώμενη Ενέργεια (kWh/Έτος) | H10: =Παραγωγή!D27 -> 815150
B11: Δαπάνη Προμήθειας και Εγκατάστασης Φ/Β (€) | H11: =Παραγωγή!H10 -> 524190
B12: Δαπάνη Προμήθειας και Εγκατάστασης Φ/Β (€) με ΦΠΑ | H12: =H11*(1+Δεδομένα1!K4) -> 649995.6
B13: Κόστος Διασύνδεσης Φ/Β (€) | H13: =+Δεδομένα1!K9 -> 403.23
B14: Κόστος Διασύνδεσης Φ/Β (€) με ΦΠΑ | H14: =H13*(1+Δεδομένα1!K4) -> 500.0052
B15: Συνολο δαπάνης με ΦΠΑ | H15: =H12+H14 -> 650495.6052
B16: Γ. ΝΕΕΣ ΕΝΕΡΓΕΙΑΚΕΣ ΚΑΤΑΝΑΛΩΣΕΙΣ ΜΕΤΑ ΤΗΝ ΕΦΑΡΜΟΓΗ ΤΟΥ NET METERING
B17: Κατανάλωση Ηλεκτρικής Ενέργειας μετά τον συμψηφισμό (kWh/Έτος) Ανταγωνιστικό Σκέλος | H17: =ROUND(SUM('NET METERING'!F5:G349),0) -> 1105851
B18: Κατανάλωση Ηλεκτρικής Ενέργειας μετά τον συμψηφισμό (kWh/Έτος) Ρυθμιζόμενες Χρεώσεις ΥΚΩ | H18: =ROUND(SUM('NET METERING'!H5:H349),0) -> 1921001
B19: Κατανάλωση Ηλεκτρικής Ενέργειας μετά τον συμψηφισμό (kWh/Έτος) Ρυθμιζόμενες Χρεώσεις (λοιπές) | H19: =ROUND(SUM('NET METERING'!I5:I349),0) -> 1735568
B20: Περίσσεια Ηλεκτρικής Ενέργειας μετά τον συμψηφισμό (kWh/Έτος) | H20: =+'NET METERING'!K503/3 -> 0
B21: Ετήσια Δαπάνη Ηλεκτρικής Ενέργειας μετά τον συμψηφισμό (€/Έτος) | H21: =ROUND(SUM('NET METERING'!K5:K349),0) -> 124369
B22: E. ΕΞΟΙΚΟΝΟΜΗΣΗ ΕΝΕΡΓΕΙΑΣ - ΜΕΙΩΣΗ ΔΑΠΑΝΗΣ
B23: Ετήσια Εξοικονόμηση Ηλεκτρικής Ενέργειας (kWh/Έτος) | H23: =H10-H20 -> 815150
B24: Ετήσια Εξοικονόμηση Δαπάνης (€) | H24: =+H7-H21 -> 62198
B25: ΣΤ. ΠΕΡΙΒΑΛΛΟΝΤΙΚΟ ΟΦΕΛΟΣ (Τόνοι/ kWh)
B26: Ρύποι | D26: Συμβατικό Σύστημα | F26: Νέο Σύστημα | H26: Όφελος
B27: CO2 | D27: =ROUND(H6*Δεδομένα1!K13/1000000,2) -> 779.2 | F27: =ROUND((H6-H23)*Δεδομένα1!K13/1000000,2) -> 448.56 | H27: =+D27-F27 -> 330.64
B28: Ποσοστό Μείωσης Εκλυόμενοι Ρύποι: | I28: =IF(D27=0,0,H27/D27) -> 0.4243326489
B30: Συνολικός προϋπολογισμός προμήθειας και εγκατάστασης Φ/Β σταθμού (€) | H30: =H15 -> 650495.6052
B31: Ζ. ΔΕΙΚΤΕΣ ΟΙΚΟΝΟΜΙΚΟΤΗΤΑΣ
B32: Ποσοστό Κάλυψης Εξυπηρέτησης Οφειλών | H32: =IF(ISERROR(AVERAGE(Οικονομικότητα!O7:O20)),"Μη Διαθέσιμη Τιμή",AVERAGE(Οικονομικότητα!O7:O20)) -> 1.044927503
B33: Σταθμισμένο κόστος έργου (€/MWh): | H33: =Οικονομικότητα!H35 -> 119.954545

Sheet Οικονομικότητα (hidden)
A2: Α/Α | B2: ΠΕΡΙΓΡΑΦΗ | C2: ΤΙΜΗ
A3: I | B3: Επένδυση σε χρόνια | C3: =+Δεδομένα1!K8 -> 25
A4: II | B4: Ετήσια Κατανάλωση Ενέργειας χωρίς εφαρμογή του NET METERING | C4: =+Αποτελέσματα!H6 -> 1921001 | E4: Έτος* | F4: Ενεργειακό όφελος σε (kWh) [1] = [ΙΙ - ΙΙΙ] | G4: Ετήσιες Ταμειακές Ροές (αποφευγόμενα κόστη) (€) [2] = [4-3] | H4: Ετήριο συνολικό κόστος Νέου συστήματος [K+M+N] (€) [3] | I4: Ετήσιο συνολικό κόστος συμβατικού συστήματος (€) [4]=[9] | J4: Ετήσια κόστη Κεφαλαίου (€) [5] | K4: Ετήσιο συνολικό κόστος συμβατικού συστήματος με NET METERING (€) [6] | L4: Ετήσιο Κόστος Λειτουργίας με NET METERING (Συντήρηση+Ενεργειακά κόστη) (€) [7]=[6] | M4: Ιδία κεφάλαια (€) [8]=VIII | N4: Ετήσιο κόστος Λειτρουργίας Συμβατικού Συστήματος (Συντήρηση+Ενέργειακά κόστη) (€) [9]=[IV+VI] | O4: Ποσοστό Κάλυψης Εξυπηρέτησης Οφειλών [10]=[4-7]/[5]
A5: III | B5: Ετήσια Κατανάλωση Ενέργειας με εφαρμογή του NET METERING | C5: =+C4-Αποτελέσματα!H23 -> 1105851
A6: IV | B6: Συνολικό Κόστος Ηλεκτρικής Ενέργειας χωρίς εφαρμογή του NET METERING | C6: =+Αποτελέσματα!H7 -> 186567 | E6: =IF(OR(C3="",C3=0),"",1) -> 1 | F6: 0 | G6: =I6-H6 -> -60973.48 | H6: =J6+L6+M6 -> 60973.48 | I6: =N6 -> 0 | J6: =IF(E6="","",IF(Δάνειο!I5="",0,Δάνειο!I5)) -> 60973.48 | K6: 0 | L6: 0 | M6: =C11 -> 0 | N6: 0 | O6: =IF(J6=0,"",(I6-L6)/J6) -> 0
A7: V | B7: Συνολικό Κόστος Ηλεκτρικής Ενέργειας με εφαρμογή του NET METERING | C7: =+Αποτελέσματα!H21 -> 124369 | E7: =IF(OR(E6=$C$3,E6=""),"",E6+1) -> 2 | F7: =IF(E7="","",$C$4-$C$5) -> 815150 | G7: =IF(E7<>"",I7-H7,"") -> 1224.52 | H7: =IF(E7<>"",J7+L7+M7,"") -> 185342.48 | I7: =N7 -> 186567 | J7: =IF(E7="","",IF(Δάνειο!I6="",0,Δάνειο!I6)) -> 60973.48 | K7: =+$C$7 -> 124369 | L7: =IF(E7="","",K7) -> 124369 | N7: =IF($E7="","",$C$6) -> 186567 | O7: =IF(ISERROR((I7-L7)/J7),"",IF(E7="","",(I7-L7)/J7)) -> 1.020082829
A8: VI | B8: Ετήσια αύξηση κόστους ηλεκτρικής ενέργειας | C8: 0.004 | E8: 3 | F8: =IF(E8="","",$C$4-$C$5) -> 815150 | G8: =IF(E8<>"",I8-H8,"") -> 1473.312 | H8: =IF(E8<>"",J8+L8+M8,"") -> 185839.956 | I8: =N8 -> 187313.268 | J8: =IF(E8="","",IF(Δάνειο!I7="",0,Δάνειο!I7)) -> 60973.48 | K8: =+$C$7 -> 124369 | L8: =IF(E8="","",L7*(1+$C$8)) -> 124866.476 | N8: =IF($E8="","",N7*(1+$C$8)) -> 187313.268 | O8: 1.024163161
A9: VII | B9: Συνολικό Κόστος Επένδυσης | C9: =+Αποτελέσματα!H30 -> 650495.6052 | E9: 4 | F9: 815150 | G9: 1723.099168 | H9: 186339.4219 | I9: 188062.5211 | J9: =IF(E9="","",IF(Δάνειο!I8="",0,Δάνειο!I8)) -> 60973.48 | K9: 124369 | L9: 125365.9419 | N9: 188062.5211 | O9: 1.028259813
A10: VIII | B10: Δάνειο | C10: =+C9 -> 650495.6052 | E10: 5 | F10: 815150 | G10: 1973.885485 | H10: 186840.8857 | I10: 188814.7712 | J10: =IF(E10="","",IF(Δάνειο!I9="",0,Δάνειο!I9)) -> 60973.48 | K10: 124369 | L10: 125867.4057 | N10: 188814.7712 | O10: 1.032372853
A11: IX | B11: Ιδία κεφάλαια | C11: =C9-C10 -> 0 | E11: 6 | F11: 815150 | G11: 2225.674947 | H11: 187344.3553 | I11: 189570.0302 | J11: =IF(E11="","",IF(Δάνειο!I10="",0,Δάνειο!I10)) -> 60973.48 | K11: 124369 | L11: 126370.8753 | N11: 189570.0302 | O11: 1.036502344
A12: X | B12: Προεξοφλητικό επιτόκιο | C12: 0.05 | E12: 7 | F12: 815150 | G12: 2478.471566 | H12: 187849.8388 | I12: 190328.3104 | J12: =IF(E12="","",IF(Δάνειο!I11="",0,Δάνειο!I11)) -> 60973.48 | K12: 124369 | L12: 126876.3588 | N12: 190328.3104 | O12: 1.040648353
E13: 8 | F13: 815150 | G13: 2732.279373 | H13: 188357.3442 | I13: 191089.6236 | J13: =IF(E13="","",IF(Δάνειο!I12="",0,Δάνειο!I12)) -> 60973.48 | K13: 124369 | L13: 127383.8642 | N13: 191089.6236 | O13: 1.044810947
E14: 9 | F14: 815150 | G14: 2987.10241 | H14: 188866.8797 | I14: 191853.9821 | J14: =IF(E14="","",IF(Δάνειο!I13="",0,Δάνειο!I13)) -> 60973.48 | K14: 124369 | L14: 127893.3997 | N14: 191853.9821 | O14: 1.048990191
E15: 10 | F15: 815150 | G15: 3242.94474 | H15: 189378.4533 | I15: 192621.398 | J15: =IF(E15="","",IF(Δάνειο!I14="",0,Δάνειο!I14)) -> 60973.48 | K15: 124369 | L15: 128404.9733 | N15: 192621.398 | O15: 1.053186151
E16: 11 | F16: =IF(E16="","",$C$4-$C$5) -> 815150 | G16: 3499.810439 | H16: 189892.0732 | I16: =N16 -> 193391.8836 | J16: =IF(E16="","",IF(Δάνειο!I15="",0,Δάνειο!I15)) -> 60973.48 | K16: 124369 | L16: 128918.5932 | N16: 193391.8836 | O16: 1.057398896
E17: 12 | F17: =IF(E17="","",$C$4-$C$5) -> 815150 | G17: 3757.703601 | H17: 190407.7476 | I17: =N17 -> 194165.4512 | J17: =IF(E17="","",IF(Δάνειο!I16="",0,Δάνειο!I16)) -> 60973.48 | K17: 124369 | L17: 129434.2676 | N17: 194165.4512 | O17: 1.061628492
E18: 13 | F18: =IF(E18="","",$C$4-$C$5) -> 815150 | G18: 4016.628335 | H18: 190925.4846 | I18: =N18 -> 194942.113 | J18: =IF(E18="","",IF(Δάνειο!I17="",0,Δάνειο!I17)) -> 60973.48 | K18: 124369 | L18: 129952.0046 | N18: 194942.113 | O18: 1.065875006
E19: 14 | F19: =IF(E19="","",$C$4-$C$5) -> 815150 | G19: 4276.588768 | H19: 191445.2926 | I19: =N19 -> 195721.8814 | J19: =IF(E19="","",IF(Δάνειο!I18="",0,Δάνειο!I18)) -> 60973.48 | K19: 124369 | L19: 130471.8126 | N19: 195721.8814 | O19: 1.070138506
E20: 15 | F20: =IF(E20="","",$C$4-$C$5) -> 815150 | G20: 65511.06904 | H20: 130993.6999 | I20: =N20 -> 196504.7689 | J20: =IF(E20="","",IF(Δάνειο!I19="",0,Δάνειο!I19)) -> 0 | K20: 124369 | L20: 130993.6999 | N20: 196504.7689
E21: 16 | F21: =IF(E21="","",$C$4-$C$5) -> 815150 | G21: 65773.11332 | H21: 131517.6747 | I21: =N21 -> 197290.788 | J21: =IF(E21="","",IF(Δάνειο!I20="",0,Δάνειο!I20)) -> 0 | K21: 124369 | L21: 131517.6747 | N21: 197290.788
E22: 17 | F22: 815150 | G22: 66036.20577 | H22: 132043.7454 | I22: 198079.9512 | J22: =IF(E22="","",IF(Δάνειο!I21="",0,Δάνειο!I21)) -> 0 | K22: 124369 | L22: 132043.7454 | N22: 198079.9512
E23: 18 | F23: 815150 | G23: 66300.3506 | H23: 132571.9204 | I23: 198872.271 | J23: =IF(E23="","",IF(Δάνειο!I22="",0,Δάνειο!I22)) -> 0 | K23: 124369 | L23: 132571.9204 | N23: 198872.271
E24: 19 | F24: 815150 | G24: 66565.552 | H24: 133102.2081 | I24: 199667.7601 | J24: =IF(E24="","",IF(Δάνειο!I23="",0,Δάνειο!I23)) -> 0 | K24: 124369 | L24: 133102.2081 | N24: 199667.7601
E25: 20 | F25: 815150 | G25: 66831.81421 | H25: 133634.6169 | I25: 200466.4311 | J25: =IF(E25="","",IF(Δάνειο!I24="",0,Δάνειο!I24)) -> 0 | K25: 124369 | L25: 133634.6169 | N25: 200466.4311
E26: 21 | F26: 815150 | G26: 67099.14146 | H26: 134169.1554 | I26: 201268.2968 | J26: =IF(E26="","",IF(Δάνειο!I25="",0,Δάνειο!I25)) -> 0 | K26: 124369 | L26: 134169.1554 | N26: 201268.2968
E27: 22 | F27: 815150 | G27: 67367.53803 | H27: 134705.832 | I27: 202073.37 | J27: =IF(E27="","",IF(Δάνειο!I26="",0,Δάνειο!I26)) -> 0 | K27: 124369 | L27: 134705.832 | N27: 202073.37
E28: 23 | F28: 815150 | G28: 67637.00818 | H28: 135244.6553 | I28: 202881.6635 | J28: =IF(E28="","",IF(Δάνειο!I27="",0,Δάνειο!I27)) -> 0 | K28: 124369 | L28: 135244.6553 | N28: 202881.6635
E29: 24 | F29: =IF(E29="","",$C$4-$C$5) -> 815150 | G29: =IF(E29<>"",I29-H29,"") -> 67907.55621 | H29: =IF(E29<>"",J29+L29+M29,"") -> 135785.6339 | I29: =N29 -> 203693.1901 | J29: =IF(E29="","",IF(Δάνειο!I28="",0,Δάνειο!I28)) -> 0 | K29: 124369 | L29: 135785.6339 | N29: 203693.1901 | O29: =IF(ISERROR((I29-L29)/J29),"",IF(E29="","",(I29-L29)/J29)) -> 
E30: =IF(OR(E29=$C$3,E29=""),"",E29+1) -> 25 | F30: =IF(E30="","",$C$4-$C$5) -> 815150 | G30: =IF(E30<>"",I30-H30,"") -> 68179.18644 | H30: =IF(E30<>"",J30+L30+M30,"") -> 136328.7765 | I30: =N30 -> 204507.9629 | J30: =IF(E30="","",IF(Δάνειο!I29="",0,Δάνειο!I29)) -> 0 | K30: 124369 | L30: 136328.7765 | N30: 204507.9629 | O30: =IF(ISERROR((I30-L30)/J30),"",IF(E30="","",(I30-L30)/J30)) -> 
N32: =IF($E32="","",Συνολικό_Κόστος_Ετήσιας_Κατανάλωσης_Ενέργειας_Δυκτίου_Φωτισμού_με_Συμβατκούς_Λαμπτήρες+Ετησιο_Κόστος_Συντήρησης_Δυκτίου_Φωτισμού_με_Συμβατκούς_Λαμπτήρες) -> 
E33: *Η διάρκεια ζωής των φωτιστικών σωμάτων λαμβάνεται ίση με 15 έτη σύμφωνα με την αρ. πρωτ. 46/7094/30.03.2011 Απόφαση του Υπουργείου Περιβάλλοντος και Ενέργειας.
E34: **1 έτος μεταβατική περίοδος 0 κόστος συμβατικού 0 κόστος νέου
E35: Σταθμισμένο κόστος έργου: | H35: =IF(C9=0,"Μη Διαθέσιμη Τιμή",(C9+NPV(C12,L6:L30))/(SUM(F6:F30)/1000)) -> 119.954545 | I35: €/MWh

Sheet Δάνειο (hidden)
A3: Δεδομένα Δανείου | G3: Έτος* | H3: Ημερομηνία Πληρωμής | I3: Ποσό Πληρωμής | J3: Τόκοι | K3: Κεφάλαιο | L3: Υπόλοιπο
A4: Ποσό Δανείου | B4: =Οικονομικότητα!C10 -> 650495.6052 | L4: =+B4 -> 650495.6052
A5: Ετήσιο Επιτόκιο | B5: 0.0385 | G5: 1 | H5: =IF(G5<B6,B7,"") -> 2019-01-01 | I5: =IF(H5<>"",$B$13,"") -> 60973.48 | J5: =IF(H5="","",$B$5*L4) -> 25044.0808 | K5: =IF(H5="","",I5-J5) -> 35929.3992 | L5: =IF(H5="","",L4-K5) -> 614566.206
A6: Διάρκεια του Δανείου σε Χρόνια (0-10) | B6: =+Δεδομένα1!K7 -> 14 | G6: =+G5+1 -> 2 | H6: =IF(G6<=$B$6,H5+365,"") -> 2020-01-01 | I6: =IF(H6<>"",$B$13,"") -> 60973.48 | J6: =IF(H6="","",$B$5*L5) -> 23660.79893 | K6: =IF(H6="","",I6-J6) -> 37312.68107 | L6: =IF(H6="","",L5-K6) -> 577253.5249
A7: Πρώτη Ημερομηνία Πληρωμής | B7: 2019-01-01 | G7: =+G6+1 -> 3 | H7: =IF(G7<=$B$6,H6+366,"") -> 2021-01-01 | I7: 60973.48 | J7: =IF(H7="","",$B$5*L6) -> 22224.26071 | K7: 38749.21929 | L7: 538504.3056
A8: Συχνότητα Πληρωμών | B8: Ετήσια | G8: 4 | H8: =IF(G8<=$B$6,H7+365,"") -> 2022-01-01 | I8: 60973.48 | J8: 20732.41577 | K8: 40241.06423 | L8: 498263.2414
G9: 5 | H9: =IF(G9<=$B$6,H8+365,"") -> 2023-01-01 | I9: 60973.48 | J9: 19183.13479 | K9: 41790.34521 | L9: 456472.8962
A10: Σύνοψη | G10: 6 | H10: 2024-01-01 | I10: 60973.48 | J10: 17574.2065 | K10: 43399.2735 | L10: 413073.6227
A11: Αριθμός Δόσεων | B11: =+B6 -> 14 | G11: 7 | H11: =IF(G11<=$B$6,H10+366,"") -> 2025-01-01 | I11: 60973.48 | J11: 15903.33447 | K11: 45070.14553 | L11: 368003.4772
A12: Επιτόκιο (ανα περίοδο) | B12: =+B5 -> 0.0385 | G12: 8 | H12: =IF(G12<=$B$6,H11+365,"") -> 2026-01-01 | I12: 60973.48 | J12: 14168.13387 | K12: 46805.34613 | L12: 321198.1311
A13: Ποσό πληρωμής (ανα περίοδο) | B13: =IF(ISERROR(-PMT(B12,B11,B4)),"Μη Διαθέσιμο",ROUND(-PMT(B12,B11,B4),2)) -> 60973.48 | G13: 9 | H13: 2027-01-01 | I13: 60973.48 | J13: 12366.12805 | K13: 48607.35195 | L13: 272590.7791
A14: Σύνολο Τόκων | B14: =IF(ISERROR(B15-B4),"Μη Διαθέσιμο",ROUND(B15-B4,2)) -> 203133.15 | G14: 10 | H14: 2028-01-01 | I14: 60973.48 | J14: 10494.745 | K14: 50478.735 | L14: 222112.0441
A15: Σύνολο Πληρωμών | B15: =IF(ISERROR(B11*(-PMT(B12,B11,B4))),"Μη Διαθέσιμο",ROUND(B11*(-PMT(B12,B6,B4)),2)) -> 853628.76 | G15: 11 | H15: =IF(G15<=$B$6,H14+365,"") -> 2028-12-31 | I15: =IF(H15<>"",$B$13,"") -> 60973.48 | J15: =IF(H15="","",$B$5*L14) -> 8551.313698 | K15: =IF(H15="","",I15-J15) -> 52422.1663 | L15: =IF(H15="","",L14-K15) -> 169689.8778
G16: 12 | H16: =IF(G16<=$B$6,H15+365,"") -> 2029-12-31 | I16: =IF(H16<>"",$B$13,"") -> 60973.48 | J16: =IF(H16="","",$B$5*L15) -> 6533.060295 | K16: =IF(H16="","",I16-J16) -> 54440.41971 | L16: =IF(H16="","",L15-K16) -> 115249.4581
G17: 13 | H17: =IF(G17<=$B$6,H16+365,"") -> 2030-12-31 | I17: =IF(H17<>"",$B$13,"") -> 60973.48 | J17: =IF(H17="","",$B$5*L16) -> 4437.104136 | K17: =IF(H17="","",I17-J17) -> 56536.37586 | L17: =IF(H17="","",L16-K17) -> 58713.08222
G18: 14 | H18: =IF(G18<=$B$6,H17+365,"") -> 2031-12-31 | I18: =IF(H18<>"",$B$13,"") -> 60973.48 | J18: =IF(H18="","",$B$5*L17) -> 2260.453666 | K18: =IF(H18="","",I18-J18) -> 58713.02633 | L18: =IF(H18="","",L17-K18) -> 0.05588692746
G19: 15 | H19: =IF(G19<=$B$6,H18+365,"") ->  | I19: =IF(H19<>"",$B$13,"") ->  | J19: =IF(H19="","",$B$5*L18) ->  | K19: =IF(H19="","",I19-J19) ->  | L19: =IF(H19="","",L18-K19) -> 
G21: *Η διάρκεια ζωής του Φ/Β συστήματος λαμβάνεται ίση με 25 έτη σύμφωνα με την αρ. πρωτ. 46/7094/30.03.2011 Απόφαση του Υπουργείου Περιβάλλοντος και Ενέργειας.

Sheet Βοήθεια
A1: Έκδοση 1.3 (Συμπλήρωση του φύλλου εργασίας "Βοήθεια" και επιμέρους διορθώσεις)
A2: Τα κελιά εισαγωγής δεδομένων έχουν χρώμα μπλε. | R2: Κελί Εισαγωγής Δεδομένων
A3: Φύλλο Εργασίας "Περιγραφή Έργου"
A4: Εισάγονται βασικά στοιχεία του υπό μελέτη έργου. Συστήνεται να δοθεί προσοχή στους περιορισμούς ως προς το μήκος του κειμένου που εισάγεται, ώστε να διατηρηθεί μία ενιαία αντιμετώπιση από όλους όσους χρησιμοποιούν το εργαλείο. Οι περιορισμοί εισήχθηκαν με σκοπό την καλύτερη μελλοντική συγκεντρωτική απεικόνιση των υποβληθέντων στοιχείων.
A8: Φύλλο εργασίας "Δεδομένα1"
A9: Εισάγονται οι βασικές μοναδιαίες τιμές που λαμβάνονται υπόψη στο υπό μελέτη έργο και αφορούν: • Το Φόρο Προστιθέμενης Αξίας. Η τιμή που εισάγεται είναι σύμφωνα με το καθεστώς ΦΠΑ στο οποίο υπόκειται ο Δικαιούχος. • Τη διάρκεια του Δανείου σε Χρόνια (1-15). • Το Κόστος της Διασύνδεσης (€). • Το ποσοστό έκπτωση συνέπειας (%). Αφορά την έκπτωση που εφαρμόζει ο πάροχος για τους συνεπείς πελάτες και εφαρμόζεται στο κόστος της προμήθειας ηλεκτρικής ενέργειας πριν την εφαρμογή του NET METERING. Οι μοναδιαίες τιμές για τις ρυθμιζόμενες χρεώσεις, τον Ειδικό Φόρο Κατανάλωσης και το Ειδικό Τέλος, επιλέχθηκε να είναι σταθερές σύμφωνα με τις αποφάσεις της Ρυθμιστικής Αρχής Ενέργειας (ΡΑΕ) και των εμπλεκόμενων φορέων.
A11: Φύλλο εργασίας "Δεδομένα2"
A12: Η Καρτέλα περιλαμβάνει τα βασικά Τιμολόγια της Αγοράς Ενέργειας. Ο Χρήστης έχει τη δυνατότητα να προσαρμόσει το κόστος προμήθειας ενέργειας ανά Τιμολόγιο δεδομένου των προσφορών που παρέχουν οι διαφορετικοί πάροχοι που δραστηριοποιούνται στο χώρο της ενέργειας. Οι ρυθμιζόμενες και οι λοιπές χρεώσεις δεν μπορούν να τροποποιηθούν. Ειδικότερα, για την προσθήκη ΝΕΩΝ Τιμολογίων απαιτείται η ακόλουθη κωδικοποίηση: • Για Τιμολόγια Μέσης Τάσης, η σύντομη ονομασία του Τιμολογίου πρέπει να ξεκινά με το διακριτικό "MT" με ελληνικούς χαρακτήρες.
A14: Φύλλο εργασίας "Παροχές"
A15: Εισάγονται τα βασικά στοιχεία των παροχών που εμπλέκονται στο NET METERING. Στην περίπτωση του Ενεργειακού Συμψηφισμού, καταχωρούνται τα στοιχεία της παροχής που συνδέεται άμεσα με το υπό εγκατάσταση Φ/Β Σύστημα. Στην περίπτωση του Εικονικού Ενεργειακού Συμψηφισμού, πρώτα καταχωρούνται τα στοιχεία της παροχής που συνδέεται άμεσα με το υπό εγκατάσταση Φ/Β Σύστημα και στη συνέχεια οι παροχές του εικονικού συμψηφισμού. Στην περίπτωση που δεν υπάρχει παροχή για άμεση διασύνδεση με το υπό εγκατάσταση Φ/Β Σύστημα, τότε καταχωρείται ένα "εικονικό" τιμολόγιο με τυπικές ιδιοκαταναλώσεις του Φ/Β Συστήματος. Στην περίπτωση της Χαμηλής τάσης το εικονικό τιμολόγιο θα αφορά 3 καταχωρήσεις (τετράμηνης διάρκειας), ενώ στην Μέση Τάση το εικονικό τιμολόγιο θα αφορά 12 καταχωρήσεις, μία για κάθε μήνα. Σημειώνεται ότι για τα τιμολόγια Χαμηλής Τάσης δίνεται η δυνατότητα να επιλέξει ο χρήστης το "προφιλ" της κατανάλωσης στο κελί Μ3.
A16: Πέρα από τα τρία βασικά προφίλ, δίνεται η δυνατότητα στο χρήστη να καταχωρήσει δικό του προφίλ, "Ειδικό", που αιτιολογημένα προσεγγίζει με μεγαλύτερη ακρίβεια το ενεργειακό προφίλ της βασικής κατανάλωσης, αυτής που συνδέεται με το Φ/Β σύστημα. Προσοχή, στο κελί Ε45 πρέπει η τιμή να είναι μονάδα καθώς οι τιμές που καταχωρούνται αφορούν μοναδιαίο προφίλ.
A18: Φορτίο \ Ώρα | B18: Σταθερό | C18: Νυχτερινό | D18: Γραφείου | E18: Ειδικό | F18: Παραγωγή
A19: 01:00:00 | B19: 0.0416 | C19: 0.1 | D19: 0.02342743279 | E19: 0.001 | F19: =IF(LEFT(Παροχές!R3,2)<>"ΜΤ",'CALL-NET-XT'!C$78,'CALL-NET-MT'!B$79) -> 0
A20: 02:00:00 | B20: 0.0416 | C20: 0.1 | D20: 0.02285257758 | E20: 0.001 | F20: =IF(LEFT(Παροχές!R4,2)<>"ΜΤ",'CALL-NET-XT'!D$78,'CALL-NET-MT'!C$79) -> 0
A21: 03:00:00 | B21: 0.0416 | C21: 0.1 | D21: 0.02273177467 | E21: 0.001 | F21: =IF(LEFT(Παροχές!R5,2)<>"ΜΤ",'CALL-NET-XT'!E$78,'CALL-NET-MT'!D$79) -> 0
A22: 04:00:00 | B22: 0.0416 | C22: 0.1 | D22: 0.02304003037 | E22: 0.001 | F22: =IF(LEFT(Παροχές!R6,2)<>"ΜΤ",'CALL-NET-XT'!F$78,'CALL-NET-MT'!E$79) -> 0
A23: 05:00:00 | B23: 0.0416 | C23: 0.1 | D23: 0.02549774469 | E23: 0.001 | F23: =IF(LEFT(Παροχές!R7,2)<>"ΜΤ",'CALL-NET-XT'!G$78,'CALL-NET-MT'!F$79) -> 0
A24: 06:00:00 | B24: 0.0416 | C24: 0 | D24: 0.02406060665 | E24: 0.001 | F24: =IF(LEFT(Παροχές!R8,2)<>"ΜΤ",'CALL-NET-XT'!H$78,'CALL-NET-MT'!G$79) -> 0.0007852424315
A25: 07:00:00 | B25: 0.0416 | C25: 0 | D25: 0.03512448672 | E25: 0.001 | F25: =IF(LEFT(Παροχές!R9,2)<>"ΜΤ",'CALL-NET-XT'!I$78,'CALL-NET-MT'!H$79) -> 0.02136341861
A26: 08:00:00 | B26: 0.0416 | C26: 0 | D26: 0.05516527249 | E26: 0.15 | F26: =IF(LEFT(Παροχές!R10,2)<>"ΜΤ",'CALL-NET-XT'!J$78,'CALL-NET-MT'!I$79) -> 0.05778970617
A27: 09:00:00 | B27: 0.0417 | C27: 0 | D27: 0.05867376382 | E27: 0.15 | F27: =IF(LEFT(Παροχές!R11,2)<>"ΜΤ",'CALL-NET-XT'!K$78,'CALL-NET-MT'!J$79) -> 0.08628330269
A28: 10:00:00 | B28: 0.0417 | C28: 0 | D28: 0.06075242778 | E28: 0.05 | F28: =IF(LEFT(Παροχές!R12,2)<>"ΜΤ",'CALL-NET-XT'!L$78,'CALL-NET-MT'!K$79) -> 0.1088896639
A29: 11:00:00 | B29: 0.0427 | C29: 0 | D29: 0.05786011459 | E29: 0.05 | F29: =IF(LEFT(Παροχές!R13,2)<>"ΜΤ",'CALL-NET-XT'!M$78,'CALL-NET-MT'!L$79) -> 0.1240682036
A30: 12:00:00 | B30: 0.0417 | C30: 0 | D30: 0.05716308181 | E30: 0.15 | F30: =IF(LEFT(Παροχές!R14,2)<>"ΜΤ",'CALL-NET-XT'!N$78,'CALL-NET-MT'!M$79) -> 0.1307845294
A31: 13:00:00 | B31: 0.0417 | C31: 0 | D31: 0.05775305822 | E31: 0.15 | F31: =IF(LEFT(Παροχές!R15,2)<>"ΜΤ",'CALL-NET-XT'!O$78,'CALL-NET-MT'!N$79) -> 0.1285809349
A32: 14:00:00 | B32: 0.0417 | C32: 0 | D32: 0.06073039167 | E32: 0.05 | F32: =IF(LEFT(Παροχές!R16,2)<>"ΜΤ",'CALL-NET-XT'!P$78,'CALL-NET-MT'!O$79) -> 0.1176075913
A33: 15:00:00 | B33: 0.0416 | C33: 0 | D33: 0.05762146636 | E33: 0.12 | F33: =IF(LEFT(Παροχές!R17,2)<>"ΜΤ",'CALL-NET-XT'!Q$78,'CALL-NET-MT'!P$79) -> 0.09861231386
A34: 16:00:00 | B34: 0.0416 | C34: 0 | D34: 0.05261052011 | E34: 0.111 | F34: =IF(LEFT(Παροχές!R18,2)<>"ΜΤ",'CALL-NET-XT'!R$78,'CALL-NET-MT'!Q$79) -> 0.07288959937
A35: 17:00:00 | B35: 0.0416 | C35: 0 | D35: 0.04876643621 | E35: 0.005 | F35: =IF(LEFT(Παροχές!R19,2)<>"ΜΤ",'CALL-NET-XT'!S$78,'CALL-NET-MT'!R$79) -> 0.0421924083
A36: 18:00:00 | B36: 0.0416 | C36: 0 | D36: 0.0511204579 | E36: 0.001 | F36: =IF(LEFT(Παροχές!R20,2)<>"ΜΤ",'CALL-NET-XT'!T$78,'CALL-NET-MT'!S$79) -> 0.009381399098
A37: 19:00:00 | B37: 0.0416 | C37: 0 | D37: 0.04935423608 | E37: 0.001 | F37: =IF(LEFT(Παροχές!R21,2)<>"ΜΤ",'CALL-NET-XT'!U$78,'CALL-NET-MT'!T$79) -> 0.0007716863219
A38: 20:00:00 | B38: 0.0416 | C38: 0.1 | D38: 0.04348071541 | E38: 0.001 | F38: =IF(LEFT(Παροχές!R22,2)<>"ΜΤ",'CALL-NET-XT'!V$78,'CALL-NET-MT'!U$79) -> 0
A39: 21:00:00 | B39: 0.0416 | C39: 0.1 | D39: 0.03853196183 | E39: 0.001 | F39: =IF(LEFT(Παροχές!R23,2)<>"ΜΤ",'CALL-NET-XT'!W$78,'CALL-NET-MT'!V$79) -> 0
A40: 22:00:00 | B40: 0.0416 | C40: 0.1 | D40: 0.02610592484 | E40: 0.001 | F40: =IF(LEFT(Παροχές!R24,2)<>"ΜΤ",'CALL-NET-XT'!X$78,'CALL-NET-MT'!W$79) -> 0
A41: 23:00:00 | B41: 0.0416 | C41: 0.1 | D41: 0.0239523006 | E41: 0.001 | F41: =IF(LEFT(Παροχές!R25,2)<>"ΜΤ",'CALL-NET-XT'!Y$78,'CALL-NET-MT'!X$79) -> 0
A42: 00:00:00 | B42: 0.0416 | C42: 0.1 | D42: 0.02362321682 | E42: 0.001 | F42: =IF(LEFT(Παροχές!R26,2)<>"ΜΤ",'CALL-NET-XT'!Z$78,'CALL-NET-MT'!Y$79) -> 0
B43: 1 | C43: 2 | D43: 3 | E43: 4 | F43: 5
B44: =SUM(B19:B42) -> 1 | C44: =SUM(C19:C42) -> 1 | D44: =SUM(D19:D42) -> 1 | E44: =SUM(E19:E42) -> 1 | F44: =SUM(F19:F42) -> 1 | H44: Οι τιμές πρέπει να είναι μονάδα.
A46: Φύλλο εργασίας "Παραγωγή"
A47: Ακολουθούμε το σύνδεσμο http://re.jrc.ec.europa.eu/pvg_tools/en/tools.html#PVP και μεταβαίνουμε στο εργαλείο "PHOTOVOLTAIC GEOGRAPHICAL INFORMATION SYSTEM". Στο χάρτη που εμφανίζεται, επιλέγουμε το σημείο όπου θα εγκατασταθεί το Φ/Β σύστημα. Στο πεδίο "PV technology" επιλέγουμε την τεχνολογία του Φ/Β πανέλου. Αν επιθυμούμε, επιλέγουμε τα πεδία "Optimize slope" ή "Optimize slope and azimuth" ή καταχωρούμε τις τιμές σύμφωνα με τυχόν ιδιαιτερότητες της εγκατάστασης. Στο πεδίο "Installed peak PV power [kWp]" το αφήνουμε την τιμή 1 και στο "System loss [%]" καταχωρούμε το ποσοστό απωλειών που πρέπει να αιτιολογείται πλήρως. Κατόπιν επιλέγουμε "Visualize results" και αντιγράφουμε τα αποτελέσματα στο φύλλο εργασίας.
A49: Τα υπόλοιπα φύλλα εργασίας υπολογίζονται αυτόματα.

Sheet Πίνακες Αιτήματος
A1: Πίνακας 1 | I1: Πίνακας 2 | R1: Πίνακας 3 | AE1: Πίνακας 4
A5: Α/Α | B5: Είδος Υποδομής (Κτίριο Γραφείων, Οδοφωτισμός, Διυλιστήριο νερού, Σχολείο, Αθλητική εγκατάσταση, Αντλιοστάσιο, κλπ) | C5: Οδός & αριθμός | D5: Περιοχή | E5: Κυριότητα ακινήτου | F5: Αριθμός Παροχής | G5: Καταναλωτής | I5: Α/Α | J5: Αριθμός Παροχής | K5: Επίπεδο τάσης (ΧΤ, ΜΤ) | L5: Κατηγορία τιμολογίου (Γ21, ΦΟΠ, Γ22, κλπ) | M5: Είδος φορτίου (Σταθερό, Νυκτερινό, Γραφείο, Ειδικό) | N5: Ετήσια Κατανάλωση Ηλεκτρικής Ενέργειας κατά την διάρκεια της μέρας | O5: Ετήσια Κατανάλωση Νυκτερινής Ηλεκτρικής Ενέργειας κατά την διάρκεια της νύκτας | P5: Ετήσια Κατανάλωση Ηλεκτρικής Ενέργειας (Μέρας + νύκτας) | R5: Είδος Χρέωσης | S5: Είδος Τιμολογίου | AE5: Μήνας | AF5: Μοναδιαία Μηνιαία Παραγωγή Ενέργειας (kWh) | AG5: Μηνιαία Παραγωγή Ενέργειας Φ/Β (kWh) | AI5: ΑΠΟΤΕΛΕΣΜΑΤΑ
N6: kWh/Έτος | O6: kWh/Έτος | P6: kWh/Έτος | S6: =Δεδομένα2!C3 -> Γ21 | T6: =Δεδομένα2!D3 -> Γ22_1 | U6: =Δεδομένα2!E3 -> Γ22_2 | V6: =Δεδομένα2!F3 -> ΑΓ-ΧΤ | W6: =Δεδομένα2!G3 -> ΦΟΠ1 | X6: =Δεδομένα2!H3 -> ΦΟΠ2 | Y6: =Δεδομένα2!I3 -> ΦΟΠ3 | Z6: =Δεδομένα2!J3 -> ΜΤ-ΓΧ | AA6: =Δεδομένα2!K3 -> ΜΤ-1 | AB6: =Δεδομένα2!L3 -> ΜΤ-2 | AC6: =Δεδομένα2!M3 -> ΜΤ-3 | AI6: Α. ΥΦΙΣΤΑΜΕΝΕΣ ΕΝΕΡΓΕΙΑΚΕΣ ΚΑΤΑΝΑΛΩΣΕΙΣ
AE7: Ιανουάριος | AF7: =Παραγωγή!C15 -> 94 | AG7: =Παραγωγή!D15 -> 47000 | AI7: Αριθμός Παροχών | AO7: =+Αποτελέσματα!H4 -> 21
I8: =IF(A8="","",A8) ->  | J8: =IF(F8="","",F8) ->  | R8: =Δεδομένα2!B6 -> Ισχύς (€/kW/μήνα) | AE8: Φεβρουάριος | AF8: =Παραγωγή!C16 -> 98.2 | AG8: =Παραγωγή!D16 -> 49100 | AI8: Είδος συμψηφισμού | AO8: =+Αποτελέσματα!H5 -> Εικονικός Ενεργειακός Συμψηφισμός
I9: =IF(A9="","",A9) ->  | J9: =IF(F9="","",F9) ->  | R9: =Δεδομένα2!B7 -> Ενέργεια Μέρας (€/kWh) | AE9: Μάρτιος | AF9: =Παραγωγή!C17 -> 142 | AG9: =Παραγωγή!D17 -> 71000 | AI9: Κατανάλωση Ηλεκτρικής Ενέργειας προς συμψηφισμό (kWh/Έτος) | AO9: =+Αποτελέσματα!H6 -> 1921001
R10: =Δεδομένα2!B8 -> Ενέργεια Νύχτας (€/kWh) | AE10: Απρίλιος | AF10: =Παραγωγή!C18 -> 158 | AG10: =Παραγωγή!D18 -> 79000 | AI10: Ετήσια Δαπάνη Ηλεκτρικής Ενέργειας (€/Έτος) | AO10: =+Αποτελέσματα!H7 -> 186567
R11: =Δεδομένα2!B9 -> Πάγιο (€/μήνα) | AE11: Μάιος | AF11: =Παραγωγή!C19 -> 163 | AG11: =Παραγωγή!D19 -> 81500 | AI11: Β. ΣΥΣΤΗΜΑ ΠΑΡΑΓΩΓΗΣ ΕΝΕΡΓΕΙΑΣ ΜΕ Φ/Β
AE12: Ιούνιος | AF12: =Παραγωγή!C20 -> 162 | AG12: =Παραγωγή!D20 -> 81000 | AI12: Εγκατεστημένη Ισχύς Φ/Β (kW) | AO12: =+Αποτελέσματα!H9 -> 500
AE13: Ιούλιος | AF13: =Παραγωγή!C21 -> 177 | AG13: =Παραγωγή!D21 -> 88500 | AI13: Ετήσια Παραγώμενη Ενέργεια (kWh/Έτος) | AO13: =+Αποτελέσματα!H10 -> 815150
AE14: Αύγουστος | AF14: =Παραγωγή!C22 -> 176 | AG14: =Παραγωγή!D22 -> 88000 | AI14: Δαπάνη Προμήθειας και Εγκατάστασης Φ/Β (€) | AO14: =+Αποτελέσματα!H11 -> 524190
AE15: Σεπτέμβριος | AF15: =Παραγωγή!C23 -> 148 | AG15: =Παραγωγή!D23 -> 74000 | AI15: Δαπάνη Προμήθειας και Εγκατάστασης Φ/Β (€) με ΦΠΑ | AO15: =+Αποτελέσματα!H12 -> 649995.6
AE16: Οκτώβριος | AF16: =Παραγωγή!C24 -> 126 | AG16: =Παραγωγή!D24 -> 63000 | AI16: Κόστος Διασύνδεσης Φ/Β (€) | AO16: =+Αποτελέσματα!H13 -> 403.23
AE17: Νοέμβριος | AF17: =Παραγωγή!C25 -> 101 | AG17: =Παραγωγή!D25 -> 50500 | AI17: Κόστος Διασύνδεσης Φ/Β (€) με ΦΠΑ | AO17: =+Αποτελέσματα!H14 -> 500.0052
AE18: Δεκέμβριος | AF18: =Παραγωγή!C26 -> 85.1 | AG18: =Παραγωγή!D26 -> 42550 | AI18: Συνολο δαπάνης με ΦΠΑ | AO18: =+Αποτελέσματα!H15 -> 650495.6052
AE19: Σύνολο | AF19: =SUM(AF7:AF18) -> 1630.3 | AG19: =SUM(AG7:AG18) -> 815150 | AI19: Γ. ΝΕΕΣ ΕΝΕΡΓΕΙΑΚΕΣ ΚΑΤΑΝΑΛΩΣΕΙΣ ΜΕΤΑ ΤΗΝ ΕΦΑΡΜΟΓΗ ΤΟΥ NET METERING
AI20: Κατανάλωση Ηλεκτρικής Ενέργειας μετά τον συμψηφισμό (kWh/Έτος) Ανταγωνιστικό Σκέλος | AO20: =+Αποτελέσματα!H17 -> 1105851
AI21: Κατανάλωση Ηλεκτρικής Ενέργειας μετά τον συμψηφισμό (kWh/Έτος) Ρυθμιζόμενες Χρεώσεις ΥΚΩ | AO21: =+Αποτελέσματα!H18 -> 1921001
AI22: Κατανάλωση Ηλεκτρικής Ενέργειας μετά τον συμψηφισμό (kWh/Έτος) Ρυθμιζόμενες Χρεώσεις (λοιπές) | AO22: =+Αποτελέσματα!H19 -> 1735568
AI23: Περίσσεια Ηλεκτρικής Ενέργειας μετά τον συμψηφισμό (kWh/Έτος) | AO23: =+Αποτελέσματα!H20 -> 0
AI24: Ετήσια Δαπάνη Ηλεκτρικής Ενέργειας μετά τον συμψηφισμό (€/Έτος) | AO24: =+Αποτελέσματα!H21 -> 124369
AI25: E. ΕΞΟΙΚΟΝΟΜΗΣΗ ΕΝΕΡΓΕΙΑΣ - ΜΕΙΩΣΗ ΔΑΠΑΝΗΣ
AI26: Ετήσια Εξοικονόμηση Ηλεκτρικής Ενέργειας (kWh/Έτος) | AO26: =+Αποτελέσματα!H23 -> 815150
AI27: Ετήσια Εξοικονόμηση Δαπάνης (€) | AO27: =+Αποτελέσματα!H24 -> 62198
AI28: ΣΤ. ΠΕΡΙΒΑΛΛΟΝΤΙΚΟ ΟΦΕΛΟΣ (Τόνοι/ kWh)
I29: =IF(A29="","",A29) ->  | J29: =IF(F29="","",F29) ->  | AI29: Ρύποι | AK29: Συμβατικό Σύστημα | AM29: Νέο Σύστημα | AO29: Όφελος
I30: =IF(A30="","",A30) ->  | J30: =IF(F30="","",F30) ->  | AI30: CO2 | AK30: =+Αποτελέσματα!D27 -> 779.2 | AM30: =+Αποτελέσματα!F27 -> 448.56 | AO30: =+Αποτελέσματα!H27 -> 330.64
AI31: Ποσοστό Μείωσης Εκλυόμενοι Ρύποι: | AP31: =+Αποτελέσματα!I28 -> 0.4243326489
AI33: Συνολικός προϋπολογισμός προμήθειας και εγκατάστασης Φ/Β σταθμού (€) | AO33: =+Αποτελέσματα!H30 -> 650495.6052
AI34: Ζ. ΔΕΙΚΤΕΣ ΟΙΚΟΝΟΜΙΚΟΤΗΤΑΣ
AI35: Ποσοστό Κάλυψης Εξυπηρέτησης Οφειλών | AO35: =+Αποτελέσματα!H32 -> 1.044927503
AI36: Σταθμισμένο κόστος έργου (€/MWh): | AO36: =+Αποτελέσματα!H33 -> 119.954545
I45: =IF(A45="","",A45) ->  | J45: =IF(F45="","",F45) -> 
I46: =IF(A46="","",A46) ->  | J46: =IF(F46="","",F46) -> 

Sheet SORT-DAY (hidden)
